Workbook

Sheet Dashboard
B2: CLIMATESCOPE INDEX 2013
B3: INSTRUCTIONS
B4: Climatescope is a comprehensive index and report assessing the environment for low-carbon investment in 26 countries in Latin America and the Caribbean,
B5: developed by the Multilateral Investment Fund (part of the Inter-American Development Bank) and Bloomberg New Energy Finance.
B7: TAB CONTENT
B8: ="Climatescope scores countries on a 0 to "&dbl_ScoreMax&" scale and is composed of four parameters (see list below) - each of which has a unique weight to the overall final score. See rankings from rows 36 to 62." -> Climatescope scores countries on a 0 to 5 scale and is composed of four parameters (see list below) - each of which has a unique weight to the overall final score. See rankings from rows 36 to 62.
B9: ="The maximum attainable score is "& dbl_ScoreMax& " given the total weight of all parameters and/or categories do not exceed 100%." -> The maximum attainable score is 5 given the total weight of all parameters and/or categories do not exceed 100%.
B10: 1) Enabling Framework (40%)
B11: 2) Clean Energy Investment & Climate Financing (30%)
B12: 3) Low-Carbon Business & Clean Energy Value Chains (10%)
B13: 4) Greenhouse Gas Management Activities (20%)
B15: INSTRUCTIONS
B16: The Climatescope tool allows users to fine tune the methodology for parameter weights to fit their preferences. To customise parameter weighting scenarios...
B17: 1) Select the drop-down menu (Cell E24).
B18: 2) Choose pre-selected scenarios to analyse countries’ performance under a specific parameter. Country rankings will automatically reshuffle to reflect the results of your personalised Climatescope index.
B19: 3) To assign custom weights, choose the option 'Custom' in the drop-down menu and type in your own weighting assumptions. Click on 'Calculate Scores' to see the changes in the results.
B20: 4) To see how countries performed in each of the Climatescope’s 39 indicators click on 'View Country Analysis'. This button will take you to a new tab 'Country', which lists all Climatescope’s indicators, as well as their respective weights.
B22: For questions or feedback please email climatescope@bloomberg.net
B24: PARAMETER | E24: ="WEIGHT ("&TEXT(dbl_DBWeightP1+dbl_DBWeightP2+dbl_DBWeightP3+dbl_DBWeightP4, "0%")&")" -> WEIGHT (100%) | O24: SCORE RANGES KEY
B25: Weighting Scenario | E25: Defaults | O25: 4.01 to 5.00
B26: I. Enabling Framework | E26: 0.4 | O26: 3.01 to 4.00
B27: II. Clean Energy Investment & Climate Financing | E27: 0.3 | O27: 2.01 to 3.01
B28: III. Low Carbon Value Chain | E28: 0.1 | O28: 1.01 to 2.00
B29: IV. Greenhouse Gas Management Activities | E29: 0.2 | O29: 0.00 to 1.00
B34: RANK | C34: =IF(str_WeightScenario="Custom", "", "∆ 2012") -> ∆ 2012 | D34: COUNTRY | E34: ="CLIMATESCOPE " & int_Year + 1 & " SCORES" -> CLIMATESCOPE 2013 SCORES
B35: =RANK(E35, $E$35:$E$60) -> 1 | C35: =IF(str_WeightScenario="Custom", "", RANK(ChartData!J58, ChartData!$J$58:$J$83)-B35) -> 0 | D35: Brazil | E35: 2.472732675
B36: 2 | C36: =IF(str_WeightScenario="Custom", "", RANK(ChartData!J59, ChartData!$J$58:$J$83)-B36) -> 3 | D36: Chile | E36: 2.409466675
B37: 3 | C37: =IF(str_WeightScenario="Custom", "", RANK(ChartData!J60, ChartData!$J$58:$J$83)-B37) -> -1 | D37: Nicaragua | E37: 2.258240877
B38: 4 | C38: =IF(str_WeightScenario="Custom", "", RANK(ChartData!J61, ChartData!$J$58:$J$83)-B38) -> 0 | D38: Peru | E38: 2.251399714
B39: 5 | C39: =IF(str_WeightScenario="Custom", "", RANK(ChartData!J62, ChartData!$J$58:$J$83)-B39) -> 1 | D39: Mexico | E39: 2.189591245
B40: 6 | C40: =IF(str_WeightScenario="Custom", "", RANK(ChartData!J63, ChartData!$J$58:$J$83)-B40) -> 4 | D40: Uruguay | E40: 1.666337864
B41: 7 | C41: =IF(str_WeightScenario="Custom", "", RANK(ChartData!J64, ChartData!$J$58:$J$83)-B41) -> 4 | D41: Argentina | E41: 1.666077546
B42: 8 | C42: =IF(str_WeightScenario="Custom", "", RANK(ChartData!J65, ChartData!$J$58:$J$83)-B42) -> 7 | D42: Dominican Republic | E42: 1.581100112
B43: 9 | C43: =IF(str_WeightScenario="Custom", "", RANK(ChartData!J66, ChartData!$J$58:$J$83)-B43) -> -2 | D43: Colombia | E43: 1.543045819
B44: 10 | C44: =IF(str_WeightScenario="Custom", "", RANK(ChartData!J67, ChartData!$J$58:$J$83)-B44) -> -7 | D44: Panama | E44: 1.444932274
B45: 11 | C45: =IF(str_WeightScenario="Custom", "", RANK(ChartData!J68, ChartData!$J$58:$J$83)-B45) -> -3 | D45: Costa Rica | E45: 1.360502069
B46: 12 | C46: =IF(str_WeightScenario="Custom", "", RANK(ChartData!J69, ChartData!$J$58:$J$83)-B46) -> -3 | D46: Guatemala | E46: 1.337308465
B47: 13 | C47: =IF(str_WeightScenario="Custom", "", RANK(ChartData!J70, ChartData!$J$58:$J$83)-B47) -> 1 | D47: Ecuador | E47: 1.268029964
B48: 14 | C48: =IF(str_WeightScenario="Custom", "", RANK(ChartData!J71, ChartData!$J$58:$J$83)-B48) -> -2 | D48: Honduras | E48: 1.234795494
B49: 15 | C49: =IF(str_WeightScenario="Custom", "", RANK(ChartData!J72, ChartData!$J$58:$J$83)-B49) -> -2 | D49: El Salvador | E49: 1.08297634
B50: 16 | C50: =IF(str_WeightScenario="Custom", "", RANK(ChartData!J73, ChartData!$J$58:$J$83)-B50) -> 1 | D50: Belize | E50: 0.9983846169
B51: 17 | C51: =IF(str_WeightScenario="Custom", "", RANK(ChartData!J74, ChartData!$J$58:$J$83)-B51) -> -1 | D51: Jamaica | E51: 0.9355996919
B52: 18 | C52: =IF(str_WeightScenario="Custom", "", RANK(ChartData!J75, ChartData!$J$58:$J$83)-B52) -> 0 | D52: Paraguay | E52: 0.8978056176
B53: 19 | C53: =IF(str_WeightScenario="Custom", "", RANK(ChartData!J76, ChartData!$J$58:$J$83)-B53) -> 0 | D53: Bolivia | E53: 0.8614589553
B54: 20 | C54: =IF(str_WeightScenario="Custom", "", RANK(ChartData!J77, ChartData!$J$58:$J$83)-B54) -> 5 | D54: Venezuela | E54: 0.8091859325
B55: 21 | C55: =IF(str_WeightScenario="Custom", "", RANK(ChartData!J78, ChartData!$J$58:$J$83)-B55) -> 0 | D55: Bahamas | E55: 0.7977349921
B56: 22 | C56: =IF(str_WeightScenario="Custom", "", RANK(ChartData!J79, ChartData!$J$58:$J$83)-B56) -> 0 | D56: Haiti | E56: 0.7105156766
B57: 23 | C57: =IF(str_WeightScenario="Custom", "", RANK(ChartData!J80, ChartData!$J$58:$J$83)-B57) -> 1 | D57: Guyana | E57: 0.6671993737
B58: 24 | C58: =IF(str_WeightScenario="Custom", "", RANK(ChartData!J81, ChartData!$J$58:$J$83)-B58) -> -1 | D58: Trinidad & Tobago | E58: 0.5373153725
B59: 25 | C59: =IF(str_WeightScenario="Custom", "", RANK(ChartData!J82, ChartData!$J$58:$J$83)-B59) -> -5 | D59: Barbados | E59: 0.4460782564
B60: 26 | C60: =IF(str_WeightScenario="Custom", "", RANK(ChartData!J83, ChartData!$J$58:$J$83)-B60) -> 0 | D60: Suriname | E60: 0.3332252446

Sheet Country (hidden)
B2: COUNTRY PROFILE
B3: INSTRUCTIONS
B4: Climatescope is a comprehensive index and report assessing the environment for low-carbon investment in 26 countries in Latin America and the Caribbean,
B5: developed by the Multilateral Investment Fund (part of the Inter-American Development Bank) and Bloomberg New Energy Finance.
B7: TAB CONTENT
B8: 1) Column B: Parameters (4)
B9: 2) Column C: Parameter weights
B10: 3) Column D: Categories (13)
B11: 4) Column E: Category weights
B12: 5) Column G: Indicators (39)
B13: 6) Column H: Indicator weight (as a percentage of category weight)
B14: 7) Column I: Indicator net weight (as a percentage of the overall Climatescope score)
B15: 8) Column J: The underlying data which is used to derive the indicator scores
B16: 9) Column L: Aggregate scored data per indicator
B17: 10) Column M: Country’s relative performance per indicator (e.g. a full bar means the country has achieved the highest score possible for that indicator)
B19: INSTRUCTIONS
B20: 1) Select country of choice in the drop-down menu (Cell C25).
B21: 2) Scroll down to row 78 to visualize additional information, under 'Further Indicator Details'. Here you can see charts and tables which provide a more details on the related indicators.
B22: 3) Expand the indicator additional information by clicking on the '+' (plus sign) on the left.
B24: FOR QUESTIONS OR FEEDBACK PLEASE EMAIL CLIMATESCOPE@BLOOMBERG.NET
B25: INDICATOR ANALYSIS
B26: Country | C26: Brazil
B27: Year | C27: 2012
B28: Score | C28: =SUM(L31:L76) -> 2.472732675
B29: Indicators | C29: =COUNTIF(J31:J76, "<>0") -> 33
B30: PARAMETER | C30: WEIGHT | D30: CATEGORY | E30: WEIGHT | F30: REF. | G30: INDICATOR | H30: WEIGHT | I30: NET WEIGHT | J30: DATA | K30: UNITS | L30: SCORE | M30: PERFORMANCE | N30: DETAILS | O30: No.
B31: Enabling Framework | C31: 0.4 | D31: Policy & Regulation | E31: 0.4 | F31: 1.01 | G31: Clean energy policies | H31: 0.6 | I31: =IF(H31="", "", C31*E31*H31) -> 0.096 | J31: =IFERROR(INDEX(Database!$E$15:$R$1257, MATCH($F31&" > "&$C$26, Database!$AG$15:$AG$1257, 0), MATCH("Underlying" & " > " & "Data" & " > " & int_Year, Database!$E$14:$R$14, 0)), 0) -> 11 | K31: =IF(J31=1, "Policy Type", "Policy Types") -> Policy Types | L31: =IF(I31="", "", IFERROR(I31*dbl_ScoreMax*MAX(0, IFERROR(INDEX(Database!$E$15:$R$1257, MATCH($F31&" > "&$C$26, Database!$AG$15:$AG$1257, 0), MATCH("Benchmarked" & " > " & "Score" & " > " & int_Year, Database!$E$14:$R$14, 0)), 0))/100, 0)) -> 0.3707270701 | M31: =IF(L31="", "", IFERROR(L31/(I31*dbl_ScoreMax), 0)) -> 0.7723480627 | N31: BELOW | O31: 1
C32: =Dashboard!$E$26 -> 0.4 | E32: =E31 -> 0.4 | F32: =F31+0.01 -> 1.02 | G32: Power sector structure | H32: 0.3 | I32: =IF(H32="", "", C32*E32*H32) -> 0.048 | J32: =IFERROR(INDEX(Database!$E$15:$R$1257, MATCH($F32&" > "&$C$26, Database!$AG$15:$AG$1257, 0), MATCH("Underlying" & " > " & "Data" & " > " & int_Year, Database!$E$14:$R$14, 0)), 0) -> 8 | K32: =IF(J32=1, "Question", "Questions") -> Questions | L32: =IF(I32="", "", IFERROR(I32*dbl_ScoreMax*MAX(0, IFERROR(INDEX(Database!$E$15:$R$1257, MATCH($F32&" > "&$C$26, Database!$AG$15:$AG$1257, 0), MATCH("Benchmarked" & " > " & "Score" & " > " & int_Year, Database!$E$14:$R$14, 0)), 0))/100, 0)) -> 0.18 | M32: 0.75 | O32: =O31+1 -> 2
C33: =Dashboard!$E$26 -> 0.4 | E33: =E32 -> 0.4 | F33: =F32+0.01 -> 1.03 | G33: Clean energy rural electrification | H33: 0.1 | I33: 0.016 | J33: =IFERROR(INDEX(Database!$E$15:$R$1257, MATCH($F33&" > "&$C$26, Database!$AG$15:$AG$1257, 0), MATCH("Underlying" & " > " & "Data" & " > " & int_Year, Database!$E$14:$R$14, 0)), 0) -> 1 | K33: =IF(J33=1, "Program", "Programs") -> Program | L33: =IF(I33="", "", IFERROR(I33*dbl_ScoreMax*MAX(0, IFERROR(INDEX(Database!$E$15:$R$1257, MATCH($F33&" > "&$C$26, Database!$AG$15:$AG$1257, 0), MATCH("Benchmarked" & " > " & "Score" & " > " & int_Year, Database!$E$14:$R$14, 0)), 0))/100, 0)) -> 0.08 | M33: 1 | O33: 3
C34: =Dashboard!$E$26 -> 0.4 | D34: Clean Energy Penetration | E34: 0.4 | F34: 1.04 | G34: Clean energy installed capacity | H34: 0.15 | I34: 0.024 | J34: =IFERROR(INDEX(Database!$E$15:$R$1257, MATCH($F34&" > "&$C$26, Database!$AG$15:$AG$1257, 0), MATCH("Underlying" & " > " & "Data" & " > " & int_Year, Database!$E$14:$R$14, 0)), 0) -> 15880.9 | K34: MW | L34: =IF(I34="", "", IFERROR(I34*dbl_ScoreMax*MAX(0, IFERROR(INDEX(Database!$E$15:$R$1257, MATCH($F34&" > "&$C$26, Database!$AG$15:$AG$1257, 0), MATCH("Benchmarked" & " > " & "Score" & " > " & int_Year, Database!$E$14:$R$14, 0)), 0))/100, 0)) -> 0.02452719409 | M34: 0.2043932841 | N34: BELOW | O34: 4
C35: =Dashboard!$E$26 -> 0.4 | E35: =E34 -> 0.4 | F35: 1.05 | G35: Growth rate of installed capacity | H35: 0.2 | I35: 0.032 | J35: =IFERROR(INDEX(Database!$E$15:$R$1257, MATCH($F35&" > "&$C$26, Database!$AG$15:$AG$1257, 0), MATCH("Underlying" & " > " & "Data" & " > " & int_Year, Database!$E$14:$R$14, 0)), 0) -> 0.1456344998 | K35: % | L35: =IF(I35="", "", IFERROR(I35*dbl_ScoreMax*MAX(0, IFERROR(INDEX(Database!$E$15:$R$1257, MATCH($F35&" > "&$C$26, Database!$AG$15:$AG$1257, 0), MATCH("Benchmarked" & " > " & "Score" & " > " & int_Year, Database!$E$14:$R$14, 0)), 0))/100, 0)) -> 0.05856182935 | M35: 0.3660114335 | O35: 5
C36: =Dashboard!$E$26 -> 0.4 | E36: =E35 -> 0.4 | F36: 1.06 | G36: Clean energy electricity generation | H36: 0.15 | I36: 0.024 | J36: =IFERROR(INDEX(Database!$E$15:$R$1257, MATCH($F36&" > "&$C$26, Database!$AG$15:$AG$1257, 0), MATCH("Underlying" & " > " & "Data" & " > " & int_Year, Database!$E$14:$R$14, 0)), 0) -> 57399.82 | K36: GWh | L36: =IF(I36="", "", IFERROR(I36*dbl_ScoreMax*MAX(0, IFERROR(INDEX(Database!$E$15:$R$1257, MATCH($F36&" > "&$C$26, Database!$AG$15:$AG$1257, 0), MATCH("Benchmarked" & " > " & "Score" & " > " & int_Year, Database!$E$14:$R$14, 0)), 0))/100, 0)) -> 0.01331903028 | M36: 0.110991919 | N36: BELOW | O36: 6
C37: =Dashboard!$E$26 -> 0.4 | E37: =E36 -> 0.4 | F37: 1.07 | G37: Growth rate of electricity generation | H37: 0.2 | I37: 0.032 | J37: =IFERROR(INDEX(Database!$E$15:$R$1257, MATCH($F37&" > "&$C$26, Database!$AG$15:$AG$1257, 0), MATCH("Underlying" & " > " & "Data" & " > " & int_Year, Database!$E$14:$R$14, 0)), 0) -> 0 | K37: % | L37: =IF(I37="", "", IFERROR(I37*dbl_ScoreMax*MAX(0, IFERROR(INDEX(Database!$E$15:$R$1257, MATCH($F37&" > "&$C$26, Database!$AG$15:$AG$1257, 0), MATCH("Benchmarked" & " > " & "Score" & " > " & int_Year, Database!$E$14:$R$14, 0)), 0))/100, 0)) -> 0 | M37: 0 | O37: 7
C38: =Dashboard!$E$26 -> 0.4 | E38: 0.4 | F38: 1.08 | G38: Biofuels production | H38: 0.1 | I38: 0.016 | J38: =IFERROR(INDEX(Database!$E$15:$R$1257, MATCH($F38&" > "&$C$26, Database!$AG$15:$AG$1257, 0), MATCH("Underlying" & " > " & "Data" & " > " & int_Year, Database!$E$14:$R$14, 0)), 0) -> 25.27454812 | K38: =IF(J38=1, "Billion Litre", "Billion Litres") -> Billion Litres | L38: =IF(I38="", "", IFERROR(I38*dbl_ScoreMax*MAX(0, IFERROR(INDEX(Database!$E$15:$R$1257, MATCH($F38&" > "&$C$26, Database!$AG$15:$AG$1257, 0), MATCH("Benchmarked" & " > " & "Score" & " > " & int_Year, Database!$E$14:$R$14, 0)), 0))/100, 0)) -> 0.08 | M38: =IF(L38="", "", IFERROR(L38/(I38*dbl_ScoreMax), 0)) -> 1 | O38: 8
C39: =Dashboard!$E$26 -> 0.4 | E39: 0.4 | F39: 1.09 | G39: Growth rate biofuels production | H39: 0.2 | I39: 0.032 | J39: =IFERROR(INDEX(Database!$E$15:$R$1257, MATCH($F39&" > "&$C$26, Database!$AG$15:$AG$1257, 0), MATCH("Underlying" & " > " & "Data" & " > " & int_Year, Database!$E$14:$R$14, 0)), 0) -> -0.003870757313 | K39: % | L39: =IF(I39="", "", IFERROR(I39*dbl_ScoreMax*MAX(0, IFERROR(INDEX(Database!$E$15:$R$1257, MATCH($F39&" > "&$C$26, Database!$AG$15:$AG$1257, 0), MATCH("Benchmarked" & " > " & "Score" & " > " & int_Year, Database!$E$14:$R$14, 0)), 0))/100, 0)) -> 0 | M39: 0 | O39: 9
C40: =Dashboard!$E$26 -> 0.4 | D40: Price Attractiveness | E40: 0.1 | F40: 1.1 | G40: Average electricity spot prices | H40: =IF(J40=0, 0, 1/COUNTIF($J$40:$J$41, "<>0")) -> 0.5 | I40: 0.02 | J40: =IFERROR(INDEX(Database!$E$15:$R$1257, MATCH($F40&" > "&$C$26, Database!$AG$15:$AG$1257, 0), MATCH("Underlying" & " > " & "Data" & " > " & int_Year, Database!$E$14:$R$14, 0)), 0) -> 84.201082 | K40: USD/MWh | L40: =IF(I40="", "", IFERROR(I40*dbl_ScoreMax*MAX(0, IFERROR(INDEX(Database!$E$15:$R$1257, MATCH($F40&" > "&$C$26, Database!$AG$15:$AG$1257, 0), MATCH("Benchmarked" & " > " & "Score" & " > " & int_Year, Database!$E$14:$R$14, 0)), 0))/100, 0)) -> 0.03784800252 | M40: 0.3784800252 | O40: 10
C41: =Dashboard!$E$26 -> 0.4 | E41: =E40 -> 0.1 | F41: 1.11 | G41: Average retail electricity prices | H41: =IF(J41=0, 0, 1/COUNTIF($J$40:$J$41, "<>0")) -> 0.5 | I41: =IF(H41="", "", C41*E41*H41) -> 0.02 | J41: =IFERROR(INDEX(Database!$E$15:$R$1257, MATCH($F41&" > "&$C$26, Database!$AG$15:$AG$1257, 0), MATCH("Underlying" & " > " & "Data" & " > " & int_Year, Database!$E$14:$R$14, 0)), 0) -> 154.96168 | K41: USD/MWh | L41: =IF(I41="", "", IFERROR(I41*dbl_ScoreMax*MAX(0, IFERROR(INDEX(Database!$E$15:$R$1257, MATCH($F41&" > "&$C$26, Database!$AG$15:$AG$1257, 0), MATCH("Benchmarked" & " > " & "Score" & " > " & int_Year, Database!$E$14:$R$14, 0)), 0))/100, 0)) -> 0.0379353631 | M41: 0.379353631 | O41: 11
C42: =Dashboard!$E$26 -> 0.4 | E42: 0 | F42: 1.12 | G42: Average residential electricity prices | I42: =IF(H42="", "", C42*E42*H42) ->  | J42: =IFERROR(INDEX(Database!$E$15:$R$1257, MATCH($F42&" > "&$C$26, Database!$AG$15:$AG$1257, 0), MATCH("Underlying" & " > " & "Data" & " > " & int_Year, Database!$E$14:$R$14, 0)), 0) -> 171.31128 | K42: USD/MWh | L42: =IF(I42="", "", IFERROR(I42*dbl_ScoreMax*MAX(0, IFERROR(INDEX(Database!$E$15:$R$1257, MATCH($F42&" > "&$C$26, Database!$AG$15:$AG$1257, 0), MATCH("Benchmarked" & " > " & "Score" & " > " & int_Year, Database!$E$14:$R$14, 0)), 0))/100, 0)) ->  | O42: 12
C43: =Dashboard!$E$26 -> 0.4 | E43: =E42 -> 0 | F43: 1.13 | G43: Average commercial electricity prices | J43: =IFERROR(INDEX(Database!$E$15:$R$1257, MATCH($F43&" > "&$C$26, Database!$AG$15:$AG$1257, 0), MATCH("Underlying" & " > " & "Data" & " > " & int_Year, Database!$E$14:$R$14, 0)), 0) -> 134.301264 | K43: USD/MWh | L43: =IF(I43="", "", IFERROR(I43*dbl_ScoreMax*MAX(0, IFERROR(INDEX(Database!$E$15:$R$1257, MATCH($F43&" > "&$C$26, Database!$AG$15:$AG$1257, 0), MATCH("Benchmarked" & " > " & "Score" & " > " & int_Year, Database!$E$14:$R$14, 0)), 0))/100, 0)) ->  | O43: 13
C44: =Dashboard!$E$26 -> 0.4 | E44: 0 | F44: 1.14 | G44: Average industrial electricity prices | J44: =IFERROR(INDEX(Database!$E$15:$R$1257, MATCH($F44&" > "&$C$26, Database!$AG$15:$AG$1257, 0), MATCH("Underlying" & " > " & "Data" & " > " & int_Year, Database!$E$14:$R$14, 0)), 0) -> 159.272496 | K44: USD/MWh | L44: =IF(I44="", "", IFERROR(I44*dbl_ScoreMax*MAX(0, IFERROR(INDEX(Database!$E$15:$R$1257, MATCH($F44&" > "&$C$26, Database!$AG$15:$AG$1257, 0), MATCH("Benchmarked" & " > " & "Score" & " > " & int_Year, Database!$E$14:$R$14, 0)), 0))/100, 0)) ->  | O44: 14
C45: =Dashboard!$E$26 -> 0.4 | D45: Market Size Expectations | E45: 0.1 | F45: 1.15 | G45: Growth rate of power demand | H45: 0.5 | I45: 0.02 | J45: =IFERROR(INDEX(Database!$E$15:$R$1257, MATCH($F45&" > "&$C$26, Database!$AG$15:$AG$1257, 0), MATCH("Underlying" & " > " & "Data" & " > " & int_Year, Database!$E$14:$R$14, 0)), 0) -> 0 | K45: % | L45: =IF(I45="", "", IFERROR(I45*dbl_ScoreMax*MAX(0, IFERROR(INDEX(Database!$E$15:$R$1257, MATCH($F45&" > "&$C$26, Database!$AG$15:$AG$1257, 0), MATCH("Benchmarked" & " > " & "Score" & " > " & int_Year, Database!$E$14:$R$14, 0)), 0))/100, 0)) -> 0 | M45: 0 | O45: 15
C46: =Dashboard!$E$26 -> 0.4 | E46: =E45 -> 0.1 | F46: 1.16 | G46: Electrification rate | H46: 0.5 | I46: 0.02 | J46: =IFERROR(INDEX(Database!$E$15:$R$1257, MATCH($F46&" > "&$C$26, Database!$AG$15:$AG$1257, 0), MATCH("Underlying" & " > " & "Data" & " > " & int_Year, Database!$E$14:$R$14, 0)), 0) -> 0.983 | K46: % | L46: =IF(I46="", "", IFERROR(I46*dbl_ScoreMax*MAX(0, IFERROR(INDEX(Database!$E$15:$R$1257, MATCH($F46&" > "&$C$26, Database!$AG$15:$AG$1257, 0), MATCH("Benchmarked" & " > " & "Score" & " > " & int_Year, Database!$E$14:$R$14, 0)), 0))/100, 0)) -> 0.01525940997 | M46: 0.1525940997 | O46: 16
B47: Clean Energy Investment | C47: 0.3 | D47: Amount Invested | E47: 0.45 | F47: 2.01 | G47: Clean energy investments | H47: 0.5 | I47: =IF(H47="", "", C47*E47*H47) -> 0.0675 | J47: =IFERROR(INDEX(Database!$E$15:$R$1257, MATCH($F47&" > "&$C$26, Database!$AG$15:$AG$1257, 0), MATCH("Underlying" & " > " & "Data" & " > " & int_Year, Database!$E$14:$R$14, 0)), 0) -> 82210.77919 | K47: USDm | L47: =IF(I47="", "", IFERROR(I47*dbl_ScoreMax*MAX(0, IFERROR(INDEX(Database!$E$15:$R$1257, MATCH($F47&" > "&$C$26, Database!$AG$15:$AG$1257, 0), MATCH("Benchmarked" & " > " & "Score" & " > " & int_Year, Database!$E$14:$R$14, 0)), 0))/100, 0)) -> 0.08126137475 | M47: 0.2407744437 | N47: BELOW | O47: 17
B48: & Climate Financing | C48: =Dashboard!$E$27 -> 0.3 | E48: =E47 -> 0.45 | F48: =F47+0.01 -> 2.02 | G48: Growth rate of clean energy investments | H48: 0.5 | I48: 0.0675 | J48: =IFERROR(INDEX(Database!$E$15:$R$1257, MATCH($F48&" > "&$C$26, Database!$AG$15:$AG$1257, 0), MATCH("Underlying" & " > " & "Data" & " > " & int_Year, Database!$E$14:$R$14, 0)), 0) -> 0.1261305627 | K48: % | L48: =IF(I48="", "", IFERROR(I48*dbl_ScoreMax*MAX(0, IFERROR(INDEX(Database!$E$15:$R$1257, MATCH($F48&" > "&$C$26, Database!$AG$15:$AG$1257, 0), MATCH("Benchmarked" & " > " & "Score" & " > " & int_Year, Database!$E$14:$R$14, 0)), 0))/100, 0)) -> 0.04584540852 | M48: 0.1358382475 | O48: 18
C49: =Dashboard!$E$27 -> 0.3 | D49: Investment Type | E49: 0 | F49: 2.03 | G49: Asset finance investments | I49: =IF(H49="", "", C49*E49*H49) ->  | J49: =IFERROR(INDEX(Database!$E$15:$R$1257, MATCH($F49&" > "&$C$26, Database!$AG$15:$AG$1257, 0), MATCH("Underlying" & " > " & "Data" & " > " & int_Year, Database!$E$14:$R$14, 0)), 0) -> 67604.56477 | K49: USDm | L49: =IF(I49="", "", IFERROR(I49*dbl_ScoreMax*MAX(0, IFERROR(INDEX(Database!$E$15:$R$1257, MATCH($F49&" > "&$C$26, Database!$AG$15:$AG$1257, 0), MATCH("Benchmarked" & " > " & "Score" & " > " & int_Year, Database!$E$14:$R$14, 0)), 0))/100, 0)) ->  | M49: =IF(L49="", "", IFERROR(L49/(I49*dbl_ScoreMax), 0)) ->  | O49: 19
C50: =Dashboard!$E$27 -> 0.3 | E50: =E49 -> 0 | F50: 2.04 | G50: Corporate finance investments | J50: =IFERROR(INDEX(Database!$E$15:$R$1257, MATCH($F50&" > "&$C$26, Database!$AG$15:$AG$1257, 0), MATCH("Underlying" & " > " & "Data" & " > " & int_Year, Database!$E$14:$R$14, 0)), 0) -> 11053.4015 | K50: USDm | L50: =IF(I50="", "", IFERROR(I50*dbl_ScoreMax*MAX(0, IFERROR(INDEX(Database!$E$15:$R$1257, MATCH($F50&" > "&$C$26, Database!$AG$15:$AG$1257, 0), MATCH("Benchmarked" & " > " & "Score" & " > " & int_Year, Database!$E$14:$R$14, 0)), 0))/100, 0)) ->  | O50: 20
C51: =Dashboard!$E$27 -> 0.3 | E51: 0 | F51: 2.05 | G51: VC/PE investments | J51: =IFERROR(INDEX(Database!$E$15:$R$1257, MATCH($F51&" > "&$C$26, Database!$AG$15:$AG$1257, 0), MATCH("Underlying" & " > " & "Data" & " > " & int_Year, Database!$E$14:$R$14, 0)), 0) -> 3552.772921 | K51: USDm | L51: =IF(I51="", "", IFERROR(I51*dbl_ScoreMax*MAX(0, IFERROR(INDEX(Database!$E$15:$R$1257, MATCH($F51&" > "&$C$26, Database!$AG$15:$AG$1257, 0), MATCH("Benchmarked" & " > " & "Score" & " > " & int_Year, Database!$E$14:$R$14, 0)), 0))/100, 0)) ->  | O51: 21
C52: =Dashboard!$E$27 -> 0.3 | E52: 0 | F52: 2.06 | G52: Small Distributed scale | J52: =IFERROR(INDEX(Database!$E$15:$R$1257, MATCH($F52&" > "&$C$26, Database!$AG$15:$AG$1257, 0), MATCH("Underlying" & " > " & "Data" & " > " & int_Year, Database!$E$14:$R$14, 0)), 0) -> 0.04 | K52: USDm | L52: =IF(I52="", "", IFERROR(I52*dbl_ScoreMax*MAX(0, IFERROR(INDEX(Database!$E$15:$R$1257, MATCH($F52&" > "&$C$26, Database!$AG$15:$AG$1257, 0), MATCH("Benchmarked" & " > " & "Score" & " > " & int_Year, Database!$E$14:$R$14, 0)), 0))/100, 0)) ->  | O52: 22
C53: =Dashboard!$E$27 -> 0.3 | D53: Fund Sources | E53: 0.2 | F53: 2.07 | G53: Loans, grants, grant programs | H53: 0.5 | I53: 0.03 | J53: =IFERROR(INDEX(Database!$E$15:$R$1257, MATCH($F53&" > "&$C$26, Database!$AG$15:$AG$1257, 0), MATCH("Underlying" & " > " & "Data" & " > " & int_Year, Database!$E$14:$R$14, 0)), 0) -> 2505.85 | K53: USDm | L53: =IF(I53="", "", IFERROR(I53*dbl_ScoreMax*MAX(0, IFERROR(INDEX(Database!$E$15:$R$1257, MATCH($F53&" > "&$C$26, Database!$AG$15:$AG$1257, 0), MATCH("Benchmarked" & " > " & "Score" & " > " & int_Year, Database!$E$14:$R$14, 0)), 0))/100, 0)) -> 0.002346821424 | M53: 0.01564547616 | O53: 23
C54: =Dashboard!$E$27 -> 0.3 | E54: =E53 -> 0.2 | F54: 2.08 | G54: Local investments | H54: 0.5 | I54: 0.03 | J54: =IFERROR(INDEX(Database!$E$15:$R$1257, MATCH($F54&" > "&$C$26, Database!$AG$15:$AG$1257, 0), MATCH("Underlying" & " > " & "Data" & " > " & int_Year, Database!$E$14:$R$14, 0)), 0) -> 5936.324792 | K54: USDm | L54: =IF(I54="", "", IFERROR(I54*dbl_ScoreMax*MAX(0, IFERROR(INDEX(Database!$E$15:$R$1257, MATCH($F54&" > "&$C$26, Database!$AG$15:$AG$1257, 0), MATCH("Benchmarked" & " > " & "Score" & " > " & int_Year, Database!$E$14:$R$14, 0)), 0))/100, 0)) -> 0.1043849884 | M54: 0.6958999229 | O54: 24
C55: =Dashboard!$E$27 -> 0.3 | D55: Green Micro Finance | E55: 0.18 | F55: 2.09 | G55: Number of Green MFI | H55: 0.3833333333 | I55: 0.0207 | J55: =IFERROR(INDEX(Database!$E$15:$R$1257, MATCH($F55&" > "&$C$26, Database!$AG$15:$AG$1257, 0), MATCH("Underlying" & " > " & "Data" & " > " & int_Year, Database!$E$14:$R$14, 0)), 0) -> 2 | K55: =IF(J55=1, "Company", "Companies") -> Companies | L55: =IF(I55="", "", IFERROR(I55*dbl_ScoreMax*MAX(0, IFERROR(INDEX(Database!$E$15:$R$1257, MATCH($F55&" > "&$C$26, Database!$AG$15:$AG$1257, 0), MATCH("Benchmarked" & " > " & "Score" & " > " & int_Year, Database!$E$14:$R$14, 0)), 0))/100, 0)) -> 0.004946017699 | M55: 0.04778761062 | N55: BELOW | O55: 25
C56: =Dashboard!$E$27 -> 0.3 | E56: =E55 -> 0.18 | F56: 2.1 | G56: Green micro-loans | H56: 0.2166666667 | I56: 0.0117 | J56: =IFERROR(INDEX(Database!$E$15:$R$1257, MATCH($F56&" > "&$C$26, Database!$AG$15:$AG$1257, 0), MATCH("Underlying" & " > " & "Data" & " > " & int_Year, Database!$E$14:$R$14, 0)), 0) -> 0 | K56: USD | L56: =IF(I56="", "", IFERROR(I56*dbl_ScoreMax*MAX(0, IFERROR(INDEX(Database!$E$15:$R$1257, MATCH($F56&" > "&$C$26, Database!$AG$15:$AG$1257, 0), MATCH("Benchmarked" & " > " & "Score" & " > " & int_Year, Database!$E$14:$R$14, 0)), 0))/100, 0)) -> 0 | M56: 0 | O56: 26
C57: =Dashboard!$E$27 -> 0.3 | E57: 0.18 | F57: 2.11 | G57: Green micro-borrowers | H57: 0.2166666667 | I57: 0.0117 | J57: =IFERROR(INDEX(Database!$E$15:$R$1257, MATCH($F57&" > "&$C$26, Database!$AG$15:$AG$1257, 0), MATCH("Underlying" & " > " & "Data" & " > " & int_Year, Database!$E$14:$R$14, 0)), 0) -> 2 | K57: =IF(J57=1, "Borrower", "Borrowers") -> Borrowers | L57: =IF(I57="", "", IFERROR(I57*dbl_ScoreMax*MAX(0, IFERROR(INDEX(Database!$E$15:$R$1257, MATCH($F57&" > "&$C$26, Database!$AG$15:$AG$1257, 0), MATCH("Benchmarked" & " > " & "Score" & " > " & int_Year, Database!$E$14:$R$14, 0)), 0))/100, 0)) -> 1.427687989e-06 | M57: 2.440492289e-05 | O57: 27
C58: =Dashboard!$E$27 -> 0.3 | E58: 0.18 | F58: 2.12 | G58: Average cost of green micro debt | H58: 0.1833333333 | I58: =IF(H58="", "", C58*E58*H58) -> 0.0099 | J58: =IFERROR(INDEX(Database!$E$15:$R$1257, MATCH($F58&" > "&$C$26, Database!$AG$15:$AG$1257, 0), MATCH("Underlying" & " > " & "Data" & " > " & int_Year, Database!$E$14:$R$14, 0)), 0) -> 0.025 | K58: % | L58: =IF(I58="", "", IFERROR(I58*dbl_ScoreMax*MAX(0, IFERROR(INDEX(Database!$E$15:$R$1257, MATCH($F58&" > "&$C$26, Database!$AG$15:$AG$1257, 0), MATCH("Benchmarked" & " > " & "Score" & " > " & int_Year, Database!$E$14:$R$14, 0)), 0))/100, 0)) -> 0.0495 | M58: 1 | O58: 28
C59: =Dashboard!$E$27 -> 0.3 | D59: Cost of Debt | E59: 0.17 | F59: 2.13 | G59: Average cost of debt | H59: =IF(J59=0, 0, 1/COUNTIF($J$59:$J$60, "<>0")) -> 0.5 | I59: 0.0255 | J59: =IFERROR(INDEX(Database!$E$15:$R$1257, MATCH($F59&" > "&$C$26, Database!$AG$15:$AG$1257, 0), MATCH("Underlying" & " > " & "Data" & " > " & int_Year, Database!$E$14:$R$14, 0)), 0) -> 0.05 | K59: % | L59: =IF(I59="", "", IFERROR(I59*dbl_ScoreMax*MAX(0, IFERROR(INDEX(Database!$E$15:$R$1257, MATCH($F59&" > "&$C$26, Database!$AG$15:$AG$1257, 0), MATCH("Benchmarked" & " > " & "Score" & " > " & int_Year, Database!$E$14:$R$14, 0)), 0))/100, 0)) -> 0.1108893 | M59: 0.86972 | O59: 29
C60: =Dashboard!$E$27 -> 0.3 | E60: =E59 -> 0.17 | F60: 2.14 | G60: Swap rate | H60: =IF(J60=0, 0, 1/COUNTIF($J$59:$J$60, "<>0")) -> 0.5 | I60: 0.0255 | J60: =IFERROR(INDEX(Database!$E$15:$R$1257, MATCH($F60&" > "&$C$26, Database!$AG$15:$AG$1257, 0), MATCH("Underlying" & " > " & "Data" & " > " & int_Year, Database!$E$14:$R$14, 0)), 0) -> 0.085952 | K60: % | L60: =IF(I60="", "", IFERROR(I60*dbl_ScoreMax*MAX(0, IFERROR(INDEX(Database!$E$15:$R$1257, MATCH($F60&" > "&$C$26, Database!$AG$15:$AG$1257, 0), MATCH("Benchmarked" & " > " & "Score" & " > " & int_Year, Database!$E$14:$R$14, 0)), 0))/100, 0)) -> 0.06957080696 | M60: 0.5456533879 | O60: 30
B61: Low-Carbon Business | C61: 0.1 | D61: Value Chain | E61: 1 | F61: 3.01 | G61: Financial institutions in clean energy | H61: 0.25 | I61: 0.025 | J61: =IFERROR(INDEX(Database!$E$15:$R$1257, MATCH($F61&" > "&$C$26, Database!$AG$15:$AG$1257, 0), MATCH("Underlying" & " > " & "Data" & " > " & int_Year, Database!$E$14:$R$14, 0)), 0) -> 4 | K61: =IF(J61=1, "Company", "Companies") -> Companies | L61: =IF(I61="", "", IFERROR(I61*dbl_ScoreMax*MAX(0, IFERROR(INDEX(Database!$E$15:$R$1257, MATCH($F61&" > "&$C$26, Database!$AG$15:$AG$1257, 0), MATCH("Benchmarked" & " > " & "Score" & " > " & int_Year, Database!$E$14:$R$14, 0)), 0))/100, 0)) -> 0.125 | M61: 1 | N61: BELOW | O61: 31
B62: & Clean Energy Value Chains | C62: =Dashboard!$E$28 -> 0.1 | E62: =E61 -> 1 | F62: =F61+0.01 -> 3.02 | G62: Value chains by clean energy sector | H62: 0.5 | I62: 0.05 | J62: =IFERROR(INDEX(Database!$E$15:$R$1257, MATCH($F62&" > "&$C$26, Database!$AG$15:$AG$1257, 0), MATCH("Underlying" & " > " & "Data" & " > " & int_Year, Database!$E$14:$R$14, 0)), 0) -> 30 | K62: =IF(J62=1, "Value Chain", "Value Chains") -> Value Chains | L62: =IF(I62="", "", IFERROR(I62*dbl_ScoreMax*MAX(0, IFERROR(INDEX(Database!$E$15:$R$1257, MATCH($F62&" > "&$C$26, Database!$AG$15:$AG$1257, 0), MATCH("Benchmarked" & " > " & "Score" & " > " & int_Year, Database!$E$14:$R$14, 0)), 0))/100, 0)) -> 0.1875 | M62: 0.75 | N62: BELOW | O62: 32
C63: =Dashboard!$E$28 -> 0.1 | E63: 1 | F63: =F62+0.01 -> 3.03 | G63: Clean energy service providers | H63: 0.25 | I63: 0.025 | J63: =IFERROR(INDEX(Database!$E$15:$R$1257, MATCH($F63&" > "&$C$26, Database!$AG$15:$AG$1257, 0), MATCH("Underlying" & " > " & "Data" & " > " & int_Year, Database!$E$14:$R$14, 0)), 0) -> 18 | K63: =IF(J63=1, "Service Provider", "Sevice Providers") -> Sevice Providers | L63: =IF(I63="", "", IFERROR(I63*dbl_ScoreMax*MAX(0, IFERROR(INDEX(Database!$E$15:$R$1257, MATCH($F63&" > "&$C$26, Database!$AG$15:$AG$1257, 0), MATCH("Benchmarked" & " > " & "Score" & " > " & int_Year, Database!$E$14:$R$14, 0)), 0))/100, 0)) -> 0.1125 | M63: 0.9 | N63: BELOW | O63: 33
B64: GHG Management Activities | C64: 0.2 | D64: Carbon Offsets | E64: 0.4 | F64: 4.01 | G64: Carbon offsets historical activity | H64: 0.5 | I64: 0.04 | J64: =IFERROR(INDEX(Database!$E$15:$R$1257, MATCH($F64&" > "&$C$26, Database!$AG$15:$AG$1257, 0), MATCH("Underlying" & " > " & "Data" & " > " & int_Year, Database!$E$14:$R$14, 0)), 0) -> 345 | K64: Projects | L64: =IF(I64="", "", IFERROR(I64*dbl_ScoreMax*MAX(0, IFERROR(INDEX(Database!$E$15:$R$1257, MATCH($F64&" > "&$C$26, Database!$AG$15:$AG$1257, 0), MATCH("Benchmarked" & " > " & "Score" & " > " & int_Year, Database!$E$14:$R$14, 0)), 0))/100, 0)) -> 0.2 | M64: 1 | O64: 34
C65: =Dashboard!$E$29 -> 0.2 | E65: =E64 -> 0.4 | F65: =F64+0.01 -> 4.02 | G65: CDM risk | H65: 0.25 | I65: 0.02 | J65: =IFERROR(INDEX(Database!$E$15:$R$1257, MATCH($F65&" > "&$C$26, Database!$AG$15:$AG$1257, 0), MATCH("Underlying" & " > " & "Data" & " > " & int_Year, Database!$E$14:$R$14, 0)), 0) -> 118 | K65: Failures/Projects | L65: =IF(I65="", "", IFERROR(I65*dbl_ScoreMax*MAX(0, IFERROR(INDEX(Database!$E$15:$R$1257, MATCH($F65&" > "&$C$26, Database!$AG$15:$AG$1257, 0), MATCH("Benchmarked" & " > " & "Score" & " > " & int_Year, Database!$E$14:$R$14, 0)), 0))/100, 0)) -> 0.01666666667 | M65: 0.1666666667 | O65: 35
C66: =Dashboard!$E$29 -> 0.2 | E66: 0.4 | F66: 4.03 | G66: Carbon offsets future potential | H66: 0.25 | I66: 0.02 | J66: =IFERROR(INDEX(Database!$E$15:$R$1257, MATCH($F66&" > "&$C$26, Database!$AG$15:$AG$1257, 0), MATCH("Underlying" & " > " & "Data" & " > " & int_Year, Database!$E$14:$R$14, 0)), 0) -> 0 | K66: Potential | L66: =IF(I66="", "", IFERROR(I66*dbl_ScoreMax*MAX(0, IFERROR(INDEX(Database!$E$15:$R$1257, MATCH($F66&" > "&$C$26, Database!$AG$15:$AG$1257, 0), MATCH("Benchmarked" & " > " & "Score" & " > " & int_Year, Database!$E$14:$R$14, 0)), 0))/100, 0)) -> 0.04142299885 | M66: 0.4142299885 | O66: 36
C67: =Dashboard!$E$29 -> 0.2 | D67: Carbon Policy | E67: 0.3 | F67: 4.04 | G67: GHG emissions reduction target | H67: 0.4166666667 | I67: 0.025 | J67: =IFERROR(INDEX(Database!$E$15:$R$1257, MATCH($F67&" > "&$C$26, Database!$AG$15:$AG$1257, 0), MATCH("Underlying" & " > " & "Data" & " > " & int_Year, Database!$E$14:$R$14, 0)), 0) -> 1 | K67: Target | L67: =IF(I67="", "", IFERROR(I67*dbl_ScoreMax*MAX(0, IFERROR(INDEX(Database!$E$15:$R$1257, MATCH($F67&" > "&$C$26, Database!$AG$15:$AG$1257, 0), MATCH("Benchmarked" & " > " & "Score" & " > " & int_Year, Database!$E$14:$R$14, 0)), 0))/100, 0)) -> 0.075 | M67: 0.6 | O67: 37
C68: =Dashboard!$E$29 -> 0.2 | E68: =E67 -> 0.3 | F68: 4.05 | G68: GHG country registry | H68: 0.25 | I68: 0.015 | J68: =IFERROR(INDEX(Database!$E$15:$R$1257, MATCH($F68&" > "&$C$26, Database!$AG$15:$AG$1257, 0), MATCH("Underlying" & " > " & "Data" & " > " & int_Year, Database!$E$14:$R$14, 0)), 0) -> 0 | K68: Registry | L68: =IF(I68="", "", IFERROR(I68*dbl_ScoreMax*MAX(0, IFERROR(INDEX(Database!$E$15:$R$1257, MATCH($F68&" > "&$C$26, Database!$AG$15:$AG$1257, 0), MATCH("Benchmarked" & " > " & "Score" & " > " & int_Year, Database!$E$14:$R$14, 0)), 0))/100, 0)) -> 0.05 | M68: 0.6666666667 | O68: 38
C69: =Dashboard!$E$29 -> 0.2 | E69: 0.3 | F69: 4.06 | G69: GHG market-based instruments | H69: 0.08333333333 | I69: 0.005 | J69: =IFERROR(INDEX(Database!$E$15:$R$1257, MATCH($F69&" > "&$C$26, Database!$AG$15:$AG$1257, 0), MATCH("Underlying" & " > " & "Data" & " > " & int_Year, Database!$E$14:$R$14, 0)), 0) -> 0 | K69: Program | L69: =IF(I69="", "", IFERROR(I69*dbl_ScoreMax*MAX(0, IFERROR(INDEX(Database!$E$15:$R$1257, MATCH($F69&" > "&$C$26, Database!$AG$15:$AG$1257, 0), MATCH("Benchmarked" & " > " & "Score" & " > " & int_Year, Database!$E$14:$R$14, 0)), 0))/100, 0)) -> 0 | M69: 0 | O69: 39
C70: =Dashboard!$E$29 -> 0.2 | E70: 0.3 | F70: 4.07 | G70: PMR & NAMA | H70: 0.25 | I70: 0.015 | J70: =IFERROR(INDEX(Database!$E$15:$R$1257, MATCH($F70&" > "&$C$26, Database!$AG$15:$AG$1257, 0), MATCH("Underlying" & " > " & "Data" & " > " & int_Year, Database!$E$14:$R$14, 0)), 0) -> 0 | K70: PMR & NAMA | L70: =IF(I70="", "", IFERROR(I70*dbl_ScoreMax*MAX(0, IFERROR(INDEX(Database!$E$15:$R$1257, MATCH($F70&" > "&$C$26, Database!$AG$15:$AG$1257, 0), MATCH("Benchmarked" & " > " & "Score" & " > " & int_Year, Database!$E$14:$R$14, 0)), 0))/100, 0)) -> 0.01875 | M70: 0.25 | O70: 40
C71: =Dashboard!$E$29 -> 0.2 | D71: Corporate Awareness | E71: 0.3 | F71: 4.08 | G71: Voluntary GHG reporting by corporates | H71: 0.1666666667 | I71: 0.01 | J71: =IFERROR(INDEX(Database!$E$15:$R$1257, MATCH($F71&" > "&$C$26, Database!$AG$15:$AG$1257, 0), MATCH("Underlying" & " > " & "Data" & " > " & int_Year, Database!$E$14:$R$14, 0)), 0) -> 0 | K71: Companies | L71: =IF(I71="", "", IFERROR(I71*dbl_ScoreMax*MAX(0, IFERROR(INDEX(Database!$E$15:$R$1257, MATCH($F71&" > "&$C$26, Database!$AG$15:$AG$1257, 0), MATCH("Benchmarked" & " > " & "Score" & " > " & int_Year, Database!$E$14:$R$14, 0)), 0))/100, 0)) -> 0.02896896449 | M71: 0.5793792898 | O71: 41
C72: =Dashboard!$E$29 -> 0.2 | E72: =E71 -> 0.3 | F72: 4.09 | G72: Investor pressure – PRI signatories | H72: 0.1666666667 | I72: 0.01 | J72: =IFERROR(INDEX(Database!$E$15:$R$1257, MATCH($F72&" > "&$C$26, Database!$AG$15:$AG$1257, 0), MATCH("Underlying" & " > " & "Data" & " > " & int_Year, Database!$E$14:$R$14, 0)), 0) -> 0 | K72: Companies | L72: =IF(I72="", "", IFERROR(I72*dbl_ScoreMax*MAX(0, IFERROR(INDEX(Database!$E$15:$R$1257, MATCH($F72&" > "&$C$26, Database!$AG$15:$AG$1257, 0), MATCH("Benchmarked" & " > " & "Score" & " > " & int_Year, Database!$E$14:$R$14, 0)), 0))/100, 0)) -> 0.05 | M72: 1 | O72: 42
C73: =Dashboard!$E$29 -> 0.2 | E73: 0.3 | F73: 4.1 | G73: Corporate energy efficiency initiatives | H73: 0.1666666667 | I73: 0.01 | J73: =IFERROR(INDEX(Database!$E$15:$R$1257, MATCH($F73&" > "&$C$26, Database!$AG$15:$AG$1257, 0), MATCH("Underlying" & " > " & "Data" & " > " & int_Year, Database!$E$14:$R$14, 0)), 0) -> 0 | K73: Companies | L73: =IF(I73="", "", IFERROR(I73*dbl_ScoreMax*MAX(0, IFERROR(INDEX(Database!$E$15:$R$1257, MATCH($F73&" > "&$C$26, Database!$AG$15:$AG$1257, 0), MATCH("Benchmarked" & " > " & "Score" & " > " & int_Year, Database!$E$14:$R$14, 0)), 0))/100, 0)) -> 0.05 | M73: 1 | O73: 43
C74: =Dashboard!$E$29 -> 0.2 | E74: 0.3 | F74: 4.11 | G74: Corporate emission reduction policies | H74: 0.1666666667 | I74: 0.01 | J74: =IFERROR(INDEX(Database!$E$15:$R$1257, MATCH($F74&" > "&$C$26, Database!$AG$15:$AG$1257, 0), MATCH("Underlying" & " > " & "Data" & " > " & int_Year, Database!$E$14:$R$14, 0)), 0) -> 0 | K74: Companies | L74: =IF(I74="", "", IFERROR(I74*dbl_ScoreMax*MAX(0, IFERROR(INDEX(Database!$E$15:$R$1257, MATCH($F74&" > "&$C$26, Database!$AG$15:$AG$1257, 0), MATCH("Benchmarked" & " > " & "Score" & " > " & int_Year, Database!$E$14:$R$14, 0)), 0))/100, 0)) -> 0.05 | M74: 1 | O74: 44
C75: =Dashboard!$E$29 -> 0.2 | E75: 0.3 | F75: 4.12 | G75: Capacity building – env. business training | H75: 0.1666666667 | I75: 0.01 | J75: =IFERROR(INDEX(Database!$E$15:$R$1257, MATCH($F75&" > "&$C$26, Database!$AG$15:$AG$1257, 0), MATCH("Underlying" & " > " & "Data" & " > " & int_Year, Database!$E$14:$R$14, 0)), 0) -> 0 | K75: Organisations | L75: =IF(I75="", "", IFERROR(I75*dbl_ScoreMax*MAX(0, IFERROR(INDEX(Database!$E$15:$R$1257, MATCH($F75&" > "&$C$26, Database!$AG$15:$AG$1257, 0), MATCH("Benchmarked" & " > " & "Score" & " > " & int_Year, Database!$E$14:$R$14, 0)), 0))/100, 0)) -> 0.05 | M75: 1 | O75: 45
C76: =Dashboard!$E$29 -> 0.2 | E76: 0.3 | F76: 4.13 | G76: Capacity building – think tanks | H76: 0.1666666667 | I76: =IF(H76="", "", C76*E76*H76) -> 0.01 | J76: =IFERROR(INDEX(Database!$E$15:$R$1257, MATCH($F76&" > "&$C$26, Database!$AG$15:$AG$1257, 0), MATCH("Underlying" & " > " & "Data" & " > " & int_Year, Database!$E$14:$R$14, 0)), 0) -> 0 | K76: Organisations | L76: =IF(I76="", "", IFERROR(I76*dbl_ScoreMax*MAX(0, IFERROR(INDEX(Database!$E$15:$R$1257, MATCH($F76&" > "&$C$26, Database!$AG$15:$AG$1257, 0), MATCH("Benchmarked" & " > " & "Score" & " > " & int_Year, Database!$E$14:$R$14, 0)), 0))/100, 0)) -> 0.05 | M76: 1 | O76: 46
B78: FURTHER INDICATOR DETAILS
B79: 1.01 - Clean Energy Policies | D79: =COUNTIF(D80:D103, "Yes") -> 11
B80: Energy Market - Feed-in tariff | D80: =IF(INDEX(Policy!$B$6:$Y$31, MATCH(str_Country, Policy!$A$6:$A$31, 0), MATCH($B80, Policy!$B$5:$Y$5, 0))=1, "Yes", "No") -> Yes
B81: Energy Market - Energy targets | D81: =IF(INDEX(Policy!$B$6:$Y$31, MATCH(str_Country, Policy!$A$6:$A$31, 0), MATCH($B81, Policy!$B$5:$Y$5, 0))=1, "Yes", "No") -> No
B82: Energy Market - Auction | D82: =IF(INDEX(Policy!$B$6:$Y$31, MATCH(str_Country, Policy!$A$6:$A$31, 0), MATCH($B82, Policy!$B$5:$Y$5, 0))=1, "Yes", "No") -> Yes
B83: Energy Market - Biofuels blending mandate | D83: =IF(INDEX(Policy!$B$6:$Y$31, MATCH(str_Country, Policy!$A$6:$A$31, 0), MATCH($B83, Policy!$B$5:$Y$5, 0))=1, "Yes", "No") -> Yes
B84: Energy Market - Net Metering | D84: =IF(INDEX(Policy!$B$6:$Y$31, MATCH(str_Country, Policy!$A$6:$A$31, 0), MATCH($B84, Policy!$B$5:$Y$5, 0))=1, "Yes", "No") -> Yes
B85: Energy Market - Other | D85: =IF(INDEX(Policy!$B$6:$Y$31, MATCH(str_Country, Policy!$A$6:$A$31, 0), MATCH($B85, Policy!$B$5:$Y$5, 0))=1, "Yes", "No") -> Yes
B86: Equity Finance - Grants | D86: =IF(INDEX(Policy!$B$6:$Y$31, MATCH(str_Country, Policy!$A$6:$A$31, 0), MATCH($B86, Policy!$B$5:$Y$5, 0))=1, "Yes", "No") -> No
B87: Equity Finance - Incubators | D87: =IF(INDEX(Policy!$B$6:$Y$31, MATCH(str_Country, Policy!$A$6:$A$31, 0), MATCH($B87, Policy!$B$5:$Y$5, 0))=1, "Yes", "No") -> No
B88: Equity Finance - Infrastructure funds | D88: =IF(INDEX(Policy!$B$6:$Y$31, MATCH(str_Country, Policy!$A$6:$A$31, 0), MATCH($B88, Policy!$B$5:$Y$5, 0))=1, "Yes", "No") -> Yes
B89: Equity Finance - Other | D89: =IF(INDEX(Policy!$B$6:$Y$31, MATCH(str_Country, Policy!$A$6:$A$31, 0), MATCH($B89, Policy!$B$5:$Y$5, 0))=1, "Yes", "No") -> No
B90: Debt Finance - Funding | D90: =IF(INDEX(Policy!$B$6:$Y$31, MATCH(str_Country, Policy!$A$6:$A$31, 0), MATCH($B90, Policy!$B$5:$Y$5, 0))=1, "Yes", "No") -> Yes
B91: Debt Finance - Export trade credit | D91: =IF(INDEX(Policy!$B$6:$Y$31, MATCH(str_Country, Policy!$A$6:$A$31, 0), MATCH($B91, Policy!$B$5:$Y$5, 0))=1, "Yes", "No") -> No
B92: Debt Finance - Green Bonds | D92: =IF(INDEX(Policy!$B$6:$Y$31, MATCH(str_Country, Policy!$A$6:$A$31, 0), MATCH($B92, Policy!$B$5:$Y$5, 0))=1, "Yes", "No") -> No
B93: Debt Finance - Other | D93: =IF(INDEX(Policy!$B$6:$Y$31, MATCH(str_Country, Policy!$A$6:$A$31, 0), MATCH($B93, Policy!$B$5:$Y$5, 0))=1, "Yes", "No") -> No
B94: Tax-Based - Accelerated depreciation | D94: =IF(INDEX(Policy!$B$6:$Y$31, MATCH(str_Country, Policy!$A$6:$A$31, 0), MATCH($B94, Policy!$B$5:$Y$5, 0))=1, "Yes", "No") -> No
B95: Tax-Based - Tax relief | D95: =IF(INDEX(Policy!$B$6:$Y$31, MATCH(str_Country, Policy!$A$6:$A$31, 0), MATCH($B95, Policy!$B$5:$Y$5, 0))=1, "Yes", "No") -> Yes
B96: Tax-Based - Income tax | D96: =IF(INDEX(Policy!$B$6:$Y$31, MATCH(str_Country, Policy!$A$6:$A$31, 0), MATCH($B96, Policy!$B$5:$Y$5, 0))=1, "Yes", "No") -> No
B97: Tax-Based - Import duty | D97: =IF(INDEX(Policy!$B$6:$Y$31, MATCH(str_Country, Policy!$A$6:$A$31, 0), MATCH($B97, Policy!$B$5:$Y$5, 0))=1, "Yes", "No") -> Yes
B98: Tax-Based - Tax rebate | D98: =IF(INDEX(Policy!$B$6:$Y$31, MATCH(str_Country, Policy!$A$6:$A$31, 0), MATCH($B98, Policy!$B$5:$Y$5, 0))=1, "Yes", "No") -> Yes
B99: Tax-Based - Other | D99: =IF(INDEX(Policy!$B$6:$Y$31, MATCH(str_Country, Policy!$A$6:$A$31, 0), MATCH($B99, Policy!$B$5:$Y$5, 0))=1, "Yes", "No") -> No
B100: Carbon Market - Domestic cap and trade | D100: =IF(INDEX(Policy!$B$6:$Y$31, MATCH(str_Country, Policy!$A$6:$A$31, 0), MATCH($B100, Policy!$B$5:$Y$5, 0))=1, "Yes", "No") -> No
B101: Carbon Market - Emissions reduction target | D101: =IF(INDEX(Policy!$B$6:$Y$31, MATCH(str_Country, Policy!$A$6:$A$31, 0), MATCH($B101, Policy!$B$5:$Y$5, 0))=1, "Yes", "No") -> Yes
B102: Carbon Market - Project-based carbon credits | D102: =IF(INDEX(Policy!$B$6:$Y$31, MATCH(str_Country, Policy!$A$6:$A$31, 0), MATCH($B102, Policy!$B$5:$Y$5, 0))=1, "Yes", "No") -> No
B103: Carbon Market - Other | D103: =IF(INDEX(Policy!$B$6:$Y$31, MATCH(str_Country, Policy!$A$6:$A$31, 0), MATCH($B103, Policy!$B$5:$Y$5, 0))=1, "Yes", "No") -> No
B104: 1.04 - Clean Energy Capacity (MW) | D104: =SUM(C105:C109) -> 15880.9
B105: Biomass & Waste | C105: =SUMIFS(Levelisation!L$7:L$344, Levelisation!$E$7:$E$344, str_Country, Levelisation!$C$7:$C$344, $B105) -> 9815.9 | D105: =IF($D$104=0,0,C105/SUM($C$105:$C$110)) -> 0.07951657706
B106: Geothermal | C106: =SUMIFS(Levelisation!L$7:L$344, Levelisation!$E$7:$E$344, str_Country, Levelisation!$C$7:$C$344, $B106) -> 0 | D106: 0
B107: Small Hydro | C107: =SUMIFS(Levelisation!L$7:L$344, Levelisation!$E$7:$E$344, str_Country, Levelisation!$C$7:$C$344, $B107) -> 4247.8 | D107: 0.03441054983
B108: Solar | C108: =SUMIFS(Levelisation!L$7:L$344, Levelisation!$E$7:$E$344, str_Country, Levelisation!$C$7:$C$344, $B108) -> 1.5 | D108: 1.215118997e-05
B109: Wind | C109: =SUMIFS(Levelisation!L$7:L$344, Levelisation!$E$7:$E$344, str_Country, Levelisation!$C$7:$C$344, $B109) -> 1815.7 | D109: 0.01470861041
B110: Other Energy | C110: =SUMIFS(Levelisation!L$7:L$292, Levelisation!$E$7:$E$292, str_Country)-D104 -> 107563.8 | D110: 0.8713521115
B111: Historical Capacity (MW)
B130: 1.06 - Clean Energy Generation (GWh) | D130: =SUM(C131:C135) -> 57399.82
B131: Biomass & Waste | C131: =SUMIFS(Levelisation!L$346:L$631, Levelisation!$E$346:$E$631, str_Country, Levelisation!$C$346:$C$631, $B131) -> 37223 | D131: =IF($D$104=0,0,C131/SUM($C$131:$C$136)) -> 0.06777296292
B132: Geothermal | C132: =SUMIFS(Levelisation!L$346:L$631, Levelisation!$E$346:$E$631, str_Country, Levelisation!$C$346:$C$631, $B132) -> 0 | D132: 0
B133: Small Hydro | C133: =SUMIFS(Levelisation!L$346:L$631, Levelisation!$E$346:$E$631, str_Country, Levelisation!$C$346:$C$631, $B133) -> 17471.82 | D133: 0.03181143403
B134: Solar | C134: =SUMIFS(Levelisation!L$346:L$631, Levelisation!$E$346:$E$631, str_Country, Levelisation!$C$346:$C$631, $B134) -> 0 | D134: 0
B135: Wind | C135: =SUMIFS(Levelisation!L$346:L$631, Levelisation!$E$346:$E$631, str_Country, Levelisation!$C$346:$C$631, $B135) -> 2705 | D135: 0.004925069573
B136: Other Energy | C136: =SUMIFS(Levelisation!L$346:L$631, Levelisation!$E$346:$E$631, str_Country)-D130 -> 491831 | D136: 0.8954905335
B137: Historical Generation (GWh)
B156: Clean Energy Capacity Factors (%) | D156: =IFERROR(AVERAGEIF(D157:D161, "<>0"), 0) -> 0.3574977922
B157: Biomass & Waste | D157: =IF(C105=0,0,(C131*1000)/(8760*C105)) -> 0.4328895887
B158: Geothermal | D158: 0
B159: Small Hydro | D159: 0.4695371722
B160: Solar | D160: 0
B161: Wind | D161: =IF(C109=0,0,(C135*1000)/(8760*C109)) -> 0.1700666158
B162: Other Energy | D162: 0.5219701361
B163: 2.01 - Clean Energy Investments (USDm) | C163: All | D163: =SUM(C164:C171) -> 82210.77919
B164: Biofuels | C164: =ChartData!H29 -> 41364.04344 | D164: =IF($D$163=0, 0, C164/$D$163) -> 0.5031462279
B165: Biomass & Waste | C165: =ChartData!H30 -> 6170.083497 | D165: 0.07505200118
B166: Geothermal | C166: =ChartData!H31 -> 0 | D166: 0
B167: Small Hydro | C167: =ChartData!H32 -> 11500.05273 | D167: 0.1398849742
B168: Solar | C168: =ChartData!H33 -> 90.16846112 | D168: 0.001096796089
B169: Wind | C169: =ChartData!H34 -> 22937.48467 | D169: 0.2790082383
B170: Other Clean Energy | C170: =ChartData!H35 -> 148.9063929 | D170: 0.001811275776
B171: Small Scale Dist. | C171: =ChartData!H36 -> 0.04 | D171: 4.865542012e-07
B172: Historical Investments (USDm)
B191: 2.09 - Green MFI Contacts | D191: =COUNTA(B193:B212) -> 9
B192: Company | C192: Website | D192: Phone
B193: Agencia do Credito | C193: www.extracredi.com.br | D193: (55) 49 3621 0803
B194: ASCOOB Central | C194: www.ascoobcentral.com.br | D194: (55) 75 3614 8482
B195: Banco do Vale | C195: No website | D195: (55) 47 3222 1338
B196: Banco do Planalto Norte | C196: No website | D196: (55) 47 9114 4299
B197: BANCRI | C197: www.bancri.org.br | D197: (55) 47 3045 6030
B198: CEADE | C198: No website | D198: (55) 71 3327 2021
B199: ICC MAU-CE | C199: No website | D199: (55) 55 3744 6372
B200: Lander | C200: No website | D200: (55) 48 3029 3080
B201: SEBRAE | C201: www.sebrae.gov.br | D201: (55) 61 9962 5658
B213: 3.01 - Financial Institutions In Clean Energy | D213: =COUNTA(B215:B234) -> 18
B214: Company | C214: Website | D214: Investment Type
B215: Banco Bradesco | C215: www.bradesco.com.br | D215: Asset Finance
B216: Banco da Amazônia | C216: www.bancoamazonia.com.br | D216: Asset Finance
B217: Banco de Desenvolvimento de Minas Gerais | C217: www.bdmg.mg.gov.br | D217: Asset Finance
B218: Banco do Brasil | C218: www.bb.com.br | D218: Asset Finance
B219: Banco do Estado do Rio Grande do Sul | C219: www.banrisul.com.br | D219: Asset Finance
B220: Banco Itau BBA | C220: www.itau.com.br | D220: Asset Finance, Corporate Finance
B221: Banco Nacional de Desenvolvimento Econômico e Social | C221: www.bndes.gov.br | D221: Asset Finance, Corporate Finance, Private Equity/Venture Capital
B222: Banco Santander Brasil | C222: www.santander.com.br | D222: Asset Finance
B223: Caixa Econômica Federal | C223: www.caixa.gov.br | D223: Asset Finance, Corporate Finance
B224: Conselho Integrado de Desenvolvimento de Minas Gerais | C224: www.conselhos.mg.gov.br | D224: Asset Finance
B225: Corporación Andina de Fomento | C225: www.caf.com | D225: Asset Finance, Corporate Finance
B226: Darby Stratus Administração de Investimentos | C226: No website | D226: Private Equity/Venture Capital
B227: Explora Investimentos Gestão de Recursos Ltda | C227: www.explorainvest.com.br | D227: Private Equity/Venture Capital
B228: Finexim | C228: www.finexim.com | D228: Asset Finance
B229: Itau Unibanco | C229: www.itau.com.br | D229: Asset Finance
B230: Pragma Gestão de Patrimônio | C230: www.ecopart.com.br | D230: Private Equity/Venture Capital
B231: Superintendência do Desenvolvimento do Nordeste | C231: www.sudene.gov.br | D231: Asset Finance
B232: Unipar Participações | C232: www.unipar.ind.br | D232: Private Equity/Venture Capital
B235: 3.02 - Clean Energy Value Chains | D235: =COUNTIF(D236:D274, "Yes") -> 28
B236: Biofuels - Distribution and Blending | D236: =IF(SUMIFS(Levelisation!L$1468:L$2507, Levelisation!$E$1468:$E$2507, str_Country, Levelisation!$C$1468:$C$2507, $B236)=1, "Yes", "No") -> Yes
B237: Biofuels - Engineering Companies | D237: =IF(SUMIFS(Levelisation!L$1468:L$2507, Levelisation!$E$1468:$E$2507, str_Country, Levelisation!$C$1468:$C$2507, $B237)=1, "Yes", "No") -> Yes
B238: Biofuels - Producers | D238: =IF(SUMIFS(Levelisation!L$1468:L$2507, Levelisation!$E$1468:$E$2507, str_Country, Levelisation!$C$1468:$C$2507, $B238)=1, "Yes", "No") -> Yes
B239: Biomass & Waste - Feedstock Supply | D239: =IF(SUMIFS(Levelisation!L$1468:L$2507, Levelisation!$E$1468:$E$2507, str_Country, Levelisation!$C$1468:$C$2507, $B239)=1, "Yes", "No") -> Yes
B240: Biomass & Waste - Manufacturing Equipment | D240: =IF(SUMIFS(Levelisation!L$1468:L$2507, Levelisation!$E$1468:$E$2507, str_Country, Levelisation!$C$1468:$C$2507, $B240)=1, "Yes", "No") -> Yes
B241: Biomass & Waste - Power Generation | D241: =IF(SUMIFS(Levelisation!L$1468:L$2507, Levelisation!$E$1468:$E$2507, str_Country, Levelisation!$C$1468:$C$2507, $B241)=1, "Yes", "No") -> Yes
B242: Biomass & Waste - Project Development | D242: =IF(SUMIFS(Levelisation!L$1468:L$2507, Levelisation!$E$1468:$E$2507, str_Country, Levelisation!$C$1468:$C$2507, $B242)=1, "Yes", "No") -> Yes
B243: Biomass & Waste - System Integration | D243: =IF(SUMIFS(Levelisation!L$1468:L$2507, Levelisation!$E$1468:$E$2507, str_Country, Levelisation!$C$1468:$C$2507, $B243)=1, "Yes", "No") -> Yes
B244: Geothermal - Balance of Plant | D244: =IF(SUMIFS(Levelisation!L$1468:L$2507, Levelisation!$E$1468:$E$2507, str_Country, Levelisation!$C$1468:$C$2507, $B244)=1, "Yes", "No") -> No
B245: Geothermal - Exploration/Production Drilling | D245: =IF(SUMIFS(Levelisation!L$1468:L$2507, Levelisation!$E$1468:$E$2507, str_Country, Levelisation!$C$1468:$C$2507, $B245)=1, "Yes", "No") -> No
B246: Geothermal - Operation & Maintenance | D246: =IF(SUMIFS(Levelisation!L$1468:L$2507, Levelisation!$E$1468:$E$2507, str_Country, Levelisation!$C$1468:$C$2507, $B246)=1, "Yes", "No") -> No
B247: Geothermal - Power Purchase | D247: =IF(SUMIFS(Levelisation!L$1468:L$2507, Levelisation!$E$1468:$E$2507, str_Country, Levelisation!$C$1468:$C$2507, $B247)=1, "Yes", "No") -> No
B248: Geothermal - Pre-Drilling Exploration | D248: =IF(SUMIFS(Levelisation!L$1468:L$2507, Levelisation!$E$1468:$E$2507, str_Country, Levelisation!$C$1468:$C$2507, $B248)=1, "Yes", "No") -> No
B249: Geothermal - Project Development | D249: =IF(SUMIFS(Levelisation!L$1468:L$2507, Levelisation!$E$1468:$E$2507, str_Country, Levelisation!$C$1468:$C$2507, $B249)=1, "Yes", "No") -> Yes
B250: Geothermal - Turbine & Power Block | D250: =IF(SUMIFS(Levelisation!L$1468:L$2507, Levelisation!$E$1468:$E$2507, str_Country, Levelisation!$C$1468:$C$2507, $B250)=1, "Yes", "No") -> No
B251: Geothermal - Well Completion & Resource Confirmation | D251: =IF(SUMIFS(Levelisation!L$1468:L$2507, Levelisation!$E$1468:$E$2507, str_Country, Levelisation!$C$1468:$C$2507, $B251)=1, "Yes", "No") -> No
B252: Small Hydro - Civil Works/Builder | D252: =IF(SUMIFS(Levelisation!L$1468:L$2507, Levelisation!$E$1468:$E$2507, str_Country, Levelisation!$C$1468:$C$2507, $B252)=1, "Yes", "No") -> Yes
B253: Small Hydro - Engineering | D253: =IF(SUMIFS(Levelisation!L$1468:L$2507, Levelisation!$E$1468:$E$2507, str_Country, Levelisation!$C$1468:$C$2507, $B253)=1, "Yes", "No") -> Yes
B254: Small Hydro - Operation & Maintenance | D254: =IF(SUMIFS(Levelisation!L$1468:L$2507, Levelisation!$E$1468:$E$2507, str_Country, Levelisation!$C$1468:$C$2507, $B254)=1, "Yes", "No") -> Yes
B255: Small Hydro - Power Purchase | D255: =IF(SUMIFS(Levelisation!L$1468:L$2507, Levelisation!$E$1468:$E$2507, str_Country, Levelisation!$C$1468:$C$2507, $B255)=1, "Yes", "No") -> Yes
B256: Small Hydro - Project Development | D256: =IF(SUMIFS(Levelisation!L$1468:L$2507, Levelisation!$E$1468:$E$2507, str_Country, Levelisation!$C$1468:$C$2507, $B256)=1, "Yes", "No") -> Yes
B257: Small Hydro - Turbines | D257: =IF(SUMIFS(Levelisation!L$1468:L$2507, Levelisation!$E$1468:$E$2507, str_Country, Levelisation!$C$1468:$C$2507, $B257)=1, "Yes", "No") -> Yes
B258: Solar - Balance of Plant | D258: =IF(SUMIFS(Levelisation!L$1468:L$2507, Levelisation!$E$1468:$E$2507, str_Country, Levelisation!$C$1468:$C$2507, $B258)=1, "Yes", "No") -> No
B259: Solar - Cells | D259: =IF(SUMIFS(Levelisation!L$1468:L$2507, Levelisation!$E$1468:$E$2507, str_Country, Levelisation!$C$1468:$C$2507, $B259)=1, "Yes", "No") -> Yes
B260: Solar - EPC | D260: =IF(SUMIFS(Levelisation!L$1468:L$2507, Levelisation!$E$1468:$E$2507, str_Country, Levelisation!$C$1468:$C$2507, $B260)=1, "Yes", "No") -> Yes
B261: Solar - Modules | D261: =IF(SUMIFS(Levelisation!L$1468:L$2507, Levelisation!$E$1468:$E$2507, str_Country, Levelisation!$C$1468:$C$2507, $B261)=1, "Yes", "No") -> Yes
B262: Solar - Owner/Operator | D262: =IF(SUMIFS(Levelisation!L$1468:L$2507, Levelisation!$E$1468:$E$2507, str_Country, Levelisation!$C$1468:$C$2507, $B262)=1, "Yes", "No") -> No
B263: Solar - Polysilicon/ingots | D263: No
B264: Solar - Project Development | D264: =IF(SUMIFS(Levelisation!L$1468:L$2507, Levelisation!$E$1468:$E$2507, str_Country, Levelisation!$C$1468:$C$2507, $B264)=1, "Yes", "No") -> Yes
B265: Solar - Wafers | D265: =IF(SUMIFS(Levelisation!L$1468:L$2507, Levelisation!$E$1468:$E$2507, str_Country, Levelisation!$C$1468:$C$2507, $B265)=1, "Yes", "No") -> Yes
B266: Wind - Bearings | D266: =IF(SUMIFS(Levelisation!L$1468:L$2507, Levelisation!$E$1468:$E$2507, str_Country, Levelisation!$C$1468:$C$2507, $B266)=1, "Yes", "No") -> No
B267: Wind - Blades | D267: =IF(SUMIFS(Levelisation!L$1468:L$2507, Levelisation!$E$1468:$E$2507, str_Country, Levelisation!$C$1468:$C$2507, $B267)=1, "Yes", "No") -> Yes
B268: Wind - Construction/Installation | D268: =IF(SUMIFS(Levelisation!L$1468:L$2507, Levelisation!$E$1468:$E$2507, str_Country, Levelisation!$C$1468:$C$2507, $B268)=1, "Yes", "No") -> Yes
B269: Wind - Gearboxes | D269: =IF(SUMIFS(Levelisation!L$1468:L$2507, Levelisation!$E$1468:$E$2507, str_Country, Levelisation!$C$1468:$C$2507, $B269)=1, "Yes", "No") -> Yes
B270: Wind - Generators | D270: =IF(SUMIFS(Levelisation!L$1468:L$2507, Levelisation!$E$1468:$E$2507, str_Country, Levelisation!$C$1468:$C$2507, $B270)=1, "Yes", "No") -> Yes
B271: Wind - Operation & Maintenance | D271: =IF(SUMIFS(Levelisation!L$1468:L$2507, Levelisation!$E$1468:$E$2507, str_Country, Levelisation!$C$1468:$C$2507, $B271)=1, "Yes", "No") -> Yes
B272: Wind - Power Generator | D272: =IF(SUMIFS(Levelisation!L$1468:L$2507, Levelisation!$E$1468:$E$2507, str_Country, Levelisation!$C$1468:$C$2507, $B272)=1, "Yes", "No") -> Yes
... 23 more rows

Sheet Database (hidden)
A1: INDICATOR DATABASE | S1: ADDITONAL DATA
A4: Internal Assumptions
A5: Model Year | C5: =Country!$C$27 -> 2012
A6: Maximum Score | C6: 5
A7: Benchmark Max | C7: 100
A9: Indicator Database | E9: Underlying Data | L9: Benchmarked Data (Scores) | S9: Underlying Data (Backend) | Z9: Benchmark Data (Backend) | AJ9: Source
A10: Table | B10: Indicator | C10: Units | D10: Country | E10: 2006 | F10: =E10+1 -> 2007 | G10: =F10+1 -> 2008 | H10: 2009 | I10: =H10+1 -> 2010 | J10: =I10+1 -> 2011 | K10: =J10+1 -> 2012 | L10: 2006 | M10: =L10+1 -> 2007 | N10: =M10+1 -> 2008 | O10: 2009 | P10: 2010 | Q10: 2011 | R10: 2012 | S10: 2006 | T10: =S10+1 -> 2007 | U10: =T10+1 -> 2008 | V10: 2009 | W10: 2010 | X10: 2011 | Y10: =X10+1 -> 2012 | Z10: 2006 | AA10: =Z10+1 -> 2007 | AB10: =AA10+1 -> 2008 | AC10: 2009 | AD10: 2010 | AE10: 2011 | AF10: =AE10+1 -> 2012 | AG10: Row Description | AH10: Row | AI10: Indicator
A11: Column Description (Hidden)
A12: Underlying | B12: Underlying | C12: Underlying | D12: Underlying | E12: Underlying | F12: Underlying | G12: Underlying | H12: Underlying | I12: Underlying | J12: Underlying | K12: Underlying | L12: Benchmarked | M12: Benchmarked | N12: Benchmarked | O12: Benchmarked | P12: Benchmarked | Q12: Benchmarked | R12: Benchmarked | S12: Underlying | T12: Underlying | U12: Underlying | V12: Underlying | W12: Underlying | X12: Underlying | Y12: Underlying | Z12: Benchmarked | AA12: Benchmarked | AB12: Benchmarked | AC12: Benchmarked | AD12: Benchmarked | AE12: Benchmarked | AF12: Benchmarked | AG12: Underlying | AH12: Underlying | AI12: Underlying
A13: Other | B13: Other | C13: Other | D13: Other | E13: Data | F13: Data | G13: Data | H13: Data | I13: Data | J13: Data | K13: Data | L13: Score | M13: Score | N13: Score | O13: Score | P13: Score | Q13: Score | R13: Score | S13: Other | T13: Other | U13: Other | V13: Other | W13: Other | X13: Other | Y13: Other | Z13: Other | AA13: Other | AB13: Other | AC13: Other | AD13: Other | AE13: Other | AF13: Other | AG13: Other | AH13: Other | AI13: Other
A14: =A12&" > "&A13&" > "&A10 -> Underlying > Other > Table | B14: Underlying > Other > Indicator | C14: Underlying > Other > Units | D14: Underlying > Other > Country | E14: Underlying > Data > 2006 | F14: Underlying > Data > 2007 | G14: Underlying > Data > 2008 | H14: Underlying > Data > 2009 | I14: Underlying > Data > 2010 | J14: Underlying > Data > 2011 | K14: Underlying > Data > 2012 | L14: Benchmarked > Score > 2006 | M14: Benchmarked > Score > 2007 | N14: =N12&" > "&N13&" > "&N10 -> Benchmarked > Score > 2008 | O14: Benchmarked > Score > 2009 | P14: Benchmarked > Score > 2010 | Q14: Benchmarked > Score > 2011 | R14: Benchmarked > Score > 2012 | S14: Underlying > Other > 2006 | T14: Underlying > Other > 2007 | U14: Underlying > Other > 2008 | V14: Underlying > Other > 2009 | W14: Underlying > Other > 2010 | X14: Underlying > Other > 2011 | Y14: Underlying > Other > 2012 | Z14: Benchmarked > Other > 2006 | AA14: Benchmarked > Other > 2007 | AB14: Benchmarked > Other > 2008 | AC14: Benchmarked > Other > 2009 | AD14: Benchmarked > Other > 2010 | AE14: Benchmarked > Other > 2011 | AF14: Benchmarked > Other > 2012 | AG14: Underlying > Other > Row Description | AH14: Underlying > Other > Row | AI14: Underlying > Other > Indicator
A15: =INDEX(Country!$F$31:$G$76, MATCH(AI15, Country!$O$31:$O$76, 0), 1) -> 1.01 | B15: =INDEX(Country!$F$31:$G$76, MATCH(AI15, Country!$O$31:$O$76, 0), 2) -> Clean energy policies | C15: =INDEX(Country!$K$31:$K$76, MATCH(AI15, Country!$O$31:$O$76, 0), 1) -> Policy Types | D15: Argentina | E15: =Policy!$Z6 -> 6 | F15: =Policy!$Z6 -> 6 | G15: =Policy!$Z6 -> 6 | H15: =Policy!$Z6 -> 6 | I15: =Policy!$Z6 -> 6 | J15: =Policy!$Z6 -> 6 | K15: =Policy!$Z6 -> 6 | L15: =(Z15/5)*dbl_BenchmarkMax -> 53 | M15: =(AA15/5)*dbl_BenchmarkMax -> 53 | N15: =(AB15/5)*dbl_BenchmarkMax -> 53 | O15: =(AC15/5)*dbl_BenchmarkMax -> 53 | P15: =(AD15/5)*dbl_BenchmarkMax -> 53 | Q15: =(AE15/5)*dbl_BenchmarkMax -> 53 | R15: =(AF15/5)*dbl_BenchmarkMax -> 53.33677893 | Z15: =AA15 -> 2.65 | AA15: =AB15 -> 2.65 | AB15: =AC15 -> 2.65 | AC15: =AD15 -> 2.65 | AD15: =AE15 -> 2.65 | AE15: 2.65 | AF15: 2.666838947 | AG15: =A15&" > " &D15 -> 1.01 > Argentina | AH15: 1 | AI15: =ROUNDUP(AH15/COUNTA($D$15:$D$41),0) -> 1
A16: =INDEX(Country!$F$31:$G$76, MATCH(AI16, Country!$O$31:$O$76, 0), 1) -> 1.01 | B16: =INDEX(Country!$F$31:$G$76, MATCH(AI16, Country!$O$31:$O$76, 0), 2) -> Clean energy policies | C16: =INDEX(Country!$K$31:$K$76, MATCH(AI16, Country!$O$31:$O$76, 0), 1) -> Policy Types | D16: Bahamas | E16: =Policy!$Z7 -> 0 | F16: =Policy!$Z7 -> 0 | G16: =Policy!$Z7 -> 0 | H16: =Policy!$Z7 -> 0 | I16: =Policy!$Z7 -> 0 | J16: =Policy!$Z7 -> 0 | K16: =Policy!$Z7 -> 0 | L16: 22.5 | M16: 22.5 | N16: 22.5 | O16: 22.5 | P16: 22.5 | Q16: 22.5 | R16: 20 | Z16: 1.125 | AA16: 1.125 | AB16: 1.125 | AC16: =AD16 -> 1.125 | AD16: =AE16 -> 1.125 | AE16: 1.125 | AF16: 1 | AG16: 1.01 > Bahamas | AH16: =AH15+1 -> 2 | AI16: 1
A17: =INDEX(Country!$F$31:$G$76, MATCH(AI17, Country!$O$31:$O$76, 0), 1) -> 1.01 | B17: =INDEX(Country!$F$31:$G$76, MATCH(AI17, Country!$O$31:$O$76, 0), 2) -> Clean energy policies | C17: =INDEX(Country!$K$31:$K$76, MATCH(AI17, Country!$O$31:$O$76, 0), 1) -> Policy Types | D17: Barbados | E17: =Policy!$Z8 -> 2 | F17: =Policy!$Z8 -> 2 | G17: =Policy!$Z8 -> 2 | H17: =Policy!$Z8 -> 2 | I17: =Policy!$Z8 -> 2 | J17: =Policy!$Z8 -> 2 | K17: =Policy!$Z8 -> 2 | L17: 26 | M17: 26 | N17: 26 | O17: 26 | P17: 26 | Q17: 26 | R17: 33.51554598 | Z17: 1.3 | AA17: 1.3 | AB17: 1.3 | AC17: 1.3 | AD17: 1.3 | AE17: 1.3 | AF17: 1.675777299 | AG17: 1.01 > Barbados | AH17: =AH16+1 -> 3 | AI17: =ROUNDUP(AH17/COUNTA($D$15:$D$41),0) -> 1
A18: =INDEX(Country!$F$31:$G$76, MATCH(AI18, Country!$O$31:$O$76, 0), 1) -> 1.01 | B18: =INDEX(Country!$F$31:$G$76, MATCH(AI18, Country!$O$31:$O$76, 0), 2) -> Clean energy policies | C18: =INDEX(Country!$K$31:$K$76, MATCH(AI18, Country!$O$31:$O$76, 0), 1) -> Policy Types | D18: Belize | E18: =Policy!$Z9 -> 0 | F18: =Policy!$Z9 -> 0 | G18: =Policy!$Z9 -> 0 | H18: =Policy!$Z9 -> 0 | I18: =Policy!$Z9 -> 0 | J18: =Policy!$Z9 -> 0 | K18: =Policy!$Z9 -> 0 | L18: 20 | M18: 20 | N18: 20 | O18: 20 | P18: 20 | Q18: 20 | R18: 20 | Z18: 1 | AA18: 1 | AB18: 1 | AC18: 1 | AD18: 1 | AE18: 1 | AF18: 1 | AG18: 1.01 > Belize | AH18: 4 | AI18: 1
A19: =INDEX(Country!$F$31:$G$76, MATCH(AI19, Country!$O$31:$O$76, 0), 1) -> 1.01 | B19: =INDEX(Country!$F$31:$G$76, MATCH(AI19, Country!$O$31:$O$76, 0), 2) -> Clean energy policies | C19: =INDEX(Country!$K$31:$K$76, MATCH(AI19, Country!$O$31:$O$76, 0), 1) -> Policy Types | D19: Bolivia | E19: =Policy!$Z10 -> 0 | F19: =Policy!$Z10 -> 0 | G19: =Policy!$Z10 -> 0 | H19: =Policy!$Z10 -> 0 | I19: =Policy!$Z10 -> 0 | J19: =Policy!$Z10 -> 0 | K19: =Policy!$Z10 -> 0 | L19: 20 | M19: 20 | N19: 20 | O19: 20 | P19: 20 | Q19: 20 | R19: 20 | Z19: 1 | AA19: 1 | AB19: 1 | AC19: 1 | AD19: 1 | AE19: 1 | AF19: 1 | AG19: 1.01 > Bolivia | AH19: 5 | AI19: 1
A20: =INDEX(Country!$F$31:$G$76, MATCH(AI20, Country!$O$31:$O$76, 0), 1) -> 1.01 | B20: =INDEX(Country!$F$31:$G$76, MATCH(AI20, Country!$O$31:$O$76, 0), 2) -> Clean energy policies | C20: =INDEX(Country!$K$31:$K$76, MATCH(AI20, Country!$O$31:$O$76, 0), 1) -> Policy Types | D20: Brazil | E20: =Policy!$Z11 -> 11 | F20: =Policy!$Z11 -> 11 | G20: =Policy!$Z11 -> 11 | H20: =Policy!$Z11 -> 11 | I20: =Policy!$Z11 -> 11 | J20: =Policy!$Z11 -> 11 | K20: =Policy!$Z11 -> 11 | L20: 78 | M20: 78 | N20: 78 | O20: 78 | P20: 78 | Q20: 78 | R20: 77.23480627 | Z20: 3.9 | AA20: =AB20 -> 3.9 | AB20: 3.9 | AC20: 3.9 | AD20: 3.9 | AE20: 3.9 | AF20: 3.861740314 | AG20: 1.01 > Brazil | AH20: 6 | AI20: 1
A21: =INDEX(Country!$F$31:$G$76, MATCH(AI21, Country!$O$31:$O$76, 0), 1) -> 1.01 | B21: =INDEX(Country!$F$31:$G$76, MATCH(AI21, Country!$O$31:$O$76, 0), 2) -> Clean energy policies | C21: =INDEX(Country!$K$31:$K$76, MATCH(AI21, Country!$O$31:$O$76, 0), 1) -> Policy Types | D21: Chile | E21: =Policy!$Z12 -> 4 | F21: =Policy!$Z12 -> 4 | G21: =Policy!$Z12 -> 4 | H21: =Policy!$Z12 -> 4 | I21: =Policy!$Z12 -> 4 | J21: =Policy!$Z12 -> 4 | K21: =Policy!$Z12 -> 4 | L21: 52 | M21: 52 | N21: 52 | O21: 52 | P21: 52 | Q21: 52 | R21: 50.84730717 | Z21: 2.6 | AA21: 2.6 | AB21: =AC21 -> 2.6 | AC21: 2.6 | AD21: 2.6 | AE21: 2.6 | AF21: 2.542365358 | AG21: 1.01 > Chile | AH21: 7 | AI21: 1
A22: =INDEX(Country!$F$31:$G$76, MATCH(AI22, Country!$O$31:$O$76, 0), 1) -> 1.01 | B22: =INDEX(Country!$F$31:$G$76, MATCH(AI22, Country!$O$31:$O$76, 0), 2) -> Clean energy policies | C22: =INDEX(Country!$K$31:$K$76, MATCH(AI22, Country!$O$31:$O$76, 0), 1) -> Policy Types | D22: Colombia | E22: =Policy!$Z13 -> 3 | F22: =Policy!$Z13 -> 3 | G22: =Policy!$Z13 -> 3 | H22: =Policy!$Z13 -> 3 | I22: =Policy!$Z13 -> 3 | J22: =Policy!$Z13 -> 3 | K22: =Policy!$Z13 -> 3 | L22: 58 | M22: 58 | N22: 58 | O22: 58 | P22: 58 | Q22: 58 | R22: 45.45200106 | Z22: 2.9 | AA22: 2.9 | AB22: 2.9 | AC22: 2.9 | AD22: 2.9 | AE22: 2.9 | AF22: 2.272600053 | AG22: 1.01 > Colombia | AH22: 8 | AI22: 1
A23: =INDEX(Country!$F$31:$G$76, MATCH(AI23, Country!$O$31:$O$76, 0), 1) -> 1.01 | B23: =INDEX(Country!$F$31:$G$76, MATCH(AI23, Country!$O$31:$O$76, 0), 2) -> Clean energy policies | C23: =INDEX(Country!$K$31:$K$76, MATCH(AI23, Country!$O$31:$O$76, 0), 1) -> Policy Types | D23: Costa Rica | E23: =Policy!$Z14 -> 4 | F23: =Policy!$Z14 -> 4 | G23: =Policy!$Z14 -> 4 | H23: =Policy!$Z14 -> 4 | I23: =Policy!$Z14 -> 4 | J23: =Policy!$Z14 -> 4 | K23: =Policy!$Z14 -> 4 | L23: 44 | M23: 44 | N23: 44 | O23: 44 | P23: 44 | Q23: 44 | R23: 48.43654587 | Z23: 2.2 | AA23: 2.2 | AB23: 2.2 | AC23: 2.2 | AD23: 2.2 | AE23: 2.2 | AF23: 2.421827294 | AG23: 1.01 > Costa Rica | AH23: 9 | AI23: 1
A24: =INDEX(Country!$F$31:$G$76, MATCH(AI24, Country!$O$31:$O$76, 0), 1) -> 1.01 | B24: =INDEX(Country!$F$31:$G$76, MATCH(AI24, Country!$O$31:$O$76, 0), 2) -> Clean energy policies | C24: =INDEX(Country!$K$31:$K$76, MATCH(AI24, Country!$O$31:$O$76, 0), 1) -> Policy Types | D24: Dominican Republic | E24: =Policy!$Z15 -> 8 | F24: =Policy!$Z15 -> 8 | G24: =Policy!$Z15 -> 8 | H24: =Policy!$Z15 -> 8 | I24: =Policy!$Z15 -> 8 | J24: =Policy!$Z15 -> 8 | K24: =Policy!$Z15 -> 8 | L24: 56 | M24: 56 | N24: 56 | O24: 56 | P24: 56 | Q24: 56 | R24: 60.49144096 | Z24: 2.8 | AA24: 2.8 | AB24: 2.8 | AC24: 2.8 | AD24: 2.8 | AE24: 2.8 | AF24: 3.024572048 | AG24: 1.01 > Dominican Republic | AH24: 10 | AI24: 1
A25: =INDEX(Country!$F$31:$G$76, MATCH(AI25, Country!$O$31:$O$76, 0), 1) -> 1.01 | B25: =INDEX(Country!$F$31:$G$76, MATCH(AI25, Country!$O$31:$O$76, 0), 2) -> Clean energy policies | C25: =INDEX(Country!$K$31:$K$76, MATCH(AI25, Country!$O$31:$O$76, 0), 1) -> Policy Types | D25: Ecuador | E25: =Policy!$Z16 -> 3 | F25: =Policy!$Z16 -> 3 | G25: =Policy!$Z16 -> 3 | H25: =Policy!$Z16 -> 3 | I25: =Policy!$Z16 -> 3 | J25: =Policy!$Z16 -> 3 | K25: =Policy!$Z16 -> 3 | L25: 52 | M25: 52 | N25: 52 | O25: 52 | P25: 52 | Q25: 52 | R25: 40.76314581 | Z25: 2.6 | AA25: 2.6 | AB25: 2.6 | AC25: 2.6 | AD25: 2.6 | AE25: 2.6 | AF25: 2.038157291 | AG25: 1.01 > Ecuador | AH25: 11 | AI25: 1
A26: =INDEX(Country!$F$31:$G$76, MATCH(AI26, Country!$O$31:$O$76, 0), 1) -> 1.01 | B26: =INDEX(Country!$F$31:$G$76, MATCH(AI26, Country!$O$31:$O$76, 0), 2) -> Clean energy policies | C26: =INDEX(Country!$K$31:$K$76, MATCH(AI26, Country!$O$31:$O$76, 0), 1) -> Policy Types | D26: El Salvador | E26: =Policy!$Z17 -> 2 | F26: =Policy!$Z17 -> 2 | G26: =Policy!$Z17 -> 2 | H26: =Policy!$Z17 -> 2 | I26: =Policy!$Z17 -> 2 | J26: =Policy!$Z17 -> 2 | K26: =Policy!$Z17 -> 2 | L26: 30 | M26: 30 | N26: 30 | O26: 30 | P26: 30 | Q26: 30 | R26: 27.17891449 | Z26: 1.5 | AA26: 1.5 | AB26: 1.5 | AC26: 1.5 | AD26: 1.5 | AE26: 1.5 | AF26: 1.358945725 | AG26: 1.01 > El Salvador | AH26: 12 | AI26: 1
A27: =INDEX(Country!$F$31:$G$76, MATCH(AI27, Country!$O$31:$O$76, 0), 1) -> 1.01 | B27: =INDEX(Country!$F$31:$G$76, MATCH(AI27, Country!$O$31:$O$76, 0), 2) -> Clean energy policies | C27: =INDEX(Country!$K$31:$K$76, MATCH(AI27, Country!$O$31:$O$76, 0), 1) -> Policy Types | D27: Guatemala | E27: =Policy!$Z18 -> 4 | F27: =Policy!$Z18 -> 4 | G27: =Policy!$Z18 -> 4 | H27: =Policy!$Z18 -> 4 | I27: =Policy!$Z18 -> 4 | J27: =Policy!$Z18 -> 4 | K27: =Policy!$Z18 -> 4 | L27: 34 | M27: 34 | N27: 34 | O27: 34 | P27: 34 | Q27: 34 | R27: 31.16676123 | Z27: 1.7 | AA27: 1.7 | AB27: 1.7 | AC27: 1.7 | AD27: 1.7 | AE27: 1.7 | AF27: 1.558338061 | AG27: 1.01 > Guatemala | AH27: 13 | AI27: 1
A28: =INDEX(Country!$F$31:$G$76, MATCH(AI28, Country!$O$31:$O$76, 0), 1) -> 1.01 | B28: =INDEX(Country!$F$31:$G$76, MATCH(AI28, Country!$O$31:$O$76, 0), 2) -> Clean energy policies | C28: =INDEX(Country!$K$31:$K$76, MATCH(AI28, Country!$O$31:$O$76, 0), 1) -> Policy Types | D28: Guyana | E28: =Policy!$Z19 -> 0 | F28: =Policy!$Z19 -> 0 | G28: =Policy!$Z19 -> 0 | H28: =Policy!$Z19 -> 0 | I28: =Policy!$Z19 -> 0 | J28: =Policy!$Z19 -> 0 | K28: =Policy!$Z19 -> 0 | L28: 22.5 | M28: 22.5 | N28: 22.5 | O28: 22.5 | P28: 22.5 | Q28: 22.5 | R28: 20 | Z28: 1.125 | AA28: 1.125 | AB28: 1.125 | AC28: 1.125 | AD28: 1.125 | AE28: 1.125 | AF28: 1 | AG28: 1.01 > Guyana | AH28: 14 | AI28: 1
A29: =INDEX(Country!$F$31:$G$76, MATCH(AI29, Country!$O$31:$O$76, 0), 1) -> 1.01 | B29: =INDEX(Country!$F$31:$G$76, MATCH(AI29, Country!$O$31:$O$76, 0), 2) -> Clean energy policies | C29: =INDEX(Country!$K$31:$K$76, MATCH(AI29, Country!$O$31:$O$76, 0), 1) -> Policy Types | D29: Haiti | E29: =Policy!$Z20 -> 0 | F29: =Policy!$Z20 -> 0 | G29: =Policy!$Z20 -> 0 | H29: =Policy!$Z20 -> 0 | I29: =Policy!$Z20 -> 0 | J29: =Policy!$Z20 -> 0 | K29: =Policy!$Z20 -> 0 | L29: 22.5 | M29: 22.5 | N29: 22.5 | O29: 22.5 | P29: 22.5 | Q29: 22.5 | R29: 20 | Z29: 1.125 | AA29: 1.125 | AB29: 1.125 | AC29: 1.125 | AD29: 1.125 | AE29: 1.125 | AF29: 1 | AG29: 1.01 > Haiti | AH29: 15 | AI29: 1
A30: =INDEX(Country!$F$31:$G$76, MATCH(AI30, Country!$O$31:$O$76, 0), 1) -> 1.01 | B30: =INDEX(Country!$F$31:$G$76, MATCH(AI30, Country!$O$31:$O$76, 0), 2) -> Clean energy policies | C30: =INDEX(Country!$K$31:$K$76, MATCH(AI30, Country!$O$31:$O$76, 0), 1) -> Policy Types | D30: Honduras | E30: =Policy!$Z21 -> 5 | F30: =Policy!$Z21 -> 5 | G30: =Policy!$Z21 -> 5 | H30: =Policy!$Z21 -> 5 | I30: =Policy!$Z21 -> 5 | J30: =Policy!$Z21 -> 5 | K30: =Policy!$Z21 -> 5 | L30: 54 | M30: 54 | N30: 54 | O30: 54 | P30: 54 | Q30: 54 | R30: 43.76433224 | Z30: 2.7 | AA30: 2.7 | AB30: 2.7 | AC30: 2.7 | AD30: 2.7 | AE30: 2.7 | AF30: 2.188216612 | AG30: 1.01 > Honduras | AH30: 16 | AI30: 1
A31: =INDEX(Country!$F$31:$G$76, MATCH(AI31, Country!$O$31:$O$76, 0), 1) -> 1.01 | B31: =INDEX(Country!$F$31:$G$76, MATCH(AI31, Country!$O$31:$O$76, 0), 2) -> Clean energy policies | C31: =INDEX(Country!$K$31:$K$76, MATCH(AI31, Country!$O$31:$O$76, 0), 1) -> Policy Types | D31: Jamaica | E31: =Policy!$Z22 -> 3 | F31: =Policy!$Z22 -> 3 | G31: =Policy!$Z22 -> 3 | H31: =Policy!$Z22 -> 3 | I31: =Policy!$Z22 -> 3 | J31: =Policy!$Z22 -> 3 | K31: =Policy!$Z22 -> 3 | L31: 46 | M31: 46 | N31: 46 | O31: 46 | P31: 46 | Q31: 46 | R31: 41.57750902 | Z31: 2.3 | AA31: 2.3 | AB31: 2.3 | AC31: 2.3 | AD31: 2.3 | AE31: 2.3 | AF31: 2.078875451 | AG31: 1.01 > Jamaica | AH31: 17 | AI31: 1
A32: =INDEX(Country!$F$31:$G$76, MATCH(AI32, Country!$O$31:$O$76, 0), 1) -> 1.01 | B32: =INDEX(Country!$F$31:$G$76, MATCH(AI32, Country!$O$31:$O$76, 0), 2) -> Clean energy policies | C32: =INDEX(Country!$K$31:$K$76, MATCH(AI32, Country!$O$31:$O$76, 0), 1) -> Policy Types | D32: Mexico | E32: =Policy!$Z23 -> 6 | F32: =Policy!$Z23 -> 6 | G32: =Policy!$Z23 -> 6 | H32: =Policy!$Z23 -> 6 | I32: =Policy!$Z23 -> 6 | J32: =Policy!$Z23 -> 6 | K32: =Policy!$Z23 -> 6 | L32: 58 | M32: 58 | N32: 58 | O32: 58 | P32: 58 | Q32: 58 | R32: 47.42875969 | Z32: 2.9 | AA32: =AB32 -> 2.9 | AB32: 2.9 | AC32: 2.9 | AD32: 2.9 | AE32: 2.9 | AF32: 2.371437985 | AG32: 1.01 > Mexico | AH32: 18 | AI32: 1
A33: =INDEX(Country!$F$31:$G$76, MATCH(AI33, Country!$O$31:$O$76, 0), 1) -> 1.01 | B33: =INDEX(Country!$F$31:$G$76, MATCH(AI33, Country!$O$31:$O$76, 0), 2) -> Clean energy policies | C33: =INDEX(Country!$K$31:$K$76, MATCH(AI33, Country!$O$31:$O$76, 0), 1) -> Policy Types | D33: Nicaragua | E33: =Policy!$Z24 -> 4 | F33: =Policy!$Z24 -> 4 | G33: =Policy!$Z24 -> 4 | H33: =Policy!$Z24 -> 4 | I33: =Policy!$Z24 -> 4 | J33: =Policy!$Z24 -> 4 | K33: =Policy!$Z24 -> 4 | L33: 46 | M33: 46 | N33: 46 | O33: 46 | P33: 46 | Q33: 46 | R33: 31.17229245 | Z33: 2.3 | AA33: 2.3 | AB33: =AC33 -> 2.3 | AC33: 2.3 | AD33: 2.3 | AE33: 2.3 | AF33: 1.558614623 | AG33: 1.01 > Nicaragua | AH33: 19 | AI33: 1
A34: =INDEX(Country!$F$31:$G$76, MATCH(AI34, Country!$O$31:$O$76, 0), 1) -> 1.01 | B34: =INDEX(Country!$F$31:$G$76, MATCH(AI34, Country!$O$31:$O$76, 0), 2) -> Clean energy policies | C34: =INDEX(Country!$K$31:$K$76, MATCH(AI34, Country!$O$31:$O$76, 0), 1) -> Policy Types | D34: Panama | E34: =Policy!$Z25 -> 6 | F34: =Policy!$Z25 -> 6 | G34: =Policy!$Z25 -> 6 | H34: =Policy!$Z25 -> 6 | I34: =Policy!$Z25 -> 6 | J34: =Policy!$Z25 -> 6 | K34: =Policy!$Z25 -> 6 | L34: 46.5 | M34: 46.5 | N34: 46.5 | O34: 46.5 | P34: 46.5 | Q34: 46.5 | R34: 46.19386619 | Z34: 2.325 | AA34: 2.325 | AB34: 2.325 | AC34: 2.325 | AD34: 2.325 | AE34: 2.325 | AF34: 2.309693309 | AG34: 1.01 > Panama | AH34: 20 | AI34: 1
A35: =INDEX(Country!$F$31:$G$76, MATCH(AI35, Country!$O$31:$O$76, 0), 1) -> 1.01 | B35: =INDEX(Country!$F$31:$G$76, MATCH(AI35, Country!$O$31:$O$76, 0), 2) -> Clean energy policies | C35: =INDEX(Country!$K$31:$K$76, MATCH(AI35, Country!$O$31:$O$76, 0), 1) -> Policy Types | D35: Paraguay | E35: =Policy!$Z26 -> 1 | F35: =Policy!$Z26 -> 1 | G35: =Policy!$Z26 -> 1 | H35: =Policy!$Z26 -> 1 | I35: =Policy!$Z26 -> 1 | J35: =Policy!$Z26 -> 1 | K35: =Policy!$Z26 -> 1 | L35: 31 | M35: 31 | N35: 31 | O35: 31 | P35: 31 | Q35: 31 | R35: 27.54049086 | Z35: 1.55 | AA35: 1.55 | AB35: 1.55 | AC35: 1.55 | AD35: 1.55 | AE35: 1.55 | AF35: 1.377024543 | AG35: 1.01 > Paraguay | AH35: 21 | AI35: 1
A36: =INDEX(Country!$F$31:$G$76, MATCH(AI36, Country!$O$31:$O$76, 0), 1) -> 1.01 | B36: =INDEX(Country!$F$31:$G$76, MATCH(AI36, Country!$O$31:$O$76, 0), 2) -> Clean energy policies | C36: =INDEX(Country!$K$31:$K$76, MATCH(AI36, Country!$O$31:$O$76, 0), 1) -> Policy Types | D36: Peru | E36: =Policy!$Z27 -> 3 | F36: =Policy!$Z27 -> 3 | G36: =Policy!$Z27 -> 3 | H36: =Policy!$Z27 -> 3 | I36: =Policy!$Z27 -> 3 | J36: =Policy!$Z27 -> 3 | K36: =Policy!$Z27 -> 3 | L36: 47 | M36: 47 | N36: 47 | O36: 47 | P36: 47 | Q36: 47 | R36: 64.14889313 | Z36: 2.35 | AA36: 2.35 | AB36: 2.35 | AC36: 2.35 | AD36: 2.35 | AE36: 2.35 | AF36: 3.207444656 | AG36: 1.01 > Peru | AH36: 22 | AI36: 1
A37: =INDEX(Country!$F$31:$G$76, MATCH(AI37, Country!$O$31:$O$76, 0), 1) -> 1.01 | B37: =INDEX(Country!$F$31:$G$76, MATCH(AI37, Country!$O$31:$O$76, 0), 2) -> Clean energy policies | C37: =INDEX(Country!$K$31:$K$76, MATCH(AI37, Country!$O$31:$O$76, 0), 1) -> Policy Types | D37: Suriname | E37: =Policy!$Z28 -> 0 | F37: =Policy!$Z28 -> 0 | G37: =Policy!$Z28 -> 0 | H37: =Policy!$Z28 -> 0 | I37: =Policy!$Z28 -> 0 | J37: =Policy!$Z28 -> 0 | K37: =Policy!$Z28 -> 0 | L37: 20 | M37: 20 | N37: 20 | O37: 20 | P37: 20 | Q37: 20 | R37: 20 | Z37: 1 | AA37: 1 | AB37: 1 | AC37: 1 | AD37: 1 | AE37: 1 | AF37: 1 | AG37: 1.01 > Suriname | AH37: 23 | AI37: 1
A38: =INDEX(Country!$F$31:$G$76, MATCH(AI38, Country!$O$31:$O$76, 0), 1) -> 1.01 | B38: =INDEX(Country!$F$31:$G$76, MATCH(AI38, Country!$O$31:$O$76, 0), 2) -> Clean energy policies | C38: =INDEX(Country!$K$31:$K$76, MATCH(AI38, Country!$O$31:$O$76, 0), 1) -> Policy Types | D38: Trinidad & Tobago | E38: =Policy!$Z29 -> 1 | F38: =Policy!$Z29 -> 1 | G38: =Policy!$Z29 -> 1 | H38: =Policy!$Z29 -> 1 | I38: =Policy!$Z29 -> 1 | J38: =Policy!$Z29 -> 1 | K38: =Policy!$Z29 -> 1 | L38: 30 | M38: 30 | N38: 30 | O38: 30 | P38: 30 | Q38: 30 | R38: 20 | Z38: 1.5 | AA38: 1.5 | AB38: 1.5 | AC38: 1.5 | AD38: 1.5 | AE38: 1.5 | AF38: 1 | AG38: 1.01 > Trinidad & Tobago | AH38: 24 | AI38: 1
A39: =INDEX(Country!$F$31:$G$76, MATCH(AI39, Country!$O$31:$O$76, 0), 1) -> 1.01 | B39: =INDEX(Country!$F$31:$G$76, MATCH(AI39, Country!$O$31:$O$76, 0), 2) -> Clean energy policies | C39: =INDEX(Country!$K$31:$K$76, MATCH(AI39, Country!$O$31:$O$76, 0), 1) -> Policy Types | D39: Uruguay | E39: =Policy!$Z30 -> 5 | F39: =Policy!$Z30 -> 5 | G39: =Policy!$Z30 -> 5 | H39: =Policy!$Z30 -> 5 | I39: =Policy!$Z30 -> 5 | J39: =Policy!$Z30 -> 5 | K39: =Policy!$Z30 -> 5 | L39: 48.5 | M39: 48.5 | N39: 48.5 | O39: 48.5 | P39: 48.5 | Q39: 48.5 | R39: 70.68212567 | Z39: 2.425 | AA39: 2.425 | AB39: 2.425 | AC39: 2.425 | AD39: 2.425 | AE39: 2.425 | AF39: 3.534106283 | AG39: 1.01 > Uruguay | AH39: 25 | AI39: 1
A40: =INDEX(Country!$F$31:$G$76, MATCH(AI40, Country!$O$31:$O$76, 0), 1) -> 1.01 | B40: =INDEX(Country!$F$31:$G$76, MATCH(AI40, Country!$O$31:$O$76, 0), 2) -> Clean energy policies | C40: =INDEX(Country!$K$31:$K$76, MATCH(AI40, Country!$O$31:$O$76, 0), 1) -> Policy Types | D40: Venezuela | E40: =Policy!$Z31 -> 0 | F40: =Policy!$Z31 -> 0 | G40: =Policy!$Z31 -> 0 | H40: =Policy!$Z31 -> 0 | I40: =Policy!$Z31 -> 0 | J40: =Policy!$Z31 -> 0 | K40: =Policy!$Z31 -> 0 | L40: 20 | M40: 20 | N40: 20 | O40: 20 | P40: 20 | Q40: 20 | R40: 20 | Z40: 1 | AA40: 1 | AB40: 1 | AC40: 1 | AD40: 1 | AE40: 1 | AF40: 1 | AG40: 1.01 > Venezuela | AH40: 26 | AI40: 1
A41: =INDEX(Country!$F$31:$G$76, MATCH(AI41, Country!$O$31:$O$76, 0), 1) -> 1.01 | B41: =INDEX(Country!$F$31:$G$76, MATCH(AI41, Country!$O$31:$O$76, 0), 2) -> Clean energy policies | C41: =INDEX(Country!$K$31:$K$76, MATCH(AI41, Country!$O$31:$O$76, 0), 1) -> Policy Types | D41: Benchmark | E41: =IFERROR(MAX(E15:E40), 0) -> 11 | F41: =IFERROR(MAX(F15:F40), 0) -> 11 | G41: =IFERROR(MAX(G15:G40), 0) -> 11 | H41: =IFERROR(MAX(H15:H40), 0) -> 11 | I41: =IFERROR(MAX(I15:I40), 0) -> 11 | J41: =IFERROR(MAX(J15:J40), 0) -> 11 | K41: 11 | L41: 100 | M41: 100 | N41: 100 | O41: 100 | P41: 100 | Q41: 100 | R41: 100 | Z41: 5 | AA41: 5 | AB41: 5 | AC41: 5 | AD41: 5 | AE41: 5 | AF41: 5 | AG41: 1.01 > Benchmark | AH41: 27 | AI41: 1
A42: =INDEX(Country!$F$31:$G$76, MATCH(AI42, Country!$O$31:$O$76, 0), 1) -> 1.02 | B42: =INDEX(Country!$F$31:$G$76, MATCH(AI42, Country!$O$31:$O$76, 0), 2) -> Power sector structure | C42: =INDEX(Country!$K$31:$K$76, MATCH(AI42, Country!$O$31:$O$76, 0), 1) -> Questions | D42: =D15 -> Argentina | E42: 8 | F42: 8 | G42: 8 | H42: 8 | I42: 8 | J42: 8 | K42: 6 | L42: 80 | M42: 80 | N42: 80 | O42: 80 | P42: 80 | Q42: 80 | R42: 60 | Z42: =AA42 -> 4 | AA42: =AB42 -> 4 | AB42: =AC42 -> 4 | AC42: =AD42 -> 4 | AD42: =AE42 -> 4 | AE42: 4 | AF42: 3 | AG42: 1.02 > Argentina | AH42: 28 | AI42: 2
A43: =INDEX(Country!$F$31:$G$76, MATCH(AI43, Country!$O$31:$O$76, 0), 1) -> 1.02 | B43: =INDEX(Country!$F$31:$G$76, MATCH(AI43, Country!$O$31:$O$76, 0), 2) -> Power sector structure | C43: =INDEX(Country!$K$31:$K$76, MATCH(AI43, Country!$O$31:$O$76, 0), 1) -> Questions | D43: =D16 -> Bahamas | E43: 2 | F43: 2 | G43: 2 | H43: 2 | I43: 2 | J43: 2 | K43: 1 | L43: 20 | M43: 20 | N43: 20 | O43: 20 | P43: 20 | Q43: 20 | R43: 5 | Z43: 1 | AA43: 1 | AB43: 1 | AC43: =AD43 -> 1 | AD43: =AE43 -> 1 | AE43: 1 | AF43: 0.25 | AG43: 1.02 > Bahamas | AH43: 29 | AI43: 2
A44: =INDEX(Country!$F$31:$G$76, MATCH(AI44, Country!$O$31:$O$76, 0), 1) -> 1.02 | B44: =INDEX(Country!$F$31:$G$76, MATCH(AI44, Country!$O$31:$O$76, 0), 2) -> Power sector structure | C44: =INDEX(Country!$K$31:$K$76, MATCH(AI44, Country!$O$31:$O$76, 0), 1) -> Questions | D44: Barbados | E44: 1 | F44: 1 | G44: 1 | H44: 1 | I44: 1 | J44: 1 | K44: 1 | L44: 10 | M44: 10 | N44: 10 | O44: 10 | P44: 10 | Q44: 10 | R44: 5 | Z44: 0.5 | AA44: 0.5 | AB44: 0.5 | AC44: 0.5 | AD44: 0.5 | AE44: 0.5 | AF44: 0.25 | AG44: 1.02 > Barbados | AH44: 30 | AI44: 2
A45: =INDEX(Country!$F$31:$G$76, MATCH(AI45, Country!$O$31:$O$76, 0), 1) -> 1.02 | B45: =INDEX(Country!$F$31:$G$76, MATCH(AI45, Country!$O$31:$O$76, 0), 2) -> Power sector structure | C45: =INDEX(Country!$K$31:$K$76, MATCH(AI45, Country!$O$31:$O$76, 0), 1) -> Questions | D45: Belize | E45: 1 | F45: 1 | G45: 1 | H45: 1 | I45: 1 | J45: 1 | K45: 1 | L45: 10 | M45: 10 | N45: 10 | O45: 10 | P45: 10 | Q45: 10 | R45: 5 | Z45: 0.5 | AA45: 0.5 | AB45: 0.5 | AC45: 0.5 | AD45: 0.5 | AE45: 0.5 | AF45: 0.25 | AG45: 1.02 > Belize | AH45: 31 | AI45: 2
A46: =INDEX(Country!$F$31:$G$76, MATCH(AI46, Country!$O$31:$O$76, 0), 1) -> 1.02 | B46: =INDEX(Country!$F$31:$G$76, MATCH(AI46, Country!$O$31:$O$76, 0), 2) -> Power sector structure | C46: =INDEX(Country!$K$31:$K$76, MATCH(AI46, Country!$O$31:$O$76, 0), 1) -> Questions | D46: Bolivia | E46: 5 | F46: 5 | G46: 5 | H46: 5 | I46: 5 | J46: 5 | K46: 5 | L46: 50 | M46: 50 | N46: 50 | O46: 50 | P46: 50 | Q46: 50 | R46: 45 | Z46: 2.5 | AA46: 2.5 | AB46: 2.5 | AC46: 2.5 | AD46: 2.5 | AE46: 2.5 | AF46: 2.25 | AG46: 1.02 > Bolivia | AH46: 32 | AI46: 2
A47: =INDEX(Country!$F$31:$G$76, MATCH(AI47, Country!$O$31:$O$76, 0), 1) -> 1.02 | B47: =INDEX(Country!$F$31:$G$76, MATCH(AI47, Country!$O$31:$O$76, 0), 2) -> Power sector structure | C47: =INDEX(Country!$K$31:$K$76, MATCH(AI47, Country!$O$31:$O$76, 0), 1) -> Questions | D47: Brazil | E47: 9 | F47: 9 | G47: 9 | H47: 9 | I47: 9 | J47: 9 | K47: 8 | L47: =(Z47/5)*dbl_BenchmarkMax -> 90 | M47: =(AA47/5)*dbl_BenchmarkMax -> 90 | N47: 90 | O47: 90 | P47: 90 | Q47: 90 | R47: 75 | Z47: 4.5 | AA47: 4.5 | AB47: 4.5 | AC47: 4.5 | AD47: 4.5 | AE47: 4.5 | AF47: 3.75 | AG47: 1.02 > Brazil | AH47: 33 | AI47: 2
A48: =INDEX(Country!$F$31:$G$76, MATCH(AI48, Country!$O$31:$O$76, 0), 1) -> 1.02 | B48: =INDEX(Country!$F$31:$G$76, MATCH(AI48, Country!$O$31:$O$76, 0), 2) -> Power sector structure | C48: =INDEX(Country!$K$31:$K$76, MATCH(AI48, Country!$O$31:$O$76, 0), 1) -> Questions | D48: Chile | E48: 9 | F48: 9 | G48: 9 | H48: 9 | I48: 9 | J48: 9 | K48: 8 | L48: 90 | M48: 90 | N48: 90 | O48: 90 | P48: 90 | Q48: 90 | R48: 80 | Z48: 4.5 | AA48: 4.5 | AB48: 4.5 | AC48: 4.5 | AD48: 4.5 | AE48: 4.5 | AF48: 4 | AG48: 1.02 > Chile | AH48: 34 | AI48: 2
A49: =INDEX(Country!$F$31:$G$76, MATCH(AI49, Country!$O$31:$O$76, 0), 1) -> 1.02 | B49: =INDEX(Country!$F$31:$G$76, MATCH(AI49, Country!$O$31:$O$76, 0), 2) -> Power sector structure | C49: =INDEX(Country!$K$31:$K$76, MATCH(AI49, Country!$O$31:$O$76, 0), 1) -> Questions | D49: Colombia | E49: 9 | F49: 9 | G49: 9 | H49: 9 | I49: 9 | J49: 9 | K49: 6 | L49: 90 | M49: 90 | N49: 90 | O49: 90 | P49: 90 | Q49: 90 | R49: 60 | Z49: 4.5 | AA49: 4.5 | AB49: 4.5 | AC49: 4.5 | AD49: 4.5 | AE49: 4.5 | AF49: 3 | AG49: 1.02 > Colombia | AH49: 35 | AI49: 2
A50: =INDEX(Country!$F$31:$G$76, MATCH(AI50, Country!$O$31:$O$76, 0), 1) -> 1.02 | B50: =INDEX(Country!$F$31:$G$76, MATCH(AI50, Country!$O$31:$O$76, 0), 2) -> Power sector structure | C50: =INDEX(Country!$K$31:$K$76, MATCH(AI50, Country!$O$31:$O$76, 0), 1) -> Questions | D50: Costa Rica | E50: 0 | F50: 0 | G50: 0 | H50: 0 | I50: 0 | J50: 0 | K50: 2 | L50: 0 | M50: 0 | N50: 0 | O50: 0 | P50: 0 | Q50: 0 | R50: 15 | Z50: 0 | AA50: 0 | AB50: 0 | AC50: 0 | AD50: 0 | AE50: 0 | AF50: 0.75 | AG50: 1.02 > Costa Rica | AH50: 36 | AI50: 2
A51: =INDEX(Country!$F$31:$G$76, MATCH(AI51, Country!$O$31:$O$76, 0), 1) -> 1.02 | B51: =INDEX(Country!$F$31:$G$76, MATCH(AI51, Country!$O$31:$O$76, 0), 2) -> Power sector structure | C51: =INDEX(Country!$K$31:$K$76, MATCH(AI51, Country!$O$31:$O$76, 0), 1) -> Questions | D51: Dominican Republic | E51: 8 | F51: 8 | G51: 8 | H51: 8 | I51: 8 | J51: 8 | K51: 5 | L51: 80 | M51: 80 | N51: 80 | O51: 80 | P51: 80 | Q51: 80 | R51: 45 | Z51: 4 | AA51: 4 | AB51: 4 | AC51: 4 | AD51: 4 | AE51: 4 | AF51: 2.25 | AG51: 1.02 > Dominican Republic | AH51: 37 | AI51: 2
A52: =INDEX(Country!$F$31:$G$76, MATCH(AI52, Country!$O$31:$O$76, 0), 1) -> 1.02 | B52: =INDEX(Country!$F$31:$G$76, MATCH(AI52, Country!$O$31:$O$76, 0), 2) -> Power sector structure | C52: =INDEX(Country!$K$31:$K$76, MATCH(AI52, Country!$O$31:$O$76, 0), 1) -> Questions | D52: Ecuador | E52: 4 | F52: 4 | G52: 4 | H52: 4 | I52: 4 | J52: 4 | K52: 6 | L52: 40 | M52: 40 | N52: 40 | O52: 40 | P52: 40 | Q52: 40 | R52: 55 | Z52: 2 | AA52: 2 | AB52: 2 | AC52: 2 | AD52: 2 | AE52: 2 | AF52: 2.75 | AG52: 1.02 > Ecuador | AH52: 38 | AI52: 2
A53: =INDEX(Country!$F$31:$G$76, MATCH(AI53, Country!$O$31:$O$76, 0), 1) -> 1.02 | B53: =INDEX(Country!$F$31:$G$76, MATCH(AI53, Country!$O$31:$O$76, 0), 2) -> Power sector structure | C53: =INDEX(Country!$K$31:$K$76, MATCH(AI53, Country!$O$31:$O$76, 0), 1) -> Questions | D53: El Salvador | E53: 9 | F53: 9 | G53: 9 | H53: 9 | I53: 9 | J53: 9 | K53: 6 | L53: 90 | M53: 90 | N53: 90 | O53: 90 | P53: 90 | Q53: 90 | R53: 55 | Z53: 4.5 | AA53: 4.5 | AB53: 4.5 | AC53: 4.5 | AD53: 4.5 | AE53: 4.5 | AF53: 2.75 | AG53: 1.02 > El Salvador | AH53: 39 | AI53: 2
A54: =INDEX(Country!$F$31:$G$76, MATCH(AI54, Country!$O$31:$O$76, 0), 1) -> 1.02 | B54: =INDEX(Country!$F$31:$G$76, MATCH(AI54, Country!$O$31:$O$76, 0), 2) -> Power sector structure | C54: =INDEX(Country!$K$31:$K$76, MATCH(AI54, Country!$O$31:$O$76, 0), 1) -> Questions | D54: Guatemala | E54: 8 | F54: 8 | G54: 8 | H54: 8 | I54: 8 | J54: 8 | K54: 6 | L54: 80 | M54: 80 | N54: 80 | O54: 80 | P54: 80 | Q54: 80 | R54: 60 | Z54: 4 | AA54: 4 | AB54: 4 | AC54: 4 | AD54: 4 | AE54: 4 | AF54: 3 | AG54: 1.02 > Guatemala | AH54: 40 | AI54: 2
A55: =INDEX(Country!$F$31:$G$76, MATCH(AI55, Country!$O$31:$O$76, 0), 1) -> 1.02 | B55: =INDEX(Country!$F$31:$G$76, MATCH(AI55, Country!$O$31:$O$76, 0), 2) -> Power sector structure | C55: =INDEX(Country!$K$31:$K$76, MATCH(AI55, Country!$O$31:$O$76, 0), 1) -> Questions | D55: Guyana | E55: 2 | F55: 2 | G55: 2 | H55: 2 | I55: 2 | J55: 2 | K55: 0 | L55: 20 | M55: 20 | N55: 20 | O55: 20 | P55: 20 | Q55: 20 | R55: 0 | Z55: 1 | AA55: 1 | AB55: 1 | AC55: 1 | AD55: 1 | AE55: 1 | AF55: 0 | AG55: 1.02 > Guyana | AH55: 41 | AI55: 2
A56: =INDEX(Country!$F$31:$G$76, MATCH(AI56, Country!$O$31:$O$76, 0), 1) -> 1.02 | B56: =INDEX(Country!$F$31:$G$76, MATCH(AI56, Country!$O$31:$O$76, 0), 2) -> Power sector structure | C56: =INDEX(Country!$K$31:$K$76, MATCH(AI56, Country!$O$31:$O$76, 0), 1) -> Questions | D56: Haiti | E56: 1 | F56: 1 | G56: 1 | H56: 1 | I56: 1 | J56: 1 | K56: 1 | L56: 10 | M56: 10 | N56: 10 | O56: 10 | P56: 10 | Q56: 10 | R56: 5 | Z56: 0.5 | AA56: 0.5 | AB56: 0.5 | AC56: 0.5 | AD56: 0.5 | AE56: 0.5 | AF56: 0.25 | AG56: 1.02 > Haiti | AH56: 42 | AI56: 2
A57: =INDEX(Country!$F$31:$G$76, MATCH(AI57, Country!$O$31:$O$76, 0), 1) -> 1.02 | B57: =INDEX(Country!$F$31:$G$76, MATCH(AI57, Country!$O$31:$O$76, 0), 2) -> Power sector structure | C57: =INDEX(Country!$K$31:$K$76, MATCH(AI57, Country!$O$31:$O$76, 0), 1) -> Questions | D57: Honduras | E57: 0 | F57: 0 | G57: 0 | H57: 0 | I57: 0 | J57: 0 | K57: 2 | L57: 0 | M57: 0 | N57: 0 | O57: 0 | P57: 0 | Q57: 0 | R57: 15 | Z57: 0 | AA57: 0 | AB57: 0 | AC57: 0 | AD57: 0 | AE57: 0 | AF57: 0.75 | AG57: 1.02 > Honduras | AH57: 43 | AI57: 2
A58: =INDEX(Country!$F$31:$G$76, MATCH(AI58, Country!$O$31:$O$76, 0), 1) -> 1.02 | B58: =INDEX(Country!$F$31:$G$76, MATCH(AI58, Country!$O$31:$O$76, 0), 2) -> Power sector structure | C58: =INDEX(Country!$K$31:$K$76, MATCH(AI58, Country!$O$31:$O$76, 0), 1) -> Questions | D58: Jamaica | E58: 2 | F58: 2 | G58: 2 | H58: 2 | I58: 2 | J58: 2 | K58: 2 | L58: 20 | M58: 20 | N58: 20 | O58: 20 | P58: 20 | Q58: 20 | R58: 15 | Z58: 1 | AA58: 1 | AB58: 1 | AC58: 1 | AD58: 1 | AE58: 1 | AF58: 0.75 | AG58: 1.02 > Jamaica | AH58: 44 | AI58: 2
A59: =INDEX(Country!$F$31:$G$76, MATCH(AI59, Country!$O$31:$O$76, 0), 1) -> 1.02 | B59: =INDEX(Country!$F$31:$G$76, MATCH(AI59, Country!$O$31:$O$76, 0), 2) -> Power sector structure | C59: =INDEX(Country!$K$31:$K$76, MATCH(AI59, Country!$O$31:$O$76, 0), 1) -> Questions | D59: Mexico | E59: 0 | F59: 0 | G59: 0 | H59: 0 | I59: 0 | J59: 0 | K59: 2 | L59: 0 | M59: 0 | N59: 0 | O59: 0 | P59: 0 | Q59: 0 | R59: 15 | Z59: 0 | AA59: 0 | AB59: 0 | AC59: 0 | AD59: 0 | AE59: 0 | AF59: 0.75 | AG59: 1.02 > Mexico | AH59: 45 | AI59: 2
A60: =INDEX(Country!$F$31:$G$76, MATCH(AI60, Country!$O$31:$O$76, 0), 1) -> 1.02 | B60: =INDEX(Country!$F$31:$G$76, MATCH(AI60, Country!$O$31:$O$76, 0), 2) -> Power sector structure | C60: =INDEX(Country!$K$31:$K$76, MATCH(AI60, Country!$O$31:$O$76, 0), 1) -> Questions | D60: Nicaragua | E60: 8 | F60: 8 | G60: 8 | H60: 8 | I60: 8 | J60: 8 | K60: 5 | L60: 80 | M60: 80 | N60: 80 | O60: 80 | P60: 80 | Q60: 80 | R60: 45 | Z60: 4 | AA60: 4 | AB60: 4 | AC60: 4 | AD60: 4 | AE60: 4 | AF60: 2.25 | AG60: 1.02 > Nicaragua | AH60: 46 | AI60: 2
A61: =INDEX(Country!$F$31:$G$76, MATCH(AI61, Country!$O$31:$O$76, 0), 1) -> 1.02 | B61: =INDEX(Country!$F$31:$G$76, MATCH(AI61, Country!$O$31:$O$76, 0), 2) -> Power sector structure | C61: =INDEX(Country!$K$31:$K$76, MATCH(AI61, Country!$O$31:$O$76, 0), 1) -> Questions | D61: Panama | E61: 8 | F61: 8 | G61: 8 | H61: 8 | I61: 8 | J61: 8 | K61: 5 | L61: 80 | M61: 80 | N61: 80 | O61: 80 | P61: 80 | Q61: 80 | R61: 50 | Z61: 4 | AA61: 4 | AB61: 4 | AC61: 4 | AD61: 4 | AE61: 4 | AF61: 2.5 | AG61: 1.02 > Panama | AH61: 47 | AI61: 2
A62: =INDEX(Country!$F$31:$G$76, MATCH(AI62, Country!$O$31:$O$76, 0), 1) -> 1.02 | B62: =INDEX(Country!$F$31:$G$76, MATCH(AI62, Country!$O$31:$O$76, 0), 2) -> Power sector structure | C62: =INDEX(Country!$K$31:$K$76, MATCH(AI62, Country!$O$31:$O$76, 0), 1) -> Questions | D62: Paraguay | E62: 0 | F62: 0 | G62: 0 | H62: 0 | I62: 0 | J62: 0 | K62: 1 | L62: 0 | M62: 0 | N62: 0 | O62: 0 | P62: 0 | Q62: 0 | R62: 10 | Z62: 0 | AA62: 0 | AB62: 0 | AC62: 0 | AD62: 0 | AE62: 0 | AF62: 0.5 | AG62: 1.02 > Paraguay | AH62: 48 | AI62: 2
A63: =INDEX(Country!$F$31:$G$76, MATCH(AI63, Country!$O$31:$O$76, 0), 1) -> 1.02 | B63: =INDEX(Country!$F$31:$G$76, MATCH(AI63, Country!$O$31:$O$76, 0), 2) -> Power sector structure | C63: =INDEX(Country!$K$31:$K$76, MATCH(AI63, Country!$O$31:$O$76, 0), 1) -> Questions | D63: Peru | E63: 9 | F63: 9 | G63: 9 | H63: 9 | I63: 9 | J63: 9 | K63: 7 | L63: 90 | M63: 90 | N63: 90 | O63: 90 | P63: 90 | Q63: 90 | R63: 65 | Z63: 4.5 | AA63: 4.5 | AB63: 4.5 | AC63: 4.5 | AD63: 4.5 | AE63: 4.5 | AF63: 3.25 | AG63: 1.02 > Peru | AH63: 49 | AI63: 2
A64: =INDEX(Country!$F$31:$G$76, MATCH(AI64, Country!$O$31:$O$76, 0), 1) -> 1.02 | B64: =INDEX(Country!$F$31:$G$76, MATCH(AI64, Country!$O$31:$O$76, 0), 2) -> Power sector structure | C64: =INDEX(Country!$K$31:$K$76, MATCH(AI64, Country!$O$31:$O$76, 0), 1) -> Questions | D64: Suriname | E64: 1 | F64: 1 | G64: 1 | H64: 1 | I64: 1 | J64: 1 | K64: 1 | L64: 10 | M64: 10 | N64: 10 | O64: 10 | P64: 10 | Q64: 10 | R64: 10 | Z64: 0.5 | AA64: 0.5 | AB64: 0.5 | AC64: 0.5 | AD64: 0.5 | AE64: 0.5 | AF64: 0.5 | AG64: 1.02 > Suriname | AH64: 50 | AI64: 2
A65: =INDEX(Country!$F$31:$G$76, MATCH(AI65, Country!$O$31:$O$76, 0), 1) -> 1.02 | B65: =INDEX(Country!$F$31:$G$76, MATCH(AI65, Country!$O$31:$O$76, 0), 2) -> Power sector structure | C65: =INDEX(Country!$K$31:$K$76, MATCH(AI65, Country!$O$31:$O$76, 0), 1) -> Questions | D65: Trinidad & Tobago | E65: 2 | F65: 2 | G65: 2 | H65: 2 | I65: 2 | J65: 2 | K65: 2 | L65: 20 | M65: 20 | N65: 20 | O65: 20 | P65: 20 | Q65: 20 | R65: 15 | Z65: 1 | AA65: 1 | AB65: 1 | AC65: 1 | AD65: 1 | AE65: 1 | AF65: 0.75 | AG65: 1.02 > Trinidad & Tobago | AH65: 51 | AI65: 2
A66: =INDEX(Country!$F$31:$G$76, MATCH(AI66, Country!$O$31:$O$76, 0), 1) -> 1.02 | B66: =INDEX(Country!$F$31:$G$76, MATCH(AI66, Country!$O$31:$O$76, 0), 2) -> Power sector structure | C66: =INDEX(Country!$K$31:$K$76, MATCH(AI66, Country!$O$31:$O$76, 0), 1) -> Questions | D66: Uruguay | E66: 0 | F66: 1 | G66: 1 | H66: 1 | I66: 1 | J66: 1 | K66: 5 | L66: 10 | M66: 10 | N66: 10 | O66: 10 | P66: 10 | Q66: 10 | R66: 45 | Z66: 0.5 | AA66: 0.5 | AB66: 0.5 | AC66: 0.5 | AD66: 0.5 | AE66: 0.5 | AF66: 2.25 | AG66: 1.02 > Uruguay | AH66: 52 | AI66: 2
A67: =INDEX(Country!$F$31:$G$76, MATCH(AI67, Country!$O$31:$O$76, 0), 1) -> 1.02 | B67: =INDEX(Country!$F$31:$G$76, MATCH(AI67, Country!$O$31:$O$76, 0), 2) -> Power sector structure | C67: =INDEX(Country!$K$31:$K$76, MATCH(AI67, Country!$O$31:$O$76, 0), 1) -> Questions | D67: Venezuela | E67: 0 | F67: 0 | G67: 0 | H67: 0 | I67: 0 | J67: 0 | K67: 1 | L67: 0 | M67: 0 | N67: 0 | O67: 0 | P67: 0 | Q67: 0 | R67: 5 | Z67: 0 | AA67: 0 | AB67: 0 | AC67: 0 | AD67: 0 | AE67: 0 | AF67: 0.25 | AG67: 1.02 > Venezuela | AH67: 53 | AI67: 2
A68: =INDEX(Country!$F$31:$G$76, MATCH(AI68, Country!$O$31:$O$76, 0), 1) -> 1.02 | B68: =INDEX(Country!$F$31:$G$76, MATCH(AI68, Country!$O$31:$O$76, 0), 2) -> Power sector structure | C68: =INDEX(Country!$K$31:$K$76, MATCH(AI68, Country!$O$31:$O$76, 0), 1) -> Questions | D68: Benchmark | E68: =IFERROR(MAX(E42:E67), 0) -> 9 | F68: =IFERROR(MAX(F42:F67), 0) -> 9 | G68: 9 | H68: 9 | I68: 9 | J68: =IFERROR(MAX(J42:J67), 0) -> 9 | K68: 8 | L68: =(Z68/5)*dbl_BenchmarkMax -> 100 | M68: =(AA68/5)*dbl_BenchmarkMax -> 100 | N68: 100 | O68: 100 | P68: 100 | Q68: 100 | R68: =(AF68/5)*dbl_BenchmarkMax -> 100 | Z68: 5 | AA68: 5 | AB68: 5 | AC68: 5 | AD68: 5 | AE68: 5 | AF68: 5 | AG68: 1.02 > Benchmark | AH68: 54 | AI68: 2
A69: =INDEX(Country!$F$31:$G$76, MATCH(AI69, Country!$O$31:$O$76, 0), 1) -> 1.03 | B69: =INDEX(Country!$F$31:$G$76, MATCH(AI69, Country!$O$31:$O$76, 0), 2) -> Clean energy rural electrification | C69: =INDEX(Country!$K$31:$K$76, MATCH(AI69, Country!$O$31:$O$76, 0), 1) -> Program | D69: Argentina | E69: =F69 -> 1 | F69: 1 | G69: 1 | H69: =I69 -> 1 | I69: =K69 -> 1 | J69: 0 | K69: 1 | L69: =IFERROR(dbl_BenchmarkMax*E69/ SUMIFS(E$15:E$1256, $D$15:$D$1256, "Benchmark", $B$15:$B$1256,$B69), 0) -> 100 | M69: =IFERROR(dbl_BenchmarkMax*F69/ SUMIFS(F$15:F$1256, $D$15:$D$1256, "Benchmark", $B$15:$B$1256,$B69), 0) -> 100 | N69: =IFERROR(dbl_BenchmarkMax*G69/ SUMIFS(G$15:G$1256, $D$15:$D$1256, "Benchmark", $B$15:$B$1256,$B69), 0) -> 100 | O69: =IFERROR(dbl_BenchmarkMax*H69/ SUMIFS(H$15:H$1256, $D$15:$D$1256, "Benchmark", $B$15:$B$1256,$B69), 0) -> 100 | P69: =IFERROR(dbl_BenchmarkMax*I69/ SUMIFS(I$15:I$1256, $D$15:$D$1256, "Benchmark", $B$15:$B$1256,$B69), 0) -> 100 | Q69: =IFERROR(dbl_BenchmarkMax*J69/ SUMIFS(J$15:J$1256, $D$15:$D$1256, "Benchmark", $B$15:$B$1256,$B69), 0) -> 0 | R69: =IFERROR(dbl_BenchmarkMax*K69/ SUMIFS(K$15:K$1256, $D$15:$D$1256, "Benchmark", $B$15:$B$1256,$B69), 0) -> 100 | AG69: 1.03 > Argentina | AH69: 55 | AI69: 3
A70: =INDEX(Country!$F$31:$G$76, MATCH(AI70, Country!$O$31:$O$76, 0), 1) -> 1.03 | B70: =INDEX(Country!$F$31:$G$76, MATCH(AI70, Country!$O$31:$O$76, 0), 2) -> Clean energy rural electrification | C70: =INDEX(Country!$K$31:$K$76, MATCH(AI70, Country!$O$31:$O$76, 0), 1) -> Program | D70: Bahamas | E70: =F70 -> 0 | F70: 0 | G70: 0 | H70: =I70 -> 0 | I70: =K70 -> 0 | J70: 0 | K70: 0 | L70: 0 | M70: 0 | N70: 0 | O70: 0 | P70: 0 | Q70: 0 | R70: 0 | AG70: 1.03 > Bahamas | AH70: 56 | AI70: 3
A71: =INDEX(Country!$F$31:$G$76, MATCH(AI71, Country!$O$31:$O$76, 0), 1) -> 1.03 | B71: =INDEX(Country!$F$31:$G$76, MATCH(AI71, Country!$O$31:$O$76, 0), 2) -> Clean energy rural electrification | C71: =INDEX(Country!$K$31:$K$76, MATCH(AI71, Country!$O$31:$O$76, 0), 1) -> Program | D71: Barbados | E71: =F71 -> 0 | F71: 0 | G71: 0 | H71: =I71 -> 0 | I71: 0 | J71: 0 | K71: 0 | L71: 0 | M71: 0 | N71: 0 | O71: 0 | P71: 0 | Q71: 0 | R71: 0 | AG71: 1.03 > Barbados | AH71: 57 | AI71: 3
A72: =INDEX(Country!$F$31:$G$76, MATCH(AI72, Country!$O$31:$O$76, 0), 1) -> 1.03 | B72: =INDEX(Country!$F$31:$G$76, MATCH(AI72, Country!$O$31:$O$76, 0), 2) -> Clean energy rural electrification | C72: =INDEX(Country!$K$31:$K$76, MATCH(AI72, Country!$O$31:$O$76, 0), 1) -> Program | D72: Belize | E72: =F72 -> 0 | F72: 0 | G72: 0 | H72: =I72 -> 0 | I72: 0 | J72: 0 | K72: 0 | L72: 0 | M72: 0 | N72: 0 | O72: 0 | P72: 0 | Q72: 0 | R72: 0 | AG72: 1.03 > Belize | AH72: 58 | AI72: 3
A73: =INDEX(Country!$F$31:$G$76, MATCH(AI73, Country!$O$31:$O$76, 0), 1) -> 1.03 | B73: =INDEX(Country!$F$31:$G$76, MATCH(AI73, Country!$O$31:$O$76, 0), 2) -> Clean energy rural electrification | C73: =INDEX(Country!$K$31:$K$76, MATCH(AI73, Country!$O$31:$O$76, 0), 1) -> Program | D73: Bolivia | E73: =F73 -> 1 | F73: 1 | G73: 1 | H73: =I73 -> 1 | I73: 1 | J73: 1 | K73: 1 | L73: 100 | M73: 100 | N73: 100 | O73: 100 | P73: 100 | Q73: 100 | R73: 100 | AG73: 1.03 > Bolivia | AH73: 59 | AI73: 3
A74: =INDEX(Country!$F$31:$G$76, MATCH(AI74, Country!$O$31:$O$76, 0), 1) -> 1.03 | B74: =INDEX(Country!$F$31:$G$76, MATCH(AI74, Country!$O$31:$O$76, 0), 2) -> Clean energy rural electrification | C74: =INDEX(Country!$K$31:$K$76, MATCH(AI74, Country!$O$31:$O$76, 0), 1) -> Program | D74: Brazil | E74: =F74 -> 1 | F74: 1 | G74: 1 | H74: =I74 -> 1 | I74: 1 | J74: 1 | K74: 1 | L74: 100 | M74: 100 | N74: 100 | O74: 100 | P74: 100 | Q74: 100 | R74: 100 | AG74: 1.03 > Brazil | AH74: 60 | AI74: 3
A75: =INDEX(Country!$F$31:$G$76, MATCH(AI75, Country!$O$31:$O$76, 0), 1) -> 1.03 | B75: =INDEX(Country!$F$31:$G$76, MATCH(AI75, Country!$O$31:$O$76, 0), 2) -> Clean energy rural electrification | C75: =INDEX(Country!$K$31:$K$76, MATCH(AI75, Country!$O$31:$O$76, 0), 1) -> Program | D75: Chile | E75: =F75 -> 1 | F75: 1 | G75: 1 | H75: =I75 -> 1 | I75: 1 | J75: 1 | K75: 1 | L75: 100 | M75: 100 | N75: 100 | O75: 100 | P75: 100 | Q75: 100 | R75: 100 | AG75: 1.03 > Chile | AH75: 61 | AI75: 3
A76: =INDEX(Country!$F$31:$G$76, MATCH(AI76, Country!$O$31:$O$76, 0), 1) -> 1.03 | B76: =INDEX(Country!$F$31:$G$76, MATCH(AI76, Country!$O$31:$O$76, 0), 2) -> Clean energy rural electrification | C76: =INDEX(Country!$K$31:$K$76, MATCH(AI76, Country!$O$31:$O$76, 0), 1) -> Program | D76: Colombia | E76: =F76 -> 1 | F76: 1 | G76: 1 | H76: =I76 -> 1 | I76: 1 | J76: 1 | K76: 1 | L76: 100 | M76: 100 | N76: 100 | O76: 100 | P76: 100 | Q76: 100 | R76: 100 | AG76: 1.03 > Colombia | AH76: 62 | AI76: 3
A77: =INDEX(Country!$F$31:$G$76, MATCH(AI77, Country!$O$31:$O$76, 0), 1) -> 1.03 | B77: =INDEX(Country!$F$31:$G$76, MATCH(AI77, Country!$O$31:$O$76, 0), 2) -> Clean energy rural electrification | C77: =INDEX(Country!$K$31:$K$76, MATCH(AI77, Country!$O$31:$O$76, 0), 1) -> Program | D77: Costa Rica | E77: =F77 -> 1 | F77: 1 | G77: 1 | H77: =I77 -> 1 | I77: 1 | J77: 1 | K77: 1 | L77: 100 | M77: 100 | N77: 100 | O77: 100 | P77: 100 | Q77: 100 | R77: 100 | AG77: 1.03 > Costa Rica | AH77: 63 | AI77: 3
A78: =INDEX(Country!$F$31:$G$76, MATCH(AI78, Country!$O$31:$O$76, 0), 1) -> 1.03 | B78: =INDEX(Country!$F$31:$G$76, MATCH(AI78, Country!$O$31:$O$76, 0), 2) -> Clean energy rural electrification | C78: =INDEX(Country!$K$31:$K$76, MATCH(AI78, Country!$O$31:$O$76, 0), 1) -> Program | D78: Dominican Republic | E78: =F78 -> 1 | F78: 1 | G78: 1 | H78: =I78 -> 1 | I78: 1 | J78: 1 | K78: 1 | L78: 100 | M78: 100 | N78: 100 | O78: 100 | P78: 100 | Q78: 100 | R78: 100 | AG78: 1.03 > Dominican Republic | AH78: 64 | AI78: 3
A79: =INDEX(Country!$F$31:$G$76, MATCH(AI79, Country!$O$31:$O$76, 0), 1) -> 1.03 | B79: =INDEX(Country!$F$31:$G$76, MATCH(AI79, Country!$O$31:$O$76, 0), 2) -> Clean energy rural electrification | C79: =INDEX(Country!$K$31:$K$76, MATCH(AI79, Country!$O$31:$O$76, 0), 1) -> Program | D79: Ecuador | E79: =F79 -> 1 | F79: 1 | G79: 1 | H79: =I79 -> 1 | I79: 1 | J79: 1 | K79: 1 | L79: 100 | M79: 100 | N79: 100 | O79: 100 | P79: 100 | Q79: 100 | R79: 100 | AG79: =A79&" > " &D79 -> 1.03 > Ecuador | AH79: 65 | AI79: 3
A80: =INDEX(Country!$F$31:$G$76, MATCH(AI80, Country!$O$31:$O$76, 0), 1) -> 1.03 | B80: =INDEX(Country!$F$31:$G$76, MATCH(AI80, Country!$O$31:$O$76, 0), 2) -> Clean energy rural electrification | C80: =INDEX(Country!$K$31:$K$76, MATCH(AI80, Country!$O$31:$O$76, 0), 1) -> Program | D80: El Salvador | E80: =F80 -> 1 | F80: 1 | G80: 1 | H80: =I80 -> 1 | I80: 1 | J80: 1 | K80: 1 | L80: 100 | M80: 100 | N80: 100 | O80: 100 | P80: 100 | Q80: 100 | R80: 100 | AG80: 1.03 > El Salvador | AH80: 66 | AI80: 3
A81: =INDEX(Country!$F$31:$G$76, MATCH(AI81, Country!$O$31:$O$76, 0), 1) -> 1.03 | B81: =INDEX(Country!$F$31:$G$76, MATCH(AI81, Country!$O$31:$O$76, 0), 2) -> Clean energy rural electrification | C81: =INDEX(Country!$K$31:$K$76, MATCH(AI81, Country!$O$31:$O$76, 0), 1) -> Program | D81: Guatemala | E81: =F81 -> 1 | F81: 1 | G81: 1 | H81: =I81 -> 1 | I81: 1 | J81: 1 | K81: 1 | L81: 100 | M81: 100 | N81: 100 | O81: 100 | P81: 100 | Q81: 100 | R81: 100 | AG81: 1.03 > Guatemala | AH81: =AH80+1 -> 67 | AI81: =ROUNDUP(AH81/COUNTA($D$15:$D$41),0) -> 3
A82: =INDEX(Country!$F$31:$G$76, MATCH(AI82, Country!$O$31:$O$76, 0), 1) -> 1.03 | B82: =INDEX(Country!$F$31:$G$76, MATCH(AI82, Country!$O$31:$O$76, 0), 2) -> Clean energy rural electrification | C82: =INDEX(Country!$K$31:$K$76, MATCH(AI82, Country!$O$31:$O$76, 0), 1) -> Program | D82: Guyana | E82: =F82 -> 1 | F82: 1 | G82: 1 | H82: =I82 -> 1 | I82: 1 | J82: 1 | K82: 1 | L82: 100 | M82: 100 | N82: 100 | O82: 100 | P82: 100 | Q82: 100 | R82: 100 | AG82: 1.03 > Guyana | AH82: 68 | AI82: 3
A83: =INDEX(Country!$F$31:$G$76, MATCH(AI83, Country!$O$31:$O$76, 0), 1) -> 1.03 | B83: =INDEX(Country!$F$31:$G$76, MATCH(AI83, Country!$O$31:$O$76, 0), 2) -> Clean energy rural electrification | C83: =INDEX(Country!$K$31:$K$76, MATCH(AI83, Country!$O$31:$O$76, 0), 1) -> Program | D83: Haiti | E83: =F83 -> 0 | F83: 0 | G83: 0 | H83: =I83 -> 0 | I83: 0 | J83: 0 | K83: 0 | L83: 0 | M83: 0 | N83: 0 | O83: 0 | P83: 0 | Q83: 0 | R83: 0 | AG83: 1.03 > Haiti | AH83: 69 | AI83: 3
A84: =INDEX(Country!$F$31:$G$76, MATCH(AI84, Country!$O$31:$O$76, 0), 1) -> 1.03 | B84: =INDEX(Country!$F$31:$G$76, MATCH(AI84, Country!$O$31:$O$76, 0), 2) -> Clean energy rural electrification | C84: =INDEX(Country!$K$31:$K$76, MATCH(AI84, Country!$O$31:$O$76, 0), 1) -> Program | D84: Honduras | E84: =F84 -> 1 | F84: 1 | G84: 1 | H84: =I84 -> 1 | I84: 1 | J84: 1 | K84: 1 | L84: 100 | M84: 100 | N84: 100 | O84: 100 | P84: 100 | Q84: 100 | R84: 100 | AG84: 1.03 > Honduras | AH84: 70 | AI84: 3
A85: =INDEX(Country!$F$31:$G$76, MATCH(AI85, Country!$O$31:$O$76, 0), 1) -> 1.03 | B85: =INDEX(Country!$F$31:$G$76, MATCH(AI85, Country!$O$31:$O$76, 0), 2) -> Clean energy rural electrification | C85: =INDEX(Country!$K$31:$K$76, MATCH(AI85, Country!$O$31:$O$76, 0), 1) -> Program | D85: Jamaica | E85: =F85 -> 1 | F85: 1 | G85: 1 | H85: =I85 -> 1 | I85: 1 | J85: 1 | K85: 1 | L85: 100 | M85: 100 | N85: 100 | O85: 100 | P85: 100 | Q85: 100 | R85: 100 | AG85: 1.03 > Jamaica | AH85: 71 | AI85: 3
A86: =INDEX(Country!$F$31:$G$76, MATCH(AI86, Country!$O$31:$O$76, 0), 1) -> 1.03 | B86: =INDEX(Country!$F$31:$G$76, MATCH(AI86, Country!$O$31:$O$76, 0), 2) -> Clean energy rural electrification | C86: =INDEX(Country!$K$31:$K$76, MATCH(AI86, Country!$O$31:$O$76, 0), 1) -> Program | D86: Mexico | E86: =F86 -> 1 | F86: 1 | G86: 1 | H86: =I86 -> 1 | I86: 1 | J86: 1 | K86: 1 | L86: 100 | M86: 100 | N86: 100 | O86: 100 | P86: 100 | Q86: 100 | R86: 100 | AG86: 1.03 > Mexico | AH86: 72 | AI86: 3
A87: =INDEX(Country!$F$31:$G$76, MATCH(AI87, Country!$O$31:$O$76, 0), 1) -> 1.03 | B87: =INDEX(Country!$F$31:$G$76, MATCH(AI87, Country!$O$31:$O$76, 0), 2) -> Clean energy rural electrification | C87: =INDEX(Country!$K$31:$K$76, MATCH(AI87, Country!$O$31:$O$76, 0), 1) -> Program | D87: Nicaragua | E87: =F87 -> 1 | F87: 1 | G87: 1 | H87: =I87 -> 1 | I87: 1 | J87: 1 | K87: 1 | L87: 100 | M87: 100 | N87: 100 | O87: 100 | P87: 100 | Q87: 100 | R87: 100 | AG87: 1.03 > Nicaragua | AH87: 73 | AI87: 3
A88: =INDEX(Country!$F$31:$G$76, MATCH(AI88, Country!$O$31:$O$76, 0), 1) -> 1.03 | B88: =INDEX(Country!$F$31:$G$76, MATCH(AI88, Country!$O$31:$O$76, 0), 2) -> Clean energy rural electrification | C88: =INDEX(Country!$K$31:$K$76, MATCH(AI88, Country!$O$31:$O$76, 0), 1) -> Program | D88: Panama | E88: =F88 -> 1 | F88: 1 | G88: 1 | H88: =I88 -> 1 | I88: 1 | J88: 1 | K88: 1 | L88: 100 | M88: 100 | N88: 100 | O88: 100 | P88: 100 | Q88: 100 | R88: 100 | AG88: 1.03 > Panama | AH88: 74 | AI88: 3
A89: =INDEX(Country!$F$31:$G$76, MATCH(AI89, Country!$O$31:$O$76, 0), 1) -> 1.03 | B89: =INDEX(Country!$F$31:$G$76, MATCH(AI89, Country!$O$31:$O$76, 0), 2) -> Clean energy rural electrification | C89: =INDEX(Country!$K$31:$K$76, MATCH(AI89, Country!$O$31:$O$76, 0), 1) -> Program | D89: Paraguay | E89: =F89 -> 0 | F89: 0 | G89: 0 | H89: =I89 -> 0 | I89: 0 | J89: 0 | K89: 0 | L89: 0 | M89: 0 | N89: 0 | O89: 0 | P89: 0 | Q89: 0 | R89: 0 | AG89: 1.03 > Paraguay | AH89: 75 | AI89: 3
A90: =INDEX(Country!$F$31:$G$76, MATCH(AI90, Country!$O$31:$O$76, 0), 1) -> 1.03 | B90: =INDEX(Country!$F$31:$G$76, MATCH(AI90, Country!$O$31:$O$76, 0), 2) -> Clean energy rural electrification | C90: =INDEX(Country!$K$31:$K$76, MATCH(AI90, Country!$O$31:$O$76, 0), 1) -> Program | D90: Peru | E90: =F90 -> 1 | F90: 1 | G90: 1 | H90: =I90 -> 1 | I90: 1 | J90: 1 | K90: 1 | L90: 100 | M90: 100 | N90: 100 | O90: 100 | P90: 100 | Q90: 100 | R90: 100 | AG90: 1.03 > Peru | AH90: 76 | AI90: 3
A91: =INDEX(Country!$F$31:$G$76, MATCH(AI91, Country!$O$31:$O$76, 0), 1) -> 1.03 | B91: =INDEX(Country!$F$31:$G$76, MATCH(AI91, Country!$O$31:$O$76, 0), 2) -> Clean energy rural electrification | C91: =INDEX(Country!$K$31:$K$76, MATCH(AI91, Country!$O$31:$O$76, 0), 1) -> Program | D91: Suriname | E91: =F91 -> 0 | F91: 0 | G91: 0 | H91: =I91 -> 0 | I91: 0 | J91: 0 | K91: 0 | L91: 0 | M91: 0 | N91: 0 | O91: 0 | P91: 0 | Q91: 0 | R91: 0 | AG91: 1.03 > Suriname | AH91: 77 | AI91: 3
A92: =INDEX(Country!$F$31:$G$76, MATCH(AI92, Country!$O$31:$O$76, 0), 1) -> 1.03 | B92: =INDEX(Country!$F$31:$G$76, MATCH(AI92, Country!$O$31:$O$76, 0), 2) -> Clean energy rural electrification | C92: =INDEX(Country!$K$31:$K$76, MATCH(AI92, Country!$O$31:$O$76, 0), 1) -> Program | D92: Trinidad & Tobago | E92: =F92 -> 0 | F92: 0 | G92: 0 | H92: =I92 -> 0 | I92: 0 | J92: 0 | K92: 0 | L92: 0 | M92: 0 | N92: 0 | O92: 0 | P92: 0 | Q92: 0 | R92: 0 | AG92: 1.03 > Trinidad & Tobago | AH92: 78 | AI92: 3
A93: =INDEX(Country!$F$31:$G$76, MATCH(AI93, Country!$O$31:$O$76, 0), 1) -> 1.03 | B93: =INDEX(Country!$F$31:$G$76, MATCH(AI93, Country!$O$31:$O$76, 0), 2) -> Clean energy rural electrification | C93: =INDEX(Country!$K$31:$K$76, MATCH(AI93, Country!$O$31:$O$76, 0), 1) -> Program | D93: Uruguay | E93: =F93 -> 1 | F93: 1 | G93: 1 | H93: =I93 -> 1 | I93: 1 | J93: 1 | K93: 1 | L93: 100 | M93: 100 | N93: 100 | O93: 100 | P93: 100 | Q93: 100 | R93: 100 | AG93: 1.03 > Uruguay | AH93: 79 | AI93: 3
A94: =INDEX(Country!$F$31:$G$76, MATCH(AI94, Country!$O$31:$O$76, 0), 1) -> 1.03 | B94: =INDEX(Country!$F$31:$G$76, MATCH(AI94, Country!$O$31:$O$76, 0), 2) -> Clean energy rural electrification | C94: =INDEX(Country!$K$31:$K$76, MATCH(AI94, Country!$O$31:$O$76, 0), 1) -> Program | D94: Venezuela | E94: =F94 -> 1 | F94: 1 | G94: 1 | H94: =I94 -> 1 | I94: 1 | J94: 1 | K94: 1 | L94: 100 | M94: 100 | N94: 100 | O94: 100 | P94: 100 | Q94: 100 | R94: 100 | AG94: 1.03 > Venezuela | AH94: 80 | AI94: 3
A95: =INDEX(Country!$F$31:$G$76, MATCH(AI95, Country!$O$31:$O$76, 0), 1) -> 1.03 | B95: =INDEX(Country!$F$31:$G$76, MATCH(AI95, Country!$O$31:$O$76, 0), 2) -> Clean energy rural electrification | C95: =INDEX(Country!$K$31:$K$76, MATCH(AI95, Country!$O$31:$O$76, 0), 1) -> Program | D95: Benchmark | E95: =IFERROR(MAX(E69:E94), 0) -> 1 | F95: =IFERROR(MAX(F69:F94), 0) -> 1 | G95: =IFERROR(MAX(G69:G94), 0) -> 1 | H95: =IFERROR(MAX(H69:H94), 0) -> 1 | I95: =IFERROR(MAX(I69:I94), 0) -> 1 | J95: =IFERROR(MAX(J69:J94), 0) -> 1 | K95: 1 | L95: 100 | M95: 100 | N95: 100 | O95: 100 | P95: 100 | Q95: 100 | R95: 100 | Z95: Levelised by Capacity for All Energy (MW) | AG95: 1.03 > Benchmark | AH95: 81 | AI95: 3
A96: =INDEX(Country!$F$31:$G$76, MATCH(AI96, Country!$O$31:$O$76, 0), 1) -> 1.04 | B96: =INDEX(Country!$F$31:$G$76, MATCH(AI96, Country!$O$31:$O$76, 0), 2) -> Clean energy installed capacity | C96: =INDEX(Country!$K$31:$K$76, MATCH(AI96, Country!$O$31:$O$76, 0), 1) -> MW | D96: Argentina | E96: =Levelisation!F293 -> 535.198 | F96: =Levelisation!G293 -> 521.295 | G96: =Levelisation!H293 -> 522.8992 | H96: =Levelisation!I293 -> 522.2502 | I96: =Levelisation!J293 -> 525.1732 | J96: =Levelisation!K293 -> 557.9785 | K96: =Levelisation!L293 -> 557.9785 | L96: =IFERROR(dbl_BenchmarkMax*Z96/L$122, 0) -> 4.049881773 | M96: =IFERROR(dbl_BenchmarkMax*AA96/M$122, 0) -> 3.657810247 | N96: =IFERROR(dbl_BenchmarkMax*AB96/N$122, 0) -> 3.456559081 | O96: =IFERROR(dbl_BenchmarkMax*AC96/O$122, 0) -> 2.99337451 | P96: =IFERROR(dbl_BenchmarkMax*AD96/P$122, 0) -> 2.617669011 | Q96: =IFERROR(dbl_BenchmarkMax*AE96/Q$122, 0) -> 2.628844385 | R96: =IFERROR(dbl_BenchmarkMax*AF96/R$122, 0) -> 2.623405511 | Z96: =IFERROR(E96/Levelisation!F319, 0) -> 0.01887209741 | AA96: =IFERROR(F96/Levelisation!G319, 0) -> 0.0180588394 | AB96: =IFERROR(G96/Levelisation!H319, 0) -> 0.01687642262 | AC96: =IFERROR(H96/Levelisation!I319, 0) -> 0.01625670059 | AD96: =IFERROR(I96/Levelisation!J319, 0) -> 0.01597411103 | AE96: =IFERROR(J96/Levelisation!K319, 0) -> 0.01651206795 | AF96: =IFERROR(K96/Levelisation!L319, 0) -> 0.01651206795 | AG96: 1.04 > Argentina | AH96: 82 | AI96: 4
A97: =INDEX(Country!$F$31:$G$76, MATCH(AI97, Country!$O$31:$O$76, 0), 1) -> 1.04 | B97: =INDEX(Country!$F$31:$G$76, MATCH(AI97, Country!$O$31:$O$76, 0), 2) -> Clean energy installed capacity | C97: =INDEX(Country!$K$31:$K$76, MATCH(AI97, Country!$O$31:$O$76, 0), 1) -> MW | D97: Bahamas | E97: =Levelisation!F294 -> 0 | F97: =Levelisation!G294 -> 0 | G97: =Levelisation!H294 -> 0 | H97: =Levelisation!I294 -> 0 | I97: =Levelisation!J294 -> 0 | J97: =Levelisation!K294 -> 0 | K97: =Levelisation!L294 -> 0 | L97: 0 | M97: 0 | N97: 0 | O97: 0 | P97: 0 | Q97: 0 | R97: 0 | Z97: =IFERROR(E97/Levelisation!F320, 0) -> 0 | AA97: =IFERROR(F97/Levelisation!G320, 0) -> 0 | AB97: =IFERROR(G97/Levelisation!H320, 0) -> 0 | AC97: =IFERROR(H97/Levelisation!I320, 0) -> 0 | AD97: =IFERROR(I97/Levelisation!J320, 0) -> 0 | AE97: =IFERROR(J97/Levelisation!K320, 0) -> 0 | AF97: =IFERROR(K97/Levelisation!L320, 0) -> 0 | AG97: 1.04 > Bahamas | AH97: 83 | AI97: 4
A98: =INDEX(Country!$F$31:$G$76, MATCH(AI98, Country!$O$31:$O$76, 0), 1) -> 1.04 | B98: =INDEX(Country!$F$31:$G$76, MATCH(AI98, Country!$O$31:$O$76, 0), 2) -> Clean energy installed capacity | C98: =INDEX(Country!$K$31:$K$76, MATCH(AI98, Country!$O$31:$O$76, 0), 1) -> MW | D98: Barbados | E98: =Levelisation!F295 -> 0 | F98: =Levelisation!G295 -> 0 | G98: =Levelisation!H295 -> 0 | H98: =Levelisation!I295 -> 0 | I98: =Levelisation!J295 -> 0 | J98: =Levelisation!K295 -> 0 | K98: =Levelisation!L295 -> 0 | L98: 0 | M98: 0 | N98: 0 | O98: 0 | P98: 0 | Q98: 0 | R98: 0 | Z98: =IFERROR(E98/Levelisation!F321, 0) -> 0 | AA98: =IFERROR(F98/Levelisation!G321, 0) -> 0 | AB98: =IFERROR(G98/Levelisation!H321, 0) -> 0 | AC98: =IFERROR(H98/Levelisation!I321, 0) -> 0 | AD98: =IFERROR(I98/Levelisation!J321, 0) -> 0 | AE98: =IFERROR(J98/Levelisation!K321, 0) -> 0 | AF98: =IFERROR(K98/Levelisation!L321, 0) -> 0 | AG98: 1.04 > Barbados | AH98: 84 | AI98: 4
A99: =INDEX(Country!$F$31:$G$76, MATCH(AI99, Country!$O$31:$O$76, 0), 1) -> 1.04 | B99: =INDEX(Country!$F$31:$G$76, MATCH(AI99, Country!$O$31:$O$76, 0), 2) -> Clean energy installed capacity | C99: =INDEX(Country!$K$31:$K$76, MATCH(AI99, Country!$O$31:$O$76, 0), 1) -> MW | D99: Belize | E99: =Levelisation!F296 -> 32.2 | F99: =Levelisation!G296 -> 35.3 | G99: =Levelisation!H296 -> 35.3 | H99: =Levelisation!I296 -> 66.8 | I99: =Levelisation!J296 -> 85.8 | J99: =Levelisation!K296 -> 85.8 | K99: =Levelisation!L296 -> 86.28 | L99: 100 | M99: 100 | N99: 100 | O99: 100 | P99: 100 | Q99: 100 | R99: 100 | Z99: =IFERROR(E99/Levelisation!F322, 0) -> 0.4659913169 | AA99: =IFERROR(F99/Levelisation!G322, 0) -> 0.4937062937 | AB99: =IFERROR(G99/Levelisation!H322, 0) -> 0.4882434302 | AC99: =IFERROR(H99/Levelisation!I322, 0) -> 0.5430894309 | AD99: =IFERROR(I99/Levelisation!J322, 0) -> 0.6102418208 | AE99: =IFERROR(J99/Levelisation!K322, 0) -> 0.6281112738 | AF99: =IFERROR(K99/Levelisation!L322, 0) -> 0.6294134812 | AG99: 1.04 > Belize | AH99: 85 | AI99: 4
A100: =INDEX(Country!$F$31:$G$76, MATCH(AI100, Country!$O$31:$O$76, 0), 1) -> 1.04 | B100: =INDEX(Country!$F$31:$G$76, MATCH(AI100, Country!$O$31:$O$76, 0), 2) -> Clean energy installed capacity | C100: =INDEX(Country!$K$31:$K$76, MATCH(AI100, Country!$O$31:$O$76, 0), 1) -> MW | D100: Bolivia | E100: =Levelisation!F297 -> 307.6 | F100: =Levelisation!G297 -> 307.6 | G100: =Levelisation!H297 -> 310.4 | H100: =Levelisation!I297 -> 310.4 | I100: =Levelisation!J297 -> 310.4 | J100: =Levelisation!K297 -> 311.3 | K100: =Levelisation!L297 -> 311.3 | L100: 45.0394471 | M100: 41.67508314 | N100: 42.35781477 | O100: 37.39008964 | P100: 31.03232358 | Q100: 29.53416486 | R100: 29.47306098 | Z100: =IFERROR(E100/Levelisation!F323, 0) -> 0.2098799127 | AA100: =IFERROR(F100/Levelisation!G323, 0) -> 0.2057525084 | AB100: =IFERROR(G100/Levelisation!H323, 0) -> 0.2068092478 | AC100: =IFERROR(H100/Levelisation!I323, 0) -> 0.203061625 | AD100: =IFERROR(I100/Levelisation!J323, 0) -> 0.1893722165 | AE100: =IFERROR(J100/Levelisation!K323, 0) -> 0.1855074191 | AF100: =IFERROR(K100/Levelisation!L323, 0) -> 0.1855074191 | AG100: 1.04 > Bolivia | AH100: 86 | AI100: 4
A101: =INDEX(Country!$F$31:$G$76, MATCH(AI101, Country!$O$31:$O$76, 0), 1) -> 1.04 | B101: =INDEX(Country!$F$31:$G$76, MATCH(AI101, Country!$O$31:$O$76, 0), 2) -> Clean energy installed capacity | C101: =INDEX(Country!$K$31:$K$76, MATCH(AI101, Country!$O$31:$O$76, 0), 1) -> MW | D101: Brazil | E101: =Levelisation!F298 -> 4819.44 | F101: =Levelisation!G298 -> 5815.8 | G101: =Levelisation!H298 -> 7588 | H101: =Levelisation!I298 -> 9167 | I101: =Levelisation!J298 -> 11244 | J101: =Levelisation!K298 -> 13862.1 | K101: =Levelisation!L298 -> 15880.9 | L101: 10.74037701 | M101: 11.73855846 | N101: 15.09623965 | O101: 15.94452858 | P101: 16.25868727 | Q101: 19.00395088 | R101: 20.43932841 | Z101: =IFERROR(E101/Levelisation!F324, 0) -> 0.05004922425 | AA101: =IFERROR(F101/Levelisation!G324, 0) -> 0.05795400191 | AB101: =IFERROR(G101/Levelisation!H324, 0) -> 0.07370639831 | AC101: =IFERROR(H101/Levelisation!I324, 0) -> 0.08659304951 | AD101: =IFERROR(I101/Levelisation!J324, 0) -> 0.0992173092 | AE101: =IFERROR(J101/Levelisation!K324, 0) -> 0.119365958 | AF101: =IFERROR(K101/Levelisation!L324, 0) -> 0.1286478885 | AG101: 1.04 > Brazil | AH101: 87 | AI101: 4
A102: =INDEX(Country!$F$31:$G$76, MATCH(AI102, Country!$O$31:$O$76, 0), 1) -> 1.04 | B102: =INDEX(Country!$F$31:$G$76, MATCH(AI102, Country!$O$31:$O$76, 0), 2) -> Clean energy installed capacity | C102: =INDEX(Country!$K$31:$K$76, MATCH(AI102, Country!$O$31:$O$76, 0), 1) -> MW | D102: Chile | E102: =Levelisation!F299 -> 606.42425 | F102: =Levelisation!G299 -> 697.57425 | G102: =Levelisation!H299 -> 767.38925 | H102: =Levelisation!I299 -> 871.35225 | I102: =Levelisation!J299 -> 994.07225 | J102: =Levelisation!K299 -> 1084.3775 | K102: =Levelisation!L299 -> 1211.3775 | L102: 11.32934363 | M102: 11.87149264 | N102: 12.44224325 | O102: 11.42089118 | P102: 10.77136551 | Q102: 10.47568214 | R102: 10.9641539 | Z102: =IFERROR(E102/Levelisation!F325, 0) -> 0.05279375759 | AA102: =IFERROR(F102/Levelisation!G325, 0) -> 0.05861030631 | AB102: =IFERROR(G102/Levelisation!H325, 0) -> 0.06074843524 | AC102: =IFERROR(H102/Levelisation!I325, 0) -> 0.06202565293 | AD102: =IFERROR(I102/Levelisation!J325, 0) -> 0.065731377 | AE102: =IFERROR(J102/Levelisation!K325, 0) -> 0.06579894055 | AF102: =IFERROR(K102/Levelisation!L325, 0) -> 0.06900986272 | AG102: 1.04 > Chile | AH102: 88 | AI102: 4
A103: =INDEX(Country!$F$31:$G$76, MATCH(AI103, Country!$O$31:$O$76, 0), 1) -> 1.04 | B103: =INDEX(Country!$F$31:$G$76, MATCH(AI103, Country!$O$31:$O$76, 0), 2) -> Clean energy installed capacity | C103: =INDEX(Country!$K$31:$K$76, MATCH(AI103, Country!$O$31:$O$76, 0), 1) -> MW | D103: Colombia | E103: =Levelisation!F300 -> 481.4 | F103: =Levelisation!G300 -> 506 | G103: =Levelisation!H300 -> 511.2 | H103: =Levelisation!I300 -> 525.4 | I103: =Levelisation!J300 -> 592.1 | J103: =Levelisation!K300 -> 606.2 | K103: =Levelisation!L300 -> 669.7 | L103: 7.780755428 | M103: 7.645261716 | N103: 7.780591945 | O103: 7.168364556 | P103: 7.301035371 | Q103: 6.698842369 | R103: 7.40863856 | Z103: =IFERROR(E103/Levelisation!F326, 0) -> 0.03625764468 | AA103: =IFERROR(F103/Levelisation!G326, 0) -> 0.03774513826 | AB103: =IFERROR(G103/Levelisation!H326, 0) -> 0.037988229 | AC103: =IFERROR(H103/Levelisation!I326, 0) -> 0.03893063027 | AD103: =IFERROR(I103/Levelisation!J326, 0) -> 0.04455397118 | AE103: =IFERROR(J103/Levelisation!K326, 0) -> 0.04207618413 | AF103: =IFERROR(K103/Levelisation!L326, 0) -> 0.04663096987 | AG103: 1.04 > Colombia | AH103: 89 | AI103: 4
A104: =INDEX(Country!$F$31:$G$76, MATCH(AI104, Country!$O$31:$O$76, 0), 1) -> 1.04 | B104: =INDEX(Country!$F$31:$G$76, MATCH(AI104, Country!$O$31:$O$76, 0), 2) -> Clean energy installed capacity | C104: =INDEX(Country!$K$31:$K$76, MATCH(AI104, Country!$O$31:$O$76, 0), 1) -> MW | D104: Costa Rica | E104: =Levelisation!F301 -> 727.702 | F104: =Levelisation!G301 -> 761.7362 | G104: =Levelisation!H301 -> 792.2362 | H104: =Levelisation!I301 -> 838.2862 | I104: =Levelisation!J301 -> 838.2862 | J104: =Levelisation!K301 -> 941.6752 | K104: =Levelisation!L301 -> 971.6302 | L104: 75.31478483 | M104: 71.56310726 | N104: 68.59435013 | O104: 64.00558209 | P104: 52.55169885 | Q104: 56.56503263 | R104: 57.3959788 | Z104: =IFERROR(E104/Levelisation!F327, 0) -> 0.3509603577 | AA104: =IFERROR(F104/Levelisation!G327, 0) -> 0.3533115645 | AB104: =IFERROR(G104/Levelisation!H327, 0) -> 0.334907408 | AC104: =IFERROR(H104/Levelisation!I327, 0) -> 0.3476075515 | AD104: =IFERROR(I104/Levelisation!J327, 0) -> 0.3206924439 | AE104: =IFERROR(J104/Levelisation!K327, 0) -> 0.355291347 | AF104: =IFERROR(K104/Levelisation!L327, 0) -> 0.3612580282 | AG104: 1.04 > Costa Rica | AH104: 90 | AI104: 4
A105: =INDEX(Country!$F$31:$G$76, MATCH(AI105, Country!$O$31:$O$76, 0), 1) -> 1.04 | B105: =INDEX(Country!$F$31:$G$76, MATCH(AI105, Country!$O$31:$O$76, 0), 2) -> Clean energy installed capacity | C105: =INDEX(Country!$K$31:$K$76, MATCH(AI105, Country!$O$31:$O$76, 0), 1) -> MW | D105: Dominican Republic | E105: =Levelisation!F302 -> 169.3 | F105: =Levelisation!G302 -> 169.3 | G105: =Levelisation!H302 -> 172.3 | H105: =Levelisation!I302 -> 223.15 | I105: =Levelisation!J302 -> 223.15 | J105: =Levelisation!K302 -> 253.15 | K105: =Levelisation!L302 -> 260.45 | L105: 10.70420703 | M105: 10.10330958 | N105: 11.21734691 | O105: 12.87781821 | P105: 11.4718598 | Q105: 12.01203138 | R105: 12.0202043 | Z105: =IFERROR(E105/Levelisation!F328, 0) -> 0.04988067529 | AA105: =IFERROR(F105/Levelisation!G328, 0) -> 0.04988067529 | AB105: =IFERROR(G105/Levelisation!H328, 0) -> 0.05476795931 | AC105: =IFERROR(H105/Levelisation!I328, 0) -> 0.06993806963 | AD105: =IFERROR(I105/Levelisation!J328, 0) -> 0.07000608612 | AE105: =IFERROR(J105/Levelisation!K328, 0) -> 0.07544892333 | AF105: =IFERROR(K105/Levelisation!L328, 0) -> 0.07565678631 | AG105: 1.04 > Dominican Republic | AH105: 91 | AI105: 4
A106: =INDEX(Country!$F$31:$G$76, MATCH(AI106, Country!$O$31:$O$76, 0), 1) -> 1.04 | B106: =INDEX(Country!$F$31:$G$76, MATCH(AI106, Country!$O$31:$O$76, 0), 2) -> Clean energy installed capacity | C106: =INDEX(Country!$K$31:$K$76, MATCH(AI106, Country!$O$31:$O$76, 0), 1) -> MW | D106: Ecuador | E106: =Levelisation!F303 -> 351.11 | F106: =Levelisation!G303 -> 381.46 | G106: =Levelisation!H303 -> 414.24 | H106: =Levelisation!I303 -> 416.88 | I106: =Levelisation!J303 -> 411.26 | J106: =Levelisation!K303 -> 402.79 | K106: =Levelisation!L303 -> 442.01 | L106: 18.84723171 | M106: 17.21178443 | N106: 18.62076823 | O106: 15.86393831 | P106: 13.10461173 | Q106: 12.25693341 | R106: 12.74564435 | Z106: =IFERROR(E106/Levelisation!F329, 0) -> 0.08782646325 | AA106: =IFERROR(F106/Levelisation!G329, 0) -> 0.084975663 | AB106: =IFERROR(G106/Levelisation!H329, 0) -> 0.09091467751 | AC106: =IFERROR(H106/Levelisation!I329, 0) -> 0.08615537231 | AD106: =IFERROR(I106/Levelisation!J329, 0) -> 0.07996982124 | AE106: =IFERROR(J106/Levelisation!K329, 0) -> 0.07698718059 | AF106: =IFERROR(K106/Levelisation!L329, 0) -> 0.08022280381 | AG106: 1.04 > Ecuador | AH106: 92 | AI106: 4
A107: =INDEX(Country!$F$31:$G$76, MATCH(AI107, Country!$O$31:$O$76, 0), 1) -> 1.04 | B107: =INDEX(Country!$F$31:$G$76, MATCH(AI107, Country!$O$31:$O$76, 0), 2) -> Clean energy installed capacity | C107: =INDEX(Country!$K$31:$K$76, MATCH(AI107, Country!$O$31:$O$76, 0), 1) -> MW | D107: =D80 -> El Salvador | E107: =Levelisation!F304 -> 249 | F107: =Levelisation!G304 -> 350.9 | G107: =Levelisation!H304 -> 346.9 | H107: =Levelisation!I304 -> 346.9 | I107: =Levelisation!J304 -> 337.7 | J107: =Levelisation!K304 -> 348.2 | K107: =Levelisation!L304 -> 348.2 | L107: 41.32596446 | M107: 49.40886054 | N107: 49.29620706 | O107: 42.86069879 | P107: 37.36325565 | Q107: 37.0289475 | R107: 36.95233749 | Z107: =IFERROR(E107/Levelisation!F330, 0) -> 0.192575406 | AA107: =IFERROR(F107/Levelisation!G330, 0) -> 0.2439346542 | AB107: =IFERROR(G107/Levelisation!H330, 0) -> 0.2406854923 | AC107: =IFERROR(H107/Levelisation!I330, 0) -> 0.2327719251 | AD107: =IFERROR(I107/Levelisation!J330, 0) -> 0.2280062116 | AE107: =IFERROR(J107/Levelisation!K330, 0) -> 0.2325829938 | AF107: =IFERROR(K107/Levelisation!L330, 0) -> 0.2325829938 | AG107: 1.04 > El Salvador | AH107: 93 | AI107: 4
A108: =INDEX(Country!$F$31:$G$76, MATCH(AI108, Country!$O$31:$O$76, 0), 1) -> 1.04 | B108: =INDEX(Country!$F$31:$G$76, MATCH(AI108, Country!$O$31:$O$76, 0), 2) -> Clean energy installed capacity | C108: =INDEX(Country!$K$31:$K$76, MATCH(AI108, Country!$O$31:$O$76, 0), 1) -> MW | D108: Guatemala | E108: =Levelisation!F305 -> 479.072 | F108: =Levelisation!G305 -> 530.272 | G108: =Levelisation!H305 -> 530.432 | H108: =Levelisation!I305 -> 543.932 | I108: =Levelisation!J305 -> 548.47 | J108: =Levelisation!K305 -> 621.35 | K108: =Levelisation!L305 -> 636.31 | L108: 45.19409081 | M108: 45.86616937 | N108: 44.8522655 | O108: 41.1197563 | P108: 35.46537367 | Q108: 37.94373037 | R108: 36.23408486 | Z108: =IFERROR(E108/Levelisation!F331, 0) -> 0.210600539 | AA108: =IFERROR(F108/Levelisation!G331, 0) -> 0.2264441649 | AB108: =IFERROR(G108/Levelisation!H331, 0) -> 0.2189882396 | AC108: =IFERROR(H108/Levelisation!I331, 0) -> 0.2233170505 | AD108: =IFERROR(I108/Levelisation!J331, 0) -> 0.216424542 | AE108: =IFERROR(J108/Levelisation!K331, 0) -> 0.2383288482 | AF108: =IFERROR(K108/Levelisation!L331, 0) -> 0.2280622149 | AG108: 1.04 > Guatemala | AH108: 94 | AI108: 4
A109: =INDEX(Country!$F$31:$G$76, MATCH(AI109, Country!$O$31:$O$76, 0), 1) -> 1.04 | B109: =INDEX(Country!$F$31:$G$76, MATCH(AI109, Country!$O$31:$O$76, 0), 2) -> Clean energy installed capacity | C109: =INDEX(Country!$K$31:$K$76, MATCH(AI109, Country!$O$31:$O$76, 0), 1) -> MW | D109: Guyana | E109: =Levelisation!F306 -> 0 | F109: =Levelisation!G306 -> 0 | G109: =Levelisation!H306 -> 0 | H109: =Levelisation!I306 -> 15 | I109: =Levelisation!J306 -> 15 | J109: =Levelisation!K306 -> 15 | K109: =Levelisation!L306 -> 15 | L109: 0 | M109: 0 | N109: 0 | O109: 15.75391312 | P109: 14.17555916 | Q109: 10.82062478 | R109: 13.7437778 | Z109: =IFERROR(E109/Levelisation!F332, 0) -> 0 | AA109: =IFERROR(F109/Levelisation!G332, 0) -> 0 | AB109: =IFERROR(G109/Levelisation!H332, 0) -> 0 | AC109: =IFERROR(H109/Levelisation!I332, 0) -> 0.0855578371 | AD109: =IFERROR(I109/Levelisation!J332, 0) -> 0.08650519031 | AE109: =IFERROR(J109/Levelisation!K332, 0) -> 0.06796556411 | AF109: =IFERROR(K109/Levelisation!L332, 0) -> 0.08650519031 | AG109: 1.04 > Guyana | AH109: 95 | AI109: 4
A110: =INDEX(Country!$F$31:$G$76, MATCH(AI110, Country!$O$31:$O$76, 0), 1) -> 1.04 | B110: =INDEX(Country!$F$31:$G$76, MATCH(AI110, Country!$O$31:$O$76, 0), 2) -> Clean energy installed capacity | C110: =INDEX(Country!$K$31:$K$76, MATCH(AI110, Country!$O$31:$O$76, 0), 1) -> MW | D110: Haiti | E110: =Levelisation!F307 -> 0 | F110: =Levelisation!G307 -> 0 | G110: =Levelisation!H307 -> 0 | H110: =Levelisation!I307 -> 0 | I110: =Levelisation!J307 -> 0 | J110: =Levelisation!K307 -> 48 | K110: =Levelisation!L307 -> 55 | L110: 0 | M110: 0 | N110: 0 | O110: 0 | P110: 0 | Q110: 64.11038626 | R110: 36.25848102 | Z110: =IFERROR(E110/Levelisation!F333, 0) -> 0 | AA110: =IFERROR(F110/Levelisation!G333, 0) -> 0 | AB110: =IFERROR(G110/Levelisation!H333, 0) -> 0 | AC110: =IFERROR(H110/Levelisation!I333, 0) -> 0 | AD110: =IFERROR(I110/Levelisation!J333, 0) -> 0 | AE110: =IFERROR(J110/Levelisation!K333, 0) -> 0.4026845638 | AF110: =IFERROR(K110/Levelisation!L333, 0) -> 0.2282157676 | AG110: 1.04 > Haiti | AH110: 96 | AI110: 4
A111: =INDEX(Country!$F$31:$G$76, MATCH(AI111, Country!$O$31:$O$76, 0), 1) -> 1.04 | B111: =INDEX(Country!$F$31:$G$76, MATCH(AI111, Country!$O$31:$O$76, 0), 2) -> Clean energy installed capacity | C111: =INDEX(Country!$K$31:$K$76, MATCH(AI111, Country!$O$31:$O$76, 0), 1) -> MW | D111: Honduras | E111: =Levelisation!F308 -> 210.9 | F111: =Levelisation!G308 -> 247.6 | G111: =Levelisation!H308 -> 256.8 | H111: =Levelisation!I308 -> 263.3 | I111: =Levelisation!J308 -> 262.8 | J111: =Levelisation!K308 -> 388.63 | K111: =Levelisation!L308 -> 397.24 | L111: 28.84902731 | M111: 31.17890879 | N111: 32.26594312 | O111: 29.63802802 | P111: 26.33455336 | Q111: 34.8848378 | R111: 35.40407771 | Z111: =IFERROR(E111/Levelisation!F334, 0) -> 0.1344339623 | AA111: =IFERROR(F111/Levelisation!G334, 0) -> 0.153932235 | AB111: =IFERROR(G111/Levelisation!H334, 0) -> 0.1575363475 | AC111: =IFERROR(H111/Levelisation!I334, 0) -> 0.1609609977 | AD111: =IFERROR(I111/Levelisation!J334, 0) -> 0.1607044579 | AE111: =IFERROR(J111/Levelisation!K334, 0) -> 0.2191155991 | AF111: =IFERROR(K111/Levelisation!L334, 0) -> 0.222838038 | AG111: 1.04 > Honduras | AH111: 97 | AI111: 4
A112: =INDEX(Country!$F$31:$G$76, MATCH(AI112, Country!$O$31:$O$76, 0), 1) -> 1.04 | B112: =INDEX(Country!$F$31:$G$76, MATCH(AI112, Country!$O$31:$O$76, 0), 2) -> Clean energy installed capacity | C112: =INDEX(Country!$K$31:$K$76, MATCH(AI112, Country!$O$31:$O$76, 0), 1) -> MW | D112: Jamaica | E112: =Levelisation!F309 -> 42.4 | F112: =Levelisation!G309 -> 43.5 | G112: =Levelisation!H309 -> 43.5 | H112: =Levelisation!I309 -> 43.5 | I112: =Levelisation!J309 -> 46.5 | J112: =Levelisation!K309 -> 64.5 | K112: =Levelisation!L309 -> 64.5 | L112: 10.8506034 | M112: 10.49342176 | N112: 10.61083068 | O112: 9.539254626 | P112: 8.915744354 | Q112: 11.76733335 | R112: 10.92312143 | Z112: =IFERROR(E112/Levelisation!F335, 0) -> 0.05056286968 | AA112: =IFERROR(F112/Levelisation!G335, 0) -> 0.05180668366 | AB112: =IFERROR(G112/Levelisation!H335, 0) -> 0.05180668366 | AC112: =IFERROR(H112/Levelisation!I335, 0) -> 0.05180668366 | AD112: =IFERROR(I112/Levelisation!J335, 0) -> 0.05440760068 | AE112: =IFERROR(J112/Levelisation!K335, 0) -> 0.07391194738 | AF112: =IFERROR(K112/Levelisation!L335, 0) -> 0.06875159887 | AG112: 1.04 > Jamaica | AH112: 98 | AI112: 4
A113: =INDEX(Country!$F$31:$G$76, MATCH(AI113, Country!$O$31:$O$76, 0), 1) -> 1.04 | B113: =INDEX(Country!$F$31:$G$76, MATCH(AI113, Country!$O$31:$O$76, 0), 2) -> Clean energy installed capacity | C113: =INDEX(Country!$K$31:$K$76, MATCH(AI113, Country!$O$31:$O$76, 0), 1) -> MW | D113: Mexico | E113: =Levelisation!F310 -> 1407.273 | F113: =Levelisation!G310 -> 1517.573 | G113: =Levelisation!H310 -> 1529.508 | H113: =Levelisation!I310 -> 2007.7404 | I113: =Levelisation!J310 -> 2231.181398 | J113: =Levelisation!K310 -> 2290.133 | K113: =Levelisation!L310 -> 2931.211 | L113: 5.538259262 | M113: 5.295906211 | N113: 5.353324659 | O113: 6.156686239 | P113: 5.946828537 | Q113: 5.935127704 | R113: 7.457759055 | Z113: =IFERROR(E113/Levelisation!F336, 0) -> 0.02580780727 | AA113: =IFERROR(F113/Levelisation!G336, 0) -> 0.02614622227 | AB113: =IFERROR(G113/Levelisation!H336, 0) -> 0.02613725594 | AC113: =IFERROR(H113/Levelisation!I336, 0) -> 0.03343631226 | AD113: =IFERROR(I113/Levelisation!J336, 0) -> 0.03629003474 | AE113: =IFERROR(J113/Levelisation!K336, 0) -> 0.03727920622 | AF113: =IFERROR(K113/Levelisation!L336, 0) -> 0.04694014088 | AG113: 1.04 > Mexico | AH113: 99 | AI113: 4
A114: =INDEX(Country!$F$31:$G$76, MATCH(AI114, Country!$O$31:$O$76, 0), 1) -> 1.04 | B114: =INDEX(Country!$F$31:$G$76, MATCH(AI114, Country!$O$31:$O$76, 0), 2) -> Clean energy installed capacity | C114: =INDEX(Country!$K$31:$K$76, MATCH(AI114, Country!$O$31:$O$76, 0), 1) -> MW | D114: Nicaragua | E114: =Levelisation!F311 -> 259.53 | F114: =Levelisation!G311 -> 260.2 | G114: =Levelisation!H311 -> 260.2 | H114: =Levelisation!I311 -> 300.2 | I114: =Levelisation!J311 -> 323.2 | J114: =Levelisation!K311 -> 323.2 | K114: =Levelisation!L311 -> 451.8 | L114: 72.98888776 | M114: 63.36675736 | N114: 59.81535402 | O114: 56.30389336 | P114: 49.37824399 | Q114: 46.4281468 | R114: 57.7757042 | Z114: =IFERROR(E114/Levelisation!F337, 0) -> 0.3401218793 | AA114: =IFERROR(F114/Levelisation!G337, 0) -> 0.3128456692 | AB114: =IFERROR(G114/Levelisation!H337, 0) -> 0.2920445362 | AC114: =IFERROR(H114/Levelisation!I337, 0) -> 0.305780494 | AD114: =IFERROR(I114/Levelisation!J337, 0) -> 0.3013266952 | AE114: =IFERROR(J114/Levelisation!K337, 0) -> 0.2916204243 | AF114: =IFERROR(K114/Levelisation!L337, 0) -> 0.3636480711 | AG114: 1.04 > Nicaragua | AH114: 100 | AI114: 4
A115: =INDEX(Country!$F$31:$G$76, MATCH(AI115, Country!$O$31:$O$76, 0), 1) -> 1.04 | B115: =INDEX(Country!$F$31:$G$76, MATCH(AI115, Country!$O$31:$O$76, 0), 2) -> Clean energy installed capacity | C115: =INDEX(Country!$K$31:$K$76, MATCH(AI115, Country!$O$31:$O$76, 0), 1) -> MW | D115: Panama | E115: =Levelisation!F312 -> 106.535 | F115: =Levelisation!G312 -> 63.745 | G115: =Levelisation!H312 -> 74.249 | H115: =Levelisation!I312 -> 84.109 | I115: =Levelisation!J312 -> 200.03 | J115: =Levelisation!K312 -> 274.38 | K115: =Levelisation!L312 -> 279.8 | L115: 15.1551804 | M115: 8.271436839 | N115: 8.919902966 | O115: 8.534075236 | P115: 16.49995412 | Q115: 19.50732704 | R115: 20.28255376 | Z115: =IFERROR(E115/Levelisation!F338, 0) -> 0.07062182472 | AA115: =IFERROR(F115/Levelisation!G338, 0) -> 0.04083660425 | AB115: =IFERROR(G115/Levelisation!H338, 0) -> 0.04355084021 | AC115: =IFERROR(H115/Levelisation!I338, 0) -> 0.04634766063 | AD115: =IFERROR(I115/Levelisation!J338, 0) -> 0.1006896205 | AE115: =IFERROR(J115/Levelisation!K338, 0) -> 0.1225277203 | AF115: =IFERROR(K115/Levelisation!L338, 0) -> 0.1276611277 | AG115: 1.04 > Panama | AH115: 101 | AI115: 4
A116: =INDEX(Country!$F$31:$G$76, MATCH(AI116, Country!$O$31:$O$76, 0), 1) -> 1.04 | B116: =INDEX(Country!$F$31:$G$76, MATCH(AI116, Country!$O$31:$O$76, 0), 2) -> Clean energy installed capacity | C116: =INDEX(Country!$K$31:$K$76, MATCH(AI116, Country!$O$31:$O$76, 0), 1) -> MW | D116: Paraguay | E116: =Levelisation!F313 -> 0 | F116: =Levelisation!G313 -> 0 | G116: =Levelisation!H313 -> 0 | H116: =Levelisation!I313 -> 0 | I116: =Levelisation!J313 -> 0 | J116: =Levelisation!K313 -> 0 | K116: =Levelisation!L313 -> 0 | L116: 0 | M116: 0 | N116: 0 | O116: 0 | P116: 0 | Q116: 0 | R116: 0 | Z116: =IFERROR(E116/Levelisation!F339, 0) -> 0 | AA116: =IFERROR(F116/Levelisation!G339, 0) -> 0 | AB116: =IFERROR(G116/Levelisation!H339, 0) -> 0 | AC116: =IFERROR(H116/Levelisation!I339, 0) -> 0 | AD116: =IFERROR(I116/Levelisation!J339, 0) -> 0 | AE116: =IFERROR(J116/Levelisation!K339, 0) -> 0 | AF116: =IFERROR(K116/Levelisation!L339, 0) -> 0 | AG116: 1.04 > Paraguay | AH116: 102 | AI116: 4
A117: =INDEX(Country!$F$31:$G$76, MATCH(AI117, Country!$O$31:$O$76, 0), 1) -> 1.04 | B117: =INDEX(Country!$F$31:$G$76, MATCH(AI117, Country!$O$31:$O$76, 0), 2) -> Clean energy installed capacity | C117: =INDEX(Country!$K$31:$K$76, MATCH(AI117, Country!$O$31:$O$76, 0), 1) -> MW | D117: Peru | E117: =Levelisation!F314 -> 509.987 | F117: =Levelisation!G314 -> 512.15 | G117: =Levelisation!H314 -> 519.282 | H117: =Levelisation!I314 -> 589.421 | I117: =Levelisation!J314 -> 585.376 | J117: =Levelisation!K314 -> 595.876 | K117: =Levelisation!L314 -> 737.876 | L117: 17.43563075 | M117: 15.60220204 | N117: 15.68873407 | O117: 14.2685741 | P117: 11.65221067 | Q117: 11.54270133 | R117: 13.18511098 | Z117: =IFERROR(E117/Levelisation!F340, 0) -> 0.08124852534 | AA117: =IFERROR(F117/Levelisation!G340, 0) -> 0.07702905341 | AB117: =IFERROR(G117/Levelisation!H340, 0) -> 0.07659921336 | AC117: =IFERROR(H117/Levelisation!I340, 0) -> 0.07749111789 | AD117: =IFERROR(I117/Levelisation!J340, 0) -> 0.07110666254 | AE117: =IFERROR(J117/Levelisation!K340, 0) -> 0.07250100835 | AF117: =IFERROR(K117/Levelisation!L340, 0) -> 0.08298886604 | AG117: 1.04 > Peru | AH117: 103 | AI117: 4
A118: =INDEX(Country!$F$31:$G$76, MATCH(AI118, Country!$O$31:$O$76, 0), 1) -> 1.04 | B118: =INDEX(Country!$F$31:$G$76, MATCH(AI118, Country!$O$31:$O$76, 0), 2) -> Clean energy installed capacity | C118: =INDEX(Country!$K$31:$K$76, MATCH(AI118, Country!$O$31:$O$76, 0), 1) -> MW | D118: Suriname | E118: =Levelisation!F315 -> 0 | F118: =Levelisation!G315 -> 0 | G118: =Levelisation!H315 -> 0 | H118: =Levelisation!I315 -> 0 | I118: =Levelisation!J315 -> 0 | J118: =Levelisation!K315 -> 0 | K118: =Levelisation!L315 -> 0 | L118: 0 | M118: 0 | N118: 0 | O118: 0 | P118: 0 | Q118: 0 | R118: 0 | Z118: =IFERROR(E118/Levelisation!F341, 0) -> 0 | AA118: =IFERROR(F118/Levelisation!G341, 0) -> 0 | AB118: =IFERROR(G118/Levelisation!H341, 0) -> 0 | AC118: =IFERROR(H118/Levelisation!I341, 0) -> 0 | AD118: =IFERROR(I118/Levelisation!J341, 0) -> 0 | AE118: =IFERROR(J118/Levelisation!K341, 0) -> 0 | AF118: =IFERROR(K118/Levelisation!L341, 0) -> 0 | AG118: 1.04 > Suriname | AH118: 104 | AI118: 4
A119: =INDEX(Country!$F$31:$G$76, MATCH(AI119, Country!$O$31:$O$76, 0), 1) -> 1.04 | B119: =INDEX(Country!$F$31:$G$76, MATCH(AI119, Country!$O$31:$O$76, 0), 2) -> Clean energy installed capacity | C119: =INDEX(Country!$K$31:$K$76, MATCH(AI119, Country!$O$31:$O$76, 0), 1) -> MW | D119: Trinidad & Tobago | E119: =Levelisation!F316 -> 0 | F119: =Levelisation!G316 -> 0 | G119: =Levelisation!H316 -> 0 | H119: =Levelisation!I316 -> 0 | I119: =Levelisation!J316 -> 0 | J119: =Levelisation!K316 -> 0 | K119: =Levelisation!L316 -> 0 | L119: 0 | M119: 0 | N119: 0 | O119: 0 | P119: 0 | Q119: 0 | R119: 0 | Z119: =IFERROR(E119/Levelisation!F342, 0) -> 0 | AA119: =IFERROR(F119/Levelisation!G342, 0) -> 0 | AB119: =IFERROR(G119/Levelisation!H342, 0) -> 0 | AC119: =IFERROR(H119/Levelisation!I342, 0) -> 0 | AD119: =IFERROR(I119/Levelisation!J342, 0) -> 0 | AE119: =IFERROR(J119/Levelisation!K342, 0) -> 0 | AF119: =IFERROR(K119/Levelisation!L342, 0) -> 0 | AG119: 1.04 > Trinidad & Tobago | AH119: 105 | AI119: 4
A120: =INDEX(Country!$F$31:$G$76, MATCH(AI120, Country!$O$31:$O$76, 0), 1) -> 1.04 | B120: =INDEX(Country!$F$31:$G$76, MATCH(AI120, Country!$O$31:$O$76, 0), 2) -> Clean energy installed capacity | C120: =INDEX(Country!$K$31:$K$76, MATCH(AI120, Country!$O$31:$O$76, 0), 1) -> MW | D120: Uruguay | E120: =Levelisation!F317 -> 15.56 | F120: =Levelisation!G317 -> 176.56 | G120: =Levelisation!H317 -> 191.01 | H120: =Levelisation!I317 -> 207.01 | I120: =Levelisation!J317 -> 280.16 | J120: =Levelisation!K317 -> 295.30285 | K120: =Levelisation!L317 -> 304.38298 | L120: 1.486159494 | M120: 14.85873541 | N120: 15.49712738 | O120: 14.54179969 | P120: 17.05183148 | Q120: 17.3644938 | R120: 16.87018348 | Z120: =IFERROR(E120/Levelisation!F343, 0) -> 0.006925374197 | AA120: =IFERROR(F120/Levelisation!G343, 0) -> 0.07335851189 | AB120: =IFERROR(G120/Levelisation!H343, 0) -> 0.0756637063 | AC120: =IFERROR(H120/Levelisation!I343, 0) -> 0.07897497721 | AD120: =IFERROR(I120/Levelisation!J343, 0) -> 0.1040574069 | AE120: =IFERROR(J120/Levelisation!K343, 0) -> 0.1090683432 | AF120: =IFERROR(K120/Levelisation!L343, 0) -> 0.1061832091 | AG120: 1.04 > Uruguay | AH120: 106 | AI120: 4
A121: =INDEX(Country!$F$31:$G$76, MATCH(AI121, Country!$O$31:$O$76, 0), 1) -> 1.04 | B121: =INDEX(Country!$F$31:$G$76, MATCH(AI121, Country!$O$31:$O$76, 0), 2) -> Clean energy installed capacity | C121: =INDEX(Country!$K$31:$K$76, MATCH(AI121, Country!$O$31:$O$76, 0), 1) -> MW | D121: Venezuela | E121: =Levelisation!F318 -> 0 | F121: =Levelisation!G318 -> 0 | G121: =Levelisation!H318 -> 0 | H121: =Levelisation!I318 -> 26.33 | I121: =Levelisation!J318 -> 26.33 | J121: =Levelisation!K318 -> 26.33 | K121: =Levelisation!L318 -> 32.63 | L121: 0 | M121: 0 | N121: 0 | O121: 0.2043465201 | P121: 0.1735918607 | Q121: 0.1630700454 | R121: 0.1884911726 | Z121: =IFERROR(E121/Levelisation!F344, 0) -> 0 | AA121: =IFERROR(F121/Levelisation!G344, 0) -> 0 | AB121: =IFERROR(G121/Levelisation!H344, 0) -> 0 | AC121: =IFERROR(H121/Levelisation!I344, 0) -> 0.001109784353 | AD121: =IFERROR(I121/Levelisation!J344, 0) -> 0.001059330132 | AE121: =IFERROR(J121/Levelisation!K344, 0) -> 0.00102426134 | AF121: =IFERROR(K121/Levelisation!L344, 0) -> 0.001186388851 | AG121: 1.04 > Venezuela | AH121: 107 | AI121: 4
A122: =INDEX(Country!$F$31:$G$76, MATCH(AI122, Country!$O$31:$O$76, 0), 1) -> 1.04 | B122: =INDEX(Country!$F$31:$G$76, MATCH(AI122, Country!$O$31:$O$76, 0), 2) -> Clean energy installed capacity | C122: =INDEX(Country!$K$31:$K$76, MATCH(AI122, Country!$O$31:$O$76, 0), 1) -> MW | D122: =D95 -> Benchmark | E122: =IFERROR(MAX(E96:E121), 0) -> 4819.44 | F122: =IFERROR(MAX(F96:F121), 0) -> 5815.8 | G122: =IFERROR(MAX(G96:G121), 0) -> 7588 | H122: =IFERROR(MAX(H96:H121), 0) -> 9167 | I122: =IFERROR(MAX(I96:I121), 0) -> 11244 | J122: =IFERROR(MAX(J96:J121), 0) -> 13862.1 | K122: =IFERROR(MAX(K96:K121), 0) -> 15880.9 | L122: =MAX(Z96:Z121) -> 0.4659913169 | M122: 0.4937062937 | N122: =MAX(AB96:AB121) -> 0.4882434302 | O122: =MAX(AC96:AC121) -> 0.5430894309 | P122: =MAX(AD96:AD121) -> 0.6102418208 | Q122: =MAX(AE96:AE121) -> 0.6281112738 | R122: =MAX(AF96:AF121) -> 0.6294134812 | AG122: 1.04 > Benchmark | AH122: 108 | AI122: 4
A123: =INDEX(Country!$F$31:$G$76, MATCH(AI123, Country!$O$31:$O$76, 0), 1) -> 1.05 | B123: =INDEX(Country!$F$31:$G$76, MATCH(AI123, Country!$O$31:$O$76, 0), 2) -> Growth rate of installed capacity | C123: =INDEX(Country!$K$31:$K$76, MATCH(AI123, Country!$O$31:$O$76, 0), 1) -> % | D123: Argentina | F123: =IF(E96<>0, F96/E96-1, 0) -> -0.02597730186 | G123: =IF(F96<>0, G96/F96-1, 0) -> 0.003077336249 | H123: =IF(G96<>0, H96/G96-1, 0) -> -0.001241156995 | I123: =IF(H96<>0, I96/H96-1, 0) -> 0.00559693419 | J123: 0.06246567799 | K123: 0 | L123: =IFERROR(dbl_BenchmarkMax*E123/ SUMIFS(E$15:E$1256, $D$15:$D$1256, "Benchmark", $B$15:$B$1256,$B123), 0) -> 0 | M123: =IFERROR(dbl_BenchmarkMax*F123/ SUMIFS(F$15:F$1256, $D$15:$D$1256, "Benchmark", $B$15:$B$1256,$B123), 0) -> -0.2510601347 | N123: =IFERROR(dbl_BenchmarkMax*G123/ SUMIFS(G$15:G$1256, $D$15:$D$1256, "Benchmark", $B$15:$B$1256,$B123), 0) -> 1.009884446 | O123: =IFERROR(dbl_BenchmarkMax*H123/ SUMIFS(H$15:H$1256, $D$15:$D$1256, "Benchmark", $B$15:$B$1256,$B123), 0) -> -0.1390883871 | P123: =IFERROR(dbl_BenchmarkMax*I123/ SUMIFS(I$15:I$1256, $D$15:$D$1256, "Benchmark", $B$15:$B$1256,$B123), 0) -> 0.4060977198 | Q123: =IFERROR(dbl_BenchmarkMax*J123/ SUMIFS(J$15:J$1256, $D$15:$D$1256, "Benchmark", $B$15:$B$1256,$B123), 0) -> 13.04615765 | R123: =IFERROR(dbl_BenchmarkMax*K123/ SUMIFS(K$15:K$1256, $D$15:$D$1256, "Benchmark", $B$15:$B$1256,$B123), 0) -> 0 | AG123: 1.05 > Argentina | AH123: 109 | AI123: 5
A124: =INDEX(Country!$F$31:$G$76, MATCH(AI124, Country!$O$31:$O$76, 0), 1) -> 1.05 | B124: =INDEX(Country!$F$31:$G$76, MATCH(AI124, Country!$O$31:$O$76, 0), 2) -> Growth rate of installed capacity | C124: =INDEX(Country!$K$31:$K$76, MATCH(AI124, Country!$O$31:$O$76, 0), 1) -> % | D124: Bahamas | F124: =IF(E97<>0, F97/E97-1, 0) -> 0 | G124: 0 | H124: 0 | I124: 0 | J124: 0 | K124: 0 | L124: 0 | M124: 0 | N124: 0 | O124: 0 | P124: 0 | Q124: 0 | R124: 0 | AG124: 1.05 > Bahamas | AH124: 110 | AI124: 5
A125: =INDEX(Country!$F$31:$G$76, MATCH(AI125, Country!$O$31:$O$76, 0), 1) -> 1.05 | B125: =INDEX(Country!$F$31:$G$76, MATCH(AI125, Country!$O$31:$O$76, 0), 2) -> Growth rate of installed capacity | C125: =INDEX(Country!$K$31:$K$76, MATCH(AI125, Country!$O$31:$O$76, 0), 1) -> % | D125: Barbados | F125: =IF(E98<>0, F98/E98-1, 0) -> 0 | G125: 0 | H125: 0 | I125: 0 | J125: 0 | K125: 0 | L125: 0 | M125: 0 | N125: 0 | O125: 0 | P125: 0 | Q125: 0 | R125: 0 | AG125: 1.05 > Barbados | AH125: 111 | AI125: 5
A126: =INDEX(Country!$F$31:$G$76, MATCH(AI126, Country!$O$31:$O$76, 0), 1) -> 1.05 | B126: =INDEX(Country!$F$31:$G$76, MATCH(AI126, Country!$O$31:$O$76, 0), 2) -> Growth rate of installed capacity | C126: =INDEX(Country!$K$31:$K$76, MATCH(AI126, Country!$O$31:$O$76, 0), 1) -> % | D126: Belize | F126: =IF(E99<>0, F99/E99-1, 0) -> 0.09627329193 | G126: 0 | H126: 0.8923512748 | I126: 0.2844311377 | J126: 0 | K126: 0.005594405594 | L126: 0 | M126: 0.9304424984 | N126: 0 | O126: 100 | P126: 20.63751914 | Q126: 0 | R126: 1.405996803 | AG126: 1.05 > Belize | AH126: 112 | AI126: 5
A127: =INDEX(Country!$F$31:$G$76, MATCH(AI127, Country!$O$31:$O$76, 0), 1) -> 1.05 | B127: =INDEX(Country!$F$31:$G$76, MATCH(AI127, Country!$O$31:$O$76, 0), 2) -> Growth rate of installed capacity | C127: =INDEX(Country!$K$31:$K$76, MATCH(AI127, Country!$O$31:$O$76, 0), 1) -> % | D127: Bolivia | F127: 0 | G127: 0.009102730819 | H127: 0 | I127: 0 | J127: 0.002899484536 | K127: 0 | L127: 0 | M127: 0 | N127: 2.987228411 | O127: 0 | P127: 0 | Q127: 0.6055666662 | R127: 0 | AG127: 1.05 > Bolivia | AH127: 113 | AI127: 5
A128: =INDEX(Country!$F$31:$G$76, MATCH(AI128, Country!$O$31:$O$76, 0), 1) -> 1.05 | B128: =INDEX(Country!$F$31:$G$76, MATCH(AI128, Country!$O$31:$O$76, 0), 2) -> Growth rate of installed capacity | C128: =INDEX(Country!$K$31:$K$76, MATCH(AI128, Country!$O$31:$O$76, 0), 1) -> % | D128: Brazil | F128: =IF(E101<>0, F101/E101-1, 0) -> 0.2067377123 | G128: 0.3047216204 | H128: 0.2080917238 | I128: 0.2265735791 | J128: =IF(I101<>0, J101/I101-1, 0) -> 0.2328441836 | K128: 0.1456344998 | L128: 0 | M128: 1.998036524 | N128: 100 | O128: 23.31948524 | P128: 16.43953828 | Q128: 48.63025625 | R128: 36.60114335 | AG128: 1.05 > Brazil | AH128: 114 | AI128: 5
A129: =INDEX(Country!$F$31:$G$76, MATCH(AI129, Country!$O$31:$O$76, 0), 1) -> 1.05 | B129: =INDEX(Country!$F$31:$G$76, MATCH(AI129, Country!$O$31:$O$76, 0), 2) -> Growth rate of installed capacity | C129: =INDEX(Country!$K$31:$K$76, MATCH(AI129, Country!$O$31:$O$76, 0), 1) -> % | D129: Chile | F129: =IF(E102<>0, F102/E102-1, 0) -> 0.1503073137 | G129: 0.100082536 | H129: 0.1354762267 | I129: 0.1408385644 | J129: 0.09084374903 | K129: 0.1171178856 | L129: 0 | M129: 1.452659504 | N129: 32.84392354 | O129: 15.18193906 | P129: 10.21884802 | Q129: 18.97300902 | R129: 29.43429287 | AG129: 1.05 > Chile | AH129: 115 | AI129: 5
A130: =INDEX(Country!$F$31:$G$76, MATCH(AI130, Country!$O$31:$O$76, 0), 1) -> 1.05 | B130: =INDEX(Country!$F$31:$G$76, MATCH(AI130, Country!$O$31:$O$76, 0), 2) -> Growth rate of installed capacity | C130: =INDEX(Country!$K$31:$K$76, MATCH(AI130, Country!$O$31:$O$76, 0), 1) -> % | D130: Colombia | F130: =IF(E103<>0, F103/E103-1, 0) -> 0.05110095555 | G130: 0.01027667984 | H130: 0.02777777778 | I130: 0.1269508946 | J130: 0.02381354501 | K130: 0.1047509073 | L130: 0 | M130: 0.4938701045 | N130: 3.372481358 | O130: 3.11287478 | P130: 9.211197963 | Q130: 4.973535428 | R130: 26.32620003 | AG130: 1.05 > Colombia | AH130: 116 | AI130: 5
A131: =INDEX(Country!$F$31:$G$76, MATCH(AI131, Country!$O$31:$O$76, 0), 1) -> 1.05 | B131: =INDEX(Country!$F$31:$G$76, MATCH(AI131, Country!$O$31:$O$76, 0), 2) -> Growth rate of installed capacity | C131: =INDEX(Country!$K$31:$K$76, MATCH(AI131, Country!$O$31:$O$76, 0), 1) -> % | D131: Costa Rica | F131: =IF(E104<>0, F104/E104-1, 0) -> 0.04676941935 | G131: 0.04004010837 | H131: 0.05812660416 | I131: 0 | J131: 0.1233337731 | K131: 0.03181033121 | L131: 0 | M131: 0.452007556 | N131: 13.13989743 | O131: 6.513870244 | P131: 0 | Q131: 25.75865499 | R131: 7.994633784 | AG131: 1.05 > Costa Rica | AH131: 117 | AI131: 5
A132: =INDEX(Country!$F$31:$G$76, MATCH(AI132, Country!$O$31:$O$76, 0), 1) -> 1.05 | B132: =INDEX(Country!$F$31:$G$76, MATCH(AI132, Country!$O$31:$O$76, 0), 2) -> Growth rate of installed capacity | C132: =INDEX(Country!$K$31:$K$76, MATCH(AI132, Country!$O$31:$O$76, 0), 1) -> % | D132: Dominican Republic | F132: =IF(E105<>0, F105/E105-1, 0) -> 0 | G132: 0.01772002363 | H132: 0.2951247824 | I132: 0 | J132: 0.1344387184 | K132: 0.02883665811 | L132: 0 | M132: 0 | N132: 5.815151417 | O132: 33.07271371 | P132: 0 | Q132: 28.0779585 | R132: 7.247284526 | AG132: 1.05 > Dominican Republic | AH132: 118 | AI132: 5
A133: =INDEX(Country!$F$31:$G$76, MATCH(AI133, Country!$O$31:$O$76, 0), 1) -> 1.05 | B133: =INDEX(Country!$F$31:$G$76, MATCH(AI133, Country!$O$31:$O$76, 0), 2) -> Growth rate of installed capacity | C133: =INDEX(Country!$K$31:$K$76, MATCH(AI133, Country!$O$31:$O$76, 0), 1) -> % | D133: Ecuador | F133: =IF(E106<>0, F106/E106-1, 0) -> 0.08644014696 | G133: 0.08593299429 | H133: 0.006373117034 | I133: -0.01348109768 | J133: -0.02059524388 | K133: 0.0973708384 | L133: 0 | M133: 0.8354091222 | N133: 28.20049138 | O133: 0.7141937501 | P133: -0.9781503305 | Q133: -4.301382892 | R133: 24.47142688 | AG133: 1.05 > Ecuador | AH133: 119 | AI133: 5
A134: =INDEX(Country!$F$31:$G$76, MATCH(AI134, Country!$O$31:$O$76, 0), 1) -> 1.05 | B134: =INDEX(Country!$F$31:$G$76, MATCH(AI134, Country!$O$31:$O$76, 0), 2) -> Growth rate of installed capacity | C134: =INDEX(Country!$K$31:$K$76, MATCH(AI134, Country!$O$31:$O$76, 0), 1) -> % | D134: El Salvador | F134: =IF(E107<>0, F107/E107-1, 0) -> 0.4092369478 | G134: -0.01139925905 | H134: 0 | I134: -0.02652061113 | J134: 0.03109268582 | K134: 0 | L134: 0 | M134: 3.955109881 | N134: -3.740876356 | O134: 0 | P134: -1.924260558 | Q134: 6.493807385 | R134: 0 | AG134: 1.05 > El Salvador | AH134: 120 | AI134: 5
A135: =INDEX(Country!$F$31:$G$76, MATCH(AI135, Country!$O$31:$O$76, 0), 1) -> 1.05 | B135: =INDEX(Country!$F$31:$G$76, MATCH(AI135, Country!$O$31:$O$76, 0), 2) -> Growth rate of installed capacity | C135: =INDEX(Country!$K$31:$K$76, MATCH(AI135, Country!$O$31:$O$76, 0), 1) -> % | D135: Guatemala | F135: =IF(E108<>0, F108/E108-1, 0) -> 0.1068732884 | G135: 0.0003017319413 | H135: 0.02545095319 | I135: 0.008342954634 | J135: 0.1328787354 | K135: 0.02407660739 | L135: 0 | M135: 1.032887184 | N135: 0.09901888187 | O135: 2.85212269 | P135: 0.605341199 | Q135: 27.75215105 | R135: 6.050979399 | AG135: 1.05 > Guatemala | AH135: 121 | AI135: 5
A136: =INDEX(Country!$F$31:$G$76, MATCH(AI136, Country!$O$31:$O$76, 0), 1) -> 1.05 | B136: =INDEX(Country!$F$31:$G$76, MATCH(AI136, Country!$O$31:$O$76, 0), 2) -> Growth rate of installed capacity | C136: =INDEX(Country!$K$31:$K$76, MATCH(AI136, Country!$O$31:$O$76, 0), 1) -> % | D136: Guyana | F136: =IF(E109<>0, F109/E109-1, 0) -> 0 | G136: 0 | H136: 0 | I136: 0 | J136: 0 | K136: 0 | L136: 0 | M136: 0 | N136: 0 | O136: 0 | P136: 0 | Q136: 0 | R136: 0 | AG136: 1.05 > Guyana | AH136: 122 | AI136: 5
A137: =INDEX(Country!$F$31:$G$76, MATCH(AI137, Country!$O$31:$O$76, 0), 1) -> 1.05 | B137: =INDEX(Country!$F$31:$G$76, MATCH(AI137, Country!$O$31:$O$76, 0), 2) -> Growth rate of installed capacity | C137: =INDEX(Country!$K$31:$K$76, MATCH(AI137, Country!$O$31:$O$76, 0), 1) -> % | D137: Haiti | F137: =IF(E110<>0, F110/E110-1, 0) -> 0 | G137: 0 | H137: 0 | I137: 0 | J137: 0 | K137: 0.1458333333 | L137: 0 | M137: 0 | N137: 0 | O137: 0 | P137: 0 | Q137: 0 | R137: 36.65111457 | AG137: 1.05 > Haiti | AH137: 123 | AI137: 5
A138: =INDEX(Country!$F$31:$G$76, MATCH(AI138, Country!$O$31:$O$76, 0), 1) -> 1.05 | B138: =INDEX(Country!$F$31:$G$76, MATCH(AI138, Country!$O$31:$O$76, 0), 2) -> Growth rate of installed capacity | C138: =INDEX(Country!$K$31:$K$76, MATCH(AI138, Country!$O$31:$O$76, 0), 1) -> % | D138: Honduras | F138: =IF(E111<>0, F111/E111-1, 0) -> 0.1740161214 | G138: 0.03715670436 | H138: 0.02531152648 | I138: -0.001898974554 | J138: 0.478805175 | K138: 0.02215474873 | L138: 0 | M138: 1.681795558 | N138: 12.19365541 | O138: 2.836498047 | P138: -0.1377842244 | Q138: 100 | R138: 5.567974176 | AG138: 1.05 > Honduras | AH138: 124 | AI138: 5
A139: =INDEX(Country!$F$31:$G$76, MATCH(AI139, Country!$O$31:$O$76, 0), 1) -> 1.05 | B139: =INDEX(Country!$F$31:$G$76, MATCH(AI139, Country!$O$31:$O$76, 0), 2) -> Growth rate of installed capacity | C139: =INDEX(Country!$K$31:$K$76, MATCH(AI139, Country!$O$31:$O$76, 0), 1) -> % | D139: Jamaica | F139: =IF(E112<>0, F112/E112-1, 0) -> 0.02594339623 | G139: =IF(F112<>0, G112/F112-1, 0) -> 0 | H139: =IF(G112<>0, H112/G112-1, 0) -> 0 | I139: =IF(H112<>0, I112/H112-1, 0) -> 0.06896551724 | J139: =IF(I112<>0, J112/I112-1, 0) -> 0.3870967742 | K139: =IF(J112<>0, K112/J112-1, 0) -> 0 | L139: 0 | M139: 0.2507324505 | N139: 0 | O139: 0 | P139: 5.003942935 | Q139: 80.84640567 | R139: 0 | AG139: 1.05 > Jamaica | AH139: 125 | AI139: 5
A140: =INDEX(Country!$F$31:$G$76, MATCH(AI140, Country!$O$31:$O$76, 0), 1) -> 1.05 | B140: =INDEX(Country!$F$31:$G$76, MATCH(AI140, Country!$O$31:$O$76, 0), 2) -> Growth rate of installed capacity | C140: =INDEX(Country!$K$31:$K$76, MATCH(AI140, Country!$O$31:$O$76, 0), 1) -> % | D140: Mexico | F140: =IF(E113<>0, F113/E113-1, 0) -> 0.07837853778 | G140: 0.007864531064 | H140: 0.3126707412 | I140: 0.1112897854 | J140: =IF(I113<>0, J113/I113-1, 0) -> 0.02642169829 | K140: 0.2799304669 | L140: 0 | M140: 0.7574969242 | N140: 2.580890405 | O140: 35.03897512 | P140: 8.074872164 | Q140: 5.518256624 | R140: 70.35266478 | AG140: 1.05 > Mexico | AH140: 126 | AI140: 5
A141: =INDEX(Country!$F$31:$G$76, MATCH(AI141, Country!$O$31:$O$76, 0), 1) -> 1.05 | B141: =INDEX(Country!$F$31:$G$76, MATCH(AI141, Country!$O$31:$O$76, 0), 2) -> Growth rate of installed capacity | C141: =INDEX(Country!$K$31:$K$76, MATCH(AI141, Country!$O$31:$O$76, 0), 1) -> % | D141: Nicaragua | F141: =IF(E114<>0, F114/E114-1, 0) -> 0.002581589797 | G141: 0 | H141: 0.1537279016 | I141: 0.07661558961 | J141: 0 | K141: =IF(J114<>0, K114/J114-1, 0) -> 0.3978960396 | L141: 0 | M141: 0.02495002313 | N141: 0 | O141: 17.22728548 | P141: 5.559010556 | Q141: =IFERROR(dbl_BenchmarkMax*J141/ SUMIFS(J$15:J$1256, $D$15:$D$1256, "Benchmark", $B$15:$B$1256,$B141), 0) -> 0 | R141: 100 | AG141: 1.05 > Nicaragua | AH141: 127 | AI141: 5
A142: =INDEX(Country!$F$31:$G$76, MATCH(AI142, Country!$O$31:$O$76, 0), 1) -> 1.05 | B142: =INDEX(Country!$F$31:$G$76, MATCH(AI142, Country!$O$31:$O$76, 0), 2) -> Growth rate of installed capacity | C142: =INDEX(Country!$K$31:$K$76, MATCH(AI142, Country!$O$31:$O$76, 0), 1) -> % | D142: Panama | F142: =IF(E115<>0, F115/E115-1, 0) -> -0.4016520392 | G142: 0.1647815515 | H142: 0.1327964013 | I142: 1.378223496 | J142: 0.3716942459 | K142: 0.01975362636 | L142: 0 | M142: -3.881804802 | N142: 54.07609453 | O142: 14.88162846 | P142: 100 | Q142: 77.62953812 | R142: 4.96451947 | AG142: 1.05 > Panama | AH142: 128 | AI142: 5
A143: =INDEX(Country!$F$31:$G$76, MATCH(AI143, Country!$O$31:$O$76, 0), 1) -> 1.05 | B143: =INDEX(Country!$F$31:$G$76, MATCH(AI143, Country!$O$31:$O$76, 0), 2) -> Growth rate of installed capacity | C143: =INDEX(Country!$K$31:$K$76, MATCH(AI143, Country!$O$31:$O$76, 0), 1) -> % | D143: Paraguay | F143: =IF(E116<>0, F116/E116-1, 0) -> 0 | G143: 0 | H143: 0 | I143: 0 | J143: 0 | K143: 0 | L143: 0 | M143: 0 | N143: 0 | O143: 0 | P143: 0 | Q143: 0 | R143: 0 | AG143: =A143&" > " &D143 -> 1.05 > Paraguay | AH143: 129 | AI143: 5
A144: =INDEX(Country!$F$31:$G$76, MATCH(AI144, Country!$O$31:$O$76, 0), 1) -> 1.05 | B144: =INDEX(Country!$F$31:$G$76, MATCH(AI144, Country!$O$31:$O$76, 0), 2) -> Growth rate of installed capacity | C144: =INDEX(Country!$K$31:$K$76, MATCH(AI144, Country!$O$31:$O$76, 0), 1) -> % | D144: Peru | F144: =IF(E117<>0, F117/E117-1, 0) -> 0.004241284582 | G144: 0.01392560773 | H144: 0.1350691917 | I144: -0.006862666922 | J144: 0.01793718909 | K144: 0.2383046137 | L144: 0 | M144: 0.04099030316 | N144: 4.569944106 | O144: 15.13632529 | P144: -0.4979357081 | Q144: 3.746239603 | R144: 59.89117508 | AG144: 1.05 > Peru | AH144: 130 | AI144: 5
A145: =INDEX(Country!$F$31:$G$76, MATCH(AI145, Country!$O$31:$O$76, 0), 1) -> 1.05 | B145: =INDEX(Country!$F$31:$G$76, MATCH(AI145, Country!$O$31:$O$76, 0), 2) -> Growth rate of installed capacity | C145: =INDEX(Country!$K$31:$K$76, MATCH(AI145, Country!$O$31:$O$76, 0), 1) -> % | D145: Suriname | F145: =IF(E118<>0, F118/E118-1, 0) -> 0 | G145: 0 | H145: 0 | I145: 0 | J145: 0 | K145: 0 | L145: 0 | M145: 0 | N145: 0 | O145: 0 | P145: 0 | Q145: 0 | R145: 0 | AG145: 1.05 > Suriname | AH145: =AH144+1 -> 131 | AI145: =ROUNDUP(AH145/COUNTA($D$15:$D$41),0) -> 5
A146: =INDEX(Country!$F$31:$G$76, MATCH(AI146, Country!$O$31:$O$76, 0), 1) -> 1.05 | B146: =INDEX(Country!$F$31:$G$76, MATCH(AI146, Country!$O$31:$O$76, 0), 2) -> Growth rate of installed capacity | C146: =INDEX(Country!$K$31:$K$76, MATCH(AI146, Country!$O$31:$O$76, 0), 1) -> % | D146: Trinidad & Tobago | F146: =IF(E119<>0, F119/E119-1, 0) -> 0 | G146: 0 | H146: 0 | I146: 0 | J146: 0 | K146: 0 | L146: 0 | M146: 0 | N146: 0 | O146: 0 | P146: 0 | Q146: 0 | R146: 0 | AG146: 1.05 > Trinidad & Tobago | AH146: 132 | AI146: 5
A147: =INDEX(Country!$F$31:$G$76, MATCH(AI147, Country!$O$31:$O$76, 0), 1) -> 1.05 | B147: =INDEX(Country!$F$31:$G$76, MATCH(AI147, Country!$O$31:$O$76, 0), 2) -> Growth rate of installed capacity | C147: =INDEX(Country!$K$31:$K$76, MATCH(AI147, Country!$O$31:$O$76, 0), 1) -> % | D147: Uruguay | F147: =IF(E120<>0, F120/E120-1, 0) -> 10.3470437 | G147: 0.08184186679 | H147: 0.08376524789 | I147: 0.3533645718 | J147: 0.05405072102 | K147: 0.03074853494 | L147: 0 | M147: 100 | N147: 26.8579127 | O147: 9.387026192 | P147: 25.63913421 | Q147: 11.28866684 | R147: 7.727781098 | AG147: 1.05 > Uruguay | AH147: 133 | AI147: 5
A148: =INDEX(Country!$F$31:$G$76, MATCH(AI148, Country!$O$31:$O$76, 0), 1) -> 1.05 | B148: =INDEX(Country!$F$31:$G$76, MATCH(AI148, Country!$O$31:$O$76, 0), 2) -> Growth rate of installed capacity | C148: =INDEX(Country!$K$31:$K$76, MATCH(AI148, Country!$O$31:$O$76, 0), 1) -> % | D148: Venezuela | F148: =IF(E121<>0, F121/E121-1, 0) -> 0 | G148: 0 | H148: 0 | I148: 0 | J148: 0 | K148: 0.2392707938 | L148: 0 | M148: 0 | N148: 0 | O148: 0 | P148: 0 | Q148: 0 | R148: 60.13399731 | AG148: 1.05 > Venezuela | AH148: 134 | AI148: 5
A149: =INDEX(Country!$F$31:$G$76, MATCH(AI149, Country!$O$31:$O$76, 0), 1) -> 1.05 | B149: =INDEX(Country!$F$31:$G$76, MATCH(AI149, Country!$O$31:$O$76, 0), 2) -> Growth rate of installed capacity | C149: =INDEX(Country!$K$31:$K$76, MATCH(AI149, Country!$O$31:$O$76, 0), 1) -> % | D149: Benchmark | E149: =IFERROR(MAX(E123:E148), 0) -> 0 | F149: =IFERROR(MAX(F123:F148), 0) -> 10.3470437 | G149: =IFERROR(MAX(G123:G148), 0) -> 0.3047216204 | H149: =IFERROR(MAX(H123:H148), 0) -> 0.8923512748 | I149: =IFERROR(MAX(I123:I148), 0) -> 1.378223496 | J149: =IFERROR(MAX(J123:J148), 0) -> 0.478805175 | K149: 0.3978960396 | L149: 0 | M149: 100 | N149: 100 | O149: 100 | P149: 100 | Q149: 100 | R149: 100 | Z149: Levelised by Generation for All Energy (GWh) | AG149: 1.05 > Benchmark | AH149: 135 | AI149: 5
A150: =INDEX(Country!$F$31:$G$76, MATCH(AI150, Country!$O$31:$O$76, 0), 1) -> 1.06 | B150: =INDEX(Country!$F$31:$G$76, MATCH(AI150, Country!$O$31:$O$76, 0), 2) -> Clean energy electricity generation | C150: =INDEX(Country!$K$31:$K$76, MATCH(AI150, Country!$O$31:$O$76, 0), 1) -> GWh | D150: Argentina | E150: =Levelisation!F632 -> 2123.799 | F150: =Levelisation!G632 -> 2086.934 | G150: =Levelisation!H632 -> 1971.28509 | H150: =Levelisation!I632 -> 1738.636008 | I150: =Levelisation!J632 -> 1581.384624 | J150: =Levelisation!K632 -> 1386.430473 | K150: =Levelisation!L632 -> 1386.430473 | L150: =IFERROR(dbl_BenchmarkMax*Z150/L$176, 0) -> 2.189941613 | M150: =IFERROR(dbl_BenchmarkMax*AA150/M$176, 0) -> 2.215509181 | N150: =IFERROR(dbl_BenchmarkMax*AB150/N$176, 0) -> 1.701710542 | O150: =IFERROR(dbl_BenchmarkMax*AC150/O$176, 0) -> 1.92912653 | P150: =IFERROR(dbl_BenchmarkMax*AD150/P$176, 0) -> 1.303806795 | Q150: =IFERROR(dbl_BenchmarkMax*AE150/Q$176, 0) -> 1.094189095 | R150: =IFERROR(dbl_BenchmarkMax*AF150/R$176, 0) -> 1.137138414 | Z150: =IFERROR(E150/Levelisation!F658, 0) -> 0.0187244967 | AA150: =IFERROR(F150/Levelisation!G658, 0) -> 0.01841090888 | AB150: =IFERROR(G150/Levelisation!H658, 0) -> 0.01617063362 | AC150: =IFERROR(H150/Levelisation!I658, 0) -> 0.01421313431 | AD150: =IFERROR(I150/Levelisation!J658, 0) -> 0.01255148254 | AE150: =IFERROR(J150/Levelisation!K658, 0) -> 0.01070724158 | AF150: =IFERROR(K150/Levelisation!L658, 0) -> 0.01070724158 | AG150: 1.06 > Argentina | AH150: 136 | AI150: 6
A151: =INDEX(Country!$F$31:$G$76, MATCH(AI151, Country!$O$31:$O$76, 0), 1) -> 1.06 | B151: =INDEX(Country!$F$31:$G$76, MATCH(AI151, Country!$O$31:$O$76, 0), 2) -> Clean energy electricity generation | C151: =INDEX(Country!$K$31:$K$76, MATCH(AI151, Country!$O$31:$O$76, 0), 1) -> GWh | D151: Bahamas | E151: =Levelisation!F633 -> 0 | F151: =Levelisation!G633 -> 0 | G151: =Levelisation!H633 -> 0 | H151: =Levelisation!I633 -> 0 | I151: =Levelisation!J633 -> 0 | J151: =Levelisation!K633 -> 0 | K151: =Levelisation!L633 -> 0 | L151: 0 | M151: 0 | N151: 0 | O151: 0 | P151: 0 | Q151: 0 | R151: 0 | Z151: =IFERROR(E151/Levelisation!F659, 0) -> 0 | AA151: =IFERROR(F151/Levelisation!G659, 0) -> 0 | AB151: =IFERROR(G151/Levelisation!H659, 0) -> 0 | AC151: =IFERROR(H151/Levelisation!I659, 0) -> 0 | AD151: =IFERROR(I151/Levelisation!J659, 0) -> 0 | AE151: =IFERROR(J151/Levelisation!K659, 0) -> 0 | AF151: =IFERROR(K151/Levelisation!L659, 0) -> 0 | AG151: 1.06 > Bahamas | AH151: 137 | AI151: 6
A152: =INDEX(Country!$F$31:$G$76, MATCH(AI152, Country!$O$31:$O$76, 0), 1) -> 1.06 | B152: =INDEX(Country!$F$31:$G$76, MATCH(AI152, Country!$O$31:$O$76, 0), 2) -> Clean energy electricity generation | C152: =INDEX(Country!$K$31:$K$76, MATCH(AI152, Country!$O$31:$O$76, 0), 1) -> GWh | D152: Barbados | E152: =Levelisation!F634 -> 0 | F152: =Levelisation!G634 -> 0 | G152: =Levelisation!H634 -> 0 | H152: =Levelisation!I634 -> 0 | I152: =Levelisation!J634 -> 0 | J152: =Levelisation!K634 -> 0 | K152: =Levelisation!L634 -> 0 | L152: 0 | M152: 0 | N152: 0 | O152: 0 | P152: 0 | Q152: 0 | R152: 0 | Z152: =IFERROR(E152/Levelisation!F660, 0) -> 0 | AA152: =IFERROR(F152/Levelisation!G660, 0) -> 0 | AB152: =IFERROR(G152/Levelisation!H660, 0) -> 0 | AC152: =IFERROR(H152/Levelisation!I660, 0) -> 0 | AD152: =IFERROR(I152/Levelisation!J660, 0) -> 0 | AE152: =IFERROR(J152/Levelisation!K660, 0) -> 0 | AF152: =IFERROR(K152/Levelisation!L660, 0) -> 0 | AG152: 1.06 > Barbados | AH152: 138 | AI152: 6
A153: =INDEX(Country!$F$31:$G$76, MATCH(AI153, Country!$O$31:$O$76, 0), 1) -> 1.06 | B153: =INDEX(Country!$F$31:$G$76, MATCH(AI153, Country!$O$31:$O$76, 0), 2) -> Clean energy electricity generation | C153: =INDEX(Country!$K$31:$K$76, MATCH(AI153, Country!$O$31:$O$76, 0), 1) -> GWh | D153: Belize | E153: =Levelisation!F635 -> 177.73267 | F153: =Levelisation!G635 -> 177.403 | G153: =Levelisation!H635 -> 204.487277 | H153: =Levelisation!I635 -> 189.039432 | I153: =Levelisation!J635 -> 311.32498 | J153: =Levelisation!K635 -> 315.319388 | K153: =Levelisation!L635 -> 273.3527551 | L153: 100 | M153: 100 | N153: 100 | O153: 100 | P153: 100 | Q153: 100 | R153: =IFERROR(dbl_BenchmarkMax*AF153/R$176, 0) -> 100 | Z153: =IFERROR(E153/Levelisation!F661, 0) -> 0.8550226449 | AA153: =IFERROR(F153/Levelisation!G661, 0) -> 0.8310012449 | AB153: =IFERROR(G153/Levelisation!H661, 0) -> 0.9502575922 | AC153: =IFERROR(H153/Levelisation!I661, 0) -> 0.736765271 | AD153: =IFERROR(I153/Levelisation!J661, 0) -> 0.9626796381 | AE153: =IFERROR(J153/Levelisation!K661, 0) -> 0.9785549531 | AF153: =IFERROR(K153/Levelisation!L661, 0) -> 0.9415952755 | AG153: 1.06 > Belize | AH153: 139 | AI153: 6
A154: =INDEX(Country!$F$31:$G$76, MATCH(AI154, Country!$O$31:$O$76, 0), 1) -> 1.06 | B154: =INDEX(Country!$F$31:$G$76, MATCH(AI154, Country!$O$31:$O$76, 0), 2) -> Clean energy electricity generation | C154: =INDEX(Country!$K$31:$K$76, MATCH(AI154, Country!$O$31:$O$76, 0), 1) -> GWh | D154: Bolivia | E154: =Levelisation!F636 -> 1218.969 | F154: =Levelisation!G636 -> 1333.766 | G154: =Levelisation!H636 -> 1289.229 | H154: =Levelisation!I636 -> 1339.6355 | I154: =Levelisation!J636 -> 1368.724 | J154: =Levelisation!K636 -> 1409.3 | K154: =Levelisation!L636 -> 1409.3 | L154: 27.99083066 | M154: 28.81217163 | N154: 21.77084125 | O154: 27.82819373 | P154: 20.39952295 | Q154: 19.94853981 | R154: 20.7315637 | Z154: =IFERROR(E154/Levelisation!F662, 0) -> 0.2393279406 | AA154: =IFERROR(F154/Levelisation!G662, 0) -> 0.2394295049 | AB154: =IFERROR(G154/Levelisation!H662, 0) -> 0.2068790719 | AC154: =IFERROR(H154/Levelisation!I662, 0) -> 0.2050284669 | AD154: =IFERROR(I154/Levelisation!J662, 0) -> 0.1963820537 | AE154: =IFERROR(J154/Levelisation!K662, 0) -> 0.1952074243 | AF154: =IFERROR(K154/Levelisation!L662, 0) -> 0.1952074243 | AG154: 1.06 > Bolivia | AH154: 140 | AI154: 6
A155: =INDEX(Country!$F$31:$G$76, MATCH(AI155, Country!$O$31:$O$76, 0), 1) -> 1.06 | B155: =INDEX(Country!$F$31:$G$76, MATCH(AI155, Country!$O$31:$O$76, 0), 2) -> Clean energy electricity generation | C155: =INDEX(Country!$K$31:$K$76, MATCH(AI155, Country!$O$31:$O$76, 0), 1) -> GWh | D155: Brazil | E155: =Levelisation!F637 -> 26251.74 | F155: =Levelisation!G637 -> 30696.16 | G155: =Levelisation!H637 -> 36102.72 | H155: =Levelisation!I637 -> 39584.88 | I155: =Levelisation!J637 -> 52952.94 | J155: =Levelisation!K637 -> 57399.82 | K155: =Levelisation!L637 -> 57399.82 | L155: 7.168237518 | M155: 8.119870476 | N155: 7.973075923 | O155: 11.22601934 | P155: 10.34797166 | Q155: 10.67997931 | R155: 11.0991919 | Z155: =IFERROR(E155/Levelisation!F663, 0) -> 0.06129005401 | AA155: =IFERROR(F155/Levelisation!G663, 0) -> 0.06747622473 | AB155: =IFERROR(G155/Levelisation!H663, 0) -> 0.07576475929 | AC155: =IFERROR(H155/Levelisation!I663, 0) -> 0.08270941184 | AD155: =IFERROR(I155/Levelisation!J663, 0) -> 0.09961781616 | AE155: =IFERROR(J155/Levelisation!K663, 0) -> 0.1045094665 | AF155: =IFERROR(K155/Levelisation!L663, 0) -> 0.1045094665 | AG155: 1.06 > Brazil | AH155: 141 | AI155: 6
A156: =INDEX(Country!$F$31:$G$76, MATCH(AI156, Country!$O$31:$O$76, 0), 1) -> 1.06 | B156: =INDEX(Country!$F$31:$G$76, MATCH(AI156, Country!$O$31:$O$76, 0), 2) -> Clean energy electricity generation | C156: =INDEX(Country!$K$31:$K$76, MATCH(AI156, Country!$O$31:$O$76, 0), 1) -> GWh | D156: Chile | E156: =Levelisation!F638 -> 3355.27836 | F156: =Levelisation!G638 -> 3287.88082 | G156: =Levelisation!H638 -> 4030.904489 | H156: =Levelisation!I638 -> 4282.877909 | I156: =Levelisation!J638 -> 4203.763639 | J156: =Levelisation!K638 -> 4242.913017 | K156: =Levelisation!L638 -> 5428.676812 | L156: 7.303170927 | M156: 7.043776019 | N156: 7.480873972 | O156: 10.19038941 | P156: 7.442634794 | Q156: 6.951954411 | R156: 8.735512462 | Z156: =IFERROR(E156/Levelisation!F664, 0) -> 0.06244376522 | AA156: =IFERROR(F156/Levelisation!G664, 0) -> 0.0585338664 | AB156: =IFERROR(G156/Levelisation!H664, 0) -> 0.07108757288 | AC156: =IFERROR(H156/Levelisation!I664, 0) -> 0.07507925015 | AD156: =IFERROR(I156/Levelisation!J664, 0) -> 0.0716487297 | AE156: =IFERROR(J156/Levelisation!K664, 0) -> 0.06802869422 | AF156: =IFERROR(K156/Levelisation!L664, 0) -> 0.08225317264 | AG156: 1.06 > Chile | AH156: 142 | AI156: 6
A157: =INDEX(Country!$F$31:$G$76, MATCH(AI157, Country!$O$31:$O$76, 0), 1) -> 1.06 | B157: =INDEX(Country!$F$31:$G$76, MATCH(AI157, Country!$O$31:$O$76, 0), 2) -> Clean energy electricity generation | C157: =INDEX(Country!$K$31:$K$76, MATCH(AI157, Country!$O$31:$O$76, 0), 1) -> GWh | D157: Colombia | E157: =Levelisation!F639 -> 2077.73 | F157: =Levelisation!G639 -> 2150.878 | G157: =Levelisation!H639 -> 2151.4092 | H157: =Levelisation!I639 -> 2221.9152 | I157: =Levelisation!J639 -> 2543.3992 | J157: =Levelisation!K639 -> 3206.27 | K157: =Levelisation!L639 -> 3059.85 | L157: 4.642729463 | M157: 4.826707991 | N157: 4.162166268 | O157: 5.38860408 | P157: 4.644212519 | Q157: 5.589424028 | R157: 5.405187381 | Z157: =IFERROR(E157/Levelisation!F665, 0) -> 0.03969638825 | AA157: =IFERROR(F157/Levelisation!G665, 0) -> 0.0401100035 | AB157: =IFERROR(G157/Levelisation!H665, 0) -> 0.03955130096 | AC157: =IFERROR(H157/Levelisation!I665, 0) -> 0.03970136345 | AD157: =IFERROR(I157/Levelisation!J665, 0) -> 0.04470888827 | AE157: =IFERROR(J157/Levelisation!K665, 0) -> 0.05469558567 | AF157: =IFERROR(K157/Levelisation!L665, 0) -> 0.05089498901 | AG157: 1.06 > Colombia | AH157: 143 | AI157: 6
A158: =INDEX(Country!$F$31:$G$76, MATCH(AI158, Country!$O$31:$O$76, 0), 1) -> 1.06 | B158: =INDEX(Country!$F$31:$G$76, MATCH(AI158, Country!$O$31:$O$76, 0), 2) -> Clean energy electricity generation | C158: =INDEX(Country!$K$31:$K$76, MATCH(AI158, Country!$O$31:$O$76, 0), 1) -> GWh | D158: Costa Rica | E158: =Levelisation!F640 -> 3545.971857 | F158: =Levelisation!G640 -> 3815.015386 | G158: =Levelisation!H640 -> 3923.274548 | H158: =Levelisation!I640 -> 4006.731853 | I158: =Levelisation!J640 -> 4191.20314 | J158: =Levelisation!K640 -> 4185.586335 | K158: =Levelisation!L640 -> 4461.150429 | L158: 48.15135825 | M158: 51.47430635 | N158: 44.18952521 | O158: 59.3161698 | P158: 45.88144359 | Q158: 43.87993462 | R158: 47.17455419 | Z158: =IFERROR(E158/Levelisation!F666, 0) -> 0.4117050168 | AA158: =IFERROR(F158/Levelisation!G666, 0) -> 0.4277521266 | AB158: =IFERROR(G158/Levelisation!H666, 0) -> 0.4199143182 | AC158: =IFERROR(H158/Levelisation!I666, 0) -> 0.4370209391 | AD158: =IFERROR(I158/Levelisation!J666, 0) -> 0.4416913151 | AE158: =IFERROR(J158/Levelisation!K666, 0) -> 0.4293892736 | AF158: =IFERROR(K158/Levelisation!L666, 0) -> 0.4441933735 | AG158: 1.06 > Costa Rica | AH158: 144 | AI158: 6
A159: =INDEX(Country!$F$31:$G$76, MATCH(AI159, Country!$O$31:$O$76, 0), 1) -> 1.06 | B159: =INDEX(Country!$F$31:$G$76, MATCH(AI159, Country!$O$31:$O$76, 0), 2) -> Clean energy electricity generation | C159: =INDEX(Country!$K$31:$K$76, MATCH(AI159, Country!$O$31:$O$76, 0), 1) -> GWh | D159: Dominican Republic | E159: =Levelisation!F641 -> 673.8573359 | F159: =Levelisation!G641 -> 673.8573359 | G159: =Levelisation!H641 -> 744.381 | H159: =Levelisation!I641 -> 788.888 | I159: =Levelisation!J641 -> 911.62866 | J159: =Levelisation!K641 -> 831.8299527 | K159: =Levelisation!L641 -> 934.8892336 | L159: 7.39390734 | M159: 7.281289901 | N159: 6.810766225 | O159: 9.219951816 | P159: 7.666617255 | Q159: 6.815811015 | R159: 7.432845661 | Z159: =IFERROR(E159/Levelisation!F667, 0) -> 0.0632195821 | AA159: =IFERROR(F159/Levelisation!G667, 0) -> 0.06050760972 | AB159: =IFERROR(G159/Levelisation!H667, 0) -> 0.06471982313 | AC159: =IFERROR(H159/Levelisation!I667, 0) -> 0.06792940298 | AD159: =IFERROR(I159/Levelisation!J667, 0) -> 0.07380496324 | AE159: =IFERROR(J159/Levelisation!K667, 0) -> 0.06669645628 | AF159: =IFERROR(K159/Levelisation!L667, 0) -> 0.06998732358 | AG159: 1.06 > Dominican Republic | AH159: 145 | AI159: 6
A160: =INDEX(Country!$F$31:$G$76, MATCH(AI160, Country!$O$31:$O$76, 0), 1) -> 1.06 | B160: =INDEX(Country!$F$31:$G$76, MATCH(AI160, Country!$O$31:$O$76, 0), 2) -> Clean energy electricity generation | C160: =INDEX(Country!$K$31:$K$76, MATCH(AI160, Country!$O$31:$O$76, 0), 1) -> GWh | D160: Ecuador | E160: =Levelisation!F642 -> 1306.67461 | F160: =Levelisation!G642 -> 1689.67093 | G160: =Levelisation!H642 -> 1907.88619 | H160: =Levelisation!I642 -> 1941.57023 | I160: =Levelisation!J642 -> 1640.92164 | J160: =Levelisation!K642 -> 2131.56917 | K160: =Levelisation!L642 -> 2042.3042 | L160: 10.31611511 | M160: 11.72829891 | N160: 10.7894441 | O160: 14.1916933 | P160: 8.736793765 | Q160: 10.60296436 | R160: 9.525666266 | Z160: =IFERROR(E160/Levelisation!F668, 0) -> 0.08820512025 | AA160: =IFERROR(F160/Levelisation!G668, 0) -> 0.09746230993 | AB160: =IFERROR(G160/Levelisation!H668, 0) -> 0.1025275117 | AC160: =IFERROR(H160/Levelisation!I668, 0) -> 0.1045594676 | AD160: =IFERROR(I160/Levelisation!J668, 0) -> 0.0841073346 | AE160: =IFERROR(J160/Levelisation!K668, 0) -> 0.1037558329 | AF160: =IFERROR(K160/Levelisation!L668, 0) -> 0.08969322352 | AG160: 1.06 > Ecuador | AH160: 146 | AI160: 6
A161: =INDEX(Country!$F$31:$G$76, MATCH(AI161, Country!$O$31:$O$76, 0), 1) -> 1.06 | B161: =INDEX(Country!$F$31:$G$76, MATCH(AI161, Country!$O$31:$O$76, 0), 2) -> Clean energy electricity generation | C161: =INDEX(Country!$K$31:$K$76, MATCH(AI161, Country!$O$31:$O$76, 0), 1) -> GWh | D161: El Salvador | E161: =Levelisation!F643 -> 1456.9544 | F161: =Levelisation!G643 -> 1737.7424 | G161: =Levelisation!H643 -> 1921.5305 | H161: =Levelisation!I643 -> 1873.9254 | I161: =Levelisation!J643 -> 1954.0146 | J161: =Levelisation!K643 -> 1775.7507 | K161: =Levelisation!L643 -> 1775.7507 | L161: 29.94135209 | M161: 34.78655485 | N161: 33.21590306 | O161: 43.44231761 | P161: 33.60234212 | Q161: 31.16660259 | R161: 32.38996003 | Z161: =IFERROR(E161/Levelisation!F669, 0) -> 0.2560053405 | AA161: =IFERROR(F161/Levelisation!G669, 0) -> 0.2890767039 | AB161: =IFERROR(G161/Levelisation!H669, 0) -> 0.3156366407 | AC161: =IFERROR(H161/Levelisation!I669, 0) -> 0.320067909 | AD161: =IFERROR(I161/Levelisation!J669, 0) -> 0.3234829055 | AE161: =IFERROR(J161/Levelisation!K669, 0) -> 0.3049823334 | AF161: =IFERROR(K161/Levelisation!L669, 0) -> 0.3049823334 | AG161: 1.06 > El Salvador | AH161: 147 | AI161: 6
A162: =INDEX(Country!$F$31:$G$76, MATCH(AI162, Country!$O$31:$O$76, 0), 1) -> 1.06 | B162: =INDEX(Country!$F$31:$G$76, MATCH(AI162, Country!$O$31:$O$76, 0), 2) -> Clean energy electricity generation | C162: =INDEX(Country!$K$31:$K$76, MATCH(AI162, Country!$O$31:$O$76, 0), 1) -> GWh | D162: Guatemala | E162: =Levelisation!F644 -> 1389.8346 | F162: =Levelisation!G644 -> 1502.544414 | G162: =Levelisation!H644 -> 1716.860622 | H162: =Levelisation!I644 -> 1655.906199 | I162: =Levelisation!J644 -> 1680.410601 | J162: =Levelisation!K644 -> 1707.497703 | K162: =Levelisation!L644 -> 1955.0442 | L162: 21.85800374 | M162: 22.81169523 | N162: 22.8239634 | O162: 28.49111342 | P162: 22.34900687 | Q162: 21.41904369 | R162: 23.85586269 | Z162: =IFERROR(E162/Levelisation!F670, 0) -> 0.1868908817 | AA162: =IFERROR(F162/Levelisation!G670, 0) -> 0.1895654713 | AB162: =IFERROR(G162/Levelisation!H670, 0) -> 0.216886445 | AC162: =IFERROR(H162/Levelisation!I670, 0) -> 0.209912629 | AD162: =IFERROR(I162/Levelisation!J670, 0) -> 0.2151493384 | AE162: =IFERROR(J162/Levelisation!K670, 0) -> 0.2095971129 | AF162: =IFERROR(K162/Levelisation!L670, 0) -> 0.2246256761 | AG162: 1.06 > Guatemala | AH162: 148 | AI162: 6
A163: =INDEX(Country!$F$31:$G$76, MATCH(AI163, Country!$O$31:$O$76, 0), 1) -> 1.06 | B163: =INDEX(Country!$F$31:$G$76, MATCH(AI163, Country!$O$31:$O$76, 0), 2) -> Clean energy electricity generation | C163: =INDEX(Country!$K$31:$K$76, MATCH(AI163, Country!$O$31:$O$76, 0), 1) -> GWh | D163: Guyana | E163: =Levelisation!F645 -> 0 | F163: =Levelisation!G645 -> 0 | G163: =Levelisation!H645 -> 0 | H163: =Levelisation!I645 -> 0 | I163: =Levelisation!J645 -> 0 | J163: =Levelisation!K645 -> 0 | K163: =Levelisation!L645 -> 0 | L163: 0 | M163: 0 | N163: 0 | O163: 0 | P163: 0 | Q163: 0 | R163: 0 | Z163: =IFERROR(E163/Levelisation!F671, 0) -> 0 | AA163: =IFERROR(F163/Levelisation!G671, 0) -> 0 | AB163: =IFERROR(G163/Levelisation!H671, 0) -> 0 | AC163: =IFERROR(H163/Levelisation!I671, 0) -> 0 | AD163: =IFERROR(I163/Levelisation!J671, 0) -> 0 | AE163: =IFERROR(J163/Levelisation!K671, 0) -> 0 | AF163: =IFERROR(K163/Levelisation!L671, 0) -> 0 | AG163: 1.06 > Guyana | AH163: 149 | AI163: 6
A164: =INDEX(Country!$F$31:$G$76, MATCH(AI164, Country!$O$31:$O$76, 0), 1) -> 1.06 | B164: =INDEX(Country!$F$31:$G$76, MATCH(AI164, Country!$O$31:$O$76, 0), 2) -> Clean energy electricity generation | C164: =INDEX(Country!$K$31:$K$76, MATCH(AI164, Country!$O$31:$O$76, 0), 1) -> GWh | D164: Haiti | E164: =Levelisation!F646 -> 0 | F164: =Levelisation!G646 -> 0 | G164: =Levelisation!H646 -> 0 | H164: =Levelisation!I646 -> 0 | I164: =Levelisation!J646 -> 0 | J164: =Levelisation!K646 -> 0 | K164: =Levelisation!L646 -> 0 | L164: 0 | M164: 0 | N164: 0 | O164: 0 | P164: 0 | Q164: 0 | R164: 0 | Z164: =IFERROR(E164/Levelisation!F672, 0) -> 0 | AA164: =IFERROR(F164/Levelisation!G672, 0) -> 0 | AB164: =IFERROR(G164/Levelisation!H672, 0) -> 0 | AC164: =IFERROR(H164/Levelisation!I672, 0) -> 0 | AD164: =IFERROR(I164/Levelisation!J672, 0) -> 0 | AE164: =IFERROR(J164/Levelisation!K672, 0) -> 0 | AF164: =IFERROR(K164/Levelisation!L672, 0) -> 0 | AG164: 1.06 > Haiti | AH164: 150 | AI164: 6
A165: =INDEX(Country!$F$31:$G$76, MATCH(AI165, Country!$O$31:$O$76, 0), 1) -> 1.06 | B165: =INDEX(Country!$F$31:$G$76, MATCH(AI165, Country!$O$31:$O$76, 0), 2) -> Clean energy electricity generation | C165: =INDEX(Country!$K$31:$K$76, MATCH(AI165, Country!$O$31:$O$76, 0), 1) -> GWh | D165: Honduras | E165: =Levelisation!F647 -> 544.9 | F165: =Levelisation!G647 -> 571.3 | G165: =Levelisation!H647 -> 702.6 | H165: =Levelisation!I647 -> 672.4 | I165: =Levelisation!J647 -> 829.1 | J165: =Levelisation!K647 -> 960.7086412 | K165: =Levelisation!L647 -> 1196.104545 | L165: 10.48627806 | M165: 10.97936515 | N165: 11.39170272 | O165: 14.04577109 | P165: 12.8124765 | Q165: 13.77498934 | R165: 16.95987624 | Z165: =IFERROR(E165/Levelisation!F673, 0) -> 0.089660052 | AA165: =IFERROR(F165/Levelisation!G673, 0) -> 0.09123866105 | AB165: =IFERROR(G165/Levelisation!H673, 0) -> 0.10825052 | AC165: =IFERROR(H165/Levelisation!I673, 0) -> 0.1034843635 | AD165: =IFERROR(I165/Levelisation!J673, 0) -> 0.1233431024 | AE165: =IFERROR(J165/Levelisation!K673, 0) -> 0.1347958404 | AF165: =IFERROR(K165/Levelisation!L673, 0) -> 0.1596933934 | AG165: 1.06 > Honduras | AH165: 151 | AI165: 6
A166: =INDEX(Country!$F$31:$G$76, MATCH(AI166, Country!$O$31:$O$76, 0), 1) -> 1.06 | B166: =INDEX(Country!$F$31:$G$76, MATCH(AI166, Country!$O$31:$O$76, 0), 2) -> Clean energy electricity generation | C166: =INDEX(Country!$K$31:$K$76, MATCH(AI166, Country!$O$31:$O$76, 0), 1) -> GWh | D166: Jamaica | E166: =Levelisation!F648 -> 225.043345 | F166: =Levelisation!G648 -> 211.746996 | G166: =Levelisation!H648 -> 207.418382 | H166: =Levelisation!I648 -> 198.6378542 | I166: =Levelisation!J648 -> 204.877985 | J166: =Levelisation!K648 -> 243.3135334 | K166: =Levelisation!L648 -> 258.1535205 | L166: 6.504540028 | M166: 6.252252732 | N166: 5.293734043 | O166: 6.397941306 | P166: 5.14388293 | Q166: 6.010466929 | R166: 6.62890585 | Z166: =IFERROR(E166/Levelisation!F674, 0) -> 0.05561529019 | AA166: =IFERROR(F166/Levelisation!G674, 0) -> 0.05195629803 | AB166: =IFERROR(G166/Levelisation!H674, 0) -> 0.05030410966 | AC166: =IFERROR(H166/Levelisation!I674, 0) -> 0.0471378096 | AD166: =IFERROR(I166/Levelisation!J674, 0) -> 0.04951911357 | AE166: =IFERROR(J166/Levelisation!K674, 0) -> 0.05881572183 | AF166: =IFERROR(K166/Levelisation!L674, 0) -> 0.06241746431 | AG166: 1.06 > Jamaica | AH166: 152 | AI166: 6
A167: =INDEX(Country!$F$31:$G$76, MATCH(AI167, Country!$O$31:$O$76, 0), 1) -> 1.06 | B167: =INDEX(Country!$F$31:$G$76, MATCH(AI167, Country!$O$31:$O$76, 0), 2) -> Clean energy electricity generation | C167: =INDEX(Country!$K$31:$K$76, MATCH(AI167, Country!$O$31:$O$76, 0), 1) -> GWh | D167: Mexico | E167: =Levelisation!F649 -> 7826.224634 | F167: =Levelisation!G649 -> 8672.385909 | G167: =Levelisation!H649 -> 8686.006368 | H167: =Levelisation!I649 -> 9362.784755 | I167: =Levelisation!J649 -> 9691.310086 | J167: =Levelisation!K649 -> 9553.014579 | K167: =Levelisation!L649 -> 12215.04564 | L167: 3.232056396 | M167: 3.433174485 | N167: 2.970952027 | O167: 4.068968544 | P167: 3.138681082 | Q167: 2.908713092 | R167: 3.774783631 | Z167: =IFERROR(E167/Levelisation!F675, 0) -> 0.02763481408 | AA167: =IFERROR(F167/Levelisation!G675, 0) -> 0.02852972271 | AB167: =IFERROR(G167/Levelisation!H675, 0) -> 0.02823169719 | AC167: =IFERROR(H167/Levelisation!I675, 0) -> 0.02997874712 | AD167: =IFERROR(I167/Levelisation!J675, 0) -> 0.03021544368 | AE167: =IFERROR(J167/Levelisation!K675, 0) -> 0.02846335603 | AF167: =IFERROR(K167/Levelisation!L675, 0) -> 0.03554318433 | AG167: 1.06 > Mexico | AH167: 153 | AI167: 6
A168: =INDEX(Country!$F$31:$G$76, MATCH(AI168, Country!$O$31:$O$76, 0), 1) -> 1.06 | B168: =INDEX(Country!$F$31:$G$76, MATCH(AI168, Country!$O$31:$O$76, 0), 2) -> Clean energy electricity generation | C168: =INDEX(Country!$K$31:$K$76, MATCH(AI168, Country!$O$31:$O$76, 0), 1) -> GWh | D168: Nicaragua | E168: =Levelisation!F650 -> 826.83 | F168: =Levelisation!G650 -> 798.42 | G168: =Levelisation!H650 -> 962.55 | H168: =Levelisation!I650 -> 959.22 | I168: =Levelisation!J650 -> 1126.36 | J168: =Levelisation!K650 -> 1089.04 | K168: =Levelisation!L650 -> 1446.16 | L168: 30.82216774 | M168: 29.93898062 | N168: 30.1383796 | O168: 37.69286957 | P168: 31.9760427 | Q168: 29.10000284 | R168: 39.25544851 | Z168: =IFERROR(E168/Levelisation!F676, 0) -> 0.2635365138 | AA168: =IFERROR(F168/Levelisation!G676, 0) -> 0.2487933017 | AB168: =IFERROR(G168/Levelisation!H676, 0) -> 0.2863922403 | AC168: =IFERROR(H168/Levelisation!I676, 0) -> 0.2777079726 | AD168: =IFERROR(I168/Levelisation!J676, 0) -> 0.3078268522 | AE168: =IFERROR(J168/Levelisation!K676, 0) -> 0.2847595191 | AF168: =IFERROR(K168/Levelisation!L676, 0) -> 0.3696274486 | AG168: 1.06 > Nicaragua | AH168: 154 | AI168: 6
A169: =INDEX(Country!$F$31:$G$76, MATCH(AI169, Country!$O$31:$O$76, 0), 1) -> 1.06 | B169: =INDEX(Country!$F$31:$G$76, MATCH(AI169, Country!$O$31:$O$76, 0), 2) -> Clean energy electricity generation | C169: =INDEX(Country!$K$31:$K$76, MATCH(AI169, Country!$O$31:$O$76, 0), 1) -> GWh | D169: Panama | E169: =Levelisation!F651 -> 552.6 | F169: =Levelisation!G651 -> 330.9 | G169: =Levelisation!H651 -> 402.1 | H169: =Levelisation!I651 -> 401.8 | I169: =Levelisation!J651 -> 794.6 | J169: =Levelisation!K651 -> 1085.59 | K169: =Levelisation!L651 -> 1085.59 | L169: 10.79070812 | M169: 6.191698921 | N169: 6.602409445 | O169: 7.912667467 | P169: 11.02784457 | Q169: 14.37954841 | R169: 14.94397719 | Z169: =IFERROR(E169/Levelisation!F677, 0) -> 0.09226299796 | AA169: =IFERROR(F169/Levelisation!G677, 0) -> 0.05145309512 | AB169: =IFERROR(G169/Levelisation!H677, 0) -> 0.06273989702 | AC169: =IFERROR(H169/Levelisation!I677, 0) -> 0.0582977859 | AD169: =IFERROR(I169/Levelisation!J677, 0) -> 0.1061628142 | AE169: =IFERROR(J169/Levelisation!K677, 0) -> 0.1407117832 | AF169: =IFERROR(K169/Levelisation!L677, 0) -> 0.1407117832 | AG169: 1.06 > Panama | AH169: 155 | AI169: 6
A170: =INDEX(Country!$F$31:$G$76, MATCH(AI170, Country!$O$31:$O$76, 0), 1) -> 1.06 | B170: =INDEX(Country!$F$31:$G$76, MATCH(AI170, Country!$O$31:$O$76, 0), 2) -> Clean energy electricity generation | C170: =INDEX(Country!$K$31:$K$76, MATCH(AI170, Country!$O$31:$O$76, 0), 1) -> GWh | D170: Paraguay | E170: =Levelisation!F652 -> 0 | F170: =Levelisation!G652 -> 0 | G170: =Levelisation!H652 -> 0 | H170: =Levelisation!I652 -> 0 | I170: =Levelisation!J652 -> 0 | J170: =Levelisation!K652 -> 0 | K170: =Levelisation!L652 -> 0 | L170: 0 | M170: 0 | N170: 0 | O170: 0 | P170: 0 | Q170: 0 | R170: 0 | Z170: =IFERROR(E170/Levelisation!F678, 0) -> 0 | AA170: =IFERROR(F170/Levelisation!G678, 0) -> 0 | AB170: =IFERROR(G170/Levelisation!H678, 0) -> 0 | AC170: =IFERROR(H170/Levelisation!I678, 0) -> 0 | AD170: =IFERROR(I170/Levelisation!J678, 0) -> 0 | AE170: =IFERROR(J170/Levelisation!K678, 0) -> 0 | AF170: =IFERROR(K170/Levelisation!L678, 0) -> 0 | AG170: 1.06 > Paraguay | AH170: 156 | AI170: 6
A171: =INDEX(Country!$F$31:$G$76, MATCH(AI171, Country!$O$31:$O$76, 0), 1) -> 1.06 | B171: =INDEX(Country!$F$31:$G$76, MATCH(AI171, Country!$O$31:$O$76, 0), 2) -> Clean energy electricity generation | C171: =INDEX(Country!$K$31:$K$76, MATCH(AI171, Country!$O$31:$O$76, 0), 1) -> GWh | D171: =D144 -> Peru | E171: =Levelisation!F653 -> 1984.731443 | F171: =Levelisation!G653 -> 2538.275838 | G171: =Levelisation!H653 -> 2586.298094 | H171: =Levelisation!I653 -> 3014.127098 | I171: =Levelisation!J653 -> 3200.824616 | J171: =Levelisation!K653 -> 3761.248298 | K171: =Levelisation!L653 -> 4119.027476 | L171: 8.168037315 | M171: 10.36005086 | N171: 8.509625217 | O171: 12.46347967 | P171: 9.379633232 | Q171: 8.573167519 | R171: 9.745747045 | Z171: =IFERROR(E171/Levelisation!F679, 0) -> 0.06983856869 | AA171: =IFERROR(F171/Levelisation!G679, 0) -> 0.08609215159 | AB171: =IFERROR(G171/Levelisation!H679, 0) -> 0.08086335969 | AC171: =IFERROR(H171/Levelisation!I679, 0) -> 0.0918265898 | AD171: =IFERROR(I171/Levelisation!J679, 0) -> 0.09029581925 | AE171: =IFERROR(J171/Levelisation!K679, 0) -> 0.08389315539 | AF171: =IFERROR(K171/Levelisation!L679, 0) -> 0.09176549374 | AG171: 1.06 > Peru | AH171: 157 | AI171: 6
A172: =INDEX(Country!$F$31:$G$76, MATCH(AI172, Country!$O$31:$O$76, 0), 1) -> 1.06 | B172: =INDEX(Country!$F$31:$G$76, MATCH(AI172, Country!$O$31:$O$76, 0), 2) -> Clean energy electricity generation | C172: =INDEX(Country!$K$31:$K$76, MATCH(AI172, Country!$O$31:$O$76, 0), 1) -> GWh | D172: Suriname | E172: =Levelisation!F654 -> 0 | F172: =Levelisation!G654 -> 0 | G172: =Levelisation!H654 -> 0 | H172: =Levelisation!I654 -> 0 | I172: =Levelisation!J654 -> 0 | J172: =Levelisation!K654 -> 0 | K172: =Levelisation!L654 -> 0 | L172: 0 | M172: 0 | N172: 0 | O172: 0 | P172: 0 | Q172: 0 | R172: 0 | Z172: =IFERROR(E172/Levelisation!F680, 0) -> 0 | AA172: =IFERROR(F172/Levelisation!G680, 0) -> 0 | AB172: =IFERROR(G172/Levelisation!H680, 0) -> 0 | AC172: =IFERROR(H172/Levelisation!I680, 0) -> 0 | AD172: =IFERROR(I172/Levelisation!J680, 0) -> 0 | AE172: =IFERROR(J172/Levelisation!K680, 0) -> 0 | AF172: =IFERROR(K172/Levelisation!L680, 0) -> 0 | AG172: 1.06 > Suriname | AH172: 158 | AI172: 6
A173: =INDEX(Country!$F$31:$G$76, MATCH(AI173, Country!$O$31:$O$76, 0), 1) -> 1.06 | B173: =INDEX(Country!$F$31:$G$76, MATCH(AI173, Country!$O$31:$O$76, 0), 2) -> Clean energy electricity generation | C173: =INDEX(Country!$K$31:$K$76, MATCH(AI173, Country!$O$31:$O$76, 0), 1) -> GWh | D173: Trinidad & Tobago | E173: =Levelisation!F655 -> 0 | F173: =Levelisation!G655 -> 0 | G173: =Levelisation!H655 -> 0 | H173: =Levelisation!I655 -> 0 | I173: =Levelisation!J655 -> 0 | J173: =Levelisation!K655 -> 0 | K173: =Levelisation!L655 -> 0 | L173: 0 | M173: 0 | N173: 0 | O173: 0 | P173: 0 | Q173: 0 | R173: 0 | Z173: =IFERROR(E173/Levelisation!F681, 0) -> 0 | AA173: =IFERROR(F173/Levelisation!G681, 0) -> 0 | AB173: =IFERROR(G173/Levelisation!H681, 0) -> 0 | AC173: =IFERROR(H173/Levelisation!I681, 0) -> 0 | AD173: =IFERROR(I173/Levelisation!J681, 0) -> 0 | AE173: =IFERROR(J173/Levelisation!K681, 0) -> 0 | AF173: =IFERROR(K173/Levelisation!L681, 0) -> 0 | AG173: 1.06 > Trinidad & Tobago | AH173: 159 | AI173: 6
A174: =INDEX(Country!$F$31:$G$76, MATCH(AI174, Country!$O$31:$O$76, 0), 1) -> 1.06 | B174: =INDEX(Country!$F$31:$G$76, MATCH(AI174, Country!$O$31:$O$76, 0), 2) -> Clean energy electricity generation | C174: =INDEX(Country!$K$31:$K$76, MATCH(AI174, Country!$O$31:$O$76, 0), 1) -> GWh | D174: Uruguay | E174: =Levelisation!F656 -> 0 | F174: =Levelisation!G656 -> 23.189 | G174: =Levelisation!H656 -> 136.904 | H174: =Levelisation!I656 -> 231.1790729 | I174: =Levelisation!J656 -> 352.48428 | J174: =Levelisation!K656 -> 478.96315 | K174: =Levelisation!L656 -> 616.32772 | L174: 0 | M174: 0.2998517661 | N174: 1.796876572 | O174: 3.910493135 | P174: 3.603803483 | Q174: 5.139051605 | R174: 6.7298263 | Z174: =IFERROR(E174/Levelisation!F682, 0) -> 0 | AA174: =IFERROR(F174/Levelisation!G682, 0) -> 0.002491771909 | AB174: =IFERROR(G174/Levelisation!H682, 0) -> 0.01707495604 | AC174: =IFERROR(H174/Levelisation!I682, 0) -> 0.02881115534 | AD174: =IFERROR(I174/Levelisation!J682, 0) -> 0.03469308233 | AE174: =IFERROR(J174/Levelisation!K682, 0) -> 0.05028844402 | AF174: =IFERROR(K174/Levelisation!L682, 0) -> 0.06336772649 | AG174: 1.06 > Uruguay | AH174: 160 | AI174: 6
A175: =INDEX(Country!$F$31:$G$76, MATCH(AI175, Country!$O$31:$O$76, 0), 1) -> 1.06 | B175: =INDEX(Country!$F$31:$G$76, MATCH(AI175, Country!$O$31:$O$76, 0), 2) -> Clean energy electricity generation | C175: =INDEX(Country!$K$31:$K$76, MATCH(AI175, Country!$O$31:$O$76, 0), 1) -> GWh | D175: Venezuela | E175: =Levelisation!F657 -> 0 | F175: =Levelisation!G657 -> 0 | G175: =Levelisation!H657 -> 0 | H175: =Levelisation!I657 -> 115.3254 | I175: =Levelisation!J657 -> 115.3254 | J175: =Levelisation!K657 -> 115.3254 | K175: =Levelisation!L657 -> 115.3254 | L175: 0 | M175: 0 | N175: 0 | O175: 0.1253829791 | P175: 0.1026742766 | Q175: 0.0959384884 | R175: 0.09597970118 | Z175: =IFERROR(E175/Levelisation!F683, 0) -> 0 | AA175: =IFERROR(F175/Levelisation!G683, 0) -> 0 | AB175: =IFERROR(G175/Levelisation!H683, 0) -> 0 | AC175: =IFERROR(H175/Levelisation!I683, 0) -> 0.0009237782459 | AD175: =IFERROR(I175/Levelisation!J683, 0) -> 0.0009884243546 | AE175: =IFERROR(J175/Levelisation!K683, 0) -> 0.0009388108302 | AF175: =IFERROR(K175/Levelisation!L683, 0) -> 0.0009037403318 | AG175: 1.06 > Venezuela | AH175: 161 | AI175: 6
A176: =INDEX(Country!$F$31:$G$76, MATCH(AI176, Country!$O$31:$O$76, 0), 1) -> 1.06 | B176: =INDEX(Country!$F$31:$G$76, MATCH(AI176, Country!$O$31:$O$76, 0), 2) -> Clean energy electricity generation | C176: =INDEX(Country!$K$31:$K$76, MATCH(AI176, Country!$O$31:$O$76, 0), 1) -> GWh | D176: Benchmark | E176: =IFERROR(MAX(E150:E175), 0) -> 26251.74 | F176: =IFERROR(MAX(F150:F175), 0) -> 30696.16 | G176: =IFERROR(MAX(G150:G175), 0) -> 36102.72 | H176: =IFERROR(MAX(H150:H175), 0) -> 39584.88 | I176: =IFERROR(MAX(I150:I175), 0) -> 52952.94 | J176: =IFERROR(MAX(J150:J175), 0) -> 57399.82 | K176: 57399.82 | L176: =MAX(Z150:Z175) -> 0.8550226449 | M176: 0.8310012449 | N176: =MAX(AB150:AB175) -> 0.9502575922 | O176: =MAX(AC150:AC175) -> 0.736765271 | P176: =MAX(AD150:AD175) -> 0.9626796381 | Q176: =MAX(AE150:AE175) -> 0.9785549531 | R176: =MAX(AF150:AF175) -> 0.9415952755 | AG176: 1.06 > Benchmark | AH176: 162 | AI176: 6
A177: =INDEX(Country!$F$31:$G$76, MATCH(AI177, Country!$O$31:$O$76, 0), 1) -> 1.07 | B177: =INDEX(Country!$F$31:$G$76, MATCH(AI177, Country!$O$31:$O$76, 0), 2) -> Growth rate of electricity generation | C177: =INDEX(Country!$K$31:$K$76, MATCH(AI177, Country!$O$31:$O$76, 0), 1) -> % | D177: Argentina | F177: =IF(E150<>0, F150/E150-1, 0) -> -0.01735804565 | G177: =IF(F150<>0, G150/F150-1, 0) -> -0.05541570074 | H177: -0.1180189936 | I177: -0.09044525865 | J177: -0.1232806671 | K177: 0 | L177: =IFERROR(dbl_BenchmarkMax*E177/ SUMIFS(E$15:E$1256, $D$15:$D$1256, "Benchmark", $B$15:$B$1256,$B177), 0) -> 0 | M177: =IFERROR(dbl_BenchmarkMax*F177/ SUMIFS(F$15:F$1256, $D$15:$D$1256, "Benchmark", $B$15:$B$1256,$B177), 0) -> -5.922071923 | N177: =IFERROR(dbl_BenchmarkMax*G177/ SUMIFS(G$15:G$1256, $D$15:$D$1256, "Benchmark", $B$15:$B$1256,$B177), 0) -> -1.130048529 | O177: =IFERROR(dbl_BenchmarkMax*H177/ SUMIFS(H$15:H$1256, $D$15:$D$1256, "Benchmark", $B$15:$B$1256,$B177), 0) -> -17.13843522 | P177: =IFERROR(dbl_BenchmarkMax*I177/ SUMIFS(I$15:I$1256, $D$15:$D$1256, "Benchmark", $B$15:$B$1256,$B177), 0) -> -9.251757873 | Q177: =IFERROR(dbl_BenchmarkMax*J177/ SUMIFS(J$15:J$1256, $D$15:$D$1256, "Benchmark", $B$15:$B$1256,$B177), 0) -> -33.66398091 | R177: =IFERROR(dbl_BenchmarkMax*K177/ SUMIFS(K$15:K$1256, $D$15:$D$1256, "Benchmark", $B$15:$B$1256,$B177), 0) -> 0 | AG177: 1.07 > Argentina | AH177: 163 | AI177: 7
A178: =INDEX(Country!$F$31:$G$76, MATCH(AI178, Country!$O$31:$O$76, 0), 1) -> 1.07 | B178: =INDEX(Country!$F$31:$G$76, MATCH(AI178, Country!$O$31:$O$76, 0), 2) -> Growth rate of electricity generation | C178: =INDEX(Country!$K$31:$K$76, MATCH(AI178, Country!$O$31:$O$76, 0), 1) -> % | D178: Bahamas | F178: =IF(E151<>0, F151/E151-1, 0) -> 0 | G178: 0 | H178: 0 | I178: 0 | J178: 0 | K178: 0 | L178: 0 | M178: 0 | N178: 0 | O178: 0 | P178: 0 | Q178: 0 | R178: 0 | AG178: 1.07 > Bahamas | AH178: 164 | AI178: 7
A179: =INDEX(Country!$F$31:$G$76, MATCH(AI179, Country!$O$31:$O$76, 0), 1) -> 1.07 | B179: =INDEX(Country!$F$31:$G$76, MATCH(AI179, Country!$O$31:$O$76, 0), 2) -> Growth rate of electricity generation | C179: =INDEX(Country!$K$31:$K$76, MATCH(AI179, Country!$O$31:$O$76, 0), 1) -> % | D179: Barbados | F179: =IF(E152<>0, F152/E152-1, 0) -> 0 | G179: 0 | H179: 0 | I179: 0 | J179: 0 | K179: 0 | L179: 0 | M179: 0 | N179: 0 | O179: 0 | P179: 0 | Q179: 0 | R179: 0 | AG179: 1.07 > Barbados | AH179: 165 | AI179: 7
A180: =INDEX(Country!$F$31:$G$76, MATCH(AI180, Country!$O$31:$O$76, 0), 1) -> 1.07 | B180: =INDEX(Country!$F$31:$G$76, MATCH(AI180, Country!$O$31:$O$76, 0), 2) -> Growth rate of electricity generation | C180: =INDEX(Country!$K$31:$K$76, MATCH(AI180, Country!$O$31:$O$76, 0), 1) -> % | D180: Belize | F180: =IF(E153<>0, F153/E153-1, 0) -> -0.001854864387 | G180: 0.1526709072 | H180: -0.07554428415 | I180: 0.64687852 | J180: 0.01283034853 | K180: -0.1330924596 | L180: 0 | M180: -0.6328270203 | N180: 3.113296986 | O180: -10.97035978 | P180: 66.17000747 | Q180: 3.503555085 | R180: -40.58664095 | AG180: 1.07 > Belize | AH180: 166 | AI180: 7
A181: =INDEX(Country!$F$31:$G$76, MATCH(AI181, Country!$O$31:$O$76, 0), 1) -> 1.07 | B181: =INDEX(Country!$F$31:$G$76, MATCH(AI181, Country!$O$31:$O$76, 0), 2) -> Growth rate of electricity generation | C181: =INDEX(Country!$K$31:$K$76, MATCH(AI181, Country!$O$31:$O$76, 0), 1) -> % | D181: Bolivia | F181: 0.09417548765 | G181: -0.03339191432 | H181: 0.03909817418 | I181: 0.02171374228 | J181: 0.02964512933 | K181: 0 | L181: 0 | M181: 32.13000025 | N181: -0.6809348822 | O181: 5.677743091 | P181: 2.221125674 | Q181: 8.095130337 | R181: 0 | AG181: 1.07 > Bolivia | AH181: 167 | AI181: 7
A182: =INDEX(Country!$F$31:$G$76, MATCH(AI182, Country!$O$31:$O$76, 0), 1) -> 1.07 | B182: =INDEX(Country!$F$31:$G$76, MATCH(AI182, Country!$O$31:$O$76, 0), 2) -> Growth rate of electricity generation | C182: =INDEX(Country!$K$31:$K$76, MATCH(AI182, Country!$O$31:$O$76, 0), 1) -> % | D182: Brazil | F182: =IF(E155<>0, F155/E155-1, 0) -> 0.1693000159 | G182: 0.176131477 | H182: 0.09645145851 | I182: 0.3377062151 | J182: 0.08397796232 | K182: 0 | L182: 0 | M182: 57.76035453 | N182: 3.591709819 | O182: 14.0064495 | P182: 34.5443883 | Q182: 22.93167767 | R182: 0 | AG182: 1.07 > Brazil | AH182: 168 | AI182: 7
A183: =INDEX(Country!$F$31:$G$76, MATCH(AI183, Country!$O$31:$O$76, 0), 1) -> 1.07 | B183: =INDEX(Country!$F$31:$G$76, MATCH(AI183, Country!$O$31:$O$76, 0), 2) -> Growth rate of electricity generation | C183: =INDEX(Country!$K$31:$K$76, MATCH(AI183, Country!$O$31:$O$76, 0), 1) -> % | D183: Chile | F183: =IF(E156<>0, F156/E156-1, 0) -> -0.02008701895 | G183: 0.225988626 | H183: 0.06251039211 | I183: -0.01847222154 | J183: 0.009312934876 | K183: 0.2794692681 | L183: 0 | M183: -6.853120065 | N183: 4.6084072 | O183: 9.077609233 | P183: -1.88954649 | Q183: 2.543062666 | R183: 85.22435365 | AG183: 1.07 > Chile | AH183: 169 | AI183: 7
A184: =INDEX(Country!$F$31:$G$76, MATCH(AI184, Country!$O$31:$O$76, 0), 1) -> 1.07 | B184: =INDEX(Country!$F$31:$G$76, MATCH(AI184, Country!$O$31:$O$76, 0), 2) -> Growth rate of electricity generation | C184: =INDEX(Country!$K$31:$K$76, MATCH(AI184, Country!$O$31:$O$76, 0), 1) -> % | D184: Colombia | F184: =IF(E157<>0, F157/E157-1, 0) -> 0.03520572933 | G184: 0.0002469689122 | H184: 0.03277200823 | I184: 0.1446877901 | J184: 0.2606239713 | K184: -0.04566677167 | L184: 0 | M184: 12.01119443 | N184: 0.005036241574 | O184: 4.759072442 | P184: 14.8002938 | Q184: 71.16801525 | R184: -13.92611476 | AG184: 1.07 > Colombia | AH184: 170 | AI184: 7
A185: =INDEX(Country!$F$31:$G$76, MATCH(AI185, Country!$O$31:$O$76, 0), 1) -> 1.07 | B185: =INDEX(Country!$F$31:$G$76, MATCH(AI185, Country!$O$31:$O$76, 0), 2) -> Growth rate of electricity generation | C185: =INDEX(Country!$K$31:$K$76, MATCH(AI185, Country!$O$31:$O$76, 0), 1) -> % | D185: Costa Rica | F185: =IF(E158<>0, F158/E158-1, 0) -> 0.07587300199 | G185: 0.02837712318 | H185: 0.02127235921 | I185: 0.04604033753 | J185: -0.001340141497 | K185: 0.06583643768 | L185: 0 | M185: 25.88571224 | N185: 0.5786722151 | O185: 3.08912099 | P185: 4.709523324 | Q185: -0.3659494943 | R185: 20.07686886 | AG185: 1.07 > Costa Rica | AH185: 171 | AI185: 7
A186: =INDEX(Country!$F$31:$G$76, MATCH(AI186, Country!$O$31:$O$76, 0), 1) -> 1.07 | B186: =INDEX(Country!$F$31:$G$76, MATCH(AI186, Country!$O$31:$O$76, 0), 2) -> Growth rate of electricity generation | C186: =INDEX(Country!$K$31:$K$76, MATCH(AI186, Country!$O$31:$O$76, 0), 1) -> % | D186: Dominican Republic | F186: =IF(E159<>0, F159/E159-1, 0) -> 0 | G186: 0.1046566689 | H186: 0.05979061798 | I186: 0.1555869274 | J186: -0.08753422396 | K186: 0.1238946501 | L186: 0 | M186: 0 | N186: 2.134180622 | O186: 8.682650155 | P186: 15.9151801 | Q186: -23.90277823 | R186: 37.78176235 | AG186: 1.07 > Dominican Republic | AH186: 172 | AI186: 7
A187: =INDEX(Country!$F$31:$G$76, MATCH(AI187, Country!$O$31:$O$76, 0), 1) -> 1.07 | B187: =INDEX(Country!$F$31:$G$76, MATCH(AI187, Country!$O$31:$O$76, 0), 2) -> Growth rate of electricity generation | C187: =INDEX(Country!$K$31:$K$76, MATCH(AI187, Country!$O$31:$O$76, 0), 1) -> % | D187: Ecuador | F187: =IF(E160<>0, F160/E160-1, 0) -> 0.2931076467 | G187: 0.1291466025 | H187: 0.01765516212 | I187: -0.1548481664 | J187: 0.2990072884 | K187: -0.04187758542 | L187: 0 | M187: 100 | N187: 2.633584458 | O187: 2.563840304 | P187: -15.83961132 | Q187: 81.64926332 | R187: -12.77059969 | AG187: 1.07 > Ecuador | AH187: 173 | AI187: 7
A188: =INDEX(Country!$F$31:$G$76, MATCH(AI188, Country!$O$31:$O$76, 0), 1) -> 1.07 | B188: =INDEX(Country!$F$31:$G$76, MATCH(AI188, Country!$O$31:$O$76, 0), 2) -> Growth rate of electricity generation | C188: =INDEX(Country!$K$31:$K$76, MATCH(AI188, Country!$O$31:$O$76, 0), 1) -> % | D188: El Salvador | F188: =IF(E161<>0, F161/E161-1, 0) -> 0.1927225725 | G188: 0.1057625687 | H188: -0.02477457423 | I188: 0.04273873442 | J188: -0.091229564 | K188: 0 | L188: 0 | M188: 65.75146526 | N188: 2.156732363 | O188: -3.597704256 | P188: 4.371798241 | Q188: -24.91185661 | R188: 0 | AG188: 1.07 > El Salvador | AH188: 174 | AI188: 7
A189: =INDEX(Country!$F$31:$G$76, MATCH(AI189, Country!$O$31:$O$76, 0), 1) -> 1.07 | B189: =INDEX(Country!$F$31:$G$76, MATCH(AI189, Country!$O$31:$O$76, 0), 2) -> Growth rate of electricity generation | C189: =INDEX(Country!$K$31:$K$76, MATCH(AI189, Country!$O$31:$O$76, 0), 1) -> % | D189: Guatemala | F189: =IF(E162<>0, F162/E162-1, 0) -> 0.08109584692 | G189: 0.142635523 | H189: -0.03550341996 | I189: 0.01479818286 | J189: 0.01611933513 | K189: 0.1449761815 | L189: 0 | M189: 27.66759852 | N189: 2.908653338 | O189: -5.155721504 | P189: 1.51372451 | Q189: 4.401671429 | R189: 44.21059047 | AG189: 1.07 > Guatemala | AH189: 175 | AI189: 7
A190: =INDEX(Country!$F$31:$G$76, MATCH(AI190, Country!$O$31:$O$76, 0), 1) -> 1.07 | B190: =INDEX(Country!$F$31:$G$76, MATCH(AI190, Country!$O$31:$O$76, 0), 2) -> Growth rate of electricity generation | C190: =INDEX(Country!$K$31:$K$76, MATCH(AI190, Country!$O$31:$O$76, 0), 1) -> % | D190: Guyana | F190: =IF(E163<>0, F163/E163-1, 0) -> 0 | G190: 0 | H190: 0 | I190: 0 | J190: 0 | K190: 0 | L190: 0 | M190: 0 | N190: 0 | O190: 0 | P190: 0 | Q190: 0 | R190: 0 | AG190: 1.07 > Guyana | AH190: 176 | AI190: 7
A191: =INDEX(Country!$F$31:$G$76, MATCH(AI191, Country!$O$31:$O$76, 0), 1) -> 1.07 | B191: =INDEX(Country!$F$31:$G$76, MATCH(AI191, Country!$O$31:$O$76, 0), 2) -> Growth rate of electricity generation | C191: =INDEX(Country!$K$31:$K$76, MATCH(AI191, Country!$O$31:$O$76, 0), 1) -> % | D191: Haiti | F191: =IF(E164<>0, F164/E164-1, 0) -> 0 | G191: 0 | H191: 0 | I191: 0 | J191: 0 | K191: 0 | L191: 0 | M191: 0 | N191: 0 | O191: 0 | P191: 0 | Q191: 0 | R191: 0 | AG191: 1.07 > Haiti | AH191: 177 | AI191: 7
A192: =INDEX(Country!$F$31:$G$76, MATCH(AI192, Country!$O$31:$O$76, 0), 1) -> 1.07 | B192: =INDEX(Country!$F$31:$G$76, MATCH(AI192, Country!$O$31:$O$76, 0), 2) -> Growth rate of electricity generation | C192: =INDEX(Country!$K$31:$K$76, MATCH(AI192, Country!$O$31:$O$76, 0), 1) -> % | D192: Honduras | F192: =IF(E165<>0, F165/E165-1, 0) -> 0.04844925674 | G192: 0.229826711 | H192: -0.04298320524 | I192: 0.2330458061 | J192: 0.1587367521 | K192: 0.2450231982 | L192: 0 | M192: 16.52950965 | N192: 4.686674231 | O192: -6.241917984 | P192: 23.83854503 | Q192: 43.34589616 | R192: 74.71999992 | AG192: 1.07 > Honduras | AH192: 178 | AI192: 7
A193: =INDEX(Country!$F$31:$G$76, MATCH(AI193, Country!$O$31:$O$76, 0), 1) -> 1.07 | B193: =INDEX(Country!$F$31:$G$76, MATCH(AI193, Country!$O$31:$O$76, 0), 2) -> Growth rate of electricity generation | C193: =INDEX(Country!$K$31:$K$76, MATCH(AI193, Country!$O$31:$O$76, 0), 1) -> % | D193: Jamaica | F193: =IF(E166<>0, F166/E166-1, 0) -> -0.05908350234 | G193: =IF(F166<>0, G166/F166-1, 0) -> -0.02044238682 | H193: =IF(G166<>0, H166/G166-1, 0) -> -0.04233244752 | I193: =IF(H166<>0, I166/H166-1, 0) -> 0.03141461024 | J193: =IF(I166<>0, J166/I166-1, 0) -> 0.1876021398 | K193: =IF(J166<>0, K166/J166-1, 0) -> 0.06099121117 | L193: 0 | M193: -20.15761206 | N193: -0.4168654161 | O193: -6.147416508 | P193: 3.21343951 | Q193: 51.22810415 | R193: 18.59931357 | AG193: 1.07 > Jamaica | AH193: 179 | AI193: 7
A194: =INDEX(Country!$F$31:$G$76, MATCH(AI194, Country!$O$31:$O$76, 0), 1) -> 1.07 | B194: =INDEX(Country!$F$31:$G$76, MATCH(AI194, Country!$O$31:$O$76, 0), 2) -> Growth rate of electricity generation | C194: =INDEX(Country!$K$31:$K$76, MATCH(AI194, Country!$O$31:$O$76, 0), 1) -> % | D194: Mexico | F194: =IF(E167<>0, F167/E167-1, 0) -> 0.1081187053 | G194: 0.001570554998 | H194: 0.07791594414 | I194: 0.03508842084 | J194: -0.01427005289 | K194: 0.2786587455 | L194: 0 | M194: 36.88702992 | N194: 0.03202708513 | O194: 11.31476655 | P194: 3.58923816 | Q194: -3.89669199 | R194: 84.97718418 | AG194: 1.07 > Mexico | AH194: 180 | AI194: 7
A195: =INDEX(Country!$F$31:$G$76, MATCH(AI195, Country!$O$31:$O$76, 0), 1) -> 1.07 | B195: =INDEX(Country!$F$31:$G$76, MATCH(AI195, Country!$O$31:$O$76, 0), 2) -> Growth rate of electricity generation | C195: =INDEX(Country!$K$31:$K$76, MATCH(AI195, Country!$O$31:$O$76, 0), 1) -> % | D195: Nicaragua | F195: =IF(E168<>0, F168/E168-1, 0) -> -0.03436014658 | G195: 0.2055684978 | H195: -0.003459560542 | I195: 0.1742457413 | J195: -0.03313327888 | K195: 0.3279218394 | L195: 0 | M195: -11.72270562 | N195: 4.191995687 | O195: -0.5023890854 | P195: 17.82381336 | Q195: -9.047631671 | R195: 100 | AG195: 1.07 > Nicaragua | AH195: 181 | AI195: 7
A196: =INDEX(Country!$F$31:$G$76, MATCH(AI196, Country!$O$31:$O$76, 0), 1) -> 1.07 | B196: =INDEX(Country!$F$31:$G$76, MATCH(AI196, Country!$O$31:$O$76, 0), 2) -> Growth rate of electricity generation | C196: =INDEX(Country!$K$31:$K$76, MATCH(AI196, Country!$O$31:$O$76, 0), 1) -> % | D196: Panama | F196: =IF(E169<>0, F169/E169-1, 0) -> -0.401194354 | G196: 0.2151707464 | H196: -0.0007460830639 | I196: 0.9776007964 | J196: 0.3662094135 | K196: 0 | L196: 0 | M196: -136.8761131 | N196: 4.387806744 | O196: -0.1083443933 | P196: 100 | Q196: 100 | R196: 0 | AG196: 1.07 > Panama | AH196: 182 | AI196: 7
A197: =INDEX(Country!$F$31:$G$76, MATCH(AI197, Country!$O$31:$O$76, 0), 1) -> 1.07 | B197: =INDEX(Country!$F$31:$G$76, MATCH(AI197, Country!$O$31:$O$76, 0), 2) -> Growth rate of electricity generation | C197: =INDEX(Country!$K$31:$K$76, MATCH(AI197, Country!$O$31:$O$76, 0), 1) -> % | D197: Paraguay | F197: =IF(E170<>0, F170/E170-1, 0) -> 0 | G197: 0 | H197: 0 | I197: 0 | J197: 0 | K197: 0 | L197: 0 | M197: 0 | N197: 0 | O197: 0 | P197: 0 | Q197: 0 | R197: 0 | AG197: 1.07 > Paraguay | AH197: 183 | AI197: 7
A198: =INDEX(Country!$F$31:$G$76, MATCH(AI198, Country!$O$31:$O$76, 0), 1) -> 1.07 | B198: =INDEX(Country!$F$31:$G$76, MATCH(AI198, Country!$O$31:$O$76, 0), 2) -> Growth rate of electricity generation | C198: =INDEX(Country!$K$31:$K$76, MATCH(AI198, Country!$O$31:$O$76, 0), 1) -> % | D198: Peru | F198: =IF(E171<>0, F171/E171-1, 0) -> 0.2789014085 | G198: 0.01891924246 | H198: 0.1654213816 | I198: 0.06194082463 | J198: 0.1750872818 | K198: 0.09512245665 | L198: 0 | M198: 95.15323521 | N198: 0.3858051386 | O198: 24.02209633 | P198: 6.336003905 | Q198: 47.81069939 | R198: 29.00766134 | AG198: 1.07 > Peru | AH198: 184 | AI198: 7
A199: =INDEX(Country!$F$31:$G$76, MATCH(AI199, Country!$O$31:$O$76, 0), 1) -> 1.07 | B199: =INDEX(Country!$F$31:$G$76, MATCH(AI199, Country!$O$31:$O$76, 0), 2) -> Growth rate of electricity generation | C199: =INDEX(Country!$K$31:$K$76, MATCH(AI199, Country!$O$31:$O$76, 0), 1) -> % | D199: Suriname | F199: =IF(E172<>0, F172/E172-1, 0) -> 0 | G199: 0 | H199: 0 | I199: 0 | J199: 0 | K199: 0 | L199: 0 | M199: 0 | N199: 0 | O199: 0 | P199: 0 | Q199: 0 | R199: 0 | AG199: 1.07 > Suriname | AH199: 185 | AI199: 7
A200: =INDEX(Country!$F$31:$G$76, MATCH(AI200, Country!$O$31:$O$76, 0), 1) -> 1.07 | B200: =INDEX(Country!$F$31:$G$76, MATCH(AI200, Country!$O$31:$O$76, 0), 2) -> Growth rate of electricity generation | C200: =INDEX(Country!$K$31:$K$76, MATCH(AI200, Country!$O$31:$O$76, 0), 1) -> % | D200: Trinidad & Tobago | F200: =IF(E173<>0, F173/E173-1, 0) -> 0 | G200: 0 | H200: 0 | I200: 0 | J200: 0 | K200: 0 | L200: 0 | M200: 0 | N200: 0 | O200: 0 | P200: 0 | Q200: 0 | R200: 0 | AG200: 1.07 > Trinidad & Tobago | AH200: 186 | AI200: 7
A201: =INDEX(Country!$F$31:$G$76, MATCH(AI201, Country!$O$31:$O$76, 0), 1) -> 1.07 | B201: =INDEX(Country!$F$31:$G$76, MATCH(AI201, Country!$O$31:$O$76, 0), 2) -> Growth rate of electricity generation | C201: =INDEX(Country!$K$31:$K$76, MATCH(AI201, Country!$O$31:$O$76, 0), 1) -> % | D201: Uruguay | F201: =IF(E174<>0, F174/E174-1, 0) -> 0 | G201: 4.903833714 | H201: 0.6886217561 | I201: 0.5247239968 | J201: 0.3588213069 | K201: 0.2867956961 | L201: 0 | M201: 0 | N201: 100 | O201: 100 | P201: 53.67466953 | Q201: 97.98254594 | R201: 87.45855311 | AG201: 1.07 > Uruguay | AH201: 187 | AI201: 7
A202: =INDEX(Country!$F$31:$G$76, MATCH(AI202, Country!$O$31:$O$76, 0), 1) -> 1.07 | B202: =INDEX(Country!$F$31:$G$76, MATCH(AI202, Country!$O$31:$O$76, 0), 2) -> Growth rate of electricity generation | C202: =INDEX(Country!$K$31:$K$76, MATCH(AI202, Country!$O$31:$O$76, 0), 1) -> % | D202: Venezuela | F202: =IF(E175<>0, F175/E175-1, 0) -> 0 | G202: 0 | H202: 0 | I202: 0 | J202: 0 | K202: 0 | L202: 0 | M202: 0 | N202: 0 | O202: 0 | P202: 0 | Q202: 0 | R202: 0 | AG202: 1.07 > Venezuela | AH202: 188 | AI202: 7
A203: =INDEX(Country!$F$31:$G$76, MATCH(AI203, Country!$O$31:$O$76, 0), 1) -> 1.07 | B203: =INDEX(Country!$F$31:$G$76, MATCH(AI203, Country!$O$31:$O$76, 0), 2) -> Growth rate of electricity generation | C203: =INDEX(Country!$K$31:$K$76, MATCH(AI203, Country!$O$31:$O$76, 0), 1) -> % | D203: Benchmark | E203: =IFERROR(MAX(E177:E202), 0) -> 0 | F203: =IFERROR(MAX(F177:F202), 0) -> 0.2931076467 | G203: 4.903833714 | H203: 0.6886217561 | I203: 0.9776007964 | J203: 0.3662094135 | K203: 0.3279218394 | L203: 0 | M203: 100 | N203: 100 | O203: 100 | P203: 100 | Q203: 100 | R203: 100 | Z203: Levelised by Population (m) | AG203: 1.07 > Benchmark | AH203: 189 | AI203: 7
... 1053 more rows

Sheet Levelisation (hidden)
A1: INSTALLED CAPACITY, GENERATION AND OTHER LEVELISING VARIABLES
A4: Levelisation Variables | M4: Source
A5: Type | B5: Units | C5: Sector | D5: Clean Energy? | E5: Country | F5: 2006 | G5: =F5+1 -> 2007 | H5: =G5+1 -> 2008 | I5: 2009 | J5: 2010 | K5: =J5+1 -> 2011 | L5: 2012
A6: Capacity (MW)
A7: Capacity | B7: =IF(A7="Capacity", "MW", "GWh") -> MW | C7: Large Hydro | D7: =IF(C7="","",IF(OR(C7="Wind",C7="Solar",C7="Geothermal",C7="Small Hydro",C7="Biofuels",C7="Biomass & Waste"), 1, 0)) -> 0 | E7: Argentina | F7: 9433.7 | G7: 9471.1 | H7: 9517.1 | I7: 9550.5 | J7: 9550.5 | K7: 9550.5 | L7: 9550.5
A8: Capacity | B8: =IF(A8="Capacity", "MW", "GWh") -> MW | C8: Large Hydro | D8: =IF(C8="","",IF(OR(C8="Wind",C8="Solar",C8="Geothermal",C8="Small Hydro",C8="Biofuels",C8="Biomass & Waste"), 1, 0)) -> 0 | E8: Bahamas | F8: 0 | G8: 0 | H8: 0 | I8: 0 | J8: 0 | K8: 0 | L8: 0
A9: Capacity | B9: MW | C9: Large Hydro | D9: 0 | E9: Barbados | F9: 0 | G9: 0 | H9: 0 | I9: 0 | J9: 0 | K9: 0 | L9: 0
A10: Capacity | B10: MW | C10: Large Hydro | D10: 0 | E10: Belize | F10: 0 | G10: 0 | H10: 0 | I10: 0 | J10: 0 | K10: 0 | L10: 0
A11: Capacity | B11: MW | C11: Large Hydro | D11: 0 | E11: Bolivia | F11: 198.4 | G11: 198.4 | H11: 198.4 | I11: 198.4 | J11: 198.4 | K11: 203 | L11: 203
A12: Capacity | B12: MW | C12: Large Hydro | D12: 0 | E12: Brazil | F12: 72005 | G12: 74937 | H12: 74901 | I12: 75484 | J12: 77090 | K12: 78142 | L12: 79424
A13: Capacity | B13: MW | C13: Large Hydro | D13: 0 | E13: Chile | F13: 4682.04985 | G13: 4754.09823 | H13: 4809.09823 | I13: 4809.09823 | J13: 4809.09823 | K13: 5239.26546 | L13: 5299.26546
A14: Capacity | B14: MW | C14: Large Hydro | D14: 0 | E14: Colombia | F14: 8511 | G14: 8525 | H14: 8525 | I14: 8525 | J14: 8525 | K14: 9185 | L14: 9185
A15: Capacity | B15: MW | C15: Large Hydro | D15: 0 | E15: Costa Rica | F15: 932.88825 | G15: 981.3848 | H15: 981.3848 | I15: 981.3848 | J15: 981.3848 | K15: 1096.1548 | L15: 1096.1548
A16: Capacity | B16: MW | C16: Large Hydro | D16: 0 | E16: Dominican Republic | F16: 300 | G16: 300 | H16: 300 | I16: 300 | J16: 300 | K16: 300 | L16: 380
A17: Capacity | B17: MW | C17: Large Hydro | D17: 0 | E17: Ecuador | F17: 1524.17 | G17: 1752.17 | H17: 1751.4 | I17: 1751.31 | J17: 1934.88 | K17: 1935.37 | L17: 1925.67
A18: Capacity | B18: MW | C18: Large Hydro | D18: 0 | E18: El Salvador | F18: 440.5 | G18: 452.2 | H18: 452.2 | I18: 452.2 | J18: 452.2 | K18: 452.2 | L18: 452.2
A19: Capacity | B19: MW | C19: Large Hydro | D19: 0 | E19: Guatemala | F19: 518.1 | G19: 518.1 | H19: 518.1 | I19: 518.1 | J19: 612.1 | K19: 612.1 | L19: 697.1
A20: Capacity | B20: MW | C20: Large Hydro | D20: 0 | E20: Guyana | F20: 0 | G20: 0 | H20: 0 | I20: 0 | J20: 0 | K20: 0 | L20: 0
A21: Capacity | B21: MW | C21: Large Hydro | D21: 0 | E21: Haiti | F21: 0 | G21: 0 | H21: 0 | I21: 0 | J21: 0 | K21: 0 | L21: 0
A22: Capacity | B22: MW | C22: Large Hydro | D22: 0 | E22: Honduras | F22: 380 | G22: 380 | H22: 380 | I22: 380 | J22: 380 | K22: 380 | L22: 380
A23: Capacity | B23: MW | C23: Large Hydro | D23: 0 | E23: Jamaica | F23: 0 | G23: 0 | H23: 0 | I23: 0 | J23: 0 | K23: 0 | L23: 0
A24: Capacity | B24: MW | C24: Large Hydro | D24: 0 | E24: Mexico | F24: 10338.45 | G24: 11088.45 | H24: 11088.45 | I24: 11088.45 | J24: 11088.45 | K24: 11088.45 | L24: 11088.45
A25: Capacity | B25: MW | C25: Large Hydro | D25: 0 | E25: Nicaragua | F25: 54.4 | G25: 54.4 | H25: 54.4 | I25: 54.4 | J25: 54.4 | K25: 54.4 | L25: 54.4
A26: Capacity | B26: MW | C26: Large Hydro | D26: 0 | E26: Panama | F26: 740 | G26: 794.8 | H26: 794.8 | I26: 794.8 | J26: 734.76 | K26: 956.93 | L26: 956.93
A27: Capacity | B27: MW | C27: Large Hydro | D27: 0 | E27: Paraguay | F27: 8810 | G27: 8810 | H27: 8810 | I27: 8810 | J27: 8810 | K27: 8810 | L27: 8810
A28: Capacity | B28: MW | C28: Large Hydro | D28: 0 | E28: Peru | F28: 2711.252 | G28: 2726.684 | H28: 2727.98 | I28: 2728.079 | J28: 2892.262 | K28: 2892.262 | L28: 2892.262
A29: Capacity | B29: MW | C29: Large Hydro | D29: 0 | E29: Suriname | F29: 189 | G29: 189 | H29: 189 | I29: 189 | J29: 189 | K29: 189 | L29: 189
A30: Capacity | B30: MW | C30: Large Hydro | D30: 0 | E30: Trinidad & Tobago | F30: 0 | G30: 0 | H30: 0 | I30: 0 | J30: 0 | K30: 0 | L30: 0
A31: Capacity | B31: MW | C31: Large Hydro | D31: 0 | E31: Uruguay | F31: 1538 | G31: 1538 | H31: 1538 | I31: 1538 | J31: 1538 | K31: 1538 | L31: 1538
A32: Capacity | B32: MW | C32: Large Hydro | D32: 0 | E32: Venezuela | F32: 14597 | G32: 14597 | H32: 14598 | I32: 14598 | J32: 14597 | K32: 14597 | L32: 14597
A33: Capacity | B33: MW | C33: Natural Gas | D33: 0 | E33: Argentina | F33: 4453.976 | G33: 4968.085 | H33: 4194.898 | I33: 3374.023 | J33: 4809.033 | K33: 4832.764 | L33: 4832.764
A34: Capacity | B34: MW | C34: Natural Gas | D34: 0 | E34: Bahamas | F34: 0 | G34: 0 | H34: 0 | I34: 0 | J34: 0 | K34: 0 | L34: 0
A35: Capacity | B35: MW | C35: Natural Gas | D35: 0 | E35: Barbados | F35: 0 | G35: 0 | H35: 0 | I35: 0 | J35: 0 | K35: 0 | L35: 0
A36: Capacity | B36: MW | C36: Natural Gas | D36: 0 | E36: Belize | F36: 0 | G36: 0 | H36: 0 | I36: 0 | J36: 0 | K36: 0 | L36: 0
A37: Capacity | B37: MW | C37: Natural Gas | D37: 0 | E37: Bolivia | F37: 688.8 | G37: 754.7 | H37: 754.8 | I37: 754.8 | J37: 861 | K37: 887.2 | L37: 887.2
A38: Capacity | B38: MW | C38: Natural Gas | D38: 0 | E38: Brazil | F38: 9990.7275 | G38: 10042.89 | H38: 10532.4 | I38: 10809 | J38: 12540 | K38: 11424 | L38: 11550
A39: Capacity | B39: MW | C39: Natural Gas | D39: 0 | E39: Chile | F39: 3896.9313 | G39: 3896.9313 | H39: 4310.7593 | I39: 4317.1593 | J39: 4317.9593 | K39: 4317.9593 | L39: 4317.9593
A40: Capacity | B40: MW | C40: Natural Gas | D40: 0 | E40: Colombia | F40: 3562 | G40: 3598 | H40: 2757 | I40: 2757 | J40: 2478 | K40: 2653 | L40: 2479
A41: Capacity | B41: MW | C41: Natural Gas | D41: 0 | E41: Costa Rica | F41: 347.7 | G41: 347.7 | H41: 347.7 | I41: 347.7 | J41: 347.7 | K41: 347.7 | L41: 347.7
A42: Capacity | B42: MW | C42: Natural Gas | D42: 0 | E42: Dominican Republic | F42: 555 | G42: 555 | H42: 555 | I42: 555 | J42: 555 | K42: 688.6 | L42: 688.6
A43: Capacity | B43: MW | C43: Natural Gas | D43: 0 | E43: Ecuador | F43: 151.9 | G43: 154.5 | H43: 154.5 | I43: 181.87 | J43: 181.87 | K43: 168.05 | L43: 304.85
A44: Capacity | B44: MW | C44: Natural Gas | D44: 0 | E44: El Salvador | F44: 0 | G44: 0 | H44: 0 | I44: 0 | J44: 0 | K44: 0 | L44: 0
A45: Capacity | B45: MW | C45: Natural Gas | D45: 0 | E45: Guatemala | F45: 0 | G45: 0 | H45: 0 | I45: 0 | J45: 0 | K45: 0 | L45: 0
A46: Capacity | B46: MW | C46: Natural Gas | D46: 0 | E46: Guyana | F46: 0 | G46: 0 | H46: 0 | I46: 0 | J46: 0 | K46: 0 | L46: 0
A47: Capacity | B47: MW | C47: Natural Gas | D47: 0 | E47: Haiti | F47: 0 | G47: 0 | H47: 0 | I47: 0 | J47: 0 | K47: 0 | L47: 0
A48: Capacity | B48: MW | C48: Natural Gas | D48: 0 | E48: Honduras | F48: 69.5 | G48: 72.5 | H48: 72.5 | I48: 72.5 | J48: 72.5 | K48: 72.5 | L48: 72.5
A49: Capacity | B49: MW | C49: Natural Gas | D49: 0 | E49: Jamaica | F49: 0 | G49: 0 | H49: 0 | I49: 0 | J49: 0 | K49: 0 | L49: 0
A50: Capacity | B50: MW | C50: Natural Gas | D50: 0 | E50: Mexico | F50: 22471.04443 | G50: 25066.89042 | H50: 25429.00641 | I50: 26384.62645 | J50: 26886.00225 | K50: 26690.72289 | L50: 27430.19502
A51: Capacity | B51: MW | C51: Natural Gas | D51: 0 | E51: Nicaragua | F51: 0 | G51: 0 | H51: 0 | I51: 0 | J51: 0 | K51: 0 | L51: 0
A52: Capacity | B52: MW | C52: Natural Gas | D52: 0 | E52: Panama | F52: 0 | G52: 0 | H52: 0 | I52: 0 | J52: 0 | K52: 0 | L52: 0
A53: Capacity | B53: MW | C53: Natural Gas | D53: 0 | E53: Paraguay | F53: 0 | G53: 0 | H53: 0 | I53: 0 | J53: 0 | K53: 0 | L53: 0
A54: Capacity | B54: MW | C54: Natural Gas | D54: 0 | E54: Peru | F54: 684.89 | G54: 1048.43 | H54: 1117.534 | I54: 1582.199 | J54: 2065.503 | K54: 2065.503 | L54: 2615.703
A55: Capacity | B55: MW | C55: Natural Gas | D55: 0 | E55: Suriname | F55: 0 | G55: 0 | H55: 0 | I55: 0 | J55: 0 | K55: 0 | L55: 0
A56: Capacity | B56: MW | C56: Natural Gas | D56: 0 | E56: Trinidad & Tobago | F56: 3439 | G56: 3647 | H56: 3647 | I56: 3647 | J56: 3575 | K56: 3549.82 | L56: 4232.4
A57: Capacity | B57: MW | C57: Natural Gas | D57: 0 | E57: Uruguay | F57: 0 | G57: 0 | H57: 0 | I57: 0 | J57: 0 | K57: 0 | L57: 0
A58: Capacity | B58: MW | C58: Natural Gas | D58: 0 | E58: Venezuela | F58: 3805.44 | G58: 3805.44 | H58: 4107.36 | I58: 4368.48 | J58: 4911.36 | K58: 5319.84 | L58: 6179.52
A59: Capacity | B59: MW | C59: Oil & Diesel | D59: 0 | E59: Argentina | F59: 324.227 | G59: 376.087 | H59: 666.605 | I59: 732.737 | J59: 881.577 | K59: 1096.307 | L59: 1096.307
A60: Capacity | B60: MW | C60: Oil & Diesel | D60: 0 | E60: Bahamas | F60: 0 | G60: 0 | H60: 0 | I60: 450 | J60: 450 | K60: 575 | L60: 575
A61: Capacity | B61: MW | C61: Oil & Diesel | D61: 0 | E61: Barbados | F61: 239.1 | G61: 239.1 | H61: 239.1 | I61: 239.1 | J61: 239.1 | K61: 239.1 | L61: 239.1
A62: Capacity | B62: MW | C62: Oil & Diesel | D62: 0 | E62: Belize | F62: 36.9 | G62: 36.2 | H62: 37 | I62: 56.2 | J62: 54.8 | K62: 50.8 | L62: 50.8
A63: Capacity | B63: MW | C63: Oil & Diesel | D63: 0 | E63: Bolivia | F63: 57.3 | G63: 64.7 | H63: 59.3 | I63: 74.1 | J63: 63.8 | K63: 82 | L63: 82
A64: Capacity | B64: MW | C64: Oil & Diesel | D64: 0 | E64: Brazil | F64: 4995.36375 | G64: 5021.445 | H64: 5266.2 | I64: 5902 | J64: 7370 | K64: 7267 | L64: 10767.6
A65: Capacity | B65: MW | C65: Oil & Diesel | D65: 0 | E65: Chile | F65: 661.757405 | G65: 913.797405 | H65: 1105.497405 | I65: 2409.143205 | J65: 2555.020305 | K65: 2596.658305 | L65: 2836.658305
A66: Capacity | B66: MW | C66: Oil & Diesel | D66: 0 | E66: Colombia | F66: 0 | G66: 0 | H66: 619 | I66: 621 | J66: 621 | K66: 972 | L66: 1031
A67: Capacity | B67: MW | C67: Oil & Diesel | D67: 0 | E67: Costa Rica | F67: 65.169 | G67: 65.169 | H67: 244.217 | I67: 244.217 | J67: 446.617 | K67: 264.901 | L67: 274.089
A68: Capacity | B68: MW | C68: Oil & Diesel | D68: 0 | E68: Dominican Republic | F68: 2056.2 | G68: 2056.2 | H68: 1805.1 | I68: 1798.9 | J68: 1795.8 | K68: 1799.87 | L68: 1799.87
A69: Capacity | B69: MW | C69: Oil & Diesel | D69: 0 | E69: Ecuador | F69: 1884.75 | G69: 2015.41 | H69: 2037.34 | I69: 2308.85 | J69: 2418.89 | K69: 2453.39 | L69: 2564.94
A70: Capacity | B70: MW | C70: Oil & Diesel | D70: 0 | E70: El Salvador | F70: 603.5 | G70: 635.4 | H70: 642.2 | I70: 691.2 | J70: 691.2 | K70: 696.7 | L70: 696.7
A71: Capacity | B71: MW | C71: Oil & Diesel | D71: 0 | E71: Guatemala | F71: 1137.118 | G71: 1152.862 | H71: 1213.162 | I71: 1213.162 | J71: 1213.162 | K71: 1213.162 | L71: 1213.162
A72: Capacity | B72: =IF(A72="Capacity", "MW", "GWh") -> MW | C72: Oil & Diesel | D72: 0 | E72: Guyana | F72: 133.66 | G72: 131.95 | H72: 147.52 | I72: 160.32 | J72: 158.4 | K72: 205.7 | L72: 158.4
A73: Capacity | B73: MW | C73: Oil & Diesel | D73: 0 | E73: Haiti | F73: 0 | G73: 0 | H73: 0 | I73: 0 | J73: 0 | K73: 71.2 | L73: 186
A74: Capacity | B74: MW | C74: Oil & Diesel | D74: 0 | E74: Honduras | F74: 908.4 | G74: 908.4 | H74: 912.8 | I74: 912 | J74: 912 | K74: 911.5 | L74: 911.9
A75: Capacity | B75: MW | C75: Oil & Diesel | D75: =IF(C75="","",IF(OR(C75="Wind",C75="Solar",C75="Geothermal",C75="Small Hydro",C75="Biofuels",C75="Biomass & Waste"), 1, 0)) -> 0 | E75: Jamaica | F75: 796.16 | G75: 796.16 | H75: 796.16 | I75: 796.16 | J75: 808.16 | K75: 808.16 | L75: 873.66
A76: Capacity | B76: MW | C76: Oil & Diesel | D76: 0 | E76: Mexico | F76: 16347.31682 | G76: 16338.97583 | H76: 16441.46384 | I76: 16536.0088 | J76: 17246.41698 | K76: 17332.72836 | L76: 16720.86623
A77: Capacity | B77: MW | C77: Oil & Diesel | D77: 0 | E77: Nicaragua | F77: 449.12 | G77: 517.12 | H77: 576.36 | I77: 627.15 | J77: 694.99 | K77: 730.69 | L77: 736.21
A78: Capacity | B78: MW | C78: Oil & Diesel | D78: 0 | E78: Panama | F78: 661.993 | G78: 702.432 | H78: 835.832 | I78: 935.832 | J78: 1051.81 | K78: 1008.02 | L78: 955.01
A79: Capacity | B79: MW | C79: Oil & Diesel | D79: 0 | E79: Paraguay | F79: 17 | G79: 17 | H79: 17 | I79: 17 | J79: 17 | K79: 17 | L79: 17
A80: Capacity | B80: MW | C80: Oil & Diesel | D80: 0 | E80: Peru | F80: 1343.925 | G80: 1329.767 | H80: 1362.923 | I80: 1434.922 | J80: 1417.994 | K80: 1393.994 | L80: 1374.194
A81: Capacity | B81: MW | C81: Oil & Diesel | D81: 0 | E81: Suriname | F81: 0 | G81: 0 | H81: 0 | I81: 0 | J81: 0 | K81: 0 | L81: 0
A82: Capacity | B82: MW | C82: Oil & Diesel | D82: 0 | E82: Trinidad & Tobago | F82: 22.1 | G82: 22.1 | H82: 22.1 | I82: 86.1 | J82: 86.1 | K82: 86.1 | L82: 86.1
A83: Capacity | B83: MW | C83: Oil & Diesel | D83: 0 | E83: Uruguay | F83: 693.25 | G83: 692.25 | H83: 795.45 | I83: 876.2 | J83: 874.2 | K83: 874.2 | L83: 1024.2
A84: Capacity | B84: MW | C84: Oil & Diesel | D84: 0 | E84: Venezuela | F84: 4122.56 | G84: 4122.56 | H84: 4449.64 | I84: 4732.52 | J84: 5320.64 | K84: 5763.16 | L84: 6694.48
A85: Capacity | B85: MW | C85: Coal | D85: 0 | E85: Argentina | F85: 0 | G85: 0 | H85: 0 | I85: 0 | J85: 0 | K85: 0 | L85: 0
A86: Capacity | B86: MW | C86: Coal | D86: 0 | E86: Bahamas | F86: 0 | G86: 0 | H86: 0 | I86: 0 | J86: 0 | K86: 0 | L86: 0
A87: Capacity | B87: MW | C87: Coal | D87: 0 | E87: Barbados | F87: 0 | G87: 0 | H87: 0 | I87: 0 | J87: 0 | K87: 0 | L87: 0
A88: Capacity | B88: MW | C88: Coal | D88: 0 | E88: Belize | F88: 0 | G88: 0 | H88: 0 | I88: 0 | J88: 0 | K88: 0 | L88: 0
A89: Capacity | B89: MW | C89: Coal | D89: 0 | E89: Bolivia | F89: 0 | G89: 0 | H89: 0 | I89: 0 | J89: 0 | K89: 0 | L89: 0
A90: Capacity | B90: MW | C90: Coal | D90: 0 | E90: Brazil | F90: 1665.12125 | G90: 1673.815 | H90: 1755.4 | I90: 1530 | J90: 2090 | K90: 1944 | L90: 2304.2
A91: Capacity | B91: MW | C91: Coal | D91: 0 | E91: Chile | F91: 1573.003 | G91: 1573.003 | H91: 1573.003 | I91: 1575.003 | J91: 2380.603 | K91: 3175.406 | L91: 3795.406
A92: Capacity | B92: MW | C92: Coal | D92: 0 | E92: Colombia | F92: 722.8 | G92: 776.7 | H92: 1044.6 | I92: 1067.4 | J92: 1073.4 | K92: 991 | L92: 997
A93: Capacity | B93: MW | C93: Coal | D93: 0 | E93: Costa Rica | F93: 0 | G93: 0 | H93: 0 | I93: 0 | J93: 0 | K93: 0 | L93: 0
A94: Capacity | B94: MW | C94: Coal | D94: 0 | E94: Dominican Republic | F94: 313.6 | G94: 313.6 | H94: 313.6 | I94: 313.63 | J94: 313.63 | K94: 313.63 | L94: 313.6
A95: Capacity | B95: MW | C95: Coal | D95: 0 | E95: Ecuador | F95: 0 | G95: 0 | H95: 0 | I95: 0 | J95: 0 | K95: 0 | L95: 0
A96: Capacity | B96: MW | C96: Coal | D96: 0 | E96: El Salvador | F96: 0 | G96: 0 | H96: 0 | I96: 0 | J96: 0 | K96: 0 | L96: 0
A97: Capacity | B97: MW | C97: Coal | D97: 0 | E97: Guatemala | F97: 139 | G97: 139 | H97: 159 | I97: 159 | J97: 159 | K97: 159 | L97: 242
A98: Capacity | B98: MW | C98: Coal | D98: 0 | E98: Guyana | F98: 0 | G98: 0 | H98: 0 | I98: 0 | J98: 0 | K98: 0 | L98: 0
A99: Capacity | B99: MW | C99: Coal | D99: 0 | E99: Haiti | F99: 0 | G99: 0 | H99: 0 | I99: 0 | J99: 0 | K99: 0 | L99: 0
A100: Capacity | B100: MW | C100: Coal | D100: 0 | E100: Honduras | F100: 0 | G100: 0 | H100: 8 | I100: 8 | J100: 8 | K100: 21 | L100: 21
A101: Capacity | B101: MW | C101: Coal | D101: 0 | E101: Jamaica | F101: 0 | G101: 0 | H101: 0 | I101: 0 | J101: 0 | K101: 0 | L101: 0
A102: Capacity | B102: MW | C102: Coal | D102: 0 | E102: Mexico | F102: 2600 | G102: 2665 | H102: 2665 | I102: 2665 | J102: 2665 | K102: 2665 | L102: 2665
A103: Capacity | B103: MW | C103: Coal | D103: 0 | E103: Nicaragua | F103: 0 | G103: 0 | H103: 0 | I103: 0 | J103: 0 | K103: 0 | L103: 0
A104: Capacity | B104: MW | C104: Coal | D104: 0 | E104: Panama | F104: 0 | G104: 0 | H104: 0 | I104: 0 | J104: 0 | K104: 0 | L104: 0
A105: Capacity | B105: MW | C105: Coal | D105: 0 | E105: Paraguay | F105: 0 | G105: 0 | H105: 0 | I105: 0 | J105: 0 | K105: 0 | L105: 0
A106: Capacity | B106: MW | C106: Coal | D106: 0 | E106: Peru | F106: 156.829 | G106: 156.829 | H106: 156.873 | I106: 156.873 | J106: 150 | K106: 150 | L106: 150
A107: Capacity | B107: MW | C107: Coal | D107: 0 | E107: Suriname | F107: 0 | G107: 0 | H107: 0 | I107: 0 | J107: 0 | K107: 0 | L107: 0
A108: Capacity | B108: MW | C108: Coal | D108: 0 | E108: Trinidad & Tobago | F108: 0 | G108: 0 | H108: 0 | I108: 0 | J108: 0 | K108: 0 | L108: 0
A109: Capacity | B109: MW | C109: Coal | D109: 0 | E109: Uruguay | F109: 0 | G109: 0 | H109: 0 | I109: 0 | J109: 0 | K109: 0 | L109: 0
A110: Capacity | B110: MW | C110: Coal | D110: 0 | E110: Venezuela | F110: 0 | G110: 0 | H110: 0 | I110: 0 | J110: 0 | K110: 0 | L110: 0
A111: Capacity | B111: MW | C111: Small Hydro | D111: 1 | E111: Argentina | F111: 506.742 | G111: 492.843 | H111: 494.443 | I111: 494.194 | J111: 495.117 | K111: 494.973 | L111: 494.973
A112: Capacity | B112: MW | C112: Small Hydro | D112: 1 | E112: Bahamas | F112: 0 | G112: 0 | H112: 0 | I112: 0 | J112: 0 | K112: 0 | L112: 0
A113: Capacity | B113: MW | C113: Small Hydro | D113: 1 | E113: Barbados | F113: 0 | G113: 0 | H113: 0 | I113: 0 | J113: 0 | K113: 0 | L113: 0
A114: Capacity | B114: MW | C114: Small Hydro | D114: 1 | E114: Belize | F114: 32.2 | G114: 35.3 | H114: 35.3 | I114: 35.3 | J114: 54.3 | K114: 54.3 | L114: 54.3
A115: Capacity | B115: MW | C115: Small Hydro | D115: 1 | E115: Bolivia | F115: 282.6 | G115: 282.6 | H115: 285.4 | I115: 285.4 | J115: 285.4 | K115: 286.3 | L115: 286.3
A116: Capacity | B116: MW | C116: Small Hydro | D116: 1 | E116: Brazil | F116: 1673 | G116: 1932 | H116: 2644 | I116: 3126 | J116: 3613 | K116: 3989 | L116: 4247.8
A117: Capacity | B117: MW | C117: Small Hydro | D117: 1 | E117: Chile | F117: 474.34425 | G117: 525.50425 | H117: 558.31925 | I117: 578.77925 | J117: 605.93925 | K117: 654.8235 | L117: 687.8235
A118: Capacity | B118: MW | C118: Small Hydro | D118: 1 | E118: Colombia | F118: 438.5 | G118: 463.1 | H118: 468.3 | I118: 472 | J118: 518.8 | K118: 533 | L118: 594
A119: Capacity | B119: MW | C119: Small Hydro | D119: 1 | E119: Costa Rica | F119: 478.542 | G119: 512.5762 | H119: 530.0762 | I119: 550.9262 | J119: 550.9262 | K119: 551.4352 | L119: 588.4102
A120: Capacity | B120: MW | C120: Small Hydro | D120: 1 | E120: Dominican Republic | F120: 169.3 | G120: 169.3 | H120: 172.3 | I120: 223.15 | J120: 223.15 | K120: 219.7 | L120: 227
A121: Capacity | B121: MW | C121: Small Hydro | D121: 1 | E121: Ecuador | F121: 277.29 | G121: 305.24 | H121: 305.02 | I121: 307.66 | J121: 307.54 | K121: 299.04 | L121: 338.22
A122: Capacity | B122: MW | C122: Small Hydro | D122: 1 | E122: El Salvador | F122: 12.3 | G122: 33.5 | H122: 33.5 | I122: 33.5 | J122: 34.3 | K122: 34.3 | L122: 34.3
A123: Capacity | B123: MW | C123: Small Hydro | D123: 1 | E123: Guatemala | F123: 208.322 | G123: 234.322 | H123: 234.482 | I123: 237.982 | J123: 242.52 | K123: 284.4 | L123: 288.86
A124: Capacity | B124: MW | C124: Small Hydro | D124: 1 | E124: Guyana | F124: 0 | G124: 0 | H124: 0 | I124: 0 | J124: 0 | K124: 0 | L124: 0
A125: Capacity | B125: MW | C125: Small Hydro | D125: 1 | E125: Haiti | F125: 0 | G125: 0 | H125: 0 | I125: 0 | J125: 0 | K125: 48 | L125: 55
A126: Capacity | B126: MW | C126: Small Hydro | D126: 1 | E126: Honduras | F126: 123 | G126: 139.7 | H126: 142 | I126: 147 | J126: 146.5 | K126: 149.18 | L126: 157.79
A127: Capacity | B127: MW | C127: Small Hydro | D127: 1 | E127: Jamaica | F127: 21.7 | G127: 22.8 | H127: 22.8 | I127: 22.8 | J127: 22.8 | K127: 22.8 | L127: 22.8
A128: Capacity | B128: MW | C128: Small Hydro | D128: 1 | E128: Mexico | F128: 289.828 | G128: 316.828 | H128: 323.988 | I128: 391.9704 | J128: 515.5123983 | K128: 519.53 | L128: 567.912
A129: Capacity | B129: MW | C129: Small Hydro | D129: 1 | E129: Nicaragua | F129: 50.23 | G129: 50.9 | H129: 50.9 | I129: 50.9 | J129: 50.9 | K129: 50.9 | L129: 50.9
A130: Capacity | B130: MW | C130: Small Hydro | D130: 1 | E130: Panama | F130: 106.535 | G130: 63.745 | H130: 74.249 | I130: 84.109 | J130: 200.03 | K130: 274.38 | L130: 279.8
A131: Capacity | B131: MW | C131: Small Hydro | D131: 1 | E131: Paraguay | F131: 0 | G131: 0 | H131: 0 | I131: 0 | J131: 0 | K131: 0 | L131: 0
A132: Capacity | B132: MW | C132: Small Hydro | D132: 1 | E132: Peru | F132: 491.787 | G132: 493.95 | H132: 501.082 | I132: 536.221 | J132: 532.176 | K132: 542.676 | L132: 573.376
A133: Capacity | B133: MW | C133: Small Hydro | D133: 1 | E133: Suriname | F133: 0 | G133: 0 | H133: 0 | I133: 0 | J133: 0 | K133: 0 | L133: 0
A134: Capacity | B134: MW | C134: Small Hydro | D134: 1 | E134: Trinidad & Tobago | F134: 0 | G134: 0 | H134: 0 | I134: 0 | J134: 0 | K134: 0 | L134: 0
A135: Capacity | B135: MW | C135: Small Hydro | D135: 1 | E135: Uruguay | F135: 0 | G135: 0 | H135: 0 | I135: 0 | J135: 0 | K135: 0 | L135: 0
A136: Capacity | B136: =IF(A136="Capacity", "MW", "GWh") -> MW | C136: Small Hydro | D136: 1 | E136: Venezuela | F136: 0 | G136: 0 | H136: 0 | I136: 26.33 | J136: 26.33 | K136: 26.33 | L136: 26.33
A137: Capacity | B137: MW | C137: Wind | D137: 1 | E137: Argentina | F137: 27.831 | G137: 27.827 | H137: 27.8312 | I137: 27.8312 | J137: 29.8312 | K137: 61.5796 | L137: 61.5796
A138: Capacity | B138: MW | C138: Wind | D138: 1 | E138: Bahamas | F138: 0 | G138: 0 | H138: 0 | I138: 0 | J138: 0 | K138: 0 | L138: 0
A139: Capacity | B139: MW | C139: Wind | D139: =IF(C139="","",IF(OR(C139="Wind",C139="Solar",C139="Geothermal",C139="Small Hydro",C139="Biofuels",C139="Biomass & Waste"), 1, 0)) -> 1 | E139: Barbados | F139: 0 | G139: 0 | H139: 0 | I139: 0 | J139: 0 | K139: 0 | L139: 0
A140: Capacity | B140: MW | C140: Wind | D140: 1 | E140: Belize | F140: 0 | G140: 0 | H140: 0 | I140: 0 | J140: 0 | K140: 0 | L140: 0
A141: Capacity | B141: MW | C141: Wind | D141: 1 | E141: Bolivia | F141: 0 | G141: 0 | H141: 0 | I141: 0 | J141: 0 | K141: 0 | L141: 0
A142: Capacity | B142: MW | C142: Wind | D142: 1 | E142: Brazil | F142: 237 | G142: 247 | H142: 398 | I142: 602 | J142: 927 | K142: 1250 | L142: 1815.7
A143: Capacity | B143: MW | C143: Wind | D143: 1 | E143: Chile | F143: 1.98 | G143: 19.9485 | H143: 19.9485 | I143: 85.8265 | J143: 178.8865 | K143: 198.6865 | L143: 198.6865
A144: Capacity | B144: MW | C144: Wind | D144: 1 | E144: Colombia | F144: 18.4 | G144: 18.4 | H144: 18.4 | I144: 18.4 | J144: 18.4 | K144: 18.4 | L144: 18.4
A145: Capacity | B145: MW | C145: Wind | D145: 1 | E145: Costa Rica | F145: 66 | G145: 66 | H145: 66 | I145: 91.2 | J145: 91.2 | K145: 132.78 | L145: 143.55
A146: Capacity | B146: MW | C146: Wind | D146: 1 | E146: Dominican Republic | F146: 0 | G146: 0 | H146: 0 | I146: 0 | J146: 0 | K146: 33.45 | L146: 33.45
A147: Capacity | B147: MW | C147: Wind | D147: 1 | E147: Ecuador | F147: 0 | G147: 2.4 | H147: 2.4 | I147: 2.4 | J147: 2.4 | K147: 2.4 | L147: 2.4
A148: Capacity | B148: MW | C148: Wind | D148: 1 | E148: El Salvador | F148: 0 | G148: 0 | H148: 0 | I148: 0 | J148: 0 | K148: 0 | L148: 0
A149: Capacity | B149: MW | C149: Wind | D149: 1 | E149: Guatemala | F149: 0 | G149: 0 | H149: 0 | I149: 0 | J149: 0 | K149: 0 | L149: 0
A150: Capacity | B150: MW | C150: Wind | D150: 1 | E150: Guyana | F150: 0 | G150: 0 | H150: 0 | I150: 0 | J150: 0 | K150: 0 | L150: 0
A151: Capacity | B151: MW | C151: Wind | D151: 1 | E151: Haiti | F151: 0 | G151: 0 | H151: 0 | I151: 0 | J151: 0 | K151: 0 | L151: 0
A152: Capacity | B152: MW | C152: Wind | D152: 1 | E152: Honduras | F152: 0 | G152: 0 | H152: 0 | I152: 0 | J152: 0 | K152: 102 | L152: 102
A153: Capacity | B153: MW | C153: Wind | D153: 1 | E153: Jamaica | F153: 20.7 | G153: 20.7 | H153: 20.7 | I153: 20.7 | J153: 23.7 | K153: 41.7 | L153: 41.7
A154: Capacity | B154: MW | C154: Wind | D154: 1 | E154: Mexico | F154: 2.175 | G154: 85.475 | H154: 85.25 | I154: 494.7 | J154: 593.55 | K154: 675.05 | L154: 1288.7
A155: Capacity | B155: MW | C155: Wind | D155: 1 | E155: Nicaragua | F155: 0 | G155: 0 | H155: 0 | I155: 40 | J155: 63 | K155: 63 | L155: 102.6
A156: Capacity | B156: MW | C156: Wind | D156: 1 | E156: Panama | F156: 0 | G156: 0 | H156: 0 | I156: 0 | J156: 0 | K156: 0 | L156: 0
A157: Capacity | B157: MW | C157: Wind | D157: 1 | E157: Paraguay | F157: 0 | G157: 0 | H157: 0 | I157: 0 | J157: 0 | K157: 0 | L157: 0
A158: Capacity | B158: MW | C158: Wind | D158: 1 | E158: Peru | F158: 0 | G158: 0 | H158: 0 | I158: 0 | J158: 0 | K158: 0 | L158: 0
A159: Capacity | B159: MW | C159: Wind | D159: 1 | E159: Suriname | F159: 0 | G159: 0 | H159: 0 | I159: 0 | J159: 0 | K159: 0 | L159: 0
A160: Capacity | B160: MW | C160: Wind | D160: 1 | E160: Trinidad & Tobago | F160: 0 | G160: 0 | H160: 0 | I160: 0 | J160: 0 | K160: 0 | L160: 0
A161: Capacity | B161: MW | C161: Wind | D161: 1 | E161: Uruguay | F161: 0 | G161: 0 | H161: 14.45 | I161: 30.45 | J161: 40.45 | K161: 43.455 | L161: 52.455
A162: Capacity | B162: MW | C162: Wind | D162: 1 | E162: Venezuela | F162: 0 | G162: 0 | H162: 0 | I162: 0 | J162: 0 | K162: 0 | L162: 6.3
A163: Capacity | B163: MW | C163: Solar | D163: 1 | E163: Argentina | F163: 0.025 | G163: 0.025 | H163: 0.025 | I163: 0.025 | J163: 0.025 | K163: 1.2259 | L163: 1.2259
A164: Capacity | B164: MW | C164: Solar | D164: 1 | E164: Bahamas | F164: 0 | G164: 0 | H164: 0 | I164: 0 | J164: 0 | K164: 0 | L164: 0
A165: Capacity | B165: MW | C165: Solar | D165: 1 | E165: Barbados | F165: 0 | G165: 0 | H165: 0 | I165: 0 | J165: 0 | K165: 0 | L165: 0
A166: Capacity | B166: MW | C166: Solar | D166: 1 | E166: Belize | F166: 0 | G166: 0 | H166: 0 | I166: 0 | J166: 0 | K166: 0 | L166: 0.48
A167: Capacity | B167: MW | C167: Solar | D167: 1 | E167: Bolivia | F167: 0 | G167: 0 | H167: 0 | I167: 0 | J167: 0 | K167: 0 | L167: 0
A168: Capacity | B168: MW | C168: Solar | D168: 1 | E168: Brazil | F168: 0 | G168: 0 | H168: 0 | I168: 0 | J168: 1 | K168: 1.1 | L168: 1.5
A169: Capacity | B169: MW | C169: Solar | D169: 1 | E169: Chile | F169: 0 | G169: 0 | H169: 0 | I169: 0 | J169: 0 | K169: 0 | L169: 2.6
A170: Capacity | B170: MW | C170: Solar | D170: 1 | E170: Colombia | F170: 0 | G170: 0 | H170: 0 | I170: 0 | J170: 0 | K170: 0 | L170: 0
A171: Capacity | B171: MW | C171: Solar | D171: 1 | E171: Costa Rica | F171: 0 | G171: 0 | H171: 0 | I171: 0 | J171: 0 | K171: 0 | L171: 1.01
A172: Capacity | B172: MW | C172: Solar | D172: 1 | E172: Dominican Republic | F172: 0 | G172: 0 | H172: 0 | I172: 0 | J172: 0 | K172: 0 | L172: 0
A173: Capacity | B173: MW | C173: Solar | D173: 1 | E173: Ecuador | F173: 0.02 | G173: 0.02 | H173: 0.02 | I173: 0.02 | J173: 0.02 | K173: 0.05 | L173: 0.09
A174: Capacity | B174: MW | C174: Solar | D174: 1 | E174: El Salvador | F174: 0 | G174: 0 | H174: 0 | I174: 0 | J174: 0 | K174: 0 | L174: 0
A175: Capacity | B175: MW | C175: Solar | D175: 1 | E175: Guatemala | F175: 0 | G175: 0 | H175: 0 | I175: 0 | J175: 0 | K175: 0 | L175: 0
A176: Capacity | B176: MW | C176: Solar | D176: 1 | E176: Guyana | F176: 0 | G176: 0 | H176: 0 | I176: 0 | J176: 0 | K176: 0 | L176: 0
A177: Capacity | B177: MW | C177: Solar | D177: 1 | E177: Haiti | F177: 0 | G177: 0 | H177: 0 | I177: 0 | J177: 0 | K177: 0 | L177: 0
A178: Capacity | B178: MW | C178: Solar | D178: 1 | E178: Honduras | F178: 0 | G178: 0 | H178: 0 | I178: 0 | J178: 0 | K178: 0 | L178: 0
A179: Capacity | B179: MW | C179: Solar | D179: 1 | E179: Jamaica | F179: 0 | G179: 0 | H179: 0 | I179: 0 | J179: 0 | K179: 0 | L179: 0
A180: Capacity | B180: MW | C180: Solar | D180: 1 | E180: Mexico | F180: 0 | G180: 0 | H180: 0 | I180: 0 | J180: 0 | K180: 0 | L180: 3.26
A181: Capacity | B181: MW | C181: Solar | D181: 1 | E181: Nicaragua | F181: 0 | G181: 0 | H181: 0 | I181: 0 | J181: 0 | K181: 0 | L181: 0
A182: Capacity | B182: MW | C182: Solar | D182: 1 | E182: Panama | F182: 0 | G182: 0 | H182: 0 | I182: 0 | J182: 0 | K182: 0 | L182: 0
A183: Capacity | B183: MW | C183: Solar | D183: 1 | E183: Paraguay | F183: 0 | G183: 0 | H183: 0 | I183: 0 | J183: 0 | K183: 0 | L183: 0
A184: Capacity | B184: MW | C184: Solar | D184: 1 | E184: Peru | F184: 0 | G184: 0 | H184: 0 | I184: 0 | J184: 0 | K184: 0 | L184: 80
A185: Capacity | B185: MW | C185: Solar | D185: 1 | E185: Suriname | F185: 0 | G185: 0 | H185: 0 | I185: 0 | J185: 0 | K185: 0 | L185: 0
A186: Capacity | B186: MW | C186: Solar | D186: 1 | E186: Trinidad & Tobago | F186: 0 | G186: 0 | H186: 0 | I186: 0 | J186: 0 | K186: 0 | L186: 0
A187: Capacity | B187: MW | C187: Solar | D187: 1 | E187: Uruguay | F187: 0 | G187: 0 | H187: 0 | I187: 0 | J187: 0 | K187: 0.02785 | L187: 0.10798
A188: Capacity | B188: MW | C188: Solar | D188: 1 | E188: Venezuela | F188: 0 | G188: 0 | H188: 0 | I188: 0 | J188: 0 | K188: 0 | L188: 0
A189: Capacity | B189: MW | C189: Geothermal | D189: 1 | E189: Argentina | F189: 0.6 | G189: 0.6 | H189: 0.6 | I189: 0 | J189: 0 | K189: 0 | L189: 0
A190: Capacity | B190: MW | C190: Geothermal | D190: 1 | E190: Bahamas | F190: 0 | G190: 0 | H190: 0 | I190: 0 | J190: 0 | K190: 0 | L190: 0
A191: Capacity | B191: MW | C191: Geothermal | D191: 1 | E191: Barbados | F191: 0 | G191: 0 | H191: 0 | I191: 0 | J191: 0 | K191: 0 | L191: 0
A192: Capacity | B192: MW | C192: Geothermal | D192: 1 | E192: Belize | F192: 0 | G192: 0 | H192: 0 | I192: 0 | J192: 0 | K192: 0 | L192: 0
A193: Capacity | B193: MW | C193: Geothermal | D193: 1 | E193: Bolivia | F193: 0 | G193: 0 | H193: 0 | I193: 0 | J193: 0 | K193: 0 | L193: 0
A194: Capacity | B194: MW | C194: Geothermal | D194: 1 | E194: Brazil | F194: 0 | G194: 0 | H194: 0 | I194: 0 | J194: 0 | K194: 0 | L194: 0
A195: Capacity | B195: MW | C195: Geothermal | D195: 1 | E195: Chile | F195: 0 | G195: 0 | H195: 0 | I195: 0 | J195: 0 | K195: 0 | L195: 0
A196: Capacity | B196: MW | C196: Geothermal | D196: 1 | E196: Colombia | F196: 0 | G196: 0 | H196: 0 | I196: 0 | J196: 0 | K196: 0 | L196: 0
A197: Capacity | B197: MW | C197: Geothermal | D197: 1 | E197: Costa Rica | F197: 163.66 | G197: 163.66 | H197: 163.66 | I197: 163.66 | J197: 163.66 | K197: 217.46 | L197: 208.66
A198: Capacity | B198: MW | C198: Geothermal | D198: 1 | E198: Dominican Republic | F198: 0 | G198: 0 | H198: 0 | I198: 0 | J198: 0 | K198: 0 | L198: 0
A199: Capacity | B199: MW | C199: Geothermal | D199: 1 | E199: Ecuador | F199: 0 | G199: 0 | H199: 0 | I199: 0 | J199: 0 | K199: 0 | L199: 0
A200: Capacity | B200: =IF(A200="Capacity", "MW", "GWh") -> MW | C200: Geothermal | D200: 1 | E200: El Salvador | F200: 151.2 | G200: 204.4 | H200: 204.4 | I200: 204.4 | J200: 204.4 | K200: 204.4 | L200: 204.4
A201: Capacity | B201: MW | C201: Geothermal | D201: 1 | E201: Guatemala | F201: 24 | G201: 49.2 | H201: 49.2 | I201: 49.2 | J201: 49.2 | K201: 49.2 | L201: 49.2
A202: Capacity | B202: MW | C202: Geothermal | D202: 1 | E202: Guyana | F202: 0 | G202: 0 | H202: 0 | I202: 0 | J202: 0 | K202: 0 | L202: 0
... 2496 more rows

Sheet Investment (hidden)
A1: BNEF DESKTOP DEALS DATABASE | I1: BNEF DATABASE
A4: Database Summary | I4: BNEF Clean Energy Investment Database
A5: Year | B5: Month | C5: Quarter | D5: Period | E5: Country | F5: Sector | G5: Deal Type | H5: Value | I5: Type | J5: Channel | K5: DealID | L5: TargetOrg | M5: Country(for PM StockExchCountry) | N5: CountryGrouped | O5: Continent | P5: Region | Q5: OECD/non-OECD | R5: Tradeblock | S5: Sector | T5: SectorGrouped | U5: Subsector | V5: Technology | W5: BusinessModel (for PM, target country/for AF, transType) | X5: FinancingType | Y5: FinancingType_Grouped | Z5: Date | AA5: CapacityMW | AB5: CapacityMWth | AC5: CapacityNm3/hr | AD5: CapacityMLPA | AE5: TransactionValue | AF5: Grossedup | AG5: Grossedup & Buffered
A6: =IF(K6="","",IF(AND(YEAR(Z6)<2004,YEAR(Z6)>1910),2004,YEAR(Z6))) -> 2010 | B6: =IF(K6="","",IF(ISNUMBER(Z6),MONTH(Z6),0)) -> 3 | C6: =IF(K6="","",IF(AND(B6>=1,B6<=3),"Q1",IF(AND(B6>3,B6<=6),"Q2",IF(AND(B6>6,B6<=9),"Q3",IF(AND(B6>9,B6<=12),"Q4",0))))) -> Q1 | D6: =IF(A6<2006, "< 2006", A6&C6) -> 2010Q1 | E6: =IF(K6="","", M6) -> Brazil | F6: =IF(K6="","",IF(OR(T6="Wind",T6="Solar",T6="Geothermal",T6="Small Hydro",T6="Biofuels",T6="Biomass & Waste"),T6,"Other Clean Energy")) -> Biofuels | G6: =IF(K6="","",IF(OR(J6="PM",J6="MA"), "Corporate finance investments", IF(J6="VCPE", "VC/PE investments", IF(J6="AF", "Asset finance investments")))) -> Corporate finance investments | H6: =IF(K6="","",AG6) -> 1176.977007 | I6: Acquisition transactions | J6: MA | K6: MA2225 | L6: Renuka do Brasil SA | M6: Brazil | N6: Brazil | O6: Central & South America | P6: AMER | Q6: non-OECD | R6: BASIC | S6: Biofuels | T6: Biofuels | U6: Gasoline/Petrol Substitute | V6: 0 | W6: Fuel production/procurement | X6: Equity (company) | Z6: 2010-03-22 | AA6: na | AB6: na | AC6: na | AD6: na | AE6: 1176.1 | AF6: 1176.1 | AG6: 1176.977007
A7: 2009 | B7: 2 | C7: Q1 | D7: 2009Q1 | E7: Brazil | F7: =IF(K7="","",IF(OR(T7="Wind",T7="Solar",T7="Geothermal",T7="Small Hydro",T7="Biofuels",T7="Biomass & Waste"),T7,"Other Clean Energy")) -> Biofuels | G7: =IF(K7="","",IF(OR(J7="PM",J7="MA"), "Corporate finance investments", IF(J7="VCPE", "VC/PE investments", IF(J7="AF", "Asset finance investments")))) -> Asset finance investments | H7: 1024.500552 | I7: Acquisition transactions | J7: AF | K7: AF6450 | L7: CNAA Minas Gerais & Goias Bioethanol Portfolio Refinancing | M7: Brazil | N7: Brazil | O7: Central & South America | P7: AMER | Q7: non-OECD | R7: BASIC | S7: Biofuels | T7: Biofuels | U7: Gasoline/Petrol Substitute | V7: 1-Gen fermentation | W7: Refinancing | X7: Term loan | Y7: Debt | Z7: 2009-02-02 | AA7: 0 | AB7: 459 | AC7: 0 | AD7: 0 | AE7: 1024.5 | AF7: 1024.5 | AG7: 1024.500552
A8: 2010 | B8: 12 | C8: Q4 | D8: 2010Q4 | E8: Brazil | F8: Biofuels | G8: Asset finance investments | H8: 950.7084062 | I8: Acquisition transactions | J8: AF | K8: AF14561 | L8: Potirendaba Catanduva Bioethanol and Power Portfolio Noble Acquisition | M8: Brazil | N8: Brazil | O8: Central & South America | P8: AMER | Q8: non-OECD | R8: BASIC | S8: Biofuels | T8: Biofuels | U8: Gasoline/Petrol Substitute | V8: 1-Gen fermentation | W8: Acquisition | X8: Balance Sheet | Y8: Equity | Z8: 2010-12-16 | AA8: 115.2 | AB8: 470 | AC8: 0 | AD8: 0 | AE8: 950 | AF8: 950 | AG8: 950.7084062
A9: 2011 | B9: 12 | C9: Q4 | D9: 2011Q4 | E9: Brazil | F9: Wind | G9: Corporate finance investments | H9: 814.9930056 | I9: Acquisition transactions | J9: MA | K9: MA2993 | L9: Jantus SL | M9: Brazil | N9: Brazil | O9: Central & South America | P9: AMER | Q9: non-OECD | R9: BASIC | S9: Wind | T9: Wind | U9: Onshore | V9: 0 | W9: Developer | X9: Equity (company) | Z9: 2011-12-19 | AA9: na | AB9: na | AC9: na | AD9: na | AE9: 809.5 | AF9: 809.5 | AG9: 814.9930056
A10: 2009 | B10: 3 | C10: Q1 | D10: 2009Q1 | E10: Brazil | F10: Biofuels | G10: Corporate finance investments | H10: 794.8004282 | I10: Acquisition transactions | J10: MA | K10: MA1746 | L10: Cosan Alimentos SA | M10: Brazil | N10: Brazil | O10: Central & South America | P10: AMER | Q10: non-OECD | R10: BASIC | S10: Biofuels | T10: Biofuels | U10: Gasoline/Petrol Substitute | V10: 0 | W10: Fuel production/procurement | X10: Equity (company) | Z10: 2009-03-13 | AA10: na | AB10: na | AC10: na | AD10: na | AE10: 794.8 | AF10: 794.8 | AG10: 794.8004282
A11: 2009 | B11: 10 | C11: Q4 | D11: 2009Q4 | E11: Brazil | F11: Biofuels | G11: Corporate finance investments | H11: 722.4003892 | I11: Acquisition transactions | J11: MA | K11: MA1934 | L11: Santelisa Vale SA | M11: Brazil | N11: Brazil | O11: Central & South America | P11: AMER | Q11: non-OECD | R11: BASIC | S11: Biofuels | T11: Biofuels | U11: Gasoline/Petrol Substitute | V11: 0 | W11: Fuel production/procurement | X11: Equity (company) | Z11: 2009-10-26 | AA11: na | AB11: na | AC11: na | AD11: na | AE11: 722.4 | AF11: 722.4 | AG11: 722.4003892
A12: 2011 | B12: 4 | C12: Q2 | D12: 2011Q2 | E12: Brazil | F12: Biofuels | G12: Corporate finance investments | H12: 684.6142604 | I12: Acquisition transactions | J12: MA | K12: MA2838 | L12: Cia Nacional de Acucar e Alcool SA | M12: Brazil | N12: Brazil | O12: Central & South America | P12: AMER | Q12: non-OECD | R12: BASIC | S12: Biofuels | T12: Biofuels | U12: Gasoline/Petrol Substitute | V12: 0 | W12: Fuel production/procurement | X12: Equity (company) | Z12: 2011-04-28 | AA12: na | AB12: na | AC12: na | AD12: na | AE12: 680 | AF12: 680 | AG12: 684.6142604
A13: 2010 | B13: 12 | C13: Q4 | D13: 2010Q4 | E13: Brazil | F13: Wind | G13: Asset finance investments | H13: 545.8066997 | I13: Acquisition transactions | J13: AF | K13: AF33470 | L13: Energimp Casa dos Ventos Wind Portfolio - Acquisition | M13: Brazil | N13: Brazil | O13: Central & South America | P13: AMER | Q13: non-OECD | R13: BASIC | S13: Wind | T13: Wind | U13: Onshore | V13: 0 | W13: Acquisition | X13: Balance Sheet | Y13: Equity | Z13: 2010-12-31 | AA13: 270 | AB13: 0 | AC13: 0 | AD13: 0 | AE13: 0 | AF13: 545.4 | AG13: 545.8066997
A14: 2012 | B14: 6 | C14: Q2 | D14: 2012Q2 | E14: Brazil | F14: Wind | G14: Corporate finance investments | H14: 609.1908802 | I14: Acquisition transactions | J14: MA | K14: MA3700 | L14: BVP SA | M14: Brazil | N14: Brazil | O14: Central & South America | P14: AMER | Q14: non-OECD | R14: BASIC | S14: Wind | T14: Wind | U14: 0 | V14: 0 | W14: Developer | X14: Equity (company) | Z14: 2012-06-19 | AA14: na | AB14: na | AC14: na | AD14: na | AE14: 529.4 | AF14: 529.4 | AG14: 609.1908802
A15: 2007 | B15: 2 | C15: Q1 | D15: 2007Q1 | E15: Brazil | F15: Biofuels | G15: Asset finance investments | H15: 647.5059761 | I15: Acquisition transactions | J15: AF | K15: AF6201 | L15: LDC Tavares de Melo Bioethanol Portfolio Acquisition | M15: Brazil | N15: Brazil | O15: Central & South America | P15: AMER | Q15: non-OECD | R15: BASIC | S15: Biofuels | T15: Biofuels | U15: Gasoline/Petrol Substitute | V15: 1-Gen fermentation | W15: Acquisition | X15: Balance Sheet | Y15: Equity | Z15: 2007-02-16 | AA15: 0 | AB15: 554 | AC15: 0 | AD15: 0 | AE15: 0 | AF15: 479.3 | AG15: 647.5059761
A16: 2011 | B16: 9 | C16: Q3 | D16: 2011Q3 | E16: Brazil | F16: Biofuels | G16: Corporate finance investments | H16: 431.1056269 | I16: Acquisition transactions | J16: MA | K16: MA2927 | L16: Vanguarda Participacoes SA | M16: Brazil | N16: Brazil | O16: Central & South America | P16: AMER | Q16: non-OECD | R16: BASIC | S16: Biofuels | T16: Biofuels | U16: Diesel Substitute | V16: 0 | W16: Fuel production/procurement | X16: Equity (company) | Z16: 2011-09-06 | AA16: na | AB16: na | AC16: na | AD16: na | AE16: 428.2 | AF16: 428.2 | AG16: 431.1056269
A17: 2012 | B17: 3 | C17: Q1 | D17: 2012Q1 | E17: Brazil | F17: Wind | G17: Corporate finance investments | H17: 458.8750838 | I17: Acquisition transactions | J17: MA | K17: MA3318 | L17: Desenvix Energias Renovaveis SA | M17: Brazil | N17: Brazil | O17: Central & South America | P17: AMER | Q17: non-OECD | R17: BASIC | S17: Wind | T17: Wind | U17: 0 | V17: 0 | W17: Developer | X17: Equity: Strategic Stake in Public Company | Z17: 2012-03-08 | AA17: na | AB17: na | AC17: na | AD17: na | AE17: 410.6 | AF17: 410.6 | AG17: 458.8750838
A18: 2008 | B18: 3 | C18: Q1 | D18: 2008Q1 | E18: Brazil | F18: Biofuels | G18: Asset finance investments | H18: 411.2052004 | I18: Acquisition transactions | J18: AF | K18: AF5188 | L18: ETH Eldorado Bioethanol Plant Acquisition | M18: Brazil | N18: Brazil | O18: Central & South America | P18: AMER | Q18: non-OECD | R18: BASIC | S18: Biofuels | T18: Biofuels | U18: Gasoline/Petrol Substitute | V18: 1-Gen fermentation | W18: Acquisition | X18: Balance Sheet | Y18: Equity | Z18: 2008-03-19 | AA18: 12 | AB18: 110 | AC18: 0 | AD18: 0 | AE18: 410 | AF18: 410 | AG18: 411.2052004
A19: 2011 | B19: 9 | C19: Q3 | D19: 2011Q3 | E19: Brazil | F19: Wind | G19: Asset finance investments | H19: 406.7414135 | I19: Acquisition transactions | J19: AF | K19: AF32486 | L19: ERSA Rio Grande do Norte Wind Portfolio - Acquisition | M19: Brazil | N19: Brazil | O19: Central & South America | P19: AMER | Q19: non-OECD | R19: BASIC | S19: Wind | T19: Wind | U19: Onshore | V19: 0 | W19: Acquisition | X19: Balance Sheet | Y19: Equity | Z19: 2011-09-11 | AA19: 200 | AB19: 0 | AC19: 0 | AD19: 0 | AE19: 0 | AF19: 404 | AG19: 406.7414135
A20: 2010 | B20: 6 | C20: Q2 | D20: 2010Q2 | E20: Mexico | F20: Wind | G20: Asset finance investments | H20: 375.279634 | I20: Acquisition transactions | J20: AF | K20: AF12234 | L20: Acciona Eurus Wind Farm Refinancing | M20: Mexico | N20: Other AMER | O20: Central & South America | P20: AMER | Q20: OECD | S20: Wind | T20: Wind | U20: Onshore | V20: 0 | W20: Refinancing | X20: Term loan | Y20: Debt | Z20: 2010-06-02 | AA20: 250.5 | AB20: 0 | AC20: 0 | AD20: 0 | AE20: 375 | AF20: 375 | AG20: 375.279634
A21: 2011 | B21: 9 | C21: Q3 | D21: 2011Q3 | E21: Brazil | F21: Biofuels | G21: Asset finance investments | H21: 352.374987 | I21: Acquisition transactions | J21: AF | K21: AF17079 | L21: USJ Goias Bioethanol and Power Plant Portfolio Cargill Acquisition | M21: Brazil | N21: Brazil | O21: Central & South America | P21: AMER | Q21: non-OECD | R21: BASIC | S21: Biofuels | T21: Biofuels | U21: Gasoline/Petrol Substitute | V21: Gasification – fermentation | W21: Acquisition | X21: Balance Sheet | Y21: Equity | Z21: 2011-09-19 | AA21: 0 | AB21: 167 | AC21: 0 | AD21: 0 | AE21: 0 | AF21: 350 | AG21: 352.374987
A22: 2010 | B22: 5 | C22: Q2 | D22: 2010Q2 | E22: Brazil | F22: Biofuels | G22: Asset finance investments | H22: 328.2445866 | I22: Acquisition transactions | J22: AF | K22: AF12090 | L22: Mandu Bioethanol and Power Plant Acquisition | M22: Brazil | N22: Brazil | O22: Central & South America | P22: AMER | Q22: non-OECD | R22: BASIC | S22: Biofuels | T22: Biofuels | U22: Diesel Substitute | V22: 1-Gen fermentation | W22: Acquisition | X22: Balance Sheet | Y22: Equity | Z22: 2010-05-31 | AA22: 25 | AB22: 175 | AC22: 0 | AD22: 0 | AE22: 328 | AF22: 328 | AG22: 328.2445866
A23: 2009 | B23: 12 | C23: Q4 | D23: 2009Q4 | E23: Brazil | F23: Wind | G23: Asset finance investments | H23: 326.4001759 | I23: Acquisition transactions | J23: AF | K23: AF33454 | L23: Dobreve Casa dos Ventos Wind Portfolio - Acquisition | M23: Brazil | N23: Brazil | O23: Central & South America | P23: AMER | Q23: non-OECD | R23: BASIC | S23: Wind | T23: Wind | U23: Onshore | V23: 0 | W23: Acquisition | X23: Balance Sheet | Y23: Equity | Z23: 2009-12-31 | AA23: 204 | AB23: 0 | AC23: 0 | AD23: 0 | AE23: 0 | AF23: 326.4 | AG23: 326.4001759
A24: 2009 | B24: 5 | C24: Q2 | D24: 2009Q2 | E24: Brazil | F24: Biofuels | G24: Asset finance investments | H24: 316.0001703 | I24: Acquisition transactions | J24: AF | K24: AF8710 | L24: Cosan Jatai Ethanol Plant Refinancing | M24: Brazil | N24: Brazil | O24: Central & South America | P24: AMER | Q24: non-OECD | R24: BASIC | S24: Biofuels | T24: Biofuels | U24: Gasoline/Petrol Substitute | V24: 1-Gen fermentation | W24: Refinancing | X24: Term loan | Y24: Debt | Z24: 2009-05-26 | AA24: 41 | AB24: 370 | AC24: 0 | AD24: 0 | AE24: 316 | AF24: 316 | AG24: 316.0001703
A25: 2011 | B25: 12 | C25: Q4 | D25: 2011Q4 | E25: Brazil | F25: Wind | G25: Asset finance investments | H25: 315.9293455 | I25: Acquisition transactions | J25: AF | K25: AF19674 | L25: DESA Morro dos Ventos Wind Portfolio - Refinancing | M25: Brazil | N25: Brazil | O25: Central & South America | P25: AMER | Q25: non-OECD | R25: BASIC | S25: Wind | T25: Wind | U25: Onshore | V25: 0 | W25: Refinancing | X25: Construction loan | Y25: Debt | Z25: 2011-12-13 | AA25: 144 | AB25: 0 | AC25: 0 | AD25: 0 | AE25: 313.8 | AF25: 313.8 | AG25: 315.9293455
A26: 2010 | B26: 12 | C26: Q4 | D26: 2010Q4 | E26: Brazil | F26: Wind | G26: Asset finance investments | H26: 303.2259443 | I26: Acquisition transactions | J26: AF | K26: AF33468 | L26: Energisa Casa dos Ventos Wind Portfolio - Acquisition | M26: Brazil | N26: Brazil | O26: Central & South America | P26: AMER | Q26: non-OECD | R26: BASIC | S26: Wind | T26: Wind | U26: Onshore | V26: 0 | W26: Acquisition | X26: Balance Sheet | Y26: Equity | Z26: 2010-12-31 | AA26: 150 | AB26: 0 | AC26: 0 | AD26: 0 | AE26: 0 | AF26: 303 | AG26: 303.2259443
A27: 2011 | B27: 5 | C27: Q2 | D27: 2011Q2 | E27: Brazil | F27: Wind | G27: VC/PE investments | H27: 302.539096 | I27: Acquisition transactions | J27: VCPE | K27: VCPE4556 | L27: Tecsis Tecnologia e Sistemas Avancados Ltda | M27: Brazil | N27: Brazil | O27: Central & South America | P27: AMER | Q27: non-OECD | R27: BASIC | S27: Wind | T27: Wind | U27: 0 | V27: 0 | W27: Equipment Manufacturer | X27: PE - Buy-out / corp spinoff | Y27: PE Buy-out | Z27: 2011-05-30 | AA27: na | AB27: na | AC27: na | AD27: na | AE27: 300.5 | AF27: 300.5 | AG27: 302.539096
A28: 2012 | B28: 8 | C28: Q3 | D28: 2012Q3 | E28: Mexico | F28: Wind | G28: Asset finance investments | H28: 305.7897819 | I28: Acquisition transactions | J28: AF | K28: AF33508 | L28: Acciona Oaxaca II and IV Wind Farm Bond Refinancing | M28: Mexico | N28: Other AMER | O28: Central & South America | P28: AMER | Q28: OECD | S28: Wind | T28: Wind | U28: Onshore | V28: 0 | W28: Refinancing | X28: Bond | Y28: Debt | Z28: 2012-08-10 | AA28: 204 | AB28: 0 | AC28: 0 | AD28: 0 | AE28: 300 | AF28: 300 | AG28: 305.7897819
A29: 2012 | B29: 3 | C29: Q1 | D29: 2012Q1 | E29: Brazil | F29: Wind | G29: VC/PE investments | H29: 335.8217394 | I29: Acquisition transactions | J29: VCPE | K29: VCPE5120 | L29: Eolica Faisa Ltda | M29: Brazil | N29: Brazil | O29: Central & South America | P29: AMER | Q29: non-OECD | R29: BASIC | S29: Wind | T29: Wind | U29: Onshore | V29: 0 | W29: Developer | X29: PE - Buy-out / corp spinoff | Y29: PE Buy-out | Z29: 2012-03-14 | AA29: na | AB29: na | AC29: na | AD29: na | AE29: 299.3 | AF29: 299.3 | AG29: 335.8217394
A30: 2007 | B30: 9 | C30: Q3 | D30: 2007Q3 | E30: Brazil | F30: Biofuels | G30: Corporate finance investments | H30: 319.1122822 | I30: Acquisition transactions | J30: MA | K30: MA1213 | L30: Adriano Ometto Participacoes Ltd | M30: Brazil | N30: Brazil | O30: Central & South America | P30: AMER | Q30: non-OECD | R30: BASIC | S30: Biofuels | T30: Biofuels | U30: Gasoline/Petrol Substitute | V30: 0 | W30: Fuel production/procurement | X30: Equity (company) | Z30: 2007-09-26 | AA30: na | AB30: na | AC30: na | AD30: na | AE30: 297 | AF30: 297 | AG30: 319.1122822
A31: 2010 | B31: 12 | C31: Q4 | D31: 2010Q4 | E31: Brazil | F31: Wind | G31: Asset finance investments | H31: 287.8624965 | I31: Acquisition transactions | J31: AF | K31: AF31510 | L31: Santo Inacio Wind Portfolio SN Power Acquisition | M31: Brazil | N31: Brazil | O31: Central & South America | P31: AMER | Q31: non-OECD | R31: BASIC | S31: Wind | T31: Wind | U31: Onshore | V31: 0 | W31: Acquisition | X31: Balance Sheet | Y31: Equity | Z31: 2010-12-31 | AA31: 142.4 | AB31: 0 | AC31: 0 | AD31: 0 | AE31: 0 | AF31: 287.648 | AG31: 287.8624965
A32: 2010 | B32: 2 | C32: Q1 | D32: 2010Q1 | E32: Brazil | F32: Wind | G32: Asset finance investments | H32: 243.7916577 | I32: Acquisition transactions | J32: AF | K32: AF5402 | L32: Bons Ventos Ceara Wind Portfolio Refinancing | M32: Brazil | N32: Brazil | O32: Central & South America | P32: AMER | Q32: non-OECD | R32: BASIC | S32: Wind | T32: Wind | U32: Onshore | V32: 0 | W32: Refinancing | X32: Term loan | Y32: Debt | Z32: 2010-02-04 | AA32: 155 | AB32: 0 | AC32: 0 | AD32: 0 | AE32: 243.61 | AF32: 243.61 | AG32: 243.7916577
A33: 2011 | B33: 12 | C33: Q4 | D33: 2011Q4 | E33: Brazil | F33: Wind | G33: Asset finance investments | H33: 244.0448481 | I33: Acquisition transactions | J33: AF | K33: AF33472 | L33: Atlantic Casa dos Ventos A-5 2011 Wind Portfolio - Acquisition | M33: Brazil | N33: Brazil | O33: Central & South America | P33: AMER | Q33: non-OECD | R33: BASIC | S33: Wind | T33: Wind | U33: Onshore | V33: 0 | W33: Acquisition | X33: Balance Sheet | Y33: Equity | Z33: 2011-12-31 | AA33: 150 | AB33: 0 | AC33: 0 | AD33: 0 | AE33: 0 | AF33: 242.4 | AG33: 244.0448481
A34: 2012 | B34: 10 | C34: Q4 | D34: 2012Q4 | E34: Peru | F34: Wind | G34: Asset finance investments | H34: 311.4222972 | I34: Acquisition transactions | J34: AF | K34: AF31106 | L34: Talara Cupisnique Wind Portfolio ContourGlobal Acquisition | M34: Peru | N34: Other AMER | O34: Central & South America | P34: AMER | Q34: non-OECD | S34: Wind | T34: Wind | U34: Onshore | V34: 0 | W34: Acquisition | X34: Balance Sheet | Y34: Equity | Z34: 2012-10-03 | AA34: 111.6 | AB34: 0 | AC34: 0 | AD34: 0 | AE34: 0 | AF34: 225.432 | AG34: 311.4222972
A35: 2012 | B35: 3 | C35: Q1 | D35: 2012Q1 | E35: Chile | F35: Small Hydro | G35: Asset finance investments | H35: 256.4878471 | I35: Acquisition transactions | J35: AF | K35: AF26360 | L35: Hydro Chile Colchagua Small Hydro Portfolio Refinancing | M35: Chile | N35: Other AMER | O35: Central & South America | P35: AMER | Q35: OECD | S35: Small hydro | T35: Small Hydro | U35: Run of River | V35: 0 | W35: Refinancing | X35: Term loan | Y35: Debt | Z35: 2012-03-16 | AA35: 80 | AB35: 0 | AC35: 0 | AD35: 0 | AE35: 0 | AF35: 216 | AG35: 256.4878471
A36: 2011 | B36: 8 | C36: Q3 | D36: 2011Q3 | E36: Brazil | F36: Wind | G36: Asset finance investments | H36: 212.3190179 | I36: Acquisition transactions | J36: AF | K36: AF31512 | L36: Corredor do Senandes Wind Porfolio Odebrecht Acquisition | M36: Brazil | N36: Brazil | O36: Central & South America | P36: AMER | Q36: non-OECD | R36: BASIC | S36: Wind | T36: Wind | U36: Onshore | V36: 0 | W36: Acquisition | X36: Balance Sheet | Y36: Equity | Z36: 2011-08-17 | AA36: 104.4 | AB36: 0 | AC36: 0 | AD36: 0 | AE36: 0 | AF36: 210.888 | AG36: 212.3190179
A37: 2006 | B37: 10 | C37: Q4 | D37: 2006Q4 | E37: Brazil | F37: Small Hydro | G37: Asset finance investments | H37: 205.34199 | I37: Acquisition transactions | J37: AF | K37: AF2952 | L37: Enel Mato Grosso Tocantins and Sao Paulo Small Hydro Portfolio Acquisition | M37: Brazil | N37: Brazil | O37: Central & South America | P37: AMER | Q37: non-OECD | R37: BASIC | S37: Small hydro | T37: Small Hydro | U37: Run of River | V37: 0 | W37: Acquisition | X37: Balance Sheet | Y37: Equity | Z37: 2006-10-10 | AA37: 97.68 | AB37: 0 | AC37: 0 | AD37: 0 | AE37: 205 | AF37: 205 | AG37: 205.34199
A38: 2012 | B38: 11 | C38: Q4 | D38: 2012Q4 | E38: Chile | F38: Wind | G38: Asset finance investments | H38: 279.0522377 | I38: Acquisition transactions | J38: AF | K38: AF32412 | L38: Talinay Wind Farm Enel Acquisition | M38: Chile | N38: Other AMER | O38: Central & South America | P38: AMER | Q38: OECD | S38: Wind | T38: Wind | U38: Onshore | V38: 0 | W38: Acquisition | X38: Balance Sheet | Y38: Equity | Z38: 2012-11-20 | AA38: 100 | AB38: 0 | AC38: 0 | AD38: 0 | AE38: 0 | AF38: 202 | AG38: 279.0522377
A39: 2011 | B39: 2 | C39: Q1 | D39: 2011Q1 | E39: Brazil | F39: Biofuels | G39: Corporate finance investments | H39: 198.6388141 | I39: Acquisition transactions | J39: MA | K39: MA2846 | L39: Usina Zanin Acucar e Alcool Ltda | M39: Brazil | N39: Brazil | O39: Central & South America | P39: AMER | Q39: non-OECD | R39: BASIC | S39: Biofuels | T39: Biofuels | U39: Gasoline/Petrol Substitute | V39: 0 | W39: Fuel production/procurement | X39: Equity (company) | Z39: 2011-02-23 | AA39: na | AB39: na | AC39: na | AD39: na | AE39: 197.3 | AF39: 197.3 | AG39: 198.6388141
A40: 2008 | B40: 7 | C40: Q3 | D40: 2008Q3 | E40: Brazil | F40: Small Hydro | G40: Asset finance investments | H40: 196.9736219 | I40: Acquisition transactions | J40: AF | K40: AF6063 | L40: Tractebel Energia Small Hydro Portfolio Acquisition | M40: Brazil | N40: Brazil | O40: Central & South America | P40: AMER | Q40: non-OECD | R40: BASIC | S40: Small hydro | T40: Small Hydro | U40: Run of River | V40: 0 | W40: Acquisition | X40: Term loan | Y40: Debt | Z40: 2008-07-29 | AA40: 50.3 | AB40: 0 | AC40: 0 | AD40: 0 | AE40: 195 | AF40: 195 | AG40: 196.9736219
A41: 2011 | B41: 4 | C41: Q2 | D41: 2011Q2 | E41: Brazil | F41: Wind | G41: Asset finance investments | H41: 193.30285 | I41: Acquisition transactions | J41: AF | K41: AF17059 | L41: Enerfin Elecnor 2009 Wind Auction Wind Portfolio Refinancing | M41: Brazil | N41: Brazil | O41: Central & South America | P41: AMER | Q41: non-OECD | R41: BASIC | S41: Wind | T41: Wind | U41: Onshore | V41: 0 | W41: Refinancing | X41: Balance Sheet | Y41: Equity | Z41: 2011-04-30 | AA41: 96 | AB41: 0 | AC41: 0 | AD41: 0 | AE41: 0 | AF41: 192 | AG41: 193.30285
A42: 2012 | B42: 7 | C42: Q3 | D42: 2012Q3 | E42: Brazil | F42: Wind | G42: Asset finance investments | H42: 190.9147538 | I42: Acquisition transactions | J42: AF | K42: AF34218 | L42: Brasventos Rio Grande do Norte Wind Portfolio - Refinancing | M42: Brazil | N42: Brazil | O42: Central & South America | P42: AMER | Q42: non-OECD | R42: BASIC | S42: Wind | T42: Wind | U42: Onshore | V42: 0 | W42: Refinancing | X42: Term loan | Y42: Debt | Z42: 2012-07-31 | AA42: 147.6 | AB42: 0 | AC42: 0 | AD42: 0 | AE42: 187.3 | AF42: 187.3 | AG42: 190.9147538
A43: 2012 | B43: 5 | C43: Q2 | D43: 2012Q2 | E43: Brazil | F43: Wind | G43: Asset finance investments | H43: 186.5039673 | I43: Acquisition transactions | J43: AF | K43: AF26464 | L43: Tractebel Trairi Wind Portfolio - Refinancing | M43: Brazil | N43: Brazil | O43: Central & South America | P43: AMER | Q43: non-OECD | R43: BASIC | S43: Wind | T43: Wind | U43: Onshore | V43: 0 | W43: Refinancing | X43: Term loan | Y43: Debt | Z43: 2012-05-10 | AA43: 115.4 | AB43: 0 | AC43: 0 | AD43: 0 | AE43: 183 | AF43: 183 | AG43: 186.5039673
A44: 2012 | B44: 12 | C44: Q4 | D44: 2012Q4 | E44: Chile | F44: Wind | G44: Asset finance investments | H44: 251.1470139 | I44: Acquisition transactions | J44: AF | K44: AF33680 | L44: Valle de los Vientos Wind Farm Acquisition | M44: Chile | N44: Other AMER | O44: Central & South America | P44: AMER | Q44: OECD | S44: Wind | T44: Wind | U44: Onshore | V44: 0 | W44: Acquisition | X44: Balance Sheet | Y44: Equity | Z44: 2012-12-21 | AA44: 90 | AB44: 0 | AC44: 0 | AD44: 0 | AE44: 0 | AF44: 181.8 | AG44: 251.1470139
A45: 2011 | B45: 4 | C45: Q2 | D45: 2011Q2 | E45: Brazil | F45: Biofuels | G45: Asset finance investments | H45: 181.2214219 | I45: Acquisition transactions | J45: AF | K45: AF13736 | L45: Limeira do Oeste Ethanol Plant Acquisition | M45: Brazil | N45: Brazil | O45: Central & South America | P45: AMER | Q45: non-OECD | R45: BASIC | S45: Biofuels | T45: Biofuels | U45: Gasoline/Petrol Substitute | V45: 1-Gen fermentation | W45: Acquisition | X45: Balance Sheet | Y45: Equity | Z45: 2011-04-26 | AA45: 0 | AB45: 135 | AC45: 0 | AD45: 0 | AE45: 0 | AF45: 180 | AG45: 181.2214219
A46: 2011 | B46: 2 | C46: Q1 | D46: 2011Q1 | E46: Brazil | F46: Biofuels | G46: Corporate finance investments | H46: 174.677315 | I46: Acquisition transactions | J46: MA | K46: MA2753 | L46: Biopalma da Amazonia SA Reflorestamento Industria & Comercio | M46: Brazil | N46: Brazil | O46: Central & South America | P46: AMER | Q46: non-OECD | R46: BASIC | S46: Biofuels | T46: Biofuels | U46: 0 | V46: 0 | W46: Fuel production/procurement | X46: Equity (company) | Z46: 2011-02-01 | AA46: na | AB46: na | AC46: na | AD46: na | AE46: 173.5 | AF46: 173.5 | AG46: 174.677315
A47: 2012 | B47: 6 | C47: Q2 | D47: 2012Q2 | E47: Mexico | F47: Wind | G47: Asset finance investments | H47: 168.1593148 | I47: Acquisition transactions | J47: AF | K47: AF27962 | L47: Acciona Oaxaca III Wind Farm Banobras & BBVA Refinancing | M47: Mexico | N47: Other AMER | O47: Central & South America | P47: AMER | Q47: OECD | S47: Wind | T47: Wind | U47: Onshore | V47: 0 | W47: Refinancing | X47: Term loan | Y47: Debt | Z47: 2012-06-21 | AA47: 102 | AB47: 0 | AC47: 0 | AD47: 0 | AE47: 165 | AF47: 165 | AG47: 168.1593148
A48: 2007 | B48: 12 | C48: Q4 | D48: 2007Q4 | E48: Mexico | F48: Small Hydro | G48: Corporate finance investments | H48: 241.7976723 | I48: Acquisition transactions | J48: MA | K48: MA1408 | L48: Impulsora Nacional de Electricidad S de RL de CV | M48: Mexico | N48: Other AMER | O48: Central & South America | P48: AMER | Q48: OECD | S48: Small hydro | T48: Small Hydro | U48: 0 | V48: 0 | W48: Developer | X48: Equity (company) | Z48: 2007-12-07 | AA48: na | AB48: na | AC48: na | AD48: na | AE48: 156 | AF48: 156 | AG48: 241.7976723
A49: 2007 | B49: 7 | C49: Q3 | D49: 2007Q3 | E49: Mexico | F49: Small Hydro | G49: Asset finance investments | H49: 158.9680248 | I49: Acquisition transactions | J49: AF | K49: AF10447 | L49: Inelec Small Hydro Project Portfolio Enel Acquisition | M49: Mexico | N49: Other AMER | O49: Central & South America | P49: AMER | Q49: OECD | S49: Small hydro | T49: Small Hydro | U49: Existing Dam | V49: 0 | W49: Acquisition | X49: Balance Sheet | Y49: Equity | Z49: 2007-07-12 | AA49: 52 | AB49: 0 | AC49: 0 | AD49: 0 | AE49: 156 | AF49: 156 | AG49: 158.9680248
A50: 2007 | B50: 7 | C50: Q3 | D50: 2007Q3 | E50: Brazil | F50: Small Hydro | G50: Asset finance investments | H50: 159.9796773 | I50: Acquisition transactions | J50: AF | K50: AF5924 | L50: CFLCL Brazilian Mini and Small Hydro Portfolio Acquisition | M50: Brazil | N50: Brazil | O50: Central & South America | P50: AMER | Q50: non-OECD | R50: BASIC | S50: Small hydro | T50: Small Hydro | U50: Run of River | V50: 0 | W50: Acquisition | X50: Balance Sheet | Y50: Equity | Z50: 2007-07-13 | AA50: 224.45 | AB50: 0 | AC50: 0 | AD50: 0 | AE50: 155.73 | AF50: 155.73 | AG50: 159.9796773
A51: 2007 | B51: 7 | C51: Q3 | D51: 2007Q3 | E51: Brazil | F51: Biofuels | G51: Asset finance investments | H51: 172.2312407 | I51: Acquisition transactions | J51: AF | K51: AF4102 | L51: ETH Alcidia Bioethanol and Power Plant Acquisition | M51: Brazil | N51: Brazil | O51: Central & South America | P51: AMER | Q51: non-OECD | R51: BASIC | S51: Biofuels | T51: Biofuels | U51: Gasoline/Petrol Substitute | V51: 1-Gen fermentation | W51: Acquisition | X51: Balance Sheet | Y51: Equity | Z51: 2007-07-05T18:41:00 | AA51: 0 | AB51: 130 | AC51: 0 | AD51: 0 | AE51: 152 | AF51: 152 | AG51: 172.2312407
A52: 2010 | B52: 5 | C52: Q2 | D52: 2010Q2 | E52: Brazil | F52: Biofuels | G52: Corporate finance investments | H52: 150.1118536 | I52: Acquisition transactions | J52: MA | K52: MA2328 | L52: Usaciga Acucar Alcool e Energia Electrica Ltda | M52: Brazil | N52: Brazil | O52: Central & South America | P52: AMER | Q52: non-OECD | R52: BASIC | S52: Biofuels | T52: Biofuels | U52: Gasoline/Petrol Substitute | V52: 0 | W52: Fuel production/procurement | X52: Equity (company) | Z52: 2010-05-24 | AA52: na | AB52: na | AC52: na | AD52: na | AE52: 0 | AF52: 150 | AG52: 150.1118536
A53: 2010 | B53: 5 | C53: Q2 | D53: 2010Q2 | E53: Nicaragua | F53: Wind | G53: Asset finance investments | H53: 150.1118536 | I53: Acquisition transactions | J53: AF | K53: AF11926 | L53: CEA Amayo Wind Farm Phase I & II Acquisition | M53: Nicaragua | N53: Other AMER | O53: Central & South America | P53: AMER | Q53: non-OECD | S53: Wind | T53: Wind | U53: Onshore | V53: 0 | W53: Acquisition | X53: Balance Sheet | Y53: Equity | Z53: 2010-05-13 | AA53: 63 | AB53: 0 | AC53: 0 | AD53: 0 | AE53: 0 | AF53: 150 | AG53: 150.1118536
A54: 2012 | B54: 7 | C54: Q3 | D54: 2012Q3 | E54: Mexico | F54: Wind | G54: Asset finance investments | H54: 152.3648553 | I54: Acquisition transactions | J54: AF | K54: AF28762 | L54: Bii Nee Stipa Wind Farm Phase II Enel Acquisition | M54: Mexico | N54: Other AMER | O54: Central & South America | P54: AMER | Q54: OECD | S54: Wind | T54: Wind | U54: Onshore | V54: 0 | W54: Acquisition | X54: Balance Sheet | Y54: Equity | Z54: 2012-07-09 | AA54: 74 | AB54: 0 | AC54: 0 | AD54: 0 | AE54: 0 | AF54: 149.48 | AG54: 152.3648553
A55: 2012 | B55: 4 | C55: Q2 | D55: 2012Q2 | E55: Brazil | F55: Wind | G55: VC/PE investments | H55: 171.4009087 | I55: Acquisition transactions | J55: VCPE | K55: VCPE5134 | L55: Multiner SA | M55: Brazil | N55: Brazil | O55: Central & South America | P55: AMER | Q55: non-OECD | R55: BASIC | S55: Wind | T55: Wind | U55: 0 | V55: 0 | W55: Power Generator | X55: PE - Buy-out / corp spinoff | Y55: PE Buy-out | Z55: 2012-04-02 | AA55: na | AB55: na | AC55: na | AD55: na | AE55: 0 | AF55: 147.871 | AG55: 171.4009087
A56: 2011 | B56: 3 | C56: Q1 | D56: 2011Q1 | E56: Brazil | F56: Small Hydro | G56: Asset finance investments | H56: 147.3934231 | I56: Acquisition transactions | J56: AF | K56: AF20112 | L56: Hidrotermica Rio Grande do Sul Small Hydro Portfolio - Refinancing | M56: Brazil | N56: Brazil | O56: Central & South America | P56: AMER | Q56: non-OECD | R56: BASIC | S56: Small hydro | T56: Small Hydro | U56: Run of River | V56: 0 | W56: Refinancing | X56: Construction loan | Y56: Debt | Z56: 2011-03-30 | AA56: 48 | AB56: 0 | AC56: 0 | AD56: 0 | AE56: 146.4 | AF56: 146.4 | AG56: 147.3934231
A57: 2012 | B57: 12 | C57: Q4 | D57: 2012Q4 | E57: Brazil | F57: Wind | G57: Asset finance investments | H57: 200.3097746 | I57: Acquisition transactions | J57: AF | K57: AF33546 | L57: Renova Energia BNDES Bridge Wind Portfolio - Refinancing | M57: Brazil | N57: Brazil | O57: Central & South America | P57: AMER | Q57: non-OECD | R57: BASIC | S57: Wind | T57: Wind | U57: Onshore | V57: 0 | W57: Refinancing | X57: Bridge Financing | Y57: Debt | Z57: 2012-12-18 | AA57: 386 | AB57: 0 | AC57: 0 | AD57: 0 | AE57: 145 | AF57: 145 | AG57: 200.3097746
A58: 2008 | B58: 7 | C58: Q3 | D58: 2008Q3 | E58: Brazil | F58: Biofuels | G58: Asset finance investments | H58: 143.8215262 | I58: Acquisition transactions | J58: AF | K58: AF8429 | L58: Boa Vista Bioethanol and Power Plant Refinancing | M58: Brazil | N58: Brazil | O58: Central & South America | P58: AMER | Q58: non-OECD | R58: BASIC | S58: Biofuels | T58: Biofuels | U58: Gasoline/Petrol Substitute | V58: 1-Gen fermentation | W58: Refinancing | X58: Term loan | Y58: Debt | Z58: 2008-07-03 | AA58: 40 | AB58: 212 | AC58: 0 | AD58: 0 | AE58: 143.4 | AF58: 143.4 | AG58: 143.8215262
A59: 2012 | B59: 12 | C59: Q4 | D59: 2012Q4 | E59: Mexico | F59: Wind | G59: Asset finance investments | H59: 195.3365664 | I59: Acquisition transactions | J59: AF | K59: AF33338 | L59: Bii Nee Stipa Wind Farm Phase III Enel Acquisition | M59: Mexico | N59: Other AMER | O59: Central & South America | P59: AMER | Q59: OECD | S59: Wind | T59: Wind | U59: Onshore | V59: 0 | W59: Acquisition | X59: Balance Sheet | Y59: Equity | Z59: 2012-12-14 | AA59: 70 | AB59: 0 | AC59: 0 | AD59: 0 | AE59: 0 | AF59: 141.4 | AG59: 195.3365664
A60: 2006 | B60: 9 | C60: Q3 | D60: 2006Q3 | E60: Brazil | F60: Biofuels | G60: Corporate finance investments | H60: 141.460816 | I60: Acquisition transactions | J60: MA | K60: MA860 | L60: Cooperativa Dos Produtores de Cana de Acucar de Navirai | M60: Brazil | N60: Brazil | O60: Central & South America | P60: AMER | Q60: non-OECD | R60: BASIC | S60: Biofuels | T60: Biofuels | U60: Gasoline/Petrol Substitute | V60: 0 | W60: Fuel production/procurement | X60: Equity (company) | Z60: 2006-09-30 | AA60: na | AB60: na | AC60: na | AD60: na | AE60: 141 | AF60: 141 | AG60: 141.460816
A61: 2012 | B61: 11 | C61: Q4 | D61: 2012Q4 | E61: Chile | F61: Wind | G61: Asset finance investments | H61: 194.7839877 | I61: Acquisition transactions | J61: AF | K61: AF32414 | L61: Enel Talinay Wind Farm Refinancing | M61: Chile | N61: Other AMER | O61: Central & South America | P61: AMER | Q61: OECD | S61: Wind | T61: Wind | U61: Onshore | V61: 0 | W61: Refinancing | X61: Term loan | Y61: Debt | Z61: 2012-11-20 | AA61: 100 | AB61: 0 | AC61: 0 | AD61: 0 | AE61: 141 | AF61: 141 | AG61: 194.7839877
A62: 2012 | B62: 11 | C62: Q4 | D62: 2012Q4 | E62: Brazil | F62: Wind | G62: Asset finance investments | H62: 192.7118176 | I62: Acquisition transactions | J62: AF | K62: AF34220 | L62: Energisa Renascenca Wind Portfolio - Refinancing | M62: Brazil | N62: Brazil | O62: Central & South America | P62: AMER | Q62: non-OECD | R62: BASIC | S62: Wind | T62: Wind | U62: Onshore | V62: 0 | W62: Refinancing | X62: Term Loan | Y62: Debt | Z62: 2012-11-06 | AA62: 150 | AB62: 0 | AC62: 0 | AD62: 0 | AE62: 139.5 | AF62: 139.5 | AG62: 192.7118176
A63: 2012 | B63: 11 | C63: Q4 | D63: 2012Q4 | E63: Peru | F63: Solar | G63: Asset finance investments | H63: 195.8925973 | I63: Acquisition transactions | J63: AF | K63: AF32210 | L63: Conduit Capital CAF Peru PV Portfolio - Acquisition | M63: Peru | N63: Other AMER | O63: Central & South America | P63: AMER | Q63: non-OECD | S63: Solar | T63: Solar | U63: PV | V63: PV – Crystalline silicon | W63: Acquisition | X63: Balance Sheet | Y63: Equity | Z63: 2012-11-12 | AA63: 40 | AB63: 0 | AC63: 0 | AD63: 0 | AE63: 0 | AF63: 139.32 | AG63: 195.8925973
A64: 2009 | B64: 8 | C64: Q3 | D64: 2009Q3 | E64: Brazil | F64: Biofuels | G64: Asset finance investments | H64: 134.0000722 | I64: Acquisition transactions | J64: AF | K64: AF8977 | L64: Ribeirao Preto Ethanol and Power Plant Acquisition | M64: Brazil | N64: Brazil | O64: Central & South America | P64: AMER | Q64: non-OECD | R64: BASIC | S64: Biofuels | T64: Biofuels | U64: Gasoline/Petrol Substitute | V64: 1-Gen fermentation | W64: Acquisition | X64: Balance Sheet | Y64: Equity | Z64: 2009-08-31 | AA64: 9 | AB64: 115 | AC64: 0 | AD64: 0 | AE64: 0 | AF64: 134 | AG64: 134.0000722
A65: 2011 | B65: 7 | C65: Q3 | D65: 2011Q3 | E65: Brazil | F65: Biofuels | G65: Corporate finance investments | H65: 128.7678881 | I65: Acquisition transactions | J65: MA | K65: MA3257 | L65: BSBIOS Industria e Comercio de Biodiesel Sul Brasil SA | M65: Brazil | N65: Brazil | O65: Central & South America | P65: AMER | Q65: non-OECD | R65: BASIC | S65: Biofuels | T65: Biofuels | U65: Diesel Substitute | V65: 0 | W65: Fuel production/procurement | X65: Equity (company) | Z65: 2011-07-01 | AA65: na | AB65: na | AC65: na | AD65: na | AE65: 127.9 | AF65: 127.9 | AG65: 128.7678881
A66: 2008 | B66: 11 | C66: Q4 | D66: 2008Q4 | E66: Brazil | F66: Biofuels | G66: Asset finance investments | H66: 127.9750819 | I66: Acquisition transactions | J66: AF | K66: AF6716 | L66: Equipav Revati Bioethanol Plant Refinancing | M66: Brazil | N66: Brazil | O66: Central & South America | P66: AMER | Q66: non-OECD | R66: BASIC | S66: Biofuels | T66: Biofuels | U66: Gasoline/Petrol Substitute | V66: 1-Gen fermentation | W66: Refinancing | X66: Term loan | Y66: Debt | Z66: 2008-11-25 | AA66: 0 | AB66: 189 | AC66: 0 | AD66: 0 | AE66: 127.6 | AF66: 127.6 | AG66: 127.9750819
A67: 2010 | B67: 5 | C67: Q2 | D67: 2010Q2 | E67: Brazil | F67: Biofuels | G67: Corporate finance investments | H67: 122.6473889 | I67: Acquisition transactions | J67: MA | K67: MA2732 | L67: Copersucar SA | M67: Brazil | N67: Brazil | O67: Central & South America | P67: AMER | Q67: non-OECD | R67: BASIC | S67: Biofuels | T67: Biofuels | U67: Gasoline/Petrol Substitute | V67: 0 | W67: Fuel production/procurement | X67: Equity (company) | Z67: 2010-05-05 | AA67: na | AB67: na | AC67: na | AD67: na | AE67: 0 | AF67: 122.556 | AG67: 122.6473889
A68: 2010 | B68: 11 | C68: Q4 | D68: 2010Q4 | E68: Brazil | F68: Biofuels | G68: Corporate finance investments | H68: 122.6473889 | I68: Acquisition transactions | J68: MA | K68: MA2733 | L68: Copersucar SA | M68: Brazil | N68: Brazil | O68: Central & South America | P68: AMER | Q68: non-OECD | R68: BASIC | S68: Biofuels | T68: Biofuels | U68: Gasoline/Petrol Substitute | V68: 0 | W68: Fuel production/procurement | X68: Equity (company) | Z68: 2010-11-25 | AA68: na | AB68: na | AC68: na | AD68: na | AE68: 0 | AF68: 122.556 | AG68: 122.6473889
A69: 2010 | B69: 12 | C69: Q4 | D69: 2010Q4 | E69: Brazil | F69: Wind | G69: Asset finance investments | H69: 121.2903777 | I69: Acquisition transactions | J69: AF | K69: AF33456 | L69: Atlantic Casa dos Ventos Wind Portfolio - Acquisition | M69: Brazil | N69: Brazil | O69: Central & South America | P69: AMER | Q69: non-OECD | R69: BASIC | S69: Wind | T69: Wind | U69: Onshore | V69: 0 | W69: Acquisition | X69: Balance Sheet | Y69: Equity | Z69: 2010-12-31 | AA69: 60 | AB69: 0 | AC69: 0 | AD69: 0 | AE69: 0 | AF69: 121.2 | AG69: 121.2903777
A70: =IF(K70="","",IF(AND(YEAR(Z70)<2004,YEAR(Z70)>1910),2004,YEAR(Z70))) -> 2008 | B70: =IF(K70="","",IF(ISNUMBER(Z70),MONTH(Z70),0)) -> 3 | C70: =IF(K70="","",IF(AND(B70>=1,B70<=3),"Q1",IF(AND(B70>3,B70<=6),"Q2",IF(AND(B70>6,B70<=9),"Q3",IF(AND(B70>9,B70<=12),"Q4",0))))) -> Q1 | D70: =IF(A70<2006, "< 2006", A70&C70) -> 2008Q1 | E70: =IF(K70="","", M70) -> Brazil | F70: Small Hydro | G70: Asset finance investments | H70: =IF(K70="","",AG70) -> 125.2285611 | I70: Acquisition transactions | J70: AF | K70: AF18059 | L70: Quebra Dedo Small Hydro Plant – Acquisition | M70: Brazil | N70: Brazil | O70: Central & South America | P70: AMER | Q70: non-OECD | R70: BASIC | S70: Small hydro | T70: Small Hydro | U70: Run of River | V70: 0 | W70: Acquisition | X70: Balance Sheet | Y70: Equity | Z70: 2008-03-14T10:47:00 | AA70: 16 | AB70: 0 | AC70: 0 | AD70: 0 | AE70: 0 | AF70: 118 | AG70: 125.2285611
A71: 2010 | B71: 11 | C71: Q4 | D71: 2010Q4 | E71: Brazil | F71: =IF(K71="","",IF(OR(T71="Wind",T71="Solar",T71="Geothermal",T71="Small Hydro",T71="Biofuels",T71="Biomass & Waste"),T71,"Other Clean Energy")) -> Small Hydro | G71: =IF(K71="","",IF(OR(J71="PM",J71="MA"), "Corporate finance investments", IF(J71="VCPE", "VC/PE investments", IF(J71="AF", "Asset finance investments")))) -> Asset finance investments | H71: 114.9256351 | I71: Acquisition transactions | J71: AF | K71: AF13912 | L71: EDP Energias do Brasil Small Hydro Portfolio Acquisition | M71: Brazil | N71: Brazil | O71: Central & South America | P71: AMER | Q71: non-OECD | R71: BASIC | S71: Small hydro | T71: Small Hydro | U71: Run of River | V71: 0 | W71: Acquisition | X71: Balance Sheet | Y71: Equity | Z71: 2010-11-05 | AA71: 49.5 | AB71: 0 | AC71: 0 | AD71: 0 | AE71: 0 | AF71: 114.84 | AG71: 114.9256351
A72: 2010 | B72: 1 | C72: Q1 | D72: 2010Q1 | E72: Chile | F72: Wind | G72: Asset finance investments | H72: 112.2946747 | I72: Acquisition transactions | J72: AF | K72: AF26410 | L72: El Arrayan Wind Farm AEI Acquisition | M72: Chile | N72: Other AMER | O72: Central & South America | P72: AMER | Q72: OECD | S72: Wind | T72: Wind | U72: Onshore | V72: 0 | W72: Acquisition | X72: Balance Sheet | Y72: Equity | Z72: 2010-01-31 | AA72: 101 | AB72: 0 | AC72: 0 | AD72: 0 | AE72: 0 | AF72: 112.211 | AG72: 112.2946747
A73: 2011 | B73: 4 | C73: Q2 | D73: 2011Q2 | E73: Guatemala | F73: Small Hydro | G73: Asset finance investments | H73: 108.7328531 | I73: Acquisition transactions | J73: AF | K73: AF19420 | L73: Hidroelectrica Rio Las Vacas Las Vacas Small Hydro Plant Acquisition | M73: Guatemala | N73: Other AMER | O73: Central & South America | P73: AMER | Q73: non-OECD | S73: Small hydro | T73: Small Hydro | U73: Run of River | V73: 0 | W73: Acquisition | X73: Balance Sheet | Y73: Equity | Z73: 2011-04-20 | AA73: 45 | AB73: 0 | AC73: 0 | AD73: 0 | AE73: 0 | AF73: 108 | AG73: 108.7328531
A74: 2007 | B74: 4 | C74: Q2 | D74: 2007Q2 | E74: Brazil | F74: Biofuels | G74: Asset finance investments | H74: 109.2525853 | I74: Acquisition transactions | J74: AF | K74: AF3783 | L74: Motuca Santa Luiza Bioethanol Plant Acquisition | M74: Brazil | N74: Brazil | O74: Central & South America | P74: AMER | Q74: non-OECD | R74: BASIC | S74: Biofuels | T74: Biofuels | U74: Gasoline/Petrol Substitute | V74: 1-Gen fermentation | W74: Acquisition | X74: Term loan | Y74: Debt | Z74: 2007-04-12T18:45:00 | AA74: 0 | AB74: 154.8 | AC74: 0 | AD74: 0 | AE74: 107.9 | AF74: 107.9 | AG74: 109.2525853
A75: 2007 | B75: 2 | C75: Q1 | D75: 2007Q1 | E75: Brazil | F75: Biofuels | G75: Corporate finance investments | H75: 108.4952757 | I75: Acquisition transactions | J75: PM | K75: PM951 | L75: Sao Martinho SA | M75: Brazil | N75: Brazil | O75: Central & South America | P75: AMER | Q75: non-OECD | R75: BASIC | S75: Biofuels | T75: Biofuels | U75: 0 | V75: 0 | W75: Brazil | X75: IPO | Y75: IPO | Z75: 2007-02-12 | AA75: São Paulo (BOVESPA) | AB75: 97.1 | AC75: 200.9 | AD75: 0 | AE75: 103.8 | AF75: 103.8 | AG75: 108.4952757
A76: 2010 | B76: 4 | C76: Q2 | D76: 2010Q2 | E76: Brazil | F76: Biofuels | G76: Asset finance investments | H76: 101.3755385 | I76: Acquisition transactions | J76: AF | K76: AF11360 | L76: Cofercatu Ethanol Plant Acquisition | M76: Brazil | N76: Brazil | O76: Central & South America | P76: AMER | Q76: non-OECD | R76: BASIC | S76: Biofuels | T76: Biofuels | U76: Gasoline/Petrol Substitute | V76: 1-Gen fermentation | W76: Acquisition | X76: Balance Sheet | Y76: Equity | Z76: 2010-04-06 | AA76: 0 | AB76: 67 | AC76: 0 | AD76: 0 | AE76: 101.3 | AF76: 101.3 | AG76: 101.3755385
A77: 2006 | B77: 7 | C77: Q3 | D77: 2006Q3 | E77: Mexico | F77: Geothermal | G77: Asset finance investments | H77: 103.934 | I77: Acquisition transactions | J77: AF | K77: AF8400 | L77: Los Azufres Geothermal Plant II- CFE Refinancing | M77: Mexico | N77: Other AMER | O77: Central & South America | P77: AMER | Q77: OECD | S77: Geothermal | T77: Geothermal | U77: Conventional | V77: Single flash | W77: Refinancing | X77: Bond | Y77: Debt | Z77: 2006-07-26 | AA77: 100 | AB77: 0 | AC77: 0 | AD77: 0 | AE77: 101 | AF77: 101 | AG77: 103.934
A78: 2008 | B78: 2 | C78: Q1 | D78: 2008Q1 | E78: Brazil | F78: Biofuels | G78: Asset finance investments | H78: 100.2397926 | I78: Acquisition transactions | J78: AF | K78: AF19798 | L78: Andrade Bioethanol and Power Plant Guarani Acquisition | M78: Brazil | N78: Brazil | O78: Central & South America | P78: AMER | Q78: non-OECD | R78: BASIC | S78: Biofuels | T78: Biofuels | U78: Gasoline/Petrol Substitute | V78: 1-Gen fermentation | W78: Acquisition | X78: Balance Sheet | Y78: Equity | Z78: 2008-02-28 | AA78: 7.2 | AB78: 260 | AC78: 0 | AD78: 0 | AE78: 0 | AF78: 99.946 | AG78: 100.2397926
A79: 2011 | B79: 6 | C79: Q2 | D79: 2011Q2 | E79: Chile | F79: Small Hydro | G79: Asset finance investments | H79: 97.85956781 | I79: Acquisition transactions | J79: AF | K79: AF17351 | L79: GDF Suez Laja Small Hydro Plant Refinancing | M79: Chile | N79: Other AMER | O79: Central & South America | P79: AMER | Q79: OECD | S79: Small hydro | T79: Small Hydro | U79: Run of River | V79: 0 | W79: Refinancing | X79: Construction loan | Y79: Debt | Z79: 2011-06-15 | AA79: 36 | AB79: 0 | AC79: 0 | AD79: 0 | AE79: 0 | AF79: 97.2 | AG79: 97.85956781
A80: 2012 | B80: 10 | C80: Q4 | D80: 2012Q4 | E80: Brazil | F80: Wind | G80: Asset finance investments | H80: 131.7900172 | I80: Acquisition transactions | J80: AF | K80: AF29894 | L80: Gargau Wind Farm Omega Acquisition | M80: Brazil | N80: Brazil | O80: Central & South America | P80: AMER | Q80: non-OECD | R80: BASIC | S80: Wind | T80: Wind | U80: Onshore | V80: 0 | W80: Acquisition | X80: Balance Sheet | Y80: Equity | Z80: 2012-10-04 | AA80: 28.05 | AB80: 0 | AC80: 0 | AD80: 0 | AE80: 95.4 | AF80: 95.4 | AG80: 131.7900172
A81: 2007 | B81: 10 | C81: Q4 | D81: 2007Q4 | E81: Paraguay | F81: Biofuels | G81: Asset finance investments | H81: 96.53578216 | I81: Acquisition transactions | J81: AF | K81: AF4677 | L81: BIC Puerto Triunfo Biodiesel Plant Acquisition | M81: Paraguay | N81: Other AMER | O81: Central & South America | P81: AMER | Q81: non-OECD | S81: Biofuels | T81: Biofuels | U81: Diesel Substitute | V81: 0 | W81: Acquisition | X81: Balance Sheet | Y81: Equity | Z81: 2007-10-18 | AA81: 0 | AB81: 227 | AC81: 0 | AD81: 0 | AE81: 0 | AF81: 95.34 | AG81: 96.53578216
A82: 2008 | B82: 11 | C82: Q4 | D82: 2008Q4 | E82: Brazil | F82: Wind | G82: Asset finance investments | H82: 94.95057881 | I82: Acquisition transactions | J82: AF | K82: AF7330 | L82: Econergy Brazilian Wind & Small Hydro Portfolio Acquisition | M82: Brazil | N82: Brazil | O82: Central & South America | P82: AMER | Q82: non-OECD | R82: BASIC | S82: Wind | T82: Wind | U82: Onshore | V82: 0 | W82: Acquisition | X82: Balance Sheet | Y82: Equity | Z82: 2008-11-07 | AA82: 63.4 | AB82: 0 | AC82: 0 | AD82: 0 | AE82: 94.4 | AF82: 94.4 | AG82: 94.95057881
A83: 2012 | B83: 3 | C83: Q1 | D83: 2012Q1 | E83: Brazil | F83: Wind | G83: Asset finance investments | H83: 98.81567104 | I83: Acquisition transactions | J83: AF | K83: AF34222 | L83: Queiroz Galvao Ceara Wind Portfolio - Refinancing | M83: Brazil | N83: Brazil | O83: Central & South America | P83: AMER | Q83: non-OECD | R83: BASIC | S83: Wind | T83: Wind | U83: Onshore | V83: 0 | W83: Refinancing | X83: Term loan | Y83: Debt | Z83: 2012-03-15 | AA83: 121.8 | AB83: 0 | AC83: 0 | AD83: 0 | AE83: 94.3 | AF83: 94.3 | AG83: 98.81567104
A84: 2010 | B84: 8 | C84: Q3 | D84: 2010Q3 | E84: Brazil | F84: Biofuels | G84: Corporate finance investments | H84: 93.81790702 | I84: Acquisition transactions | J84: MA | K84: MA2327 | L84: Integrated Biodiesel Industries Ltd | M84: Brazil | N84: Brazil | O84: Central & South America | P84: AMER | Q84: non-OECD | R84: BASIC | S84: Biofuels | T84: Biofuels | U84: Diesel Substitute | V84: 0 | W84: Developer | X84: Equity (company) | Z84: 2010-08-16 | AA84: na | AB84: na | AC84: na | AD84: na | AE84: 0 | AF84: 93.748 | AG84: 93.81790702
A85: 2012 | B85: 9 | C85: Q3 | D85: 2012Q3 | E85: Brazil | F85: Wind | G85: Asset finance investments | H85: 94.79483238 | I85: Acquisition transactions | J85: AF | K85: AF34230 | L85: Eletrosul Santana do Livramento Wind Portfolio - Refinancing | M85: Brazil | N85: Brazil | O85: Central & South America | P85: AMER | Q85: non-OECD | R85: BASIC | S85: Wind | T85: Wind | U85: Onshore | V85: 0 | W85: Refinancing | X85: Term loan | Y85: Debt | Z85: 2012-09-11 | AA85: 90 | AB85: 0 | AC85: 0 | AD85: 0 | AE85: 93 | AF85: 93 | AG85: 94.79483238
A86: 2009 | B86: 2 | C86: Q1 | D86: 2009Q1 | E86: Brazil | F86: Wind | G86: Asset finance investments | H86: 92.80005 | I86: Acquisition transactions | J86: AF | K86: AF7611 | L86: Ceara Wind Portfolio Cemig Acquisition | M86: Brazil | N86: Brazil | O86: Central & South America | P86: AMER | Q86: non-OECD | R86: BASIC | S86: Wind | T86: Wind | U86: Onshore | V86: 0 | W86: Acquisition | X86: Balance Sheet | Y86: Equity | Z86: 2009-02-04 | AA86: 99.6 | AB86: 0 | AC86: 0 | AD86: 0 | AE86: 92.8 | AF86: 92.8 | AG86: 92.80005
A87: 2007 | B87: 9 | C87: Q3 | D87: 2007Q3 | E87: Brazil | F87: Biofuels | G87: Asset finance investments | H87: 102.2962921 | I87: Acquisition transactions | J87: AF | K87: AF4461 | L87: Santa Juliana Bioethanol and Power Plant Bunge Acquisition | M87: Brazil | N87: Brazil | O87: Central & South America | P87: AMER | Q87: non-OECD | R87: BASIC | S87: Biofuels | T87: Biofuels | U87: Gasoline/Petrol Substitute | V87: 1-Gen fermentation | W87: Acquisition | X87: Balance Sheet | Y87: Equity | Z87: 2007-09-17 | AA87: 6 | AB87: 132 | AC87: 0 | AD87: 0 | AE87: 0 | AF87: 90.28 | AG87: 102.2962921
A88: 2011 | B88: 3 | C88: Q1 | D88: 2011Q1 | E88: Mexico | F88: Wind | G88: Asset finance investments | H88: 89.73612905 | I88: Acquisition transactions | J88: AF | K88: AF16172 | L88: Mareña Wind Farm FEMSA and Macquarie Acquisition | M88: Mexico | N88: Other AMER | O88: Central & South America | P88: AMER | Q88: OECD | S88: Wind | T88: Wind | U88: Onshore | V88: 0 | W88: Acquisition | X88: Balance Sheet | Y88: Equity | Z88: 2011-03-18 | AA88: 396 | AB88: 0 | AC88: 0 | AD88: 0 | AE88: 89 | AF88: 89 | AG88: 89.73612905
A89: 2012 | B89: 4 | C89: Q2 | D89: 2012Q2 | E89: Nicaragua | F89: Wind | G89: Asset finance investments | H89: 90.58181758 | I89: Acquisition transactions | J89: AF | K89: AF26182 | L89: Eolo de Nicaragua Wind Farm Globeleq Acquisition | M89: Nicaragua | N89: Other AMER | O89: Central & South America | P89: AMER | Q89: non-OECD | S89: Wind | T89: Wind | U89: Onshore | V89: 0 | W89: Acquisition | X89: Balance Sheet | Y89: Equity | Z89: 2012-04-25 | AA89: 44 | AB89: 0 | AC89: 0 | AD89: 0 | AE89: 0 | AF89: 88.88 | AG89: 90.58181758
A90: 2006 | B90: 10 | C90: Q4 | D90: 2006Q4 | E90: Brazil | F90: Biofuels | G90: Corporate finance investments | H90: 90.202298 | I90: Acquisition transactions | J90: MA | K90: MA903 | L90: Alcana Destilaria de Alcool de Nanuque SA | M90: Brazil | N90: Brazil | O90: Central & South America | P90: AMER | Q90: non-OECD | R90: BASIC | S90: Biofuels | T90: Biofuels | U90: Gasoline/Petrol Substitute | V90: 0 | W90: Fuel production/procurement | X90: Equity (company) | Z90: 2006-10-09 | AA90: na | AB90: na | AC90: na | AD90: na | AE90: 87.5 | AF90: 87.5 | AG90: 90.202298
A91: 2008 | B91: 2 | C91: Q1 | D91: 2008Q1 | E91: Brazil | F91: Biofuels | G91: Asset finance investments | H91: 86.65397394 | I91: Acquisition transactions | J91: AF | K91: AF5303 | L91: TG Agroindustrial Ethanol Plant Acquisition | M91: Brazil | N91: Brazil | O91: Central & South America | P91: AMER | Q91: non-OECD | R91: BASIC | S91: Biofuels | T91: Biofuels | U91: Gasoline/Petrol Substitute | V91: 0 | W91: Acquisition | X91: Balance Sheet | Y91: Equity | Z91: 2008-02-18T17:44:00 | AA91: 0 | AB91: 20 | AC91: 0 | AD91: 0 | AE91: 86.4 | AF91: 86.4 | AG91: 86.65397394
A92: 2009 | B92: 12 | C92: Q4 | D92: 2009Q4 | E92: Brazil | F92: Biofuels | G92: Asset finance investments | H92: 84.30004542 | I92: Acquisition transactions | J92: AF | K92: AF10242 | L92: Total Agroindustria Bambui Bioethanol and Power Plant Petrobras Acquisition I | M92: Brazil | N92: Brazil | O92: Central & South America | P92: AMER | Q92: non-OECD | R92: BASIC | S92: Biofuels | T92: Biofuels | U92: Gasoline/Petrol Substitute | V92: 1-Gen fermentation | W92: Acquisition | X92: Balance Sheet | Y92: Equity | Z92: 2009-12-22 | AA92: 25 | AB92: 100 | AC92: 0 | AD92: 0 | AE92: 84.3 | AF92: 84.3 | AG92: 84.30004542
A93: 2012 | B93: 12 | C93: Q4 | D93: 2012Q4 | E93: Brazil | F93: Wind | G93: Asset finance investments | H93: 114.3837885 | I93: Acquisition transactions | J93: AF | K93: AF34244 | L93: CPFL Renovaveis Rio Grande do Norte Wind Portfolio - Refinancing | M93: Brazil | N93: Brazil | O93: Central & South America | P93: AMER | Q93: non-OECD | R93: BASIC | S93: Wind | T93: Wind | U93: Onshore | V93: 0 | W93: Refinancing | X93: Term Loan | Y93: Debt | Z93: 2012-12-04 | AA93: 78.2 | AB93: 0 | AC93: 0 | AD93: 0 | AE93: 82.8 | AF93: 82.8 | AG93: 114.3837885
A94: 2010 | B94: 3 | C94: Q1 | D94: 2010Q1 | E94: Brazil | F94: Biofuels | G94: Corporate finance investments | H94: 82.06114664 | I94: Acquisition transactions | J94: MA | K94: MA2117 | L94: Renuka Vale Do Ivai SA | M94: Brazil | N94: Brazil | O94: Central & South America | P94: AMER | Q94: non-OECD | R94: BASIC | S94: Biofuels | T94: Biofuels | U94: Gasoline/Petrol Substitute | V94: 0 | W94: Fuel production/procurement | X94: Equity (company) | Z94: 2010-03-22 | AA94: na | AB94: na | AC94: na | AD94: na | AE94: 82 | AF94: 82 | AG94: 82.06114664
A95: 2007 | B95: 12 | C95: Q4 | D95: 2007Q4 | E95: Brazil | F95: Biofuels | G95: Corporate finance investments | H95: 86.70726812 | I95: Acquisition transactions | J95: MA | K95: MA1327 | L95: ETH Bioenergia SA | M95: Brazil | N95: Brazil | O95: Central & South America | P95: AMER | Q95: non-OECD | R95: BASIC | S95: Biofuels | T95: Biofuels | U95: Gasoline/Petrol Substitute | V95: 0 | W95: Fuel production/procurement | X95: Equity (company) | Z95: 2007-12-24 | AA95: na | AB95: na | AC95: na | AD95: na | AE95: 80.7 | AF95: 80.7 | AG95: 86.70726812
A96: 2010 | B96: 12 | C96: Q4 | D96: 2010Q4 | E96: Brazil | F96: Biofuels | G96: Asset finance investments | H96: 80.05965526 | I96: Acquisition transactions | J96: AF | K96: AF13598 | L96: Glencore Rio Vermelho Bioethanol Plant Acquisition | M96: Brazil | N96: Brazil | O96: Central & South America | P96: AMER | Q96: non-OECD | R96: BASIC | S96: Biofuels | T96: Biofuels | U96: Gasoline/Petrol Substitute | V96: 1-Gen fermentation | W96: Acquisition | X96: Balance Sheet | Y96: Equity | Z96: 2010-12-03 | AA96: 0 | AB96: 66.6 | AC96: 0 | AD96: 0 | AE96: 0 | AF96: 80 | AG96: 80.05965526
A97: 2011 | B97: 11 | C97: Q4 | D97: 2011Q4 | E97: Brazil | F97: Small Hydro | G97: Asset finance investments | H97: 80.24081847 | I97: Acquisition transactions | J97: AF | K97: AF20114 | L97: Copel Unai Baixo Small Hydro Plant - Refinancing | M97: Brazil | N97: Brazil | O97: Central & South America | P97: AMER | Q97: non-OECD | R97: BASIC | S97: Small hydro | T97: Small Hydro | U97: Run of River | V97: 0 | W97: Refinancing | X97: Term loan | Y97: Debt | Z97: 2011-11-30 | AA97: 21 | AB97: 0 | AC97: 0 | AD97: 0 | AE97: 79.7 | AF97: 79.7 | AG97: 80.24081847
A98: 2010 | B98: 4 | C98: Q2 | D98: 2010Q2 | E98: Brazil | F98: Biofuels | G98: Corporate finance investments | H98: 79.72040247 | I98: Acquisition transactions | J98: MA | K98: MA3120 | L98: Brazilian Renewable Energy Co Ltd | M98: Brazil | N98: Brazil | O98: Central & South America | P98: AMER | Q98: non-OECD | R98: BASIC | S98: Biofuels | T98: Biofuels | U98: Gasoline/Petrol Substitute | V98: 0 | W98: Fuel production/procurement | X98: Equity (company) | Z98: 2010-04-16 | AA98: na | AB98: na | AC98: na | AD98: na | AE98: 0 | AF98: 79.661 | AG98: 79.72040247
A99: 2008 | B99: 6 | C99: Q2 | D99: 2008Q2 | E99: Brazil | F99: Wind | G99: Asset finance investments | H99: 79.34000745 | I99: Acquisition transactions | J99: AF | K99: AF6176 | L99: Rio Grande do Norte Wind Farm ERSA Acquisition | M99: Brazil | N99: Brazil | O99: Central & South America | P99: AMER | Q99: non-OECD | R99: BASIC | S99: Wind | T99: Wind | U99: Onshore | V99: 0 | W99: Acquisition | X99: Balance Sheet | Y99: Equity | Z99: 2008-06-13 | AA99: 49.3 | AB99: 0 | AC99: 0 | AD99: 0 | AE99: 0 | AF99: 78.88 | AG99: 79.34000745
A100: 2011 | B100: 4 | C100: Q2 | D100: 2011Q2 | E100: Brazil | F100: Small Hydro | G100: Asset finance investments | H100: 78.42860425 | I100: Acquisition transactions | J100: AF | K100: AF20108 | L100: Desenvix Adami Passos Maia Small Hydro Plant - Refinancing | M100: Brazil | N100: Brazil | O100: Central & South America | P100: AMER | Q100: non-OECD | R100: BASIC | S100: Small hydro | T100: Small Hydro | U100: Run of River | V100: 0 | W100: Refinancing | X100: Term loan | Y100: Debt | Z100: 2011-04-12 | AA100: 22.2 | AB100: 0 | AC100: 0 | AD100: 0 | AE100: 77.9 | AF100: 77.9 | AG100: 78.42860425
A101: 2011 | B101: 7 | C101: Q3 | D101: 2011Q3 | E101: Brazil | F101: Wind | G101: Asset finance investments | H101: 77.11978287 | I101: Acquisition transactions | J101: AF | K101: AF17878 | L101: Elebras Tramandai Cidreira I Wind Farm Refinancing | M101: Brazil | N101: Brazil | O101: Central & South America | P101: AMER | Q101: non-OECD | R101: BASIC | S101: Wind | T101: Wind | U101: Onshore | V101: 0 | W101: Refinancing | X101: Term loan | Y101: Debt | Z101: 2011-07-26 | AA101: 70 | AB101: 0 | AC101: 0 | AD101: 0 | AE101: 76.6 | AF101: 76.6 | AG101: 77.11978287
A102: 2012 | B102: 11 | C102: Q4 | D102: 2012Q4 | E102: Brazil | F102: Wind | G102: Asset finance investments | H102: 105.6806742 | I102: Acquisition transactions | J102: AF | K102: AF34236 | L102: Brennand CHESF Bahia Wind Portfolio - Refinancing | M102: Brazil | N102: Brazil | O102: Central & South America | P102: AMER | Q102: non-OECD | R102: BASIC | S102: Wind | T102: Wind | U102: Onshore | V102: 0 | W102: Refinancing | X102: Term Loan | Y102: Debt | Z102: 2012-11-13 | AA102: 90 | AB102: 0 | AC102: 0 | AD102: 0 | AE102: 76.5 | AF102: 76.5 | AG102: 105.6806742
A103: 2011 | B103: 10 | C103: Q4 | D103: 2011Q4 | E103: Brazil | F103: Wind | G103: Corporate finance investments | H103: 76.98185323 | I103: Acquisition transactions | J103: MA | K103: MA3289 | L103: Eolica Faisa Ltda | M103: Brazil | N103: Brazil | O103: Central & South America | P103: AMER | Q103: non-OECD | R103: BASIC | S103: Wind | T103: Wind | U103: 0 | V103: 0 | W103: Developer | X103: Equity (company) | Z103: 2011-10-11 | AA103: na | AB103: na | AC103: na | AD103: na | AE103: 0 | AF103: 76.463 | AG103: 76.98185323
A104: 2011 | B104: 3 | C104: Q1 | D104: 2011Q1 | E104: Brazil | F104: Wind | G104: Corporate finance investments | H104: 76.98185323 | I104: Acquisition transactions | J104: MA | K104: MA3305 | L104: Cedin do Brasil Ltda | M104: Brazil | N104: Brazil | O104: Central & South America | P104: AMER | Q104: non-OECD | R104: BASIC | S104: Wind | T104: Wind | U104: Onshore | V104: 0 | W104: Developer | X104: Equity (company) | Z104: 2011-03-29 | AA104: na | AB104: na | AC104: na | AD104: na | AE104: 0 | AF104: 76.463 | AG104: 76.98185323
A105: 2012 | B105: 8 | C105: Q3 | D105: 2012Q3 | E105: Mexico | F105: Wind | G105: Asset finance investments | H105: 77.46674474 | I105: Acquisition transactions | J105: AF | K105: AF30010 | L105: Bii Nee Stipa Wind Farm Phase II Refinancing | M105: Mexico | N105: Other AMER | O105: Central & South America | P105: AMER | Q105: OECD | S105: Wind | T105: Wind | U105: Onshore | V105: 0 | W105: Refinancing | X105: Term loan | Y105: Debt | Z105: 2012-08-29 | AA105: 74 | AB105: 0 | AC105: 0 | AD105: 0 | AE105: 76 | AF105: 76 | AG105: 77.46674474
A106: 2012 | B106: 8 | C106: Q3 | D106: 2012Q3 | E106: Brazil | F106: Biomass & Waste | G106: Asset finance investments | H106: 76.44744547 | I106: Acquisition transactions | J106: AF | K106: AF20078 | L106: Tonon Bioenergia Power Plant Portfolio Energisa Acquisition | M106: Brazil | N106: Brazil | O106: Central & South America | P106: AMER | Q106: non-OECD | R106: BASIC | S106: Biomass & Waste | T106: Biomass & Waste | U106: Electricity Generation (new) | V106: Incineration | W106: Acquisition | X106: Balance Sheet | Y106: Equity | Z106: 2012-08-21 | AA106: 170 | AB106: 0 | AC106: 0 | AD106: 0 | AE106: 75 | AF106: 75 | AG106: 76.44744547
A107: 2011 | B107: 5 | C107: Q2 | D107: 2011Q2 | E107: Brazil | F107: Small Hydro | G107: Asset finance investments | H107: 75.50892578 | I107: Acquisition transactions | J107: AF | K107: AF16831 | L107: Brookfield Sacre 2 Small Hydro Plant Acquisition | M107: Brazil | N107: Brazil | O107: Central & South America | P107: AMER | Q107: non-OECD | R107: BASIC | S107: Small hydro | T107: Small Hydro | U107: New Dam | V107: 0 | W107: Acquisition | X107: Balance Sheet | Y107: Equity | Z107: 2011-05-02 | AA107: 30 | AB107: 0 | AC107: 0 | AD107: 0 | AE107: 0 | AF107: 75 | AG107: 75.50892578
A108: 2011 | B108: 7 | C108: Q3 | D108: 2011Q3 | E108: Mexico | F108: Wind | G108: Asset finance investments | H108: 75.6203248 | I108: Acquisition transactions | J108: AF | K108: AF18430 | L108: Acciona Oaxaca Wind Portfolio Refinancing | M108: Mexico | N108: Other AMER | O108: Central & South America | P108: AMER | Q108: OECD | S108: Wind | T108: Wind | U108: Onshore | V108: 0 | W108: Refinancing | X108: Bridge Financing | Y108: Debt | Z108: 2011-07-20 | AA108: 306 | AB108: 0 | AC108: 0 | AD108: 0 | AE108: 75 | AF108: 75 | AG108: 75.6203248
A109: 2010 | B109: 2 | C109: Q1 | D109: 2010Q1 | E109: Brazil | F109: Biofuels | G109: Asset finance investments | H109: 74.95585224 | I109: Acquisition transactions | J109: AF | K109: AF10993 | L109: Vertente Bioethanol and Power Plant Guarani Acquisition | M109: Brazil | N109: Brazil | O109: Central & South America | P109: AMER | Q109: non-OECD | R109: BASIC | S109: Biofuels | T109: Biofuels | U109: Gasoline/Petrol Substitute | V109: 1-Gen fermentation | W109: Acquisition | X109: Balance Sheet | Y109: Equity | Z109: 2010-02-23 | AA109: 8 | AB109: 80 | AC109: 0 | AD109: 0 | AE109: 74.9 | AF109: 74.9 | AG109: 74.95585224
A110: 2011 | B110: 11 | C110: Q4 | D110: 2011Q4 | E110: Brazil | F110: Biofuels | G110: Corporate finance investments | H110: 71.48178307 | I110: Acquisition transactions | J110: MA | K110: MA3202 | L110: Tropical BioEnergia SA | M110: Brazil | N110: Brazil | O110: Central & South America | P110: AMER | Q110: non-OECD | R110: BASIC | S110: Biofuels | T110: Biofuels | U110: Gasoline/Petrol Substitute | V110: 0 | W110: Developer | X110: Equity (company) | Z110: 2011-11-23 | AA110: na | AB110: na | AC110: na | AD110: na | AE110: 71 | AF110: 71 | AG110: 71.48178307
A111: 2007 | B111: 11 | C111: Q4 | D111: 2007Q4 | E111: Brazil | F111: Biofuels | G111: Asset finance investments | H111: 72.04862219 | I111: Acquisition transactions | J111: AF | K111: AF4922 | L111: Paraguacu Paralcool Bioethanol Plant Nova America Acquisition | M111: Brazil | N111: Brazil | O111: Central & South America | P111: AMER | Q111: non-OECD | R111: BASIC | S111: Biofuels | T111: Biofuels | U111: Gasoline/Petrol Substitute | V111: 1-Gen fermentation | W111: Acquisition | X111: Balance Sheet | Y111: Equity | Z111: 2007-11-28 | AA111: 0 | AB111: 63 | AC111: 0 | AD111: 0 | AE111: 70.2 | AF111: 70.2 | AG111: 72.04862219
A112: 2012 | B112: 1 | C112: Q1 | D112: 2012Q1 | E112: Brazil | F112: Small Hydro | G112: Asset finance investments | H112: 73.35203576 | I112: Acquisition transactions | J112: AF | K112: AF21246 | L112: EMAE Pirapora Small Hydro Plant Refinancing | M112: Brazil | N112: Brazil | O112: Central & South America | P112: AMER | Q112: non-OECD | R112: BASIC | S112: Small hydro | T112: Small Hydro | U112: Run of River | V112: 0 | W112: Refinancing | X112: Term loan | Y112: Debt | Z112: 2012-01-27 | AA112: 25 | AB112: 0 | AC112: 0 | AD112: 0 | AE112: 70 | AF112: 70 | AG112: 73.35203576
A113: 2007 | B113: 2 | C113: Q1 | D113: 2007Q1 | E113: Brazil | F113: Biofuels | G113: Asset finance investments | H113: 94.5658634 | I113: Acquisition transactions | J113: AF | K113: AF6625 | L113: Noroeste Paulista Bioethanol and Power Plant Noble Acquisition | M113: Brazil | N113: Brazil | O113: Central & South America | P113: AMER | Q113: non-OECD | R113: BASIC | S113: Biofuels | T113: Biofuels | U113: Gasoline/Petrol Substitute | V113: 1-Gen fermentation | W113: Acquisition | X113: Balance Sheet | Y113: Equity | Z113: 2007-02-09 | AA113: 0 | AB113: 15 | AC113: 0 | AD113: 0 | AE113: 70 | AF113: 70 | AG113: 94.5658634
A114: 2011 | B114: 8 | C114: Q3 | D114: 2011Q3 | E114: Brazil | F114: Small Hydro | G114: Asset finance investments | H114: 68.86414031 | I114: Acquisition transactions | J114: AF | K114: AF18103 | L114: CPFL Renovaveis Santa Luzia Small Hydro Plant Acquisition | M114: Brazil | N114: Brazil | O114: Central & South America | P114: AMER | Q114: non-OECD | R114: BASIC | S114: Small hydro | T114: Small Hydro | U114: Run of River | V114: 0 | W114: Acquisition | X114: Balance Sheet | Y114: Equity | Z114: 2011-08-17 | AA114: 28.5 | AB114: 0 | AC114: 0 | AD114: 0 | AE114: 0 | AF114: 68.4 | AG114: 68.86414031
A115: 2012 | B115: 4 | C115: Q2 | D115: 2012Q2 | E115: Brazil | F115: Small Hydro | G115: Asset finance investments | H115: 68.99627644 | I115: Acquisition transactions | J115: AF | K115: AF34238 | L115: Omega Indaia Grande and Indaiazinho Small Hydro Portfolio - Refinancing | M115: Brazil | N115: Brazil | O115: Central & South America | P115: AMER | Q115: non-OECD | R115: BASIC | S115: Small hydro | T115: Small Hydro | U115: Run of River | V115: 0 | W115: Refinancing | X115: Term loan | Y115: Debt | Z115: 2012-04-03 | AA115: 32.5 | AB115: 0 | AC115: 0 | AD115: 0 | AE115: 67.7 | AF115: 67.7 | AG115: 68.99627644
A116: 2008 | B116: 2 | C116: Q1 | D116: 2008Q1 | E116: Brazil | F116: Biofuels | G116: VC/PE investments | H116: 77.08593098 | I116: Acquisition transactions | J116: VCPE | K116: VCPE2187 | L116: Unialco MS | M116: Brazil | N116: Brazil | O116: Central & South America | P116: AMER | Q116: non-OECD | R116: BASIC | S116: Biofuels | T116: Biofuels | U116: Gasoline/Petrol Substitute | V116: 1-Gen fermentation | W116: Fuel production/procurement | X116: PE - Buy-out / corp spinoff | Y116: PE Buy-out | Z116: 2008-02-05T09:40:00 | AA116: na | AB116: na | AC116: na | AD116: na | AE116: 64 | AF116: 64 | AG116: 77.08593098
A117: 2010 | B117: 5 | C117: Q2 | D117: 2010Q2 | E117: Brazil | F117: Biofuels | G117: Asset finance investments | H117: 64.04772421 | I117: Acquisition transactions | J117: AF | K117: AF11595 | L117: Alpha Ethanol Plant Baldin Acquisition | M117: Brazil | N117: Brazil | O117: Central & South America | P117: AMER | Q117: non-OECD | R117: BASIC | S117: Biofuels | T117: Biofuels | U117: Gasoline/Petrol Substitute | V117: 1-Gen fermentation | W117: Acquisition | X117: Balance Sheet | Y117: Equity | Z117: 2010-05-14 | AA117: 0 | AB117: 30 | AC117: 0 | AD117: 0 | AE117: 64 | AF117: 64 | AG117: 64.04772421
A118: 2007 | B118: 4 | C118: Q2 | D118: 2007Q2 | E118: Brazil | F118: Biofuels | G118: Asset finance investments | H118: 64.39726068 | I118: Acquisition transactions | J118: AF | K118: AF5108 | L118: Comanche Clean Energy Brazil Biofuels Portfolio Acquisition | M118: Brazil | N118: Brazil | O118: Central & South America | P118: AMER | Q118: non-OECD | R118: BASIC | S118: Biofuels | T118: Biofuels | U118: Gasoline/Petrol Substitute | V118: 0 | W118: Acquisition | X118: Balance Sheet | Y118: Equity | Z118: 2007-04-30 | AA118: 0 | AB118: 0 | AC118: 0 | AD118: 0 | AE118: 63.6 | AF118: 63.6 | AG118: 64.39726068
A119: 2008 | B119: 7 | C119: Q3 | D119: 2008Q3 | E119: Brazil | F119: Biomass & Waste | G119: Asset finance investments | H119: 78.06646683 | I119: Acquisition transactions | J119: AF | K119: AF5809 | L119: Rafard Biomass Project Expansion Refinancing | M119: Brazil | N119: Brazil | O119: Central & South America | P119: AMER | Q119: non-OECD | R119: BASIC | S119: Biomass & Waste | T119: Biomass & Waste | U119: Electricity Generation (new) | V119: Incineration | W119: Refinancing | X119: Term loan | Y119: Debt | Z119: 2008-07-10 | AA119: 50 | AB119: 0 | AC119: 0 | AD119: 0 | AE119: 63.18 | AF119: 63.18 | AG119: 78.06646683
A120: 2008 | B120: 6 | C120: Q2 | D120: 2008Q2 | E120: Brazil | F120: Biofuels | G120: Corporate finance investments | H120: 65.99341997 | I120: Acquisition transactions | J120: MA | K120: MA1565 | L120: Tropical BioEnergia SA | M120: Brazil | N120: Brazil | O120: Central & South America | P120: AMER | Q120: non-OECD | R120: BASIC | S120: Biofuels | T120: Biofuels | U120: Gasoline/Petrol Substitute | V120: 0 | W120: Developer | X120: Equity (company) | Z120: 2008-06-02 | AA120: na | AB120: na | AC120: na | AD120: na | AE120: 62.4 | AF120: 62.4 | AG120: 65.99341997
A121: 2008 | B121: 2 | C121: Q1 | D121: 2008Q1 | E121: Brazil | F121: Biofuels | G121: Asset finance investments | H121: 62.18224982 | I121: Acquisition transactions | J121: AF | K121: AF5289 | L121: Benalcool Bioethanol and Power Plant Cosan Acquisition | M121: Brazil | N121: Brazil | O121: Central & South America | P121: AMER | Q121: non-OECD | R121: BASIC | S121: Biofuels | T121: Biofuels | U121: Gasoline/Petrol Substitute | V121: 1-Gen fermentation | W121: Acquisition | X121: Balance Sheet | Y121: Equity | Z121: 2008-02-14T14:43:00 | AA121: 0 | AB121: 49.3 | AC121: 0 | AD121: 0 | AE121: 62 | AF121: 62 | AG121: 62.18224982
A122: 2009 | B122: 10 | C122: Q4 | D122: 2009Q4 | E122: Chile | F122: Wind | G122: Asset finance investments | H122: 60.85929214 | I122: Acquisition transactions | J122: AF | K122: AF26790 | L122: Monte Redondo Wind Farm GDF Suez Acquisition | M122: Chile | N122: Other AMER | O122: Central & South America | P122: AMER | Q122: OECD | S122: Wind | T122: Wind | U122: Onshore | V122: 0 | W122: Acquisition | X122: Balance Sheet | Y122: Equity | Z122: 2009-10-09 | AA122: 38 | AB122: 0 | AC122: 0 | AD122: 0 | AE122: 0 | AF122: 60.8 | AG122: 60.85929214
